Workbook

Sheet How to Use
B1: How to use the MLA Feed Demand Calculator - Overview

Sheet Pasture
B1: Pasture
H2: Select pasture types and the area (hectares) of each type that is available in each month
B3: Simulation name | H3: Name | I3: Saltbush | K3: Intermediate phalaris | M3: Native pasture | O3: Wheat stubble | U3: Total Area (ha)
C4: Example simulation | H4: Type | I4: Saltbush | K4: Medic, annuals - Std year | M4: Medic, annuals - Std year | O4: Medic, annuals - Std year | Q4: Medic, annuals - Std year | S4: Medic, annuals - Std year
B5: Location
C6: SA - Mid North - Mochard | H6: Jan | I6: 100 | K6: 900 | M6: 0 | O6: 0 | Q6: 0 | S6: 0 | U6: =SUM(I6:T6) -> 1000
B7: Start Date | H7: Feb | I7: 100 | K7: 900 | M7: 0 | O7: 0 | Q7: 0 | S7: 0 | U7: 1000
C8: 1900-01-01 | H8: Mar | I8: 100 | K8: 900 | M8: 0 | O8: 0 | Q8: 0 | S8: 0 | U8: 1000
B9: Effective Area | H9: Apr | I9: 100 | K9: 900 | M9: 0 | O9: 0 | Q9: 0 | S9: 0 | U9: 1000
C10: =Inputs!$N$52 -> 1000 | D10: ha | H10: May | I10: 100 | K10: 900 | M10: 0 | O10: 0 | Q10: 0 | S10: 0 | U10: 1000
B11: Enterprise type | H11: Jun | I11: 100 | K11: 900 | M11: 0 | O11: 0 | Q11: 0 | S11: 0 | U11: 1000
C12: Both cattle and sheep | H12: Jul | I12: 100 | K12: 900 | M12: 0 | O12: 0 | Q12: 0 | S12: 0 | U12: 1000
B13: Source of values for pasture growth rates | H13: Aug | I13: 100 | K13: 900 | M13: 0 | O13: 0 | Q13: 0 | S13: 0 | U13: 1000
C14: Combine pasture types | H14: Sep | I14: 100 | K14: 900 | M14: 0 | O14: 0 | Q14: 0 | S14: 0 | U14: 1000
B15: Scale default pasture growth rates by | H15: Oct | I15: 100 | K15: 900 | M15: 0 | O15: 0 | Q15: 0 | S15: 0 | U15: 1000
C16: 1 | H16: Nov | I16: 100 | K16: 900 | M16: 0 | O16: 0 | Q16: 0 | S16: 0 | U16: 1000
B17: Use your own values for pasture quality? | H17: Dec | I17: 100 | K17: 900 | M17: 0 | O17: 0 | Q17: 0 | S17: 0 | U17: 1000
C18: No | H18: Scale by | I18: 1 | K18: 1 | M18: 1 | O18: 1 | Q18: 1 | S18: 1
B19: Monthly wastage rate of pastures
B20: Growing | C20: 0.1 | E20: Carryover wastage | F20: 0.2
B21: Soil properties | H21: Modify growth rates (kg DM/ha/day) and quality (MJ ME/kg DM) for each pasture type
B22: Texture | C22: Clay loam | E22: Slope | F22: Level | H22: Month | I22: =IF(I3="",I4,CONCATENATE(I3,CHAR(10),I4)) -> Saltbush Saltbush | K22: =IF(K3="",K4,CONCATENATE(K3,CHAR(10),K4)) -> Intermediate phalaris Medic, annuals - Std year | M22: =IF(M3="",M4,CONCATENATE(M3,CHAR(10),M4)) -> Native pasture Medic, annuals - Std year | O22: =IF(O3="",O4,CONCATENATE(O3,CHAR(10),O4)) -> Wheat stubble Medic, annuals - Std year | Q22: =IF(Q3="",Q4,CONCATENATE(Q3,CHAR(10),Q4)) -> Medic, annuals - Std year | S22: =IF(S3="",S4,CONCATENATE(S3,CHAR(10),S4)) -> Medic, annuals - Std year | U22: Average
B24: Month | C24: Pasture | E24: Supplement
C25: Growth | D25: Quality | E25: Amount | F25: Quality | I25: Growth | J25: Quality | K25: Growth | L25: Quality | M25: Growth | N25: Quality | O25: Growth | P25: Quality | Q25: Growth | R25: Quality | S25: Growth | T25: Quality | U25: Growth | V25: Quality
B26: Jan | C26: =INDEX(Inputs!$B$56:$M$56,ROW()-ROW($C$26)+1) -> 0.6901107426 | D26: =INDEX(Inputs!$B$57:$M$57,ROW()-ROW($C$26)+1) -> 6.84 | E26: 0 | F26: 10 | H26: Jan | I26: 6.901107426 | J26: =17*INDEX(Inputs!$N$75:$S$86,ROW()-25,(COLUMN()-8)/2)-2 -> 6.84 | K26: 0 | L26: =17*INDEX(Inputs!$N$75:$S$86,ROW()-25,(COLUMN()-8)/2)-2 -> 8.71 | M26: 0 | N26: =17*INDEX(Inputs!$N$75:$S$86,ROW()-25,(COLUMN()-8)/2)-2 -> 8.71 | O26: 0 | P26: =17*INDEX(Inputs!$N$75:$S$86,ROW()-25,(COLUMN()-8)/2)-2 -> 8.71 | Q26: 0 | R26: =17*INDEX(Inputs!$N$75:$S$86,ROW()-25,(COLUMN()-8)/2)-2 -> 8.71 | S26: 0 | T26: =17*INDEX(Inputs!$N$75:$S$86,ROW()-25,(COLUMN()-8)/2)-2 -> 8.71 | U26: =IF(U6=0,0,SUM(I6*I26,K6*K26,M6*M26,O6*O26,Q6*Q26,S6*S26)/U6) -> 0.6901107426 | V26: =17*Inputs!AB75-2 -> 6.84
B27: Feb | C27: =INDEX(Inputs!$B$56:$M$56,ROW()-ROW($C$26)+1) -> 0.6510890766 | D27: =INDEX(Inputs!$B$57:$M$57,ROW()-ROW($C$26)+1) -> 6.84 | E27: 0 | F27: 10 | H27: Feb | I27: 6.510890766 | J27: =17*INDEX(Inputs!$N$75:$S$86,ROW()-25,(COLUMN()-8)/2)-2 -> 6.84 | K27: 0 | L27: =17*INDEX(Inputs!$N$75:$S$86,ROW()-25,(COLUMN()-8)/2)-2 -> 8.03 | M27: 0 | N27: =17*INDEX(Inputs!$N$75:$S$86,ROW()-25,(COLUMN()-8)/2)-2 -> 8.03 | O27: 0 | P27: =17*INDEX(Inputs!$N$75:$S$86,ROW()-25,(COLUMN()-8)/2)-2 -> 8.03 | Q27: 0 | R27: =17*INDEX(Inputs!$N$75:$S$86,ROW()-25,(COLUMN()-8)/2)-2 -> 8.03 | S27: 0 | T27: =17*INDEX(Inputs!$N$75:$S$86,ROW()-25,(COLUMN()-8)/2)-2 -> 8.03 | U27: 0.6510890766 | V27: =17*Inputs!AB76-2 -> 6.84
B28: Mar | C28: =INDEX(Inputs!$B$56:$M$56,ROW()-ROW($C$26)+1) -> 3.002044295 | D28: =INDEX(Inputs!$B$57:$M$57,ROW()-ROW($C$26)+1) -> 7.451583248 | E28: 0 | F28: 10 | H28: Mar | I28: 3.020442953 | J28: =17*INDEX(Inputs!$N$75:$S$86,ROW()-25,(COLUMN()-8)/2)-2 -> 6.84 | K28: 3 | L28: =17*INDEX(Inputs!$N$75:$S$86,ROW()-25,(COLUMN()-8)/2)-2 -> 7.52 | M28: 3 | N28: =17*INDEX(Inputs!$N$75:$S$86,ROW()-25,(COLUMN()-8)/2)-2 -> 7.52 | O28: 3 | P28: =17*INDEX(Inputs!$N$75:$S$86,ROW()-25,(COLUMN()-8)/2)-2 -> 7.52 | Q28: 3 | R28: =17*INDEX(Inputs!$N$75:$S$86,ROW()-25,(COLUMN()-8)/2)-2 -> 7.52 | S28: 3 | T28: =17*INDEX(Inputs!$N$75:$S$86,ROW()-25,(COLUMN()-8)/2)-2 -> 7.52 | U28: 3.002044295 | V28: =17*Inputs!AB77-2 -> 7.451583248
B29: Apr | C29: =INDEX(Inputs!$B$56:$M$56,ROW()-ROW($C$26)+1) -> 6.464084526 | D29: =INDEX(Inputs!$B$57:$M$57,ROW()-ROW($C$26)+1) -> 7.337054144 | E29: 0 | F29: 10 | H29: Apr | I29: 1.640845261 | J29: =17*INDEX(Inputs!$N$75:$S$86,ROW()-25,(COLUMN()-8)/2)-2 -> 6.84 | K29: 7 | L29: =17*INDEX(Inputs!$N$75:$S$86,ROW()-25,(COLUMN()-8)/2)-2 -> 7.35 | M29: 7 | N29: =17*INDEX(Inputs!$N$75:$S$86,ROW()-25,(COLUMN()-8)/2)-2 -> 7.35 | O29: 7 | P29: =17*INDEX(Inputs!$N$75:$S$86,ROW()-25,(COLUMN()-8)/2)-2 -> 7.35 | Q29: 7 | R29: =17*INDEX(Inputs!$N$75:$S$86,ROW()-25,(COLUMN()-8)/2)-2 -> 7.35 | S29: 7 | T29: =17*INDEX(Inputs!$N$75:$S$86,ROW()-25,(COLUMN()-8)/2)-2 -> 7.35 | U29: 6.464084526 | V29: =17*Inputs!AB78-2 -> 7.337054144
B30: May | C30: =INDEX(Inputs!$B$56:$M$56,ROW()-ROW($C$26)+1) -> 11.8727868 | D30: =INDEX(Inputs!$B$57:$M$57,ROW()-ROW($C$26)+1) -> 8.347733635 | E30: 0 | F30: 10 | H30: May | I30: 1.727867974 | J30: =17*INDEX(Inputs!$N$75:$S$86,ROW()-25,(COLUMN()-8)/2)-2 -> 6.84 | K30: 13 | L30: =17*INDEX(Inputs!$N$75:$S$86,ROW()-25,(COLUMN()-8)/2)-2 -> 8.37 | M30: 13 | N30: =17*INDEX(Inputs!$N$75:$S$86,ROW()-25,(COLUMN()-8)/2)-2 -> 8.37 | O30: 13 | P30: =17*INDEX(Inputs!$N$75:$S$86,ROW()-25,(COLUMN()-8)/2)-2 -> 8.37 | Q30: 13 | R30: =17*INDEX(Inputs!$N$75:$S$86,ROW()-25,(COLUMN()-8)/2)-2 -> 8.37 | S30: 13 | T30: =17*INDEX(Inputs!$N$75:$S$86,ROW()-25,(COLUMN()-8)/2)-2 -> 8.37 | U30: 11.8727868 | V30: =17*Inputs!AB79-2 -> 8.347733635
B31: Jun | C31: =INDEX(Inputs!$B$56:$M$56,ROW()-ROW($C$26)+1) -> 18.11567113 | D31: =INDEX(Inputs!$B$57:$M$57,ROW()-ROW($C$26)+1) -> 9.796004202 | E31: 0 | F31: 10 | H31: Jun | I31: 1.15671134 | J31: =17*INDEX(Inputs!$N$75:$S$86,ROW()-25,(COLUMN()-8)/2)-2 -> 6.84 | K31: 20 | L31: =17*INDEX(Inputs!$N$75:$S$86,ROW()-25,(COLUMN()-8)/2)-2 -> 9.815 | M31: 20 | N31: =17*INDEX(Inputs!$N$75:$S$86,ROW()-25,(COLUMN()-8)/2)-2 -> 9.815 | O31: 20 | P31: =17*INDEX(Inputs!$N$75:$S$86,ROW()-25,(COLUMN()-8)/2)-2 -> 9.815 | Q31: 20 | R31: =17*INDEX(Inputs!$N$75:$S$86,ROW()-25,(COLUMN()-8)/2)-2 -> 9.815 | S31: 20 | T31: =17*INDEX(Inputs!$N$75:$S$86,ROW()-25,(COLUMN()-8)/2)-2 -> 9.815 | U31: 18.11567113 | V31: =17*Inputs!AB80-2 -> 9.796004202
B32: Jul | C32: =INDEX(Inputs!$B$56:$M$56,ROW()-ROW($C$26)+1) -> 25.32385368 | D32: =INDEX(Inputs!$B$57:$M$57,ROW()-ROW($C$26)+1) -> 10.90004557 | E32: 0 | F32: 10 | H32: Jul | I32: 1.238536834 | J32: =17*INDEX(Inputs!$N$75:$S$86,ROW()-25,(COLUMN()-8)/2)-2 -> 6.84 | K32: 28 | L32: =17*INDEX(Inputs!$N$75:$S$86,ROW()-25,(COLUMN()-8)/2)-2 -> 10.92 | M32: 28 | N32: =17*INDEX(Inputs!$N$75:$S$86,ROW()-25,(COLUMN()-8)/2)-2 -> 10.92 | O32: 28 | P32: =17*INDEX(Inputs!$N$75:$S$86,ROW()-25,(COLUMN()-8)/2)-2 -> 10.92 | Q32: 28 | R32: =17*INDEX(Inputs!$N$75:$S$86,ROW()-25,(COLUMN()-8)/2)-2 -> 10.92 | S32: 28 | T32: =17*INDEX(Inputs!$N$75:$S$86,ROW()-25,(COLUMN()-8)/2)-2 -> 10.92 | U32: 25.32385368 | V32: =17*Inputs!AB81-2 -> 10.90004557
B33: Aug | C33: =INDEX(Inputs!$B$56:$M$56,ROW()-ROW($C$26)+1) -> 30.87981325 | D33: =INDEX(Inputs!$B$57:$M$57,ROW()-ROW($C$26)+1) -> 11.38840834 | E33: 0 | F33: 10 | H33: Aug | I33: 2.798132537 | J33: =17*INDEX(Inputs!$N$75:$S$86,ROW()-25,(COLUMN()-8)/2)-2 -> 6.84 | K33: 34 | L33: =17*INDEX(Inputs!$N$75:$S$86,ROW()-25,(COLUMN()-8)/2)-2 -> 11.43 | M33: 34 | N33: =17*INDEX(Inputs!$N$75:$S$86,ROW()-25,(COLUMN()-8)/2)-2 -> 11.43 | O33: 34 | P33: =17*INDEX(Inputs!$N$75:$S$86,ROW()-25,(COLUMN()-8)/2)-2 -> 11.43 | Q33: 34 | R33: =17*INDEX(Inputs!$N$75:$S$86,ROW()-25,(COLUMN()-8)/2)-2 -> 11.43 | S33: 34 | T33: =17*INDEX(Inputs!$N$75:$S$86,ROW()-25,(COLUMN()-8)/2)-2 -> 11.43 | U33: 30.87981325 | V33: =17*Inputs!AB82-2 -> 11.38840834
B34: Sep | C34: =INDEX(Inputs!$B$56:$M$56,ROW()-ROW($C$26)+1) -> 29.58663758 | D34: =INDEX(Inputs!$B$57:$M$57,ROW()-ROW($C$26)+1) -> 11.47344304 | E34: 0 | F34: 10 | H34: Sep | I34: 7.866375817 | J34: =17*INDEX(Inputs!$N$75:$S$86,ROW()-25,(COLUMN()-8)/2)-2 -> 6.84 | K34: 32 | L34: =17*INDEX(Inputs!$N$75:$S$86,ROW()-25,(COLUMN()-8)/2)-2 -> 11.6 | M34: 32 | N34: =17*INDEX(Inputs!$N$75:$S$86,ROW()-25,(COLUMN()-8)/2)-2 -> 11.6 | O34: 32 | P34: =17*INDEX(Inputs!$N$75:$S$86,ROW()-25,(COLUMN()-8)/2)-2 -> 11.6 | Q34: 32 | R34: =17*INDEX(Inputs!$N$75:$S$86,ROW()-25,(COLUMN()-8)/2)-2 -> 11.6 | S34: 32 | T34: =17*INDEX(Inputs!$N$75:$S$86,ROW()-25,(COLUMN()-8)/2)-2 -> 11.6 | U34: 29.58663758 | V34: =17*Inputs!AB83-2 -> 11.47344304
B35: Oct | C35: =INDEX(Inputs!$B$56:$M$56,ROW()-ROW($C$26)+1) -> 14.16046949 | D35: =INDEX(Inputs!$B$57:$M$57,ROW()-ROW($C$26)+1) -> 10.9998197 | E35: 0 | F35: 10 | H35: Oct | I35: 15.60469486 | J35: =17*INDEX(Inputs!$N$75:$S$86,ROW()-25,(COLUMN()-8)/2)-2 -> 6.84 | K35: 14 | L35: =17*INDEX(Inputs!$N$75:$S$86,ROW()-25,(COLUMN()-8)/2)-2 -> 11.515 | M35: 14 | N35: =17*INDEX(Inputs!$N$75:$S$86,ROW()-25,(COLUMN()-8)/2)-2 -> 11.515 | O35: 14 | P35: =17*INDEX(Inputs!$N$75:$S$86,ROW()-25,(COLUMN()-8)/2)-2 -> 11.515 | Q35: 14 | R35: =17*INDEX(Inputs!$N$75:$S$86,ROW()-25,(COLUMN()-8)/2)-2 -> 11.515 | S35: 14 | T35: =17*INDEX(Inputs!$N$75:$S$86,ROW()-25,(COLUMN()-8)/2)-2 -> 11.515 | U35: 14.16046949 | V35: =17*Inputs!AB84-2 -> 10.9998197
B36: Nov | C36: =INDEX(Inputs!$B$56:$M$56,ROW()-ROW($C$26)+1) -> 4.470560615 | D36: =INDEX(Inputs!$B$57:$M$57,ROW()-ROW($C$26)+1) -> 8.944769583 | E36: 0 | F36: 10 | H36: Nov | I36: 17.70560615 | J36: =17*INDEX(Inputs!$N$75:$S$86,ROW()-25,(COLUMN()-8)/2)-2 -> 6.84 | K36: 3 | L36: =17*INDEX(Inputs!$N$75:$S$86,ROW()-25,(COLUMN()-8)/2)-2 -> 10.325 | M36: 3 | N36: =17*INDEX(Inputs!$N$75:$S$86,ROW()-25,(COLUMN()-8)/2)-2 -> 10.325 | O36: 3 | P36: =17*INDEX(Inputs!$N$75:$S$86,ROW()-25,(COLUMN()-8)/2)-2 -> 10.325 | Q36: 3 | R36: =17*INDEX(Inputs!$N$75:$S$86,ROW()-25,(COLUMN()-8)/2)-2 -> 10.325 | S36: 3 | T36: =17*INDEX(Inputs!$N$75:$S$86,ROW()-25,(COLUMN()-8)/2)-2 -> 10.325 | U36: 4.470560615 | V36: =17*Inputs!AB85-2 -> 8.944769583
B37: Dec | C37: =INDEX(Inputs!$B$56:$M$56,ROW()-ROW($C$26)+1) -> 1.25488141 | D37: =INDEX(Inputs!$B$57:$M$57,ROW()-ROW($C$26)+1) -> 6.84 | E37: 0 | F37: 10 | H37: Dec | I37: 12.5488141 | J37: =17*INDEX(Inputs!$N$75:$S$86,ROW()-25,(COLUMN()-8)/2)-2 -> 6.84 | K37: 0 | L37: =17*INDEX(Inputs!$N$75:$S$86,ROW()-25,(COLUMN()-8)/2)-2 -> 9.22 | M37: 0 | N37: =17*INDEX(Inputs!$N$75:$S$86,ROW()-25,(COLUMN()-8)/2)-2 -> 9.22 | O37: 0 | P37: =17*INDEX(Inputs!$N$75:$S$86,ROW()-25,(COLUMN()-8)/2)-2 -> 9.22 | Q37: 0 | R37: =17*INDEX(Inputs!$N$75:$S$86,ROW()-25,(COLUMN()-8)/2)-2 -> 9.22 | S37: 0 | T37: =17*INDEX(Inputs!$N$75:$S$86,ROW()-25,(COLUMN()-8)/2)-2 -> 9.22 | U37: 1.25488141 | V37: =17*Inputs!AB86-2 -> 6.84
F39: Tonnes DM/year | I39: =LEFT(IF(I3="",I4,I3),40) -> Saltbush | K39: =LEFT(IF(K3="",K4,K3),40) -> Intermediate phalaris | M39: =LEFT(IF(M3="",M4,M3),40) -> Native pasture | O39: =LEFT(IF(O3="",O4,O3),40) -> Wheat stubble | Q39: =LEFT(IF(Q3="",Q4,Q3),40) -> Medic, annuals - Std year | S39: =LEFT(IF(S3="",S4,S3),40) -> Medic, annuals - Std year
F41: Per ha | H41: =IF($C$10=0,0,$H$42/$C$10) -> 4.48004186 | I41: =Inputs!AK87 -> 2.392418596 | K41: =Inputs!AL87 -> 4.712 | M41: =Inputs!AM87 -> 0 | O41: =Inputs!AN87 -> 0 | Q41: =Inputs!AO87 -> 0 | S41: =Inputs!AP87 -> 0 | W41: Per ha | Y41: =IF($C$10=0,0,$Y$42/$C$10) -> 4.48004186
F42: Total | H42: =Inputs!N66 -> 4480.04186 | I42: =Inputs!AE87 -> 239.2418596 | K42: =Inputs!AF87 -> 4240.8 | M42: =Inputs!AG87 -> 0 | O42: =Inputs!AH87 -> 0 | Q42: =Inputs!AI87 -> 0 | S42: =Inputs!AJ87 -> 0 | W42: Total | Y42: =Inputs!N66 -> 4480.04186
I43: Scaled default growth rates, as formulae
H44: Jan | I44: =INDEX(table_LocationPastures,Inputs!$B$72,ROW()-43+4) -> 6.901107426 | K44: =INDEX(table_LocationPastures,Inputs!$C$72,ROW()-43+4) -> 0 | M44: =INDEX(table_LocationPastures,Inputs!$D$72,ROW()-43+4) -> 0 | O44: =INDEX(table_LocationPastures,Inputs!$E$72,ROW()-43+4) -> 0 | Q44: =INDEX(table_LocationPastures,Inputs!$F$72,ROW()-43+4) -> 0 | S44: =INDEX(table_LocationPastures,Inputs!$G$72,ROW()-43+4) -> 0
H45: Feb | I45: =INDEX(table_LocationPastures,Inputs!$B$72,ROW()-43+4) -> 6.510890766 | K45: =INDEX(table_LocationPastures,Inputs!$C$72,ROW()-43+4) -> 0 | M45: =INDEX(table_LocationPastures,Inputs!$D$72,ROW()-43+4) -> 0 | O45: =INDEX(table_LocationPastures,Inputs!$E$72,ROW()-43+4) -> 0 | Q45: =INDEX(table_LocationPastures,Inputs!$F$72,ROW()-43+4) -> 0 | S45: =INDEX(table_LocationPastures,Inputs!$G$72,ROW()-43+4) -> 0
H46: Mar | I46: =INDEX(table_LocationPastures,Inputs!$B$72,ROW()-43+4) -> 3.020442953 | K46: =INDEX(table_LocationPastures,Inputs!$C$72,ROW()-43+4) -> 3 | M46: =INDEX(table_LocationPastures,Inputs!$D$72,ROW()-43+4) -> 3 | O46: =INDEX(table_LocationPastures,Inputs!$E$72,ROW()-43+4) -> 3 | Q46: =INDEX(table_LocationPastures,Inputs!$F$72,ROW()-43+4) -> 3 | S46: =INDEX(table_LocationPastures,Inputs!$G$72,ROW()-43+4) -> 3
H47: Apr | I47: =INDEX(table_LocationPastures,Inputs!$B$72,ROW()-43+4) -> 1.640845261 | K47: =INDEX(table_LocationPastures,Inputs!$C$72,ROW()-43+4) -> 7 | M47: =INDEX(table_LocationPastures,Inputs!$D$72,ROW()-43+4) -> 7 | O47: =INDEX(table_LocationPastures,Inputs!$E$72,ROW()-43+4) -> 7 | Q47: =INDEX(table_LocationPastures,Inputs!$F$72,ROW()-43+4) -> 7 | S47: =INDEX(table_LocationPastures,Inputs!$G$72,ROW()-43+4) -> 7
H48: May | I48: =INDEX(table_LocationPastures,Inputs!$B$72,ROW()-43+4) -> 1.727867974 | K48: =INDEX(table_LocationPastures,Inputs!$C$72,ROW()-43+4) -> 13 | M48: =INDEX(table_LocationPastures,Inputs!$D$72,ROW()-43+4) -> 13 | O48: =INDEX(table_LocationPastures,Inputs!$E$72,ROW()-43+4) -> 13 | Q48: =INDEX(table_LocationPastures,Inputs!$F$72,ROW()-43+4) -> 13 | S48: =INDEX(table_LocationPastures,Inputs!$G$72,ROW()-43+4) -> 13
H49: Jun | I49: =INDEX(table_LocationPastures,Inputs!$B$72,ROW()-43+4) -> 1.15671134 | K49: =INDEX(table_LocationPastures,Inputs!$C$72,ROW()-43+4) -> 20 | M49: =INDEX(table_LocationPastures,Inputs!$D$72,ROW()-43+4) -> 20 | O49: =INDEX(table_LocationPastures,Inputs!$E$72,ROW()-43+4) -> 20 | Q49: =INDEX(table_LocationPastures,Inputs!$F$72,ROW()-43+4) -> 20 | S49: =INDEX(table_LocationPastures,Inputs!$G$72,ROW()-43+4) -> 20
H50: Jul | I50: =INDEX(table_LocationPastures,Inputs!$B$72,ROW()-43+4) -> 1.238536834 | K50: =INDEX(table_LocationPastures,Inputs!$C$72,ROW()-43+4) -> 28 | M50: =INDEX(table_LocationPastures,Inputs!$D$72,ROW()-43+4) -> 28 | O50: =INDEX(table_LocationPastures,Inputs!$E$72,ROW()-43+4) -> 28 | Q50: =INDEX(table_LocationPastures,Inputs!$F$72,ROW()-43+4) -> 28 | S50: =INDEX(table_LocationPastures,Inputs!$G$72,ROW()-43+4) -> 28
H51: Aug | I51: =INDEX(table_LocationPastures,Inputs!$B$72,ROW()-43+4) -> 2.798132537 | K51: =INDEX(table_LocationPastures,Inputs!$C$72,ROW()-43+4) -> 34 | M51: =INDEX(table_LocationPastures,Inputs!$D$72,ROW()-43+4) -> 34 | O51: =INDEX(table_LocationPastures,Inputs!$E$72,ROW()-43+4) -> 34 | Q51: =INDEX(table_LocationPastures,Inputs!$F$72,ROW()-43+4) -> 34 | S51: =INDEX(table_LocationPastures,Inputs!$G$72,ROW()-43+4) -> 34
H52: Sep | I52: =INDEX(table_LocationPastures,Inputs!$B$72,ROW()-43+4) -> 7.866375817 | K52: =INDEX(table_LocationPastures,Inputs!$C$72,ROW()-43+4) -> 32 | M52: =INDEX(table_LocationPastures,Inputs!$D$72,ROW()-43+4) -> 32 | O52: =INDEX(table_LocationPastures,Inputs!$E$72,ROW()-43+4) -> 32 | Q52: =INDEX(table_LocationPastures,Inputs!$F$72,ROW()-43+4) -> 32 | S52: =INDEX(table_LocationPastures,Inputs!$G$72,ROW()-43+4) -> 32
H53: Oct | I53: =INDEX(table_LocationPastures,Inputs!$B$72,ROW()-43+4) -> 15.60469486 | K53: =INDEX(table_LocationPastures,Inputs!$C$72,ROW()-43+4) -> 14 | M53: =INDEX(table_LocationPastures,Inputs!$D$72,ROW()-43+4) -> 14 | O53: =INDEX(table_LocationPastures,Inputs!$E$72,ROW()-43+4) -> 14 | Q53: =INDEX(table_LocationPastures,Inputs!$F$72,ROW()-43+4) -> 14 | S53: =INDEX(table_LocationPastures,Inputs!$G$72,ROW()-43+4) -> 14
H54: Nov | I54: =INDEX(table_LocationPastures,Inputs!$B$72,ROW()-43+4) -> 17.70560615 | K54: =INDEX(table_LocationPastures,Inputs!$C$72,ROW()-43+4) -> 3 | M54: =INDEX(table_LocationPastures,Inputs!$D$72,ROW()-43+4) -> 3 | O54: =INDEX(table_LocationPastures,Inputs!$E$72,ROW()-43+4) -> 3 | Q54: =INDEX(table_LocationPastures,Inputs!$F$72,ROW()-43+4) -> 3 | S54: =INDEX(table_LocationPastures,Inputs!$G$72,ROW()-43+4) -> 3
H55: Dec | I55: =INDEX(table_LocationPastures,Inputs!$B$72,ROW()-43+4) -> 12.5488141 | K55: =INDEX(table_LocationPastures,Inputs!$C$72,ROW()-43+4) -> 0 | M55: =INDEX(table_LocationPastures,Inputs!$D$72,ROW()-43+4) -> 0 | O55: =INDEX(table_LocationPastures,Inputs!$E$72,ROW()-43+4) -> 0 | Q55: =INDEX(table_LocationPastures,Inputs!$F$72,ROW()-43+4) -> 0 | S55: =INDEX(table_LocationPastures,Inputs!$G$72,ROW()-43+4) -> 0
I56: Scale factor
I57: 1 | K57: 1 | M57: 1 | O57: 1 | Q57: 1 | S57: 1

Sheet Cattle
B1: Cattle | Q1: =Inputs!B1 -> Example simulation
B2: Breed | D2: British (e.g. Angus, Hereford)
B3: Cow weight (mature) | D3: 500 | E3: kg
B4: Join 1-2 year heifers | D4: Yes
B5: No. of joining periods | D5: 1 | E5: per year
B7: Joining Period 1:
C8: From | D8: 1900-11-01 | E8: to | F8: 1900-01-01
C9: Join | D9: 1 | E9: of breeders
C10: Wean on | D10: 1900-03-01
C11: Expect | D11: 0.95 | E11: calves weaned per cow
B12: Joining Period 2:
C13: From | D13: 1900-06-01 | E13: to | F13: 1900-07-16
C14: Join | D14: 0 | E14: of cows during this period
C15: Wean on | D15: 1900-10-16
C16: Expect | D16: 0.95 | E16: calves weaned per cow
G21: =CONCATENATE("Stock at start date - ",TEXT('Numbers Etc'!I15,"d mmm")) -> Stock at start date - 1 Jan | J21: Purchases | N21: Sales
D22: Stock class | G22: Animal | H22: Number | I22: Weight | J22: Purchase | K22: Animal | L22: Number | M22: Purchase | N22: Sale | O22: Animal | P22: Number | Q22: Target | R22: stock class | S22: Est. start | T22: Purchase | U22: Sale | V22: Number | W22: minimum age | X22: maximum age
D23: at the start date | G23: Age | H23: of stock | I23: at start | J23: Date | K23: Age | L23: Purchased | M23: Weight | N23: Date | O23: Age | P23: Sold | Q23: Weight | S23: date | T23: date | U23: date | V23: at sale
D24: =CONCATENATE("(",TEXT('Numbers Etc'!I15,"d mmm"),")") -> (1 Jan) | G24: (months) | K24: (months) | M24: (kg) | O24: (months) | Q24: (kg) | S24: weight | T24: weight | U24: weight | V24: date
B25: Breeding stock and young | D25: Cows (>3 years) | G25: ='Numbers Etc'!E99 ->  | J25: 1900-10-01 | K25: =G25+MOD(J25-Pasture!$C$8,365)/(365/12) ->  | M25: =T25 ->  | N25: 1900-06-16 | O25: =G25+MOD(N25-Pasture!$C$8,365)/(365/12) ->  | Q25: =U25 ->  | S25: =Inputs!X5 ->  | T25: =Inputs!Y5 ->  | U25: =Inputs!Z5 ->  | V25: =Inputs!AA5 -> 0
D26: Cows (2-3 years) | G26: ='Numbers Etc'!E100 ->  | J26: 1900-10-01 | K26: =G26+MOD(J26-Pasture!$C$8,365)/(365/12) ->  | M26: =T26 ->  | N26: 1900-06-16 | O26: =G26+MOD(N26-Pasture!$C$8,365)/(365/12) ->  | Q26: =U26 ->  | S26: =Inputs!X6 ->  | T26: =Inputs!Y6 ->  | U26: =Inputs!Z6 ->  | V26: =Inputs!AA6 -> 0
D27: Heifers (1-2 years) | G27: ='Numbers Etc'!E101 ->  | J27: 1900-10-01 | K27: =G27+MOD(J27-Pasture!$C$8,365)/(365/12) ->  | N27: 1900-06-16 | O27: =G27+MOD(N27-Pasture!$C$8,365)/(365/12) ->  | S27: =Inputs!X7 ->  | T27: =Inputs!Y7 ->  | U27: =Inputs!Z7 ->  | V27: =Inputs!AA7 -> 0
D28: Steers (1-2 years) | G28: ='Numbers Etc'!E102 ->  | J28: 1900-10-01 | K28: =G28+MOD(J28-Pasture!$C$8,365)/(365/12) ->  | N28: 1900-06-16 | O28: =G28+MOD(N28-Pasture!$C$8,365)/(365/12) ->  | S28: =Inputs!X8 ->  | T28: =Inputs!Y8 ->  | U28: =Inputs!Z8 ->  | V28: =Inputs!AA8 -> 0
D29: Weaned young heifers | G29: ='Numbers Etc'!E103 ->  | J29: 1900-10-01 | K29: =G29+MOD(J29-Pasture!$C$8,365)/(365/12) ->  | N29: 1900-06-16 | O29: =G29+MOD(N29-Pasture!$C$8,365)/(365/12) ->  | S29: =Inputs!X9 ->  | T29: =Inputs!Y9 ->  | U29: =Inputs!Z9 ->  | V29: =Inputs!AA9 -> 0
D30: Weaned young steers | G30: ='Numbers Etc'!E104 ->  | J30: 1900-10-01 | K30: =G30+MOD(J30-Pasture!$C$8,365)/(365/12) ->  | N30: 1900-06-16 | O30: =G30+MOD(N30-Pasture!$C$8,365)/(365/12) ->  | S30: =Inputs!X10 ->  | T30: =Inputs!Y10 ->  | U30: =Inputs!Z10 ->  | V30: =Inputs!AA10 -> 0
D31: Calves weaned this year | G31: =IF(OR(Inputs!B18=Inputs!B3,'Numbers Etc'!I79>0),'Numbers Etc'!E104,"") ->  | H31: =IF(G31<>"",IF(Inputs!B18=Inputs!B3,'Numbers Etc'!I77,'Numbers Etc'!I79),"") ->  | N31: 1900-01-16 | O31: =IF(G30-IF(G31<>"",0,12)+MOD(N31-Pasture!$C$8,365)/(365/12) < 0, "",G30-IF(G31<>"",0,12)+MOD(N31-Pasture!$C$8,365)/(365/12)) ->  | S31: =Inputs!X11 -> 0 | T31: =Inputs!Y11 -> 0 | U31: =Inputs!Z11 ->  | V31: =Inputs!AA11 -> 0
B32: Trading stock | D32: Steers | J32: 1900-07-01 | N32: 1900-02-01 | O32: =IF(OR(G32<>"",K32<>""),Inputs!K12+MOD(N32-Pasture!$C$8,365)/(365/12),"") ->  | R32: =Inputs!J12 -> 2 | S32: =Inputs!X12 ->  | T32: =Inputs!Y12 ->  | U32: =Inputs!Z12 ->  | V32: =Inputs!AA12 -> 0 | W32: =IF(R32<4,10,2) -> 10 | X32: =IF(R32<4,72,12) -> 72
D33: Steers | J33: 1900-10-01 | N33: 1900-12-16 | O33: =IF(OR(G33<>"",K33<>""),Inputs!K13+MOD(N33-Pasture!$C$8,365)/(365/12),"") ->  | R33: =Inputs!J13 -> 2 | S33: =Inputs!X13 ->  | T33: =Inputs!Y13 ->  | U33: =Inputs!Z13 ->  | V33: =Inputs!AA13 -> 0 | W33: =IF(R33<4,10,2) -> 10 | X33: =IF(R33<4,72,12) -> 72
D34: Steers | J34: 1900-10-01 | N34: 1900-06-16 | O34: =IF(OR(G34<>"",K34<>""),Inputs!K14+MOD(N34-Pasture!$C$8,365)/(365/12),"") ->  | R34: =Inputs!J14 -> 2 | S34: =Inputs!X14 ->  | T34: =Inputs!Y14 ->  | U34: =Inputs!Z14 ->  | V34: =Inputs!AA14 -> 0 | W34: 10 | X34: 72
D35: Steers | J35: 1900-10-01 | N35: 1900-06-16 | O35: =IF(OR(G35<>"",K35<>""),Inputs!K15+MOD(N35-Pasture!$C$8,365)/(365/12),"") ->  | R35: =Inputs!J15 -> 2 | S35: =Inputs!X15 ->  | T35: =Inputs!Y15 ->  | U35: =Inputs!Z15 ->  | V35: =Inputs!AA15 -> 0 | W35: 10 | X35: 72
D36: Steers | J36: 1900-10-01 | N36: 1900-06-16 | O36: =IF(OR(G36<>"",K36<>""),Inputs!K16+MOD(N36-Pasture!$C$8,365)/(365/12),"") ->  | R36: =Inputs!J16 -> 2 | S36: =Inputs!X16 ->  | T36: =Inputs!Y16 ->  | U36: =Inputs!Z16 ->  | V36: =Inputs!AA16 -> 0 | W36: 10 | X36: 72
D37: Steers | J37: 1900-10-01 | N37: 1900-06-16 | O37: =IF(OR(G37<>"",K37<>""),Inputs!K17+MOD(N37-Pasture!$C$8,365)/(365/12),"") ->  | R37: =Inputs!J17 -> 2 | S37: =Inputs!X17 ->  | T37: =Inputs!Y17 ->  | U37: =Inputs!Z17 ->  | V37: =Inputs!AA17 -> 0 | W37: 10 | X37: 72
D38: Steers | J38: 1900-10-01 | N38: 1900-06-16 | O38: =IF(OR(G38<>"",K38<>""),Inputs!K18+MOD(N38-Pasture!$C$8,365)/(365/12),"") ->  | R38: =Inputs!J18 -> 2 | S38: =Inputs!X18 ->  | T38: =Inputs!Y18 ->  | U38: =Inputs!Z18 ->  | V38: =Inputs!AA18 -> 0 | W38: 10 | X38: 72
D39: Steers | J39: 1900-10-01 | N39: 1900-06-16 | O39: =IF(OR(G39<>"",K39<>""),Inputs!K19+MOD(N39-Pasture!$C$8,365)/(365/12),"") ->  | R39: =Inputs!J19 -> 2 | S39: =Inputs!X19 ->  | T39: =Inputs!Y19 ->  | U39: =Inputs!Z19 ->  | V39: =Inputs!AA19 -> 0 | W39: 10 | X39: 72
D40: Steers | J40: 1900-10-01 | N40: 1900-06-16 | O40: =IF(OR(G40<>"",K40<>""),Inputs!K20+MOD(N40-Pasture!$C$8,365)/(365/12),"") ->  | R40: =Inputs!J20 -> 2 | S40: =Inputs!X20 ->  | T40: =Inputs!Y20 ->  | U40: =Inputs!Z20 ->  | V40: =Inputs!AA20 -> 0 | W40: 10 | X40: 72
D41: Steers | J41: 1900-10-01 | N41: 1900-06-16 | O41: =IF(OR(G41<>"",K41<>""),Inputs!K21+MOD(N41-Pasture!$C$8,365)/(365/12),"") ->  | R41: =Inputs!J21 -> 2 | S41: =Inputs!X21 ->  | T41: =Inputs!Y21 ->  | U41: =Inputs!Z21 ->  | V41: =Inputs!AA21 -> 0 | W41: 10 | X41: 72
N42: Sales from a stock class refer to animals that started the year in that class.

Sheet Sheep
B1: Sheep | Q1: =Inputs!B1 -> Example simulation
B2: Breed | D2: Meat sheep (e.g. Border Leicester)
B3: Ewe weight (mature) | D3: 65 | E3: kg
B4: Join 1-2 year old ewes | D4: Yes
B5: No. of joining periods | D5: 1 | E5: per year
B7: Joining Period 1:
C8: From | D8: 1900-03-01 | E8: to | F8: 1900-04-16
C9: Join | D9: 1 | E9: of breeders
C10: Wean on | D10: 1900-01-01
C11: Expect | D11: 1.3 | E11: lambs weaned per ewe
B12: Joining Period 2:
C13: From | D13: 1900-09-01 | E13: to | F13: 1900-10-16
C14: Join | D14: 0 | E14: of ewes during this period
C15: Wean on | D15: 1900-08-16
C16: Expect | D16: 1 | E16: lambs weaned per ewe
G21: =CONCATENATE("Stock at start date - ",TEXT('Numbers Etc'!I15,"d mmm")) -> Stock at start date - 1 Jan | J21: Purchases | N21: Sales
D22: Stock class | G22: Animal | H22: Number | I22: Weight | J22: Purchase | K22: Animal | L22: Number | M22: Purchase | N22: Sale | O22: Animal | P22: Number | Q22: Target | R22: stock class | S22: Est. start | T22: Purchase | U22: Sale | V22: Number | W22: Minimum age | X22: Maximum age
D23: at the start date | G23: Age | H23: of stock | I23: at start | J23: Date | K23: Age | L23: Purchased | M23: Weight | N23: Date | O23: Age | P23: Sold | Q23: Weight | S23: date | T23: date | U23: date | V23: at sale
D24: =CONCATENATE("(",TEXT('Numbers Etc'!I15,"d mmm"),")") -> (1 Jan) | G24: (months) | K24: (months) | M24: (kg) | O24: (months) | Q24: (kg) | S24: weight | T24: weight | U24: weight | V24: date
B25: Breeding stock and young | D25: Ewes (>2 years) | G25: ='Numbers Etc'!E116 ->  | J25: 1900-02-01 | K25: =G25+MOD(J25-Pasture!$C$8,365)/(365/12) ->  | M25: =T25 ->  | N25: 1900-11-16 | O25: =G25+MOD(N25-Pasture!$C$8,365)/(365/12) ->  | Q25: =U25 ->  | S25: =Inputs!X22 ->  | T25: =Inputs!Y22 ->  | U25: =Inputs!Z22 ->  | V25: =Inputs!AA22 -> 0
D26: Ewes (1-2 years) | G26: ='Numbers Etc'!E117 ->  | J26: 1900-01-01 | K26: =G26+MOD(J26-Pasture!$C$8,365)/(365/12) ->  | N26: 1900-11-16 | O26: =G26+MOD(N26-Pasture!$C$8,365)/(365/12) ->  | S26: =Inputs!X23 ->  | T26: =Inputs!Y23 ->  | U26: =Inputs!Z23 ->  | V26: =Inputs!AA23 -> 0
D27: Wethers (1-2 years) | G27: ='Numbers Etc'!E118 ->  | J27: 1900-02-01 | K27: =G27+MOD(J27-Pasture!$C$8,365)/(365/12) ->  | N27: 1900-11-16 | O27: =G27+MOD(N27-Pasture!$C$8,365)/(365/12) ->  | S27: =Inputs!X24 ->  | T27: =Inputs!Y24 ->  | U27: =Inputs!Z24 ->  | V27: =Inputs!AA24 -> 0
D28: Weaned young ewes | G28: ='Numbers Etc'!E119 ->  | J28: 1900-02-01 | K28: =G28+MOD(J28-Pasture!$C$8,365)/(365/12) ->  | N28: 1900-11-16 | O28: =G28+MOD(N28-Pasture!$C$8,365)/(365/12) ->  | S28: =Inputs!X25 ->  | T28: =Inputs!Y25 ->  | U28: =Inputs!Z25 ->  | V28: =Inputs!AA25 -> 0
D29: Weaned young wethers | G29: ='Numbers Etc'!E120 ->  | J29: 1900-02-01 | K29: =G29+MOD(J29-Pasture!$C$8,365)/(365/12) ->  | N29: 1900-11-16 | O29: =G29+MOD(N29-Pasture!$C$8,365)/(365/12) ->  | S29: =Inputs!X26 ->  | T29: =Inputs!Y26 ->  | U29: =Inputs!Z26 ->  | V29: =Inputs!AA26 -> 0
D30: Lambs weaned this year | G30: =IF(OR(Inputs!D18=Inputs!B3,'Numbers Etc'!I89>0),'Numbers Etc'!E120,"") ->  | H30: =IF(G30<>"",IF(Inputs!D18=Inputs!B3,'Numbers Etc'!I87,'Numbers Etc'!I89),"") ->  | N30: 1900-11-16 | O30: =IF(G29-IF(G30<>"",0,12)+MOD(N30-Pasture!$C$8,365)/(365/12)<0,"",G29-IF(G30<>"",0,12)+MOD(N30-Pasture!$C$8,365)/(365/12)) ->  | S30: =Inputs!X27 -> 0 | T30: =Inputs!Y27 -> 0 | U30: =Inputs!Z27 ->  | V30: =Inputs!AA27 -> 0
B31: Trading stock | D31: Rams | J31: 1900-02-01 | N31: 1900-11-16 | O31: =IF(OR(G31<>"",K31<>""),Inputs!K28+MOD(N31-Pasture!$C$8,365)/(365/12),"") ->  | R31: =Inputs!J28 -> 3 | S31: =Inputs!X28 ->  | T31: =Inputs!Y28 ->  | U31: =Inputs!Z28 ->  | V31: =Inputs!AA28 -> 0 | W31: =IF(R31<4,10,2) -> 10 | X31: =IF(R31<4,72,12) -> 72
D32: Rams | J32: 1900-02-01 | N32: 1900-11-16 | O32: =IF(OR(G32<>"",K32<>""),Inputs!K29+MOD(N32-Pasture!$C$8,365)/(365/12),"") ->  | R32: =Inputs!J29 -> 3 | S32: =Inputs!X29 ->  | T32: =Inputs!Y29 ->  | U32: =Inputs!Z29 ->  | V32: =Inputs!AA29 -> 0 | W32: =IF(R32<4,10,2) -> 10 | X32: =IF(R32<4,72,12) -> 72
D33: Wethers | J33: 1900-02-01 | N33: 1900-11-16 | O33: =IF(OR(G33<>"",K33<>""),Inputs!K30+MOD(N33-Pasture!$C$8,365)/(365/12),"") ->  | R33: =Inputs!J30 -> 2 | S33: =Inputs!X30 ->  | T33: =Inputs!Y30 ->  | U33: =Inputs!Z30 ->  | V33: =Inputs!AA30 -> 0 | W33: 10 | X33: 72
D34: Wethers | J34: 1900-02-01 | N34: 1900-11-16 | O34: =IF(OR(G34<>"",K34<>""),Inputs!K31+MOD(N34-Pasture!$C$8,365)/(365/12),"") ->  | R34: =Inputs!J31 -> 2 | S34: =Inputs!X31 ->  | T34: =Inputs!Y31 ->  | U34: =Inputs!Z31 ->  | V34: =Inputs!AA31 -> 0 | W34: 10 | X34: 72
D35: Wethers | J35: 1900-02-01 | N35: 1900-11-16 | O35: =IF(OR(G35<>"",K35<>""),Inputs!K32+MOD(N35-Pasture!$C$8,365)/(365/12),"") ->  | R35: =Inputs!J32 -> 2 | S35: =Inputs!X32 ->  | T35: =Inputs!Y32 ->  | U35: =Inputs!Z32 ->  | V35: =Inputs!AA32 -> 0 | W35: 10 | X35: 72
D36: Wethers | J36: 1900-02-01 | N36: 1900-11-16 | O36: =IF(OR(G36<>"",K36<>""),Inputs!K33+MOD(N36-Pasture!$C$8,365)/(365/12),"") ->  | R36: =Inputs!J33 -> 2 | S36: =Inputs!X33 ->  | T36: =Inputs!Y33 ->  | U36: =Inputs!Z33 ->  | V36: =Inputs!AA33 -> 0 | W36: 10 | X36: 72
D37: Wethers | J37: 1900-02-01 | N37: 1900-11-16 | O37: =IF(OR(G37<>"",K37<>""),Inputs!K34+MOD(N37-Pasture!$C$8,365)/(365/12),"") ->  | R37: =Inputs!J34 -> 2 | S37: =Inputs!X34 ->  | T37: =Inputs!Y34 ->  | U37: =Inputs!Z34 ->  | V37: =Inputs!AA34 -> 0 | W37: 10 | X37: 72
D38: Wethers | J38: 1900-02-01 | N38: 1900-11-16 | O38: =IF(OR(G38<>"",K38<>""),Inputs!K35+MOD(N38-Pasture!$C$8,365)/(365/12),"") ->  | R38: =Inputs!J35 -> 2 | S38: =Inputs!X35 ->  | T38: =Inputs!Y35 ->  | U38: =Inputs!Z35 ->  | V38: =Inputs!AA35 -> 0 | W38: 10 | X38: 72
D39: Wethers | J39: 1900-02-01 | N39: 1900-11-16 | O39: =IF(OR(G39<>"",K39<>""),Inputs!K36+MOD(N39-Pasture!$C$8,365)/(365/12),"") ->  | R39: =Inputs!J36 -> 2 | S39: =Inputs!X36 ->  | T39: =Inputs!Y36 ->  | U39: =Inputs!Z36 ->  | V39: =Inputs!AA36 -> 0 | W39: 10 | X39: 72
D40: Wethers | J40: 1900-06-01 | N40: 1900-03-01 | O40: =IF(OR(G40<>"",K40<>""),Inputs!K37+MOD(N40-Pasture!$C$8,365)/(365/12),"") ->  | R40: =Inputs!J37 -> 2 | S40: =Inputs!X37 ->  | T40: =Inputs!Y37 ->  | U40: =Inputs!Z37 ->  | V40: =Inputs!AA37 -> 0 | W40: 10 | X40: 72
N41: Sales from a stock class refer to animals that started the year in that class.

Sheet Feed Demand
B1: Feed demand | S1: =Inputs!B1 -> Example simulation
B31: Options | H31: Key Performance Indicators
H33: Pasture deficit, using freshly grown supply | M33: =Summary!P310 ->  | N33: =IF(Inputs!$B$25,"tonnes/ha/year","tonnes/year") -> tonnes/ha/year
B34: Plot results as | D34: tonnes/ha | H34: Pasture deficit, using supply with carryover | M34: =Summary!P355 ->  | N34: =IF(Inputs!$B$25,"tonnes/ha/year","tonnes/year") -> tonnes/ha/year
H35: Liveweight produced, cattle | M35: ='Numbers Etc'!$P$748 ->  | N35: tonnes
B36: Display using | D36: bar chart | H36: Liveweight produced per ha allocated to cattle | M36: ='Numbers Etc'!$P$750 ->  | N36: kg/ha/year | Q36: =IF(M39>Inputs!D28,1,0) -> 
H37: Liveweight produced, sheep | M37: ='Numbers Etc'!$Q$748 ->  | N37: tonnes | Q37: =IF(Summary!N366<Inputs!E28,1,0) -> 
H38: Liveweight produced per ha allocated to sheep | M38: ='Numbers Etc'!$Q$750 ->  | N38: kg/ha/year
H39: Pasture demand as a % of pasture grown | M39: =IF(SUM(Summary!B244:M244)=0,0,100*SUM(Summary!B164:M164)/SUM(Summary!B244:M244)) ->  | N39: %
H40: Minimum Feed On Offer | M40: =Summary!N366 ->  | N40: kg DM/ha
H41: =IF(Q36>0,CONCATENATE('Lookup tables'!F33,CHAR(10),IF(Q37>0,'Lookup tables'!F37,"")),IF(Q37>0,'Lookup tables'!F37,"")) -> 

Sheet Feed Supply
B1: Feed supply | S1: =Inputs!B1 -> Example simulation
B31: Options | H31: Key Performance Indicators
H33: Pasture deficit, using freshly grown supply | M33: =Summary!P312 ->  | N33: =IF(Inputs!$B$26,"tonnes/ha/year","tonnes/year") -> tonnes/ha/year
B34: Plot results as | D34: tonnes/ha | H34: Pasture deficit, using supply with carryover | M34: =Summary!P356 ->  | N34: =IF(Inputs!$B$26,"tonnes/ha/year","tonnes/year") -> tonnes/ha/year
H35: Liveweight produced, cattle | M35: ='Numbers Etc'!$P$748 ->  | N35: tonnes
B36: Display using | D36: bar chart | H36: Liveweight produced per ha allocated to cattle | M36: ='Numbers Etc'!$P$750 ->  | N36: kg/ha/year | Q36: =IF(M39>Inputs!D28,1,0) -> 
H37: Liveweight produced, sheep | M37: ='Numbers Etc'!$Q$748 ->  | N37: tonnes | Q37: =IF(Summary!N366<Inputs!E28,1,0) -> 
H38: Liveweight produced per ha allocated to sheep | M38: ='Numbers Etc'!$Q$750 ->  | N38: kg/ha/year
H39: Pasture demand as a % of pasture grown | M39: =IF(SUM(Summary!B244:M244)=0,0,100*SUM(Summary!B164:M164)/SUM(Summary!B244:M244)) ->  | N39: %
H40: Minimum Feed On Offer | M40: =Summary!N366 ->  | N40: kg DM/ha
H41: =IF(Q36>0,CONCATENATE('Lookup tables'!F33,CHAR(10),IF(Q37>0,'Lookup tables'!F37,"")),IF(Q37>0,'Lookup tables'!F37,"")) -> 

Sheet Interpret
B1: How to interpret your results

Sheet Where to next
B1: Where to next?

Sheet CoP (hidden)
B1: Inputs for the MLA cost of production calculator
C3: I | D3: II | E3: III | F3: IV | G3: V | K3: I | L3: II | M3: III | N3: IV | O3: V
C4: Opening | D4: Closing | F4: Average | G4: Total kgs | K4: Opening | L4: Closing | N4: Average | O4: Total kgs
C5: Number | D5: Number | E5: II-I | F5: Kgs/Head | G5: (III x IV) | K5: Number | L5: Number | M5: II-I | N5: Kgs/Head | O5: (III x IV)
B6: Calves | C6: ='Numbers Etc'!Y749 ->  | D6: ='Numbers Etc'!Z749 -> 0 | E6: =D6-C6 ->  | F6: ='Numbers Etc'!AA749 ->  | G6: =E6*F6 ->  | H6: kg | J6: Lambs | K6: ='Numbers Etc'!Y765 ->  | L6: ='Numbers Etc'!Z765 -> 0 | M6: =L6-K6 ->  | N6: ='Numbers Etc'!AA765 ->  | O6: =M6*N6 ->  | P6: kg
B7: Cows | C7: ='Numbers Etc'!Y750 -> 0 | D7: ='Numbers Etc'!Z750 -> 0 | E7: =D7-C7 -> 0 | F7: ='Numbers Etc'!AA750 -> 0 | G7: =E7*F7 -> 0 | H7: kg | J7: Ewes | K7: ='Numbers Etc'!Y766 -> 0 | L7: ='Numbers Etc'!Z766 -> 0 | M7: =L7-K7 -> 0 | N7: ='Numbers Etc'!AA766 -> 0 | O7: =M7*N7 -> 0 | P7: kg
B8: Weaners | C8: ='Numbers Etc'!Y751 -> 0 | D8: ='Numbers Etc'!Z751 -> 0 | E8: 0 | F8: ='Numbers Etc'!AA751 -> 0 | G8: 0 | H8: kg | J8: Weaners | K8: ='Numbers Etc'!Y767 -> 0 | L8: ='Numbers Etc'!Z767 -> 0 | M8: 0 | N8: ='Numbers Etc'!AA767 -> 0 | O8: 0 | P8: kg
B9: Heifers | C9: ='Numbers Etc'!Y752 -> 0 | D9: ='Numbers Etc'!Z752 -> 0 | E9: 0 | F9: ='Numbers Etc'!AA752 -> 0 | G9: 0 | H9: kg | J9: Ewe Yearlings | K9: ='Numbers Etc'!Y768 -> 0 | L9: ='Numbers Etc'!Z768 -> 0 | M9: 0 | N9: ='Numbers Etc'!AA768 -> 0 | O9: 0 | P9: kg
B10: Steers 1 yr | C10: ='Numbers Etc'!Y753 -> 0 | D10: ='Numbers Etc'!Z753 -> 0 | E10: 0 | F10: ='Numbers Etc'!AA753 -> 0 | G10: 0 | H10: kg | J10: Wether Yearlings | K10: ='Numbers Etc'!Y769 -> 0 | L10: ='Numbers Etc'!Z769 -> 0 | M10: 0 | N10: ='Numbers Etc'!AA769 -> 0 | O10: 0 | P10: kg
B11: Steers 2 yr | C11: ='Numbers Etc'!Y754 -> 0 | D11: ='Numbers Etc'!Z754 -> 0 | E11: 0 | F11: ='Numbers Etc'!AA754 -> 0 | G11: 0 | H11: kg | J11: Wethers | K11: ='Numbers Etc'!Y770 -> 0 | L11: ='Numbers Etc'!Z770 -> 0 | M11: 0 | N11: ='Numbers Etc'!AA770 -> 0 | O11: 0 | P11: kg
B12: Bulls | C12: ='Numbers Etc'!Y755 -> 0 | D12: ='Numbers Etc'!Z755 -> 0 | E12: 0 | F12: ='Numbers Etc'!AA755 -> 0 | G12: 0 | H12: kg | J12: Rams | K12: ='Numbers Etc'!Y771 -> 0 | L12: ='Numbers Etc'!Z771 -> 0 | M12: 0 | N12: ='Numbers Etc'!AA771 -> 0 | O12: 0 | P12: kg
F13: Total | G13: =SUM(G6:G12) ->  | H13: kg | N13: Total | O13: =SUM(O6:O12) ->  | P13: kg
C14: Total weight of cattle sold | G14: ='Numbers Etc'!AB757 ->  | H14: kg | K14: Total weight of sheep sold | O14: ='Numbers Etc'!AB773 ->  | P14: kg
C15: Total weight of cattle purchased | G15: ='Numbers Etc'!AB758 ->  | H15: kg | K15: Total weight of sheep purchased | O15: ='Numbers Etc'!AB774 ->  | P15: kg
C16: Total kgs of beef produced | G16: =G13+G14-G15 ->  | H16: kg | K16: Total kgs of sheep produced | O16: =O13+O14-O15 ->  | P16: kg
B18: Closing numbers refer to animals that ended the year in that class.
B19: "Liveweight produced" on the Feed Demand tab may differ from "Total kgs" here, due to changes in live weight between the start and end of the year.

Sheet Demand table (hidden)
B1: Feed demand table
D2: =TRANSPOSE(Pasture!B26:B37) -> Jan | E2: Feb | F2: Mar | G2: Apr | H2: May | I2: Jun | J2: Jul | K2: Aug | L2: Sep | M2: Oct | N2: Nov | O2: Dec
B3: Pasture quality | D3: =TRANSPOSE(Pasture!D26:D37) -> 6.84 | E3: 6.84 | F3: 7.451583248 | G3: 7.337054144 | H3: 8.347733635 | I3: 9.796004202 | J3: 10.90004557 | K3: 11.38840834 | L3: 11.47344304 | M3: 10.9998197 | N3: 8.944769583 | O3: 6.84
D5: Feed demand (kg DM/head/day)
B6: =INDEX(table_DailyDM,1+ROW()-ROW(B$6),1) -> Cows (>3 years) | D6: =INDEX(table_DailyDM,1+ROW()-ROW(C$6),MATCH(D$2,Summary!$B$141:$M$141,0)+1) -> 0 | E6: =INDEX(table_DailyDM,1+ROW()-ROW(D$6),MATCH(E$2,Summary!$B$141:$M$141,0)+1) -> 0 | F6: =INDEX(table_DailyDM,1+ROW()-ROW(E$6),MATCH(F$2,Summary!$B$141:$M$141,0)+1) -> 0 | G6: =INDEX(table_DailyDM,1+ROW()-ROW(F$6),MATCH(G$2,Summary!$B$141:$M$141,0)+1) -> 0 | H6: =INDEX(table_DailyDM,1+ROW()-ROW(G$6),MATCH(H$2,Summary!$B$141:$M$141,0)+1) -> 0 | I6: =INDEX(table_DailyDM,1+ROW()-ROW(H$6),MATCH(I$2,Summary!$B$141:$M$141,0)+1) -> 0 | J6: =INDEX(table_DailyDM,1+ROW()-ROW(I$6),MATCH(J$2,Summary!$B$141:$M$141,0)+1) -> 0 | K6: =INDEX(table_DailyDM,1+ROW()-ROW(J$6),MATCH(K$2,Summary!$B$141:$M$141,0)+1) -> 0 | L6: =INDEX(table_DailyDM,1+ROW()-ROW(K$6),MATCH(L$2,Summary!$B$141:$M$141,0)+1) -> 0 | M6: =INDEX(table_DailyDM,1+ROW()-ROW(L$6),MATCH(M$2,Summary!$B$141:$M$141,0)+1) -> 0 | N6: =INDEX(table_DailyDM,1+ROW()-ROW(M$6),MATCH(N$2,Summary!$B$141:$M$141,0)+1) -> 0 | O6: =INDEX(table_DailyDM,1+ROW()-ROW(N$6),MATCH(O$2,Summary!$B$141:$M$141,0)+1) -> 0
B7: Cows (2-3 years) | D7: =INDEX(table_DailyDM,1+ROW()-ROW(C$6),MATCH(D$2,Summary!$B$141:$M$141,0)+1) -> 0 | E7: =INDEX(table_DailyDM,1+ROW()-ROW(D$6),MATCH(E$2,Summary!$B$141:$M$141,0)+1) -> 0 | F7: =INDEX(table_DailyDM,1+ROW()-ROW(E$6),MATCH(F$2,Summary!$B$141:$M$141,0)+1) -> 0 | G7: =INDEX(table_DailyDM,1+ROW()-ROW(F$6),MATCH(G$2,Summary!$B$141:$M$141,0)+1) -> 0 | H7: =INDEX(table_DailyDM,1+ROW()-ROW(G$6),MATCH(H$2,Summary!$B$141:$M$141,0)+1) -> 0 | I7: =INDEX(table_DailyDM,1+ROW()-ROW(H$6),MATCH(I$2,Summary!$B$141:$M$141,0)+1) -> 0 | J7: =INDEX(table_DailyDM,1+ROW()-ROW(I$6),MATCH(J$2,Summary!$B$141:$M$141,0)+1) -> 0 | K7: =INDEX(table_DailyDM,1+ROW()-ROW(J$6),MATCH(K$2,Summary!$B$141:$M$141,0)+1) -> 0 | L7: =INDEX(table_DailyDM,1+ROW()-ROW(K$6),MATCH(L$2,Summary!$B$141:$M$141,0)+1) -> 0 | M7: =INDEX(table_DailyDM,1+ROW()-ROW(L$6),MATCH(M$2,Summary!$B$141:$M$141,0)+1) -> 0 | N7: =INDEX(table_DailyDM,1+ROW()-ROW(M$6),MATCH(N$2,Summary!$B$141:$M$141,0)+1) -> 0 | O7: =INDEX(table_DailyDM,1+ROW()-ROW(N$6),MATCH(O$2,Summary!$B$141:$M$141,0)+1) -> 0
B8: Heifers (1-2 years) | D8: =INDEX(table_DailyDM,1+ROW()-ROW(C$6),MATCH(D$2,Summary!$B$141:$M$141,0)+1) -> 0 | E8: =INDEX(table_DailyDM,1+ROW()-ROW(D$6),MATCH(E$2,Summary!$B$141:$M$141,0)+1) -> 0 | F8: =INDEX(table_DailyDM,1+ROW()-ROW(E$6),MATCH(F$2,Summary!$B$141:$M$141,0)+1) -> 0 | G8: =INDEX(table_DailyDM,1+ROW()-ROW(F$6),MATCH(G$2,Summary!$B$141:$M$141,0)+1) -> 0 | H8: =INDEX(table_DailyDM,1+ROW()-ROW(G$6),MATCH(H$2,Summary!$B$141:$M$141,0)+1) -> 0 | I8: =INDEX(table_DailyDM,1+ROW()-ROW(H$6),MATCH(I$2,Summary!$B$141:$M$141,0)+1) -> 0 | J8: =INDEX(table_DailyDM,1+ROW()-ROW(I$6),MATCH(J$2,Summary!$B$141:$M$141,0)+1) -> 0 | K8: =INDEX(table_DailyDM,1+ROW()-ROW(J$6),MATCH(K$2,Summary!$B$141:$M$141,0)+1) -> 0 | L8: =INDEX(table_DailyDM,1+ROW()-ROW(K$6),MATCH(L$2,Summary!$B$141:$M$141,0)+1) -> 0 | M8: =INDEX(table_DailyDM,1+ROW()-ROW(L$6),MATCH(M$2,Summary!$B$141:$M$141,0)+1) -> 0 | N8: =INDEX(table_DailyDM,1+ROW()-ROW(M$6),MATCH(N$2,Summary!$B$141:$M$141,0)+1) -> 0 | O8: =INDEX(table_DailyDM,1+ROW()-ROW(N$6),MATCH(O$2,Summary!$B$141:$M$141,0)+1) -> 0
B9: Steers (1-2 years) | D9: =INDEX(table_DailyDM,1+ROW()-ROW(C$6),MATCH(D$2,Summary!$B$141:$M$141,0)+1) -> 0 | E9: =INDEX(table_DailyDM,1+ROW()-ROW(D$6),MATCH(E$2,Summary!$B$141:$M$141,0)+1) -> 0 | F9: =INDEX(table_DailyDM,1+ROW()-ROW(E$6),MATCH(F$2,Summary!$B$141:$M$141,0)+1) -> 0 | G9: =INDEX(table_DailyDM,1+ROW()-ROW(F$6),MATCH(G$2,Summary!$B$141:$M$141,0)+1) -> 0 | H9: =INDEX(table_DailyDM,1+ROW()-ROW(G$6),MATCH(H$2,Summary!$B$141:$M$141,0)+1) -> 0 | I9: =INDEX(table_DailyDM,1+ROW()-ROW(H$6),MATCH(I$2,Summary!$B$141:$M$141,0)+1) -> 0 | J9: =INDEX(table_DailyDM,1+ROW()-ROW(I$6),MATCH(J$2,Summary!$B$141:$M$141,0)+1) -> 0 | K9: =INDEX(table_DailyDM,1+ROW()-ROW(J$6),MATCH(K$2,Summary!$B$141:$M$141,0)+1) -> 0 | L9: =INDEX(table_DailyDM,1+ROW()-ROW(K$6),MATCH(L$2,Summary!$B$141:$M$141,0)+1) -> 0 | M9: =INDEX(table_DailyDM,1+ROW()-ROW(L$6),MATCH(M$2,Summary!$B$141:$M$141,0)+1) -> 0 | N9: =INDEX(table_DailyDM,1+ROW()-ROW(M$6),MATCH(N$2,Summary!$B$141:$M$141,0)+1) -> 0 | O9: =INDEX(table_DailyDM,1+ROW()-ROW(N$6),MATCH(O$2,Summary!$B$141:$M$141,0)+1) -> 0
B10: Weaned young heifers | D10: =INDEX(table_DailyDM,1+ROW()-ROW(C$6),MATCH(D$2,Summary!$B$141:$M$141,0)+1) -> 0 | E10: =INDEX(table_DailyDM,1+ROW()-ROW(D$6),MATCH(E$2,Summary!$B$141:$M$141,0)+1) -> 0 | F10: =INDEX(table_DailyDM,1+ROW()-ROW(E$6),MATCH(F$2,Summary!$B$141:$M$141,0)+1) -> 0 | G10: =INDEX(table_DailyDM,1+ROW()-ROW(F$6),MATCH(G$2,Summary!$B$141:$M$141,0)+1) -> 0 | H10: =INDEX(table_DailyDM,1+ROW()-ROW(G$6),MATCH(H$2,Summary!$B$141:$M$141,0)+1) -> 0 | I10: =INDEX(table_DailyDM,1+ROW()-ROW(H$6),MATCH(I$2,Summary!$B$141:$M$141,0)+1) -> 0 | J10: =INDEX(table_DailyDM,1+ROW()-ROW(I$6),MATCH(J$2,Summary!$B$141:$M$141,0)+1) -> 0 | K10: =INDEX(table_DailyDM,1+ROW()-ROW(J$6),MATCH(K$2,Summary!$B$141:$M$141,0)+1) -> 0 | L10: =INDEX(table_DailyDM,1+ROW()-ROW(K$6),MATCH(L$2,Summary!$B$141:$M$141,0)+1) -> 0 | M10: =INDEX(table_DailyDM,1+ROW()-ROW(L$6),MATCH(M$2,Summary!$B$141:$M$141,0)+1) -> 0 | N10: =INDEX(table_DailyDM,1+ROW()-ROW(M$6),MATCH(N$2,Summary!$B$141:$M$141,0)+1) -> 0 | O10: =INDEX(table_DailyDM,1+ROW()-ROW(N$6),MATCH(O$2,Summary!$B$141:$M$141,0)+1) -> 0
B11: Weaned young steers | D11: =INDEX(table_DailyDM,1+ROW()-ROW(C$6),MATCH(D$2,Summary!$B$141:$M$141,0)+1) -> 0 | E11: =INDEX(table_DailyDM,1+ROW()-ROW(D$6),MATCH(E$2,Summary!$B$141:$M$141,0)+1) -> 0 | F11: =INDEX(table_DailyDM,1+ROW()-ROW(E$6),MATCH(F$2,Summary!$B$141:$M$141,0)+1) -> 0 | G11: =INDEX(table_DailyDM,1+ROW()-ROW(F$6),MATCH(G$2,Summary!$B$141:$M$141,0)+1) -> 0 | H11: =INDEX(table_DailyDM,1+ROW()-ROW(G$6),MATCH(H$2,Summary!$B$141:$M$141,0)+1) -> 0 | I11: =INDEX(table_DailyDM,1+ROW()-ROW(H$6),MATCH(I$2,Summary!$B$141:$M$141,0)+1) -> 0 | J11: =INDEX(table_DailyDM,1+ROW()-ROW(I$6),MATCH(J$2,Summary!$B$141:$M$141,0)+1) -> 0 | K11: =INDEX(table_DailyDM,1+ROW()-ROW(J$6),MATCH(K$2,Summary!$B$141:$M$141,0)+1) -> 0 | L11: =INDEX(table_DailyDM,1+ROW()-ROW(K$6),MATCH(L$2,Summary!$B$141:$M$141,0)+1) -> 0 | M11: =INDEX(table_DailyDM,1+ROW()-ROW(L$6),MATCH(M$2,Summary!$B$141:$M$141,0)+1) -> 0 | N11: =INDEX(table_DailyDM,1+ROW()-ROW(M$6),MATCH(N$2,Summary!$B$141:$M$141,0)+1) -> 0 | O11: =INDEX(table_DailyDM,1+ROW()-ROW(N$6),MATCH(O$2,Summary!$B$141:$M$141,0)+1) -> 0
B12: Current year's weaned calves | D12: =INDEX(table_DailyDM,1+ROW()-ROW(C$6),MATCH(D$2,Summary!$B$141:$M$141,0)+1) -> 0 | E12: =INDEX(table_DailyDM,1+ROW()-ROW(D$6),MATCH(E$2,Summary!$B$141:$M$141,0)+1) -> 0 | F12: =INDEX(table_DailyDM,1+ROW()-ROW(E$6),MATCH(F$2,Summary!$B$141:$M$141,0)+1) -> 0 | G12: =INDEX(table_DailyDM,1+ROW()-ROW(F$6),MATCH(G$2,Summary!$B$141:$M$141,0)+1) -> 0 | H12: =INDEX(table_DailyDM,1+ROW()-ROW(G$6),MATCH(H$2,Summary!$B$141:$M$141,0)+1) -> 0 | I12: =INDEX(table_DailyDM,1+ROW()-ROW(H$6),MATCH(I$2,Summary!$B$141:$M$141,0)+1) -> 0 | J12: =INDEX(table_DailyDM,1+ROW()-ROW(I$6),MATCH(J$2,Summary!$B$141:$M$141,0)+1) -> 0 | K12: =INDEX(table_DailyDM,1+ROW()-ROW(J$6),MATCH(K$2,Summary!$B$141:$M$141,0)+1) -> 0 | L12: =INDEX(table_DailyDM,1+ROW()-ROW(K$6),MATCH(L$2,Summary!$B$141:$M$141,0)+1) -> 0 | M12: =INDEX(table_DailyDM,1+ROW()-ROW(L$6),MATCH(M$2,Summary!$B$141:$M$141,0)+1) -> 0 | N12: =INDEX(table_DailyDM,1+ROW()-ROW(M$6),MATCH(N$2,Summary!$B$141:$M$141,0)+1) -> 0 | O12: =INDEX(table_DailyDM,1+ROW()-ROW(N$6),MATCH(O$2,Summary!$B$141:$M$141,0)+1) -> 0
B13: Unweaned calves | D13: =INDEX(table_DailyDM,1+ROW()-ROW(C$6),MATCH(D$2,Summary!$B$141:$M$141,0)+1) ->  | E13: =INDEX(table_DailyDM,1+ROW()-ROW(D$6),MATCH(E$2,Summary!$B$141:$M$141,0)+1) -> 0 | F13: =INDEX(table_DailyDM,1+ROW()-ROW(E$6),MATCH(F$2,Summary!$B$141:$M$141,0)+1) -> 0 | G13: =INDEX(table_DailyDM,1+ROW()-ROW(F$6),MATCH(G$2,Summary!$B$141:$M$141,0)+1) -> 0 | H13: =INDEX(table_DailyDM,1+ROW()-ROW(G$6),MATCH(H$2,Summary!$B$141:$M$141,0)+1) -> 0 | I13: =INDEX(table_DailyDM,1+ROW()-ROW(H$6),MATCH(I$2,Summary!$B$141:$M$141,0)+1) -> 0 | J13: =INDEX(table_DailyDM,1+ROW()-ROW(I$6),MATCH(J$2,Summary!$B$141:$M$141,0)+1) -> 0 | K13: =INDEX(table_DailyDM,1+ROW()-ROW(J$6),MATCH(K$2,Summary!$B$141:$M$141,0)+1) -> 0 | L13: =INDEX(table_DailyDM,1+ROW()-ROW(K$6),MATCH(L$2,Summary!$B$141:$M$141,0)+1) -> 0 | M13: =INDEX(table_DailyDM,1+ROW()-ROW(L$6),MATCH(M$2,Summary!$B$141:$M$141,0)+1) -> 0 | N13: =INDEX(table_DailyDM,1+ROW()-ROW(M$6),MATCH(N$2,Summary!$B$141:$M$141,0)+1) -> 0 | O13: =INDEX(table_DailyDM,1+ROW()-ROW(N$6),MATCH(O$2,Summary!$B$141:$M$141,0)+1) -> 0
B14: Dry cows or heifers | D14: =INDEX(table_DailyDM,1+ROW()-ROW(C$6),MATCH(D$2,Summary!$B$141:$M$141,0)+1) -> 0 | E14: =INDEX(table_DailyDM,1+ROW()-ROW(D$6),MATCH(E$2,Summary!$B$141:$M$141,0)+1) -> 0 | F14: =INDEX(table_DailyDM,1+ROW()-ROW(E$6),MATCH(F$2,Summary!$B$141:$M$141,0)+1) -> 0 | G14: =INDEX(table_DailyDM,1+ROW()-ROW(F$6),MATCH(G$2,Summary!$B$141:$M$141,0)+1) -> 0 | H14: =INDEX(table_DailyDM,1+ROW()-ROW(G$6),MATCH(H$2,Summary!$B$141:$M$141,0)+1) -> 0 | I14: =INDEX(table_DailyDM,1+ROW()-ROW(H$6),MATCH(I$2,Summary!$B$141:$M$141,0)+1) -> 0 | J14: =INDEX(table_DailyDM,1+ROW()-ROW(I$6),MATCH(J$2,Summary!$B$141:$M$141,0)+1) -> 0 | K14: =INDEX(table_DailyDM,1+ROW()-ROW(J$6),MATCH(K$2,Summary!$B$141:$M$141,0)+1) -> 0 | L14: =INDEX(table_DailyDM,1+ROW()-ROW(K$6),MATCH(L$2,Summary!$B$141:$M$141,0)+1) -> 0 | M14: =INDEX(table_DailyDM,1+ROW()-ROW(L$6),MATCH(M$2,Summary!$B$141:$M$141,0)+1) -> 0 | N14: =INDEX(table_DailyDM,1+ROW()-ROW(M$6),MATCH(N$2,Summary!$B$141:$M$141,0)+1) -> 0 | O14: =INDEX(table_DailyDM,1+ROW()-ROW(N$6),MATCH(O$2,Summary!$B$141:$M$141,0)+1) -> 0
B15: Steers | D15: =INDEX(table_DailyDM,1+ROW()-ROW(C$6),MATCH(D$2,Summary!$B$141:$M$141,0)+1) -> 0 | E15: =INDEX(table_DailyDM,1+ROW()-ROW(D$6),MATCH(E$2,Summary!$B$141:$M$141,0)+1) -> 0 | F15: =INDEX(table_DailyDM,1+ROW()-ROW(E$6),MATCH(F$2,Summary!$B$141:$M$141,0)+1) -> 0 | G15: =INDEX(table_DailyDM,1+ROW()-ROW(F$6),MATCH(G$2,Summary!$B$141:$M$141,0)+1) -> 0 | H15: =INDEX(table_DailyDM,1+ROW()-ROW(G$6),MATCH(H$2,Summary!$B$141:$M$141,0)+1) -> 0 | I15: =INDEX(table_DailyDM,1+ROW()-ROW(H$6),MATCH(I$2,Summary!$B$141:$M$141,0)+1) -> 0 | J15: =INDEX(table_DailyDM,1+ROW()-ROW(I$6),MATCH(J$2,Summary!$B$141:$M$141,0)+1) -> 0 | K15: =INDEX(table_DailyDM,1+ROW()-ROW(J$6),MATCH(K$2,Summary!$B$141:$M$141,0)+1) -> 0 | L15: =INDEX(table_DailyDM,1+ROW()-ROW(K$6),MATCH(L$2,Summary!$B$141:$M$141,0)+1) -> 0 | M15: =INDEX(table_DailyDM,1+ROW()-ROW(L$6),MATCH(M$2,Summary!$B$141:$M$141,0)+1) -> 0 | N15: =INDEX(table_DailyDM,1+ROW()-ROW(M$6),MATCH(N$2,Summary!$B$141:$M$141,0)+1) -> 0 | O15: =INDEX(table_DailyDM,1+ROW()-ROW(N$6),MATCH(O$2,Summary!$B$141:$M$141,0)+1) -> 0
B16: Bulls | D16: =INDEX(table_DailyDM,1+ROW()-ROW(C$6),MATCH(D$2,Summary!$B$141:$M$141,0)+1) -> 0 | E16: =INDEX(table_DailyDM,1+ROW()-ROW(D$6),MATCH(E$2,Summary!$B$141:$M$141,0)+1) -> 0 | F16: =INDEX(table_DailyDM,1+ROW()-ROW(E$6),MATCH(F$2,Summary!$B$141:$M$141,0)+1) -> 0 | G16: =INDEX(table_DailyDM,1+ROW()-ROW(F$6),MATCH(G$2,Summary!$B$141:$M$141,0)+1) -> 0 | H16: =INDEX(table_DailyDM,1+ROW()-ROW(G$6),MATCH(H$2,Summary!$B$141:$M$141,0)+1) -> 0 | I16: =INDEX(table_DailyDM,1+ROW()-ROW(H$6),MATCH(I$2,Summary!$B$141:$M$141,0)+1) -> 0 | J16: =INDEX(table_DailyDM,1+ROW()-ROW(I$6),MATCH(J$2,Summary!$B$141:$M$141,0)+1) -> 0 | K16: =INDEX(table_DailyDM,1+ROW()-ROW(J$6),MATCH(K$2,Summary!$B$141:$M$141,0)+1) -> 0 | L16: =INDEX(table_DailyDM,1+ROW()-ROW(K$6),MATCH(L$2,Summary!$B$141:$M$141,0)+1) -> 0 | M16: =INDEX(table_DailyDM,1+ROW()-ROW(L$6),MATCH(M$2,Summary!$B$141:$M$141,0)+1) -> 0 | N16: =INDEX(table_DailyDM,1+ROW()-ROW(M$6),MATCH(N$2,Summary!$B$141:$M$141,0)+1) -> 0 | O16: =INDEX(table_DailyDM,1+ROW()-ROW(N$6),MATCH(O$2,Summary!$B$141:$M$141,0)+1) -> 0
B17: Ewes (>2 years) | D17: =INDEX(table_DailyDM,1+ROW()-ROW(C$6),MATCH(D$2,Summary!$B$141:$M$141,0)+1) -> 0 | E17: =INDEX(table_DailyDM,1+ROW()-ROW(D$6),MATCH(E$2,Summary!$B$141:$M$141,0)+1) -> 0 | F17: =INDEX(table_DailyDM,1+ROW()-ROW(E$6),MATCH(F$2,Summary!$B$141:$M$141,0)+1) -> 0 | G17: =INDEX(table_DailyDM,1+ROW()-ROW(F$6),MATCH(G$2,Summary!$B$141:$M$141,0)+1) -> 0 | H17: =INDEX(table_DailyDM,1+ROW()-ROW(G$6),MATCH(H$2,Summary!$B$141:$M$141,0)+1) -> 0 | I17: =INDEX(table_DailyDM,1+ROW()-ROW(H$6),MATCH(I$2,Summary!$B$141:$M$141,0)+1) -> 0 | J17: =INDEX(table_DailyDM,1+ROW()-ROW(I$6),MATCH(J$2,Summary!$B$141:$M$141,0)+1) -> 0 | K17: =INDEX(table_DailyDM,1+ROW()-ROW(J$6),MATCH(K$2,Summary!$B$141:$M$141,0)+1) -> 0 | L17: =INDEX(table_DailyDM,1+ROW()-ROW(K$6),MATCH(L$2,Summary!$B$141:$M$141,0)+1) -> 0 | M17: =INDEX(table_DailyDM,1+ROW()-ROW(L$6),MATCH(M$2,Summary!$B$141:$M$141,0)+1) -> 0 | N17: =INDEX(table_DailyDM,1+ROW()-ROW(M$6),MATCH(N$2,Summary!$B$141:$M$141,0)+1) -> 0 | O17: =INDEX(table_DailyDM,1+ROW()-ROW(N$6),MATCH(O$2,Summary!$B$141:$M$141,0)+1) -> 0
B18: Ewes (1-2 years) | D18: =INDEX(table_DailyDM,1+ROW()-ROW(C$6),MATCH(D$2,Summary!$B$141:$M$141,0)+1) -> 0 | E18: =INDEX(table_DailyDM,1+ROW()-ROW(D$6),MATCH(E$2,Summary!$B$141:$M$141,0)+1) -> 0 | F18: =INDEX(table_DailyDM,1+ROW()-ROW(E$6),MATCH(F$2,Summary!$B$141:$M$141,0)+1) -> 0 | G18: =INDEX(table_DailyDM,1+ROW()-ROW(F$6),MATCH(G$2,Summary!$B$141:$M$141,0)+1) -> 0 | H18: =INDEX(table_DailyDM,1+ROW()-ROW(G$6),MATCH(H$2,Summary!$B$141:$M$141,0)+1) -> 0 | I18: =INDEX(table_DailyDM,1+ROW()-ROW(H$6),MATCH(I$2,Summary!$B$141:$M$141,0)+1) -> 0 | J18: =INDEX(table_DailyDM,1+ROW()-ROW(I$6),MATCH(J$2,Summary!$B$141:$M$141,0)+1) -> 0 | K18: =INDEX(table_DailyDM,1+ROW()-ROW(J$6),MATCH(K$2,Summary!$B$141:$M$141,0)+1) -> 0 | L18: =INDEX(table_DailyDM,1+ROW()-ROW(K$6),MATCH(L$2,Summary!$B$141:$M$141,0)+1) -> 0 | M18: =INDEX(table_DailyDM,1+ROW()-ROW(L$6),MATCH(M$2,Summary!$B$141:$M$141,0)+1) -> 0 | N18: =INDEX(table_DailyDM,1+ROW()-ROW(M$6),MATCH(N$2,Summary!$B$141:$M$141,0)+1) -> 0 | O18: =INDEX(table_DailyDM,1+ROW()-ROW(N$6),MATCH(O$2,Summary!$B$141:$M$141,0)+1) -> 0
B19: Wethers (1-2 years) | D19: =INDEX(table_DailyDM,1+ROW()-ROW(C$6),MATCH(D$2,Summary!$B$141:$M$141,0)+1) -> 0 | E19: =INDEX(table_DailyDM,1+ROW()-ROW(D$6),MATCH(E$2,Summary!$B$141:$M$141,0)+1) -> 0 | F19: =INDEX(table_DailyDM,1+ROW()-ROW(E$6),MATCH(F$2,Summary!$B$141:$M$141,0)+1) -> 0 | G19: =INDEX(table_DailyDM,1+ROW()-ROW(F$6),MATCH(G$2,Summary!$B$141:$M$141,0)+1) -> 0 | H19: =INDEX(table_DailyDM,1+ROW()-ROW(G$6),MATCH(H$2,Summary!$B$141:$M$141,0)+1) -> 0 | I19: =INDEX(table_DailyDM,1+ROW()-ROW(H$6),MATCH(I$2,Summary!$B$141:$M$141,0)+1) -> 0 | J19: =INDEX(table_DailyDM,1+ROW()-ROW(I$6),MATCH(J$2,Summary!$B$141:$M$141,0)+1) -> 0 | K19: =INDEX(table_DailyDM,1+ROW()-ROW(J$6),MATCH(K$2,Summary!$B$141:$M$141,0)+1) -> 0 | L19: =INDEX(table_DailyDM,1+ROW()-ROW(K$6),MATCH(L$2,Summary!$B$141:$M$141,0)+1) -> 0 | M19: =INDEX(table_DailyDM,1+ROW()-ROW(L$6),MATCH(M$2,Summary!$B$141:$M$141,0)+1) -> 0 | N19: =INDEX(table_DailyDM,1+ROW()-ROW(M$6),MATCH(N$2,Summary!$B$141:$M$141,0)+1) -> 0 | O19: =INDEX(table_DailyDM,1+ROW()-ROW(N$6),MATCH(O$2,Summary!$B$141:$M$141,0)+1) -> 0
B20: Weaned young ewes | D20: =INDEX(table_DailyDM,1+ROW()-ROW(C$6),MATCH(D$2,Summary!$B$141:$M$141,0)+1) -> 0 | E20: =INDEX(table_DailyDM,1+ROW()-ROW(D$6),MATCH(E$2,Summary!$B$141:$M$141,0)+1) -> 0 | F20: =INDEX(table_DailyDM,1+ROW()-ROW(E$6),MATCH(F$2,Summary!$B$141:$M$141,0)+1) -> 0 | G20: =INDEX(table_DailyDM,1+ROW()-ROW(F$6),MATCH(G$2,Summary!$B$141:$M$141,0)+1) -> 0 | H20: =INDEX(table_DailyDM,1+ROW()-ROW(G$6),MATCH(H$2,Summary!$B$141:$M$141,0)+1) -> 0 | I20: =INDEX(table_DailyDM,1+ROW()-ROW(H$6),MATCH(I$2,Summary!$B$141:$M$141,0)+1) -> 0 | J20: =INDEX(table_DailyDM,1+ROW()-ROW(I$6),MATCH(J$2,Summary!$B$141:$M$141,0)+1) -> 0 | K20: =INDEX(table_DailyDM,1+ROW()-ROW(J$6),MATCH(K$2,Summary!$B$141:$M$141,0)+1) -> 0 | L20: =INDEX(table_DailyDM,1+ROW()-ROW(K$6),MATCH(L$2,Summary!$B$141:$M$141,0)+1) -> 0 | M20: =INDEX(table_DailyDM,1+ROW()-ROW(L$6),MATCH(M$2,Summary!$B$141:$M$141,0)+1) -> 0 | N20: =INDEX(table_DailyDM,1+ROW()-ROW(M$6),MATCH(N$2,Summary!$B$141:$M$141,0)+1) -> 0 | O20: =INDEX(table_DailyDM,1+ROW()-ROW(N$6),MATCH(O$2,Summary!$B$141:$M$141,0)+1) -> 0
B21: Weaned yound wethers | D21: =INDEX(table_DailyDM,1+ROW()-ROW(C$6),MATCH(D$2,Summary!$B$141:$M$141,0)+1) -> 0 | E21: =INDEX(table_DailyDM,1+ROW()-ROW(D$6),MATCH(E$2,Summary!$B$141:$M$141,0)+1) -> 0 | F21: =INDEX(table_DailyDM,1+ROW()-ROW(E$6),MATCH(F$2,Summary!$B$141:$M$141,0)+1) -> 0 | G21: =INDEX(table_DailyDM,1+ROW()-ROW(F$6),MATCH(G$2,Summary!$B$141:$M$141,0)+1) -> 0 | H21: =INDEX(table_DailyDM,1+ROW()-ROW(G$6),MATCH(H$2,Summary!$B$141:$M$141,0)+1) -> 0 | I21: =INDEX(table_DailyDM,1+ROW()-ROW(H$6),MATCH(I$2,Summary!$B$141:$M$141,0)+1) -> 0 | J21: =INDEX(table_DailyDM,1+ROW()-ROW(I$6),MATCH(J$2,Summary!$B$141:$M$141,0)+1) -> 0 | K21: =INDEX(table_DailyDM,1+ROW()-ROW(J$6),MATCH(K$2,Summary!$B$141:$M$141,0)+1) -> 0 | L21: =INDEX(table_DailyDM,1+ROW()-ROW(K$6),MATCH(L$2,Summary!$B$141:$M$141,0)+1) -> 0 | M21: =INDEX(table_DailyDM,1+ROW()-ROW(L$6),MATCH(M$2,Summary!$B$141:$M$141,0)+1) -> 0 | N21: =INDEX(table_DailyDM,1+ROW()-ROW(M$6),MATCH(N$2,Summary!$B$141:$M$141,0)+1) -> 0 | O21: =INDEX(table_DailyDM,1+ROW()-ROW(N$6),MATCH(O$2,Summary!$B$141:$M$141,0)+1) -> 0
B22: Current year's weaned lambs | D22: =INDEX(table_DailyDM,1+ROW()-ROW(C$6),MATCH(D$2,Summary!$B$141:$M$141,0)+1) -> 0 | E22: =INDEX(table_DailyDM,1+ROW()-ROW(D$6),MATCH(E$2,Summary!$B$141:$M$141,0)+1) -> 0 | F22: =INDEX(table_DailyDM,1+ROW()-ROW(E$6),MATCH(F$2,Summary!$B$141:$M$141,0)+1) -> 0 | G22: =INDEX(table_DailyDM,1+ROW()-ROW(F$6),MATCH(G$2,Summary!$B$141:$M$141,0)+1) -> 0 | H22: =INDEX(table_DailyDM,1+ROW()-ROW(G$6),MATCH(H$2,Summary!$B$141:$M$141,0)+1) -> 0 | I22: =INDEX(table_DailyDM,1+ROW()-ROW(H$6),MATCH(I$2,Summary!$B$141:$M$141,0)+1) -> 0 | J22: =INDEX(table_DailyDM,1+ROW()-ROW(I$6),MATCH(J$2,Summary!$B$141:$M$141,0)+1) -> 0 | K22: =INDEX(table_DailyDM,1+ROW()-ROW(J$6),MATCH(K$2,Summary!$B$141:$M$141,0)+1) -> 0 | L22: =INDEX(table_DailyDM,1+ROW()-ROW(K$6),MATCH(L$2,Summary!$B$141:$M$141,0)+1) -> 0 | M22: =INDEX(table_DailyDM,1+ROW()-ROW(L$6),MATCH(M$2,Summary!$B$141:$M$141,0)+1) -> 0 | N22: =INDEX(table_DailyDM,1+ROW()-ROW(M$6),MATCH(N$2,Summary!$B$141:$M$141,0)+1) -> 0 | O22: =INDEX(table_DailyDM,1+ROW()-ROW(N$6),MATCH(O$2,Summary!$B$141:$M$141,0)+1) -> 0
B23: Unweaned lambs | D23: =INDEX(table_DailyDM,1+ROW()-ROW(C$6),MATCH(D$2,Summary!$B$141:$M$141,0)+1) ->  | E23: =INDEX(table_DailyDM,1+ROW()-ROW(D$6),MATCH(E$2,Summary!$B$141:$M$141,0)+1) -> 0 | F23: =INDEX(table_DailyDM,1+ROW()-ROW(E$6),MATCH(F$2,Summary!$B$141:$M$141,0)+1) -> 0 | G23: =INDEX(table_DailyDM,1+ROW()-ROW(F$6),MATCH(G$2,Summary!$B$141:$M$141,0)+1) -> 0 | H23: =INDEX(table_DailyDM,1+ROW()-ROW(G$6),MATCH(H$2,Summary!$B$141:$M$141,0)+1) -> 0 | I23: =INDEX(table_DailyDM,1+ROW()-ROW(H$6),MATCH(I$2,Summary!$B$141:$M$141,0)+1) -> 0 | J23: =INDEX(table_DailyDM,1+ROW()-ROW(I$6),MATCH(J$2,Summary!$B$141:$M$141,0)+1) -> 0 | K23: =INDEX(table_DailyDM,1+ROW()-ROW(J$6),MATCH(K$2,Summary!$B$141:$M$141,0)+1) -> 0 | L23: =INDEX(table_DailyDM,1+ROW()-ROW(K$6),MATCH(L$2,Summary!$B$141:$M$141,0)+1) -> 0 | M23: =INDEX(table_DailyDM,1+ROW()-ROW(L$6),MATCH(M$2,Summary!$B$141:$M$141,0)+1) -> 0 | N23: =INDEX(table_DailyDM,1+ROW()-ROW(M$6),MATCH(N$2,Summary!$B$141:$M$141,0)+1) -> 0 | O23: =INDEX(table_DailyDM,1+ROW()-ROW(N$6),MATCH(O$2,Summary!$B$141:$M$141,0)+1) -> 0
B24: Dry ewes | D24: =INDEX(table_DailyDM,1+ROW()-ROW(C$6),MATCH(D$2,Summary!$B$141:$M$141,0)+1) -> 0 | E24: =INDEX(table_DailyDM,1+ROW()-ROW(D$6),MATCH(E$2,Summary!$B$141:$M$141,0)+1) -> 0 | F24: =INDEX(table_DailyDM,1+ROW()-ROW(E$6),MATCH(F$2,Summary!$B$141:$M$141,0)+1) -> 0 | G24: =INDEX(table_DailyDM,1+ROW()-ROW(F$6),MATCH(G$2,Summary!$B$141:$M$141,0)+1) -> 0 | H24: =INDEX(table_DailyDM,1+ROW()-ROW(G$6),MATCH(H$2,Summary!$B$141:$M$141,0)+1) -> 0 | I24: =INDEX(table_DailyDM,1+ROW()-ROW(H$6),MATCH(I$2,Summary!$B$141:$M$141,0)+1) -> 0 | J24: =INDEX(table_DailyDM,1+ROW()-ROW(I$6),MATCH(J$2,Summary!$B$141:$M$141,0)+1) -> 0 | K24: =INDEX(table_DailyDM,1+ROW()-ROW(J$6),MATCH(K$2,Summary!$B$141:$M$141,0)+1) -> 0 | L24: =INDEX(table_DailyDM,1+ROW()-ROW(K$6),MATCH(L$2,Summary!$B$141:$M$141,0)+1) -> 0 | M24: =INDEX(table_DailyDM,1+ROW()-ROW(L$6),MATCH(M$2,Summary!$B$141:$M$141,0)+1) -> 0 | N24: =INDEX(table_DailyDM,1+ROW()-ROW(M$6),MATCH(N$2,Summary!$B$141:$M$141,0)+1) -> 0 | O24: =INDEX(table_DailyDM,1+ROW()-ROW(N$6),MATCH(O$2,Summary!$B$141:$M$141,0)+1) -> 0
B25: Wethers | D25: =INDEX(table_DailyDM,1+ROW()-ROW(C$6),MATCH(D$2,Summary!$B$141:$M$141,0)+1) -> 0 | E25: =INDEX(table_DailyDM,1+ROW()-ROW(D$6),MATCH(E$2,Summary!$B$141:$M$141,0)+1) -> 0 | F25: =INDEX(table_DailyDM,1+ROW()-ROW(E$6),MATCH(F$2,Summary!$B$141:$M$141,0)+1) -> 0 | G25: =INDEX(table_DailyDM,1+ROW()-ROW(F$6),MATCH(G$2,Summary!$B$141:$M$141,0)+1) -> 0 | H25: =INDEX(table_DailyDM,1+ROW()-ROW(G$6),MATCH(H$2,Summary!$B$141:$M$141,0)+1) -> 0 | I25: =INDEX(table_DailyDM,1+ROW()-ROW(H$6),MATCH(I$2,Summary!$B$141:$M$141,0)+1) -> 0 | J25: =INDEX(table_DailyDM,1+ROW()-ROW(I$6),MATCH(J$2,Summary!$B$141:$M$141,0)+1) -> 0 | K25: =INDEX(table_DailyDM,1+ROW()-ROW(J$6),MATCH(K$2,Summary!$B$141:$M$141,0)+1) -> 0 | L25: =INDEX(table_DailyDM,1+ROW()-ROW(K$6),MATCH(L$2,Summary!$B$141:$M$141,0)+1) -> 0 | M25: =INDEX(table_DailyDM,1+ROW()-ROW(L$6),MATCH(M$2,Summary!$B$141:$M$141,0)+1) -> 0 | N25: =INDEX(table_DailyDM,1+ROW()-ROW(M$6),MATCH(N$2,Summary!$B$141:$M$141,0)+1) -> 0 | O25: =INDEX(table_DailyDM,1+ROW()-ROW(N$6),MATCH(O$2,Summary!$B$141:$M$141,0)+1) -> 0
B26: Rams | D26: =INDEX(table_DailyDM,1+ROW()-ROW(C$6),MATCH(D$2,Summary!$B$141:$M$141,0)+1) -> 0 | E26: =INDEX(table_DailyDM,1+ROW()-ROW(D$6),MATCH(E$2,Summary!$B$141:$M$141,0)+1) -> 0 | F26: =INDEX(table_DailyDM,1+ROW()-ROW(E$6),MATCH(F$2,Summary!$B$141:$M$141,0)+1) -> 0 | G26: =INDEX(table_DailyDM,1+ROW()-ROW(F$6),MATCH(G$2,Summary!$B$141:$M$141,0)+1) -> 0 | H26: =INDEX(table_DailyDM,1+ROW()-ROW(G$6),MATCH(H$2,Summary!$B$141:$M$141,0)+1) -> 0 | I26: =INDEX(table_DailyDM,1+ROW()-ROW(H$6),MATCH(I$2,Summary!$B$141:$M$141,0)+1) -> 0 | J26: =INDEX(table_DailyDM,1+ROW()-ROW(I$6),MATCH(J$2,Summary!$B$141:$M$141,0)+1) -> 0 | K26: =INDEX(table_DailyDM,1+ROW()-ROW(J$6),MATCH(K$2,Summary!$B$141:$M$141,0)+1) -> 0 | L26: =INDEX(table_DailyDM,1+ROW()-ROW(K$6),MATCH(L$2,Summary!$B$141:$M$141,0)+1) -> 0 | M26: =INDEX(table_DailyDM,1+ROW()-ROW(L$6),MATCH(M$2,Summary!$B$141:$M$141,0)+1) -> 0 | N26: =INDEX(table_DailyDM,1+ROW()-ROW(M$6),MATCH(N$2,Summary!$B$141:$M$141,0)+1) -> 0 | O26: =INDEX(table_DailyDM,1+ROW()-ROW(N$6),MATCH(O$2,Summary!$B$141:$M$141,0)+1) -> 0

Sheet Lookup tables (hidden)
A1: Start Dates Table | F1: Breed Names Table - Cattle | G1: Breed Names Table - Sheep | I1: Enterprise type | K1: Logical | L1: OneOrTwo | N1: Breed Parameters Table | W1: Locations Table | Y1: 3 | Z1: 4 | AA1: 5 | AB1: 6 | AC1: 7 | AD1: 8 | AE1: 9 | AF1: 10 | AG1: 11 | AH1: 12 | AI1: 13 | AJ1: 14 | AK1: 15 | AL1: 16 | AM1: 17 | AN1: 18 | AO1: 19 | AP1: 20 | AQ1: 21 | AR1: 22 | AS1: 23 | AT1: 24 | AU1: 25 | AV1: 26 | AW1: 27 | AX1: 28 | AY1: 29 | AZ1: 30 | BA1: 31 | BB1: 32 | BC1: 33 | BD1: 34 | BE1: 35 | BF1: 36 | BG1: 37 | BH1: 38 | BI1: 39 | BJ1: 40 | BK1: 41 | BL1: 42 | BM1: 43 | BN1: 44 | BO1: 45 | BP1: 46 | BQ1: 47 | BR1: 48 | BS1: 49 | BT1: 50 | BU1: 51 | BV1: 52 | BW1: 53 | BX1: 54 | BY1: 55 | BZ1: 56 | CA1: 57 | CB1: 58 | CC1: 59 | CD1: 60 | CE1: 61 | CF1: 62 | CG1: 63 | CH1: 64 | CI1: 65 | CJ1: 66 | CK1: 67 | CL1: 68 | CM1: 69 | CN1: 70 | CO1: 71 | CP1: 72 | CQ1: 73 | CR1: 74 | CS1: 75 | CT1: 76 | CU1: 77 | CV1: 78 | CW1: 79 | CX1: 80 | CY1: 81 | CZ1: 82 | DA1: 83 | DB1: 84 | DC1: 85 | DD1: 86 | DE1: 87 | DF1: 88 | DG1: 89 | DH1: 90 | DI1: 91 | DJ1: 92 | DK1: 93 | DL1: 94 | DM1: 95 | DN1: 96 | DO1: 97 | DP1: 98 | DQ1: 99 | DR1: 100 | DS1: 101 | DT1: 102 | DU1: 103 | DV1: 104 | DW1: 105 | DX1: 106 | DY1: 107 | DZ1: 108 | EA1: 109 | EB1: 110 | EC1: 111 | ED1: 112 | EE1: =ED1+1 -> 113 | EF1: =EE1+1 -> 114
O2: Cattle | P2: Cattle | Q2: Cattle | R2: Cattle | S2: Cattle | T2: Sheep | U2: Sheep | AA2: Std Pasture Growth | AM2: Std DMDI - Cattle | BK2: Std DMDI - Sheep | CI2: dW/N - Cattle | DG2: dW/N - Sheep
A3: Start | B3: MidPt | C3: Display | D3: Alt display | O3: British | P3: European | Q3: B. indicus | R3: Brit x Eur | S3: Brit x Ind | T3: Merino | U3: Meat Breed | W3: ID | X3: Name | Y3: Latitude | Z3: Legume | AA3: J | AB3: F | AC3: M | AD3: A | AE3: M | AF3: J | AG3: J | AH3: A | AI3: S | AJ3: O | AK3: N | AL3: D | AM3: 1 | AN3: 2 | AO3: 3 | AP3: 4 | AQ3: 5 | AR3: 6 | AS3: 7 | AT3: 8 | AU3: 9 | AV3: 10 | AW3: 11 | AX3: 12 | AY3: 13 | AZ3: 14 | BA3: 15 | BB3: 16 | BC3: 17 | BD3: 18 | BE3: 19 | BF3: 20 | BG3: 21 | BH3: 22 | BI3: 23 | BJ3: 24 | BK3: 1 | BL3: 2 | BM3: 3 | BN3: 4 | BO3: 5 | BP3: 6 | BQ3: 7 | BR3: 8 | BS3: 9 | BT3: 10 | BU3: 11 | BV3: 12 | BW3: 13 | BX3: 14 | BY3: 15 | BZ3: 16 | CA3: 17 | CB3: 18 | CC3: 19 | CD3: 20 | CE3: 21 | CF3: 22 | CG3: 23 | CH3: 24 | CI3: 1 | CJ3: 2 | CK3: 3 | CL3: 4 | CM3: 5 | CN3: 6 | CO3: 7 | CP3: 8 | CQ3: 9 | CR3: 10 | CS3: 11 | CT3: 12 | CU3: 13 | CV3: 14 | CW3: 15 | CX3: 16 | CY3: 17 | CZ3: 18 | DA3: 19 | DB3: 20 | DC3: 21 | DD3: 22 | DE3: 23 | DF3: 24 | DG3: 1 | DH3: 2 | DI3: 3 | DJ3: 4 | DK3: 5 | DL3: 6 | DM3: 7 | DN3: 8 | DO3: 9 | DP3: 10 | DQ3: 11 | DR3: 12 | DS3: 13 | DT3: 14 | DU3: 15 | DV3: 16 | DW3: 17 | DX3: 18 | DY3: 19 | DZ3: 20 | EA3: 21 | EB3: 22 | EC3: 23 | ED3: 24 | EE3: Start | EF3: End | EG3: Weighting Sum
A4: 1900-01-01 | B4: =A4+7 -> 1900-01-08 | C4: =TEXT(INDIRECT("$A"&MOD(ROW()-ROW($D$4)+MATCH(Pasture!$C$8,table_PeriodStarts,0) - 1, 24) + ROW($D$4)),"d mmm")&IF(24 - MATCH(Pasture!$C$8,table_PeriodStarts,0) < ROW() - ROW($D$4), " (yr 2)", "") -> 1 Jan | D4: =INDIRECT("$A"&MOD(ROW()-ROW($D$4)+MATCH(Pasture!$C$8,table_PeriodStarts,0) - 1, 24) + ROW($D$4)) -> 1900-01-01 | F4: British (e.g. Angus, Hereford) | G4: Merino or similar breed | I4: Both cattle and sheep | K4: Yes | L4: 1 | N4: Twins:a | O4: 0 | P4: 0 | Q4: 0 | R4: =AVERAGE(O4,P4) -> 0 | S4: =AVERAGE(O4,Q4) -> 0 | T4: -0.15 | U4: -0.12 | W4: 1 | X4: NSW - North West Slopes | Y4: -31.1 | Z4: =SUM(IF($W$71:$W$1041=$W4,$Y$71:$Y$1041*Z$71:Z$1041,0))/$EG4 -> 0.125 | AA4: =SUM(IF($W$71:$W$1041=$W4,$Y$71:$Y$1041*AA$71:AA$1041,0))/$EG4 -> 16 | AB4: =SUM(IF($W$71:$W$1041=$W4,$Y$71:$Y$1041*AB$71:AB$1041,0))/$EG4 -> 17.25 | AC4: =SUM(IF($W$71:$W$1041=$W4,$Y$71:$Y$1041*AC$71:AC$1041,0))/$EG4 -> 14.75 | AD4: =SUM(IF($W$71:$W$1041=$W4,$Y$71:$Y$1041*AD$71:AD$1041,0))/$EG4 -> 13 | AE4: =SUM(IF($W$71:$W$1041=$W4,$Y$71:$Y$1041*AE$71:AE$1041,0))/$EG4 -> 10.5 | AF4: =SUM(IF($W$71:$W$1041=$W4,$Y$71:$Y$1041*AF$71:AF$1041,0))/$EG4 -> 8 | AG4: =SUM(IF($W$71:$W$1041=$W4,$Y$71:$Y$1041*AG$71:AG$1041,0))/$EG4 -> 8.25 | AH4: =SUM(IF($W$71:$W$1041=$W4,$Y$71:$Y$1041*AH$71:AH$1041,0))/$EG4 -> 10.5 | AI4: =SUM(IF($W$71:$W$1041=$W4,$Y$71:$Y$1041*AI$71:AI$1041,0))/$EG4 -> 21.25 | AJ4: =SUM(IF($W$71:$W$1041=$W4,$Y$71:$Y$1041*AJ$71:AJ$1041,0))/$EG4 -> 27.5 | AK4: =SUM(IF($W$71:$W$1041=$W4,$Y$71:$Y$1041*AK$71:AK$1041,0))/$EG4 -> 27.5 | AL4: =SUM(IF($W$71:$W$1041=$W4,$Y$71:$Y$1041*AL$71:AL$1041,0))/$EG4 -> 16.25 | AM4: =SUM(IF($W$71:$W$1041=$W4,$Y$71:$Y$1041*AM$71:AM$1041,0))/$EG4 -> 0.69 | AN4: =SUM(IF($W$71:$W$1041=$W4,$Y$71:$Y$1041*AN$71:AN$1041,0))/$EG4 -> 0.66 | AO4: =SUM(IF($W$71:$W$1041=$W4,$Y$71:$Y$1041*AO$71:AO$1041,0))/$EG4 -> 0.64 | AP4: =SUM(IF($W$71:$W$1041=$W4,$Y$71:$Y$1041*AP$71:AP$1041,0))/$EG4 -> 0.63 | AQ4: =SUM(IF($W$71:$W$1041=$W4,$Y$71:$Y$1041*AQ$71:AQ$1041,0))/$EG4 -> 0.63 | AR4: =SUM(IF($W$71:$W$1041=$W4,$Y$71:$Y$1041*AR$71:AR$1041,0))/$EG4 -> 0.65 | AS4: =SUM(IF($W$71:$W$1041=$W4,$Y$71:$Y$1041*AS$71:AS$1041,0))/$EG4 -> 0.7 | AT4: =SUM(IF($W$71:$W$1041=$W4,$Y$71:$Y$1041*AT$71:AT$1041,0))/$EG4 -> 0.73 | AU4: =SUM(IF($W$71:$W$1041=$W4,$Y$71:$Y$1041*AU$71:AU$1041,0))/$EG4 -> 0.75 | AV4: =SUM(IF($W$71:$W$1041=$W4,$Y$71:$Y$1041*AV$71:AV$1041,0))/$EG4 -> 0.77 | AW4: =SUM(IF($W$71:$W$1041=$W4,$Y$71:$Y$1041*AW$71:AW$1041,0))/$EG4 -> 0.78 | AX4: =SUM(IF($W$71:$W$1041=$W4,$Y$71:$Y$1041*AX$71:AX$1041,0))/$EG4 -> 0.79 | AY4: =SUM(IF($W$71:$W$1041=$W4,$Y$71:$Y$1041*AY$71:AY$1041,0))/$EG4 -> 0.8 | AZ4: =SUM(IF($W$71:$W$1041=$W4,$Y$71:$Y$1041*AZ$71:AZ$1041,0))/$EG4 -> 0.8 | BA4: =SUM(IF($W$71:$W$1041=$W4,$Y$71:$Y$1041*BA$71:BA$1041,0))/$EG4 -> 0.81 | BB4: =SUM(IF($W$71:$W$1041=$W4,$Y$71:$Y$1041*BB$71:BB$1041,0))/$EG4 -> 0.81 | BC4: =SUM(IF($W$71:$W$1041=$W4,$Y$71:$Y$1041*BC$71:BC$1041,0))/$EG4 -> 0.8 | BD4: =SUM(IF($W$71:$W$1041=$W4,$Y$71:$Y$1041*BD$71:BD$1041,0))/$EG4 -> 0.8 | BE4: =SUM(IF($W$71:$W$1041=$W4,$Y$71:$Y$1041*BE$71:BE$1041,0))/$EG4 -> 0.8 | BF4: =SUM(IF($W$71:$W$1041=$W4,$Y$71:$Y$1041*BF$71:BF$1041,0))/$EG4 -> 0.8 | BG4: =SUM(IF($W$71:$W$1041=$W4,$Y$71:$Y$1041*BG$71:BG$1041,0))/$EG4 -> 0.79 | BH4: =SUM(IF($W$71:$W$1041=$W4,$Y$71:$Y$1041*BH$71:BH$1041,0))/$EG4 -> 0.77 | BI4: =SUM(IF($W$71:$W$1041=$W4,$Y$71:$Y$1041*BI$71:BI$1041,0))/$EG4 -> 0.76 | BJ4: =SUM(IF($W$71:$W$1041=$W4,$Y$71:$Y$1041*BJ$71:BJ$1041,0))/$EG4 -> 0.72 | BK4: =SUM(IF($W$71:$W$1041=$W4,$Y$71:$Y$1041*BK$71:BK$1041,0))/$EG4 -> 0.7 | BL4: =SUM(IF($W$71:$W$1041=$W4,$Y$71:$Y$1041*BL$71:BL$1041,0))/$EG4 -> 0.68 | BM4: =SUM(IF($W$71:$W$1041=$W4,$Y$71:$Y$1041*BM$71:BM$1041,0))/$EG4 -> 0.65 | BN4: =SUM(IF($W$71:$W$1041=$W4,$Y$71:$Y$1041*BN$71:BN$1041,0))/$EG4 -> 0.65 | BO4: =SUM(IF($W$71:$W$1041=$W4,$Y$71:$Y$1041*BO$71:BO$1041,0))/$EG4 -> 0.65 | BP4: =SUM(IF($W$71:$W$1041=$W4,$Y$71:$Y$1041*BP$71:BP$1041,0))/$EG4 -> 0.67 | BQ4: =SUM(IF($W$71:$W$1041=$W4,$Y$71:$Y$1041*BQ$71:BQ$1041,0))/$EG4 -> 0.71 | BR4: =SUM(IF($W$71:$W$1041=$W4,$Y$71:$Y$1041*BR$71:BR$1041,0))/$EG4 -> 0.74 | BS4: =SUM(IF($W$71:$W$1041=$W4,$Y$71:$Y$1041*BS$71:BS$1041,0))/$EG4 -> 0.76 | BT4: =SUM(IF($W$71:$W$1041=$W4,$Y$71:$Y$1041*BT$71:BT$1041,0))/$EG4 -> 0.78 | BU4: =SUM(IF($W$71:$W$1041=$W4,$Y$71:$Y$1041*BU$71:BU$1041,0))/$EG4 -> 0.79 | BV4: =SUM(IF($W$71:$W$1041=$W4,$Y$71:$Y$1041*BV$71:BV$1041,0))/$EG4 -> 0.8 | BW4: =SUM(IF($W$71:$W$1041=$W4,$Y$71:$Y$1041*BW$71:BW$1041,0))/$EG4 -> 0.81 | BX4: =SUM(IF($W$71:$W$1041=$W4,$Y$71:$Y$1041*BX$71:BX$1041,0))/$EG4 -> 0.81 | BY4: =SUM(IF($W$71:$W$1041=$W4,$Y$71:$Y$1041*BY$71:BY$1041,0))/$EG4 -> 0.81 | BZ4: =SUM(IF($W$71:$W$1041=$W4,$Y$71:$Y$1041*BZ$71:BZ$1041,0))/$EG4 -> 0.81 | CA4: =SUM(IF($W$71:$W$1041=$W4,$Y$71:$Y$1041*CA$71:CA$1041,0))/$EG4 -> 0.81 | CB4: =SUM(IF($W$71:$W$1041=$W4,$Y$71:$Y$1041*CB$71:CB$1041,0))/$EG4 -> 0.81 | CC4: =SUM(IF($W$71:$W$1041=$W4,$Y$71:$Y$1041*CC$71:CC$1041,0))/$EG4 -> 0.81 | CD4: =SUM(IF($W$71:$W$1041=$W4,$Y$71:$Y$1041*CD$71:CD$1041,0))/$EG4 -> 0.8 | CE4: =SUM(IF($W$71:$W$1041=$W4,$Y$71:$Y$1041*CE$71:CE$1041,0))/$EG4 -> 0.8 | CF4: =SUM(IF($W$71:$W$1041=$W4,$Y$71:$Y$1041*CF$71:CF$1041,0))/$EG4 -> 0.78 | CG4: =SUM(IF($W$71:$W$1041=$W4,$Y$71:$Y$1041*CG$71:CG$1041,0))/$EG4 -> 0.77 | CH4: =SUM(IF($W$71:$W$1041=$W4,$Y$71:$Y$1041*CH$71:CH$1041,0))/$EG4 -> 0.73 | CI4: =SUM(IF($W$71:$W$1041=$W4,$Y$71:$Y$1041*CI$71:CI$1041,0))/$EG4 -> -0.00074 | CJ4: =SUM(IF($W$71:$W$1041=$W4,$Y$71:$Y$1041*CJ$71:CJ$1041,0))/$EG4 -> -0.00101 | CK4: =SUM(IF($W$71:$W$1041=$W4,$Y$71:$Y$1041*CK$71:CK$1041,0))/$EG4 -> -0.00131 | CL4: =SUM(IF($W$71:$W$1041=$W4,$Y$71:$Y$1041*CL$71:CL$1041,0))/$EG4 -> -0.00129 | CM4: =SUM(IF($W$71:$W$1041=$W4,$Y$71:$Y$1041*CM$71:CM$1041,0))/$EG4 -> -0.00133 | CN4: =SUM(IF($W$71:$W$1041=$W4,$Y$71:$Y$1041*CN$71:CN$1041,0))/$EG4 -> -0.00102 | CO4: =SUM(IF($W$71:$W$1041=$W4,$Y$71:$Y$1041*CO$71:CO$1041,0))/$EG4 -> -0.00038 | CP4: =SUM(IF($W$71:$W$1041=$W4,$Y$71:$Y$1041*CP$71:CP$1041,0))/$EG4 -> 1e-05 | CQ4: =SUM(IF($W$71:$W$1041=$W4,$Y$71:$Y$1041*CQ$71:CQ$1041,0))/$EG4 -> 0.00028 | CR4: =SUM(IF($W$71:$W$1041=$W4,$Y$71:$Y$1041*CR$71:CR$1041,0))/$EG4 -> 0.00054 | CS4: =SUM(IF($W$71:$W$1041=$W4,$Y$71:$Y$1041*CS$71:CS$1041,0))/$EG4 -> 0.00075 | CT4: =SUM(IF($W$71:$W$1041=$W4,$Y$71:$Y$1041*CT$71:CT$1041,0))/$EG4 -> 0.00087 | CU4: =SUM(IF($W$71:$W$1041=$W4,$Y$71:$Y$1041*CU$71:CU$1041,0))/$EG4 -> 0.00091 | CV4: =SUM(IF($W$71:$W$1041=$W4,$Y$71:$Y$1041*CV$71:CV$1041,0))/$EG4 -> 0.00092 | CW4: =SUM(IF($W$71:$W$1041=$W4,$Y$71:$Y$1041*CW$71:CW$1041,0))/$EG4 -> 0.00094 | CX4: =SUM(IF($W$71:$W$1041=$W4,$Y$71:$Y$1041*CX$71:CX$1041,0))/$EG4 -> 0.00093 | CY4: =SUM(IF($W$71:$W$1041=$W4,$Y$71:$Y$1041*CY$71:CY$1041,0))/$EG4 -> 0.00089 | CZ4: =SUM(IF($W$71:$W$1041=$W4,$Y$71:$Y$1041*CZ$71:CZ$1041,0))/$EG4 -> 0.00085 | DA4: =SUM(IF($W$71:$W$1041=$W4,$Y$71:$Y$1041*DA$71:DA$1041,0))/$EG4 -> 0.00075 | DB4: =SUM(IF($W$71:$W$1041=$W4,$Y$71:$Y$1041*DB$71:DB$1041,0))/$EG4 -> 0.00071 | DC4: =SUM(IF($W$71:$W$1041=$W4,$Y$71:$Y$1041*DC$71:DC$1041,0))/$EG4 -> 0.00057 | DD4: =SUM(IF($W$71:$W$1041=$W4,$Y$71:$Y$1041*DD$71:DD$1041,0))/$EG4 -> 0.00032 | DE4: =SUM(IF($W$71:$W$1041=$W4,$Y$71:$Y$1041*DE$71:DE$1041,0))/$EG4 -> 8e-05 | DF4: =SUM(IF($W$71:$W$1041=$W4,$Y$71:$Y$1041*DF$71:DF$1041,0))/$EG4 -> -0.00041 | DG4: =SUM(IF($W$71:$W$1041=$W4,$Y$71:$Y$1041*DG$71:DG$1041,0))/$EG4 -> -0.00068 | DH4: =SUM(IF($W$71:$W$1041=$W4,$Y$71:$Y$1041*DH$71:DH$1041,0))/$EG4 -> -0.00094 | DI4: =SUM(IF($W$71:$W$1041=$W4,$Y$71:$Y$1041*DI$71:DI$1041,0))/$EG4 -> -0.00118 | DJ4: =SUM(IF($W$71:$W$1041=$W4,$Y$71:$Y$1041*DJ$71:DJ$1041,0))/$EG4 -> -0.00114 | DK4: =SUM(IF($W$71:$W$1041=$W4,$Y$71:$Y$1041*DK$71:DK$1041,0))/$EG4 -> -0.00115 | DL4: =SUM(IF($W$71:$W$1041=$W4,$Y$71:$Y$1041*DL$71:DL$1041,0))/$EG4 -> -0.00075 | DM4: =SUM(IF($W$71:$W$1041=$W4,$Y$71:$Y$1041*DM$71:DM$1041,0))/$EG4 -> -8e-05 | DN4: =SUM(IF($W$71:$W$1041=$W4,$Y$71:$Y$1041*DN$71:DN$1041,0))/$EG4 -> 0.0004 | DO4: =SUM(IF($W$71:$W$1041=$W4,$Y$71:$Y$1041*DO$71:DO$1041,0))/$EG4 -> 0.00071 | DP4: =SUM(IF($W$71:$W$1041=$W4,$Y$71:$Y$1041*DP$71:DP$1041,0))/$EG4 -> 0.00095 | DQ4: =SUM(IF($W$71:$W$1041=$W4,$Y$71:$Y$1041*DQ$71:DQ$1041,0))/$EG4 -> 0.00114 | DR4: =SUM(IF($W$71:$W$1041=$W4,$Y$71:$Y$1041*DR$71:DR$1041,0))/$EG4 -> 0.00124 | DS4: =SUM(IF($W$71:$W$1041=$W4,$Y$71:$Y$1041*DS$71:DS$1041,0))/$EG4 -> 0.00122 | DT4: =SUM(IF($W$71:$W$1041=$W4,$Y$71:$Y$1041*DT$71:DT$1041,0))/$EG4 -> 0.00118 | DU4: =SUM(IF($W$71:$W$1041=$W4,$Y$71:$Y$1041*DU$71:DU$1041,0))/$EG4 -> 0.00113 | DV4: =SUM(IF($W$71:$W$1041=$W4,$Y$71:$Y$1041*DV$71:DV$1041,0))/$EG4 -> 0.00106 | DW4: =SUM(IF($W$71:$W$1041=$W4,$Y$71:$Y$1041*DW$71:DW$1041,0))/$EG4 -> 0.00097 | DX4: =SUM(IF($W$71:$W$1041=$W4,$Y$71:$Y$1041*DX$71:DX$1041,0))/$EG4 -> 0.00088 | DY4: =SUM(IF($W$71:$W$1041=$W4,$Y$71:$Y$1041*DY$71:DY$1041,0))/$EG4 -> 0.00075 | DZ4: =SUM(IF($W$71:$W$1041=$W4,$Y$71:$Y$1041*DZ$71:DZ$1041,0))/$EG4 -> 0.0007 | EA4: =SUM(IF($W$71:$W$1041=$W4,$Y$71:$Y$1041*EA$71:EA$1041,0))/$EG4 -> 0.00051 | EB4: =SUM(IF($W$71:$W$1041=$W4,$Y$71:$Y$1041*EB$71:EB$1041,0))/$EG4 -> 0.00017 | EC4: =SUM(IF($W$71:$W$1041=$W4,$Y$71:$Y$1041*EC$71:EC$1041,0))/$EG4 -> -0.00012 | ED4: =SUM(IF($W$71:$W$1041=$W4,$Y$71:$Y$1041*ED$71:ED$1041,0))/$EG4 -> -0.00105 | EE4: =MATCH($W4,$W$71:$W$1041,0) -> 1 | EF4: =MATCH($W4,$W$71:$W$1041,1) -> 12 | EG4: =SUMIF($W$71:$W$1041,$W4,$Y$71:$Y$1041) -> 1
A5: 1900-01-16 | B5: =A5+7 -> 1900-01-23 | C5: =TEXT(INDIRECT("$A"&MOD(ROW()-ROW($D$4)+MATCH(Pasture!$C$8,table_PeriodStarts,0) - 1, 24) + ROW($D$4)),"d mmm")&IF(24 - MATCH(Pasture!$C$8,table_PeriodStarts,0) < ROW() - ROW($D$4), " (yr 2)", "") -> 16 Jan | D5: =INDIRECT("$A"&MOD(ROW()-ROW($D$4)+MATCH(Pasture!$C$8,table_PeriodStarts,0) - 1, 24) + ROW($D$4)) -> 1900-01-16 | F5: European (e.g. Simmental) | G5: Meat sheep (e.g. Border Leicester) | I5: Cattle only | K5: No | L5: 2 | N5: Twins:b | O5: 0 | P5: 0 | Q5: 0 | R5: =AVERAGE(O5,P5) -> 0 | S5: =AVERAGE(O5,Q5) -> 0 | T5: 0.96 | U5: 1.28 | W5: 2 | X5: NSW - Northern Tablelands | Y5: -30.5 | Z5: =SUM(IF($W$71:$W$1041=$W5,$Y$71:$Y$1041*Z$71:Z$1041,0))/$EG5 -> 0.164 | AA5: =SUM(IF($W$71:$W$1041=$W5,$Y$71:$Y$1041*AA$71:AA$1041,0))/$EG5 -> 35.38 | AB5: =SUM(IF($W$71:$W$1041=$W5,$Y$71:$Y$1041*AB$71:AB$1041,0))/$EG5 -> 37.44 | AC5: =SUM(IF($W$71:$W$1041=$W5,$Y$71:$Y$1041*AC$71:AC$1041,0))/$EG5 -> 37.54 | AD5: =SUM(IF($W$71:$W$1041=$W5,$Y$71:$Y$1041*AD$71:AD$1041,0))/$EG5 -> 24.32 | AE5: =SUM(IF($W$71:$W$1041=$W5,$Y$71:$Y$1041*AE$71:AE$1041,0))/$EG5 -> 9.42 | AF5: =SUM(IF($W$71:$W$1041=$W5,$Y$71:$Y$1041*AF$71:AF$1041,0))/$EG5 -> 6.24 | AG5: =SUM(IF($W$71:$W$1041=$W5,$Y$71:$Y$1041*AG$71:AG$1041,0))/$EG5 -> 6.24 | AH5: =SUM(IF($W$71:$W$1041=$W5,$Y$71:$Y$1041*AH$71:AH$1041,0))/$EG5 -> 8.04 | AI5: =SUM(IF($W$71:$W$1041=$W5,$Y$71:$Y$1041*AI$71:AI$1041,0))/$EG5 -> 18.52 | AJ5: =SUM(IF($W$71:$W$1041=$W5,$Y$71:$Y$1041*AJ$71:AJ$1041,0))/$EG5 -> 36.08 | AK5: =SUM(IF($W$71:$W$1041=$W5,$Y$71:$Y$1041*AK$71:AK$1041,0))/$EG5 -> 43.78 | AL5: =SUM(IF($W$71:$W$1041=$W5,$Y$71:$Y$1041*AL$71:AL$1041,0))/$EG5 -> 43.06 | AM5: =SUM(IF($W$71:$W$1041=$W5,$Y$71:$Y$1041*AM$71:AM$1041,0))/$EG5 -> 0.69 | AN5: =SUM(IF($W$71:$W$1041=$W5,$Y$71:$Y$1041*AN$71:AN$1041,0))/$EG5 -> 0.66 | AO5: =SUM(IF($W$71:$W$1041=$W5,$Y$71:$Y$1041*AO$71:AO$1041,0))/$EG5 -> 0.64 | AP5: =SUM(IF($W$71:$W$1041=$W5,$Y$71:$Y$1041*AP$71:AP$1041,0))/$EG5 -> 0.63 | AQ5: =SUM(IF($W$71:$W$1041=$W5,$Y$71:$Y$1041*AQ$71:AQ$1041,0))/$EG5 -> 0.63 | AR5: =SUM(IF($W$71:$W$1041=$W5,$Y$71:$Y$1041*AR$71:AR$1041,0))/$EG5 -> 0.65 | AS5: =SUM(IF($W$71:$W$1041=$W5,$Y$71:$Y$1041*AS$71:AS$1041,0))/$EG5 -> 0.7 | AT5: =SUM(IF($W$71:$W$1041=$W5,$Y$71:$Y$1041*AT$71:AT$1041,0))/$EG5 -> 0.73 | AU5: =SUM(IF($W$71:$W$1041=$W5,$Y$71:$Y$1041*AU$71:AU$1041,0))/$EG5 -> 0.75 | AV5: =SUM(IF($W$71:$W$1041=$W5,$Y$71:$Y$1041*AV$71:AV$1041,0))/$EG5 -> 0.77 | AW5: =SUM(IF($W$71:$W$1041=$W5,$Y$71:$Y$1041*AW$71:AW$1041,0))/$EG5 -> 0.78 | AX5: =SUM(IF($W$71:$W$1041=$W5,$Y$71:$Y$1041*AX$71:AX$1041,0))/$EG5 -> 0.79 | AY5: =SUM(IF($W$71:$W$1041=$W5,$Y$71:$Y$1041*AY$71:AY$1041,0))/$EG5 -> 0.8 | AZ5: =SUM(IF($W$71:$W$1041=$W5,$Y$71:$Y$1041*AZ$71:AZ$1041,0))/$EG5 -> 0.8 | BA5: =SUM(IF($W$71:$W$1041=$W5,$Y$71:$Y$1041*BA$71:BA$1041,0))/$EG5 -> 0.81 | BB5: =SUM(IF($W$71:$W$1041=$W5,$Y$71:$Y$1041*BB$71:BB$1041,0))/$EG5 -> 0.81 | BC5: =SUM(IF($W$71:$W$1041=$W5,$Y$71:$Y$1041*BC$71:BC$1041,0))/$EG5 -> 0.8 | BD5: =SUM(IF($W$71:$W$1041=$W5,$Y$71:$Y$1041*BD$71:BD$1041,0))/$EG5 -> 0.8 | BE5: =SUM(IF($W$71:$W$1041=$W5,$Y$71:$Y$1041*BE$71:BE$1041,0))/$EG5 -> 0.8 | BF5: =SUM(IF($W$71:$W$1041=$W5,$Y$71:$Y$1041*BF$71:BF$1041,0))/$EG5 -> 0.8 | BG5: =SUM(IF($W$71:$W$1041=$W5,$Y$71:$Y$1041*BG$71:BG$1041,0))/$EG5 -> 0.79 | BH5: =SUM(IF($W$71:$W$1041=$W5,$Y$71:$Y$1041*BH$71:BH$1041,0))/$EG5 -> 0.77 | BI5: =SUM(IF($W$71:$W$1041=$W5,$Y$71:$Y$1041*BI$71:BI$1041,0))/$EG5 -> 0.76 | BJ5: =SUM(IF($W$71:$W$1041=$W5,$Y$71:$Y$1041*BJ$71:BJ$1041,0))/$EG5 -> 0.72 | BK5: =SUM(IF($W$71:$W$1041=$W5,$Y$71:$Y$1041*BK$71:BK$1041,0))/$EG5 -> 0.7 | BL5: =SUM(IF($W$71:$W$1041=$W5,$Y$71:$Y$1041*BL$71:BL$1041,0))/$EG5 -> 0.68 | BM5: =SUM(IF($W$71:$W$1041=$W5,$Y$71:$Y$1041*BM$71:BM$1041,0))/$EG5 -> 0.65 | BN5: =SUM(IF($W$71:$W$1041=$W5,$Y$71:$Y$1041*BN$71:BN$1041,0))/$EG5 -> 0.65 | BO5: =SUM(IF($W$71:$W$1041=$W5,$Y$71:$Y$1041*BO$71:BO$1041,0))/$EG5 -> 0.65 | BP5: =SUM(IF($W$71:$W$1041=$W5,$Y$71:$Y$1041*BP$71:BP$1041,0))/$EG5 -> 0.67 | BQ5: =SUM(IF($W$71:$W$1041=$W5,$Y$71:$Y$1041*BQ$71:BQ$1041,0))/$EG5 -> 0.71 | BR5: =SUM(IF($W$71:$W$1041=$W5,$Y$71:$Y$1041*BR$71:BR$1041,0))/$EG5 -> 0.74 | BS5: =SUM(IF($W$71:$W$1041=$W5,$Y$71:$Y$1041*BS$71:BS$1041,0))/$EG5 -> 0.76 | BT5: =SUM(IF($W$71:$W$1041=$W5,$Y$71:$Y$1041*BT$71:BT$1041,0))/$EG5 -> 0.78 | BU5: =SUM(IF($W$71:$W$1041=$W5,$Y$71:$Y$1041*BU$71:BU$1041,0))/$EG5 -> 0.79 | BV5: =SUM(IF($W$71:$W$1041=$W5,$Y$71:$Y$1041*BV$71:BV$1041,0))/$EG5 -> 0.8 | BW5: =SUM(IF($W$71:$W$1041=$W5,$Y$71:$Y$1041*BW$71:BW$1041,0))/$EG5 -> 0.81 | BX5: =SUM(IF($W$71:$W$1041=$W5,$Y$71:$Y$1041*BX$71:BX$1041,0))/$EG5 -> 0.81 | BY5: =SUM(IF($W$71:$W$1041=$W5,$Y$71:$Y$1041*BY$71:BY$1041,0))/$EG5 -> 0.81 | BZ5: =SUM(IF($W$71:$W$1041=$W5,$Y$71:$Y$1041*BZ$71:BZ$1041,0))/$EG5 -> 0.81 | CA5: =SUM(IF($W$71:$W$1041=$W5,$Y$71:$Y$1041*CA$71:CA$1041,0))/$EG5 -> 0.81 | CB5: =SUM(IF($W$71:$W$1041=$W5,$Y$71:$Y$1041*CB$71:CB$1041,0))/$EG5 -> 0.81 | CC5: =SUM(IF($W$71:$W$1041=$W5,$Y$71:$Y$1041*CC$71:CC$1041,0))/$EG5 -> 0.81 | CD5: =SUM(IF($W$71:$W$1041=$W5,$Y$71:$Y$1041*CD$71:CD$1041,0))/$EG5 -> 0.8 | CE5: =SUM(IF($W$71:$W$1041=$W5,$Y$71:$Y$1041*CE$71:CE$1041,0))/$EG5 -> 0.8 | CF5: =SUM(IF($W$71:$W$1041=$W5,$Y$71:$Y$1041*CF$71:CF$1041,0))/$EG5 -> 0.78 | CG5: =SUM(IF($W$71:$W$1041=$W5,$Y$71:$Y$1041*CG$71:CG$1041,0))/$EG5 -> 0.77 | CH5: =SUM(IF($W$71:$W$1041=$W5,$Y$71:$Y$1041*CH$71:CH$1041,0))/$EG5 -> 0.73 | CI5: =SUM(IF($W$71:$W$1041=$W5,$Y$71:$Y$1041*CI$71:CI$1041,0))/$EG5 -> -0.00074 | CJ5: =SUM(IF($W$71:$W$1041=$W5,$Y$71:$Y$1041*CJ$71:CJ$1041,0))/$EG5 -> -0.00101 | CK5: =SUM(IF($W$71:$W$1041=$W5,$Y$71:$Y$1041*CK$71:CK$1041,0))/$EG5 -> -0.00131 | CL5: =SUM(IF($W$71:$W$1041=$W5,$Y$71:$Y$1041*CL$71:CL$1041,0))/$EG5 -> -0.00129 | CM5: =SUM(IF($W$71:$W$1041=$W5,$Y$71:$Y$1041*CM$71:CM$1041,0))/$EG5 -> -0.00133 | CN5: =SUM(IF($W$71:$W$1041=$W5,$Y$71:$Y$1041*CN$71:CN$1041,0))/$EG5 -> -0.00102 | CO5: =SUM(IF($W$71:$W$1041=$W5,$Y$71:$Y$1041*CO$71:CO$1041,0))/$EG5 -> -0.00038 | CP5: =SUM(IF($W$71:$W$1041=$W5,$Y$71:$Y$1041*CP$71:CP$1041,0))/$EG5 -> 1e-05 | CQ5: =SUM(IF($W$71:$W$1041=$W5,$Y$71:$Y$1041*CQ$71:CQ$1041,0))/$EG5 -> 0.00028 | CR5: =SUM(IF($W$71:$W$1041=$W5,$Y$71:$Y$1041*CR$71:CR$1041,0))/$EG5 -> 0.00054 | CS5: =SUM(IF($W$71:$W$1041=$W5,$Y$71:$Y$1041*CS$71:CS$1041,0))/$EG5 -> 0.00075 | CT5: =SUM(IF($W$71:$W$1041=$W5,$Y$71:$Y$1041*CT$71:CT$1041,0))/$EG5 -> 0.00087 | CU5: =SUM(IF($W$71:$W$1041=$W5,$Y$71:$Y$1041*CU$71:CU$1041,0))/$EG5 -> 0.00091 | CV5: =SUM(IF($W$71:$W$1041=$W5,$Y$71:$Y$1041*CV$71:CV$1041,0))/$EG5 -> 0.00092 | CW5: =SUM(IF($W$71:$W$1041=$W5,$Y$71:$Y$1041*CW$71:CW$1041,0))/$EG5 -> 0.00094 | CX5: =SUM(IF($W$71:$W$1041=$W5,$Y$71:$Y$1041*CX$71:CX$1041,0))/$EG5 -> 0.00093 | CY5: =SUM(IF($W$71:$W$1041=$W5,$Y$71:$Y$1041*CY$71:CY$1041,0))/$EG5 -> 0.00089 | CZ5: =SUM(IF($W$71:$W$1041=$W5,$Y$71:$Y$1041*CZ$71:CZ$1041,0))/$EG5 -> 0.00085 | DA5: =SUM(IF($W$71:$W$1041=$W5,$Y$71:$Y$1041*DA$71:DA$1041,0))/$EG5 -> 0.00075 | DB5: =SUM(IF($W$71:$W$1041=$W5,$Y$71:$Y$1041*DB$71:DB$1041,0))/$EG5 -> 0.00071 | DC5: =SUM(IF($W$71:$W$1041=$W5,$Y$71:$Y$1041*DC$71:DC$1041,0))/$EG5 -> 0.00057 | DD5: =SUM(IF($W$71:$W$1041=$W5,$Y$71:$Y$1041*DD$71:DD$1041,0))/$EG5 -> 0.00032 | DE5: =SUM(IF($W$71:$W$1041=$W5,$Y$71:$Y$1041*DE$71:DE$1041,0))/$EG5 -> 8e-05 | DF5: =SUM(IF($W$71:$W$1041=$W5,$Y$71:$Y$1041*DF$71:DF$1041,0))/$EG5 -> -0.00041 | DG5: =SUM(IF($W$71:$W$1041=$W5,$Y$71:$Y$1041*DG$71:DG$1041,0))/$EG5 -> -0.00068 | DH5: =SUM(IF($W$71:$W$1041=$W5,$Y$71:$Y$1041*DH$71:DH$1041,0))/$EG5 -> -0.00094 | DI5: =SUM(IF($W$71:$W$1041=$W5,$Y$71:$Y$1041*DI$71:DI$1041,0))/$EG5 -> -0.00118 | DJ5: =SUM(IF($W$71:$W$1041=$W5,$Y$71:$Y$1041*DJ$71:DJ$1041,0))/$EG5 -> -0.00114 | DK5: =SUM(IF($W$71:$W$1041=$W5,$Y$71:$Y$1041*DK$71:DK$1041,0))/$EG5 -> -0.00115 | DL5: =SUM(IF($W$71:$W$1041=$W5,$Y$71:$Y$1041*DL$71:DL$1041,0))/$EG5 -> -0.00075 | DM5: =SUM(IF($W$71:$W$1041=$W5,$Y$71:$Y$1041*DM$71:DM$1041,0))/$EG5 -> -8e-05 | DN5: =SUM(IF($W$71:$W$1041=$W5,$Y$71:$Y$1041*DN$71:DN$1041,0))/$EG5 -> 0.0004 | DO5: =SUM(IF($W$71:$W$1041=$W5,$Y$71:$Y$1041*DO$71:DO$1041,0))/$EG5 -> 0.00071 | DP5: =SUM(IF($W$71:$W$1041=$W5,$Y$71:$Y$1041*DP$71:DP$1041,0))/$EG5 -> 0.00095 | DQ5: =SUM(IF($W$71:$W$1041=$W5,$Y$71:$Y$1041*DQ$71:DQ$1041,0))/$EG5 -> 0.00114 | DR5: =SUM(IF($W$71:$W$1041=$W5,$Y$71:$Y$1041*DR$71:DR$1041,0))/$EG5 -> 0.00124 | DS5: =SUM(IF($W$71:$W$1041=$W5,$Y$71:$Y$1041*DS$71:DS$1041,0))/$EG5 -> 0.00122 | DT5: =SUM(IF($W$71:$W$1041=$W5,$Y$71:$Y$1041*DT$71:DT$1041,0))/$EG5 -> 0.00118 | DU5: =SUM(IF($W$71:$W$1041=$W5,$Y$71:$Y$1041*DU$71:DU$1041,0))/$EG5 -> 0.00113 | DV5: =SUM(IF($W$71:$W$1041=$W5,$Y$71:$Y$1041*DV$71:DV$1041,0))/$EG5 -> 0.00106 | DW5: =SUM(IF($W$71:$W$1041=$W5,$Y$71:$Y$1041*DW$71:DW$1041,0))/$EG5 -> 0.00097 | DX5: =SUM(IF($W$71:$W$1041=$W5,$Y$71:$Y$1041*DX$71:DX$1041,0))/$EG5 -> 0.00088 | DY5: =SUM(IF($W$71:$W$1041=$W5,$Y$71:$Y$1041*DY$71:DY$1041,0))/$EG5 -> 0.00075 | DZ5: =SUM(IF($W$71:$W$1041=$W5,$Y$71:$Y$1041*DZ$71:DZ$1041,0))/$EG5 -> 0.0007 | EA5: =SUM(IF($W$71:$W$1041=$W5,$Y$71:$Y$1041*EA$71:EA$1041,0))/$EG5 -> 0.00051 | EB5: =SUM(IF($W$71:$W$1041=$W5,$Y$71:$Y$1041*EB$71:EB$1041,0))/$EG5 -> 0.00017 | EC5: =SUM(IF($W$71:$W$1041=$W5,$Y$71:$Y$1041*EC$71:EC$1041,0))/$EG5 -> -0.00012 | ED5: =SUM(IF($W$71:$W$1041=$W5,$Y$71:$Y$1041*ED$71:ED$1041,0))/$EG5 -> -0.00105 | EE5: 13 | EF5: 29 | EG5: 1
A6: 1900-02-01 | B6: 1900-02-08 | C6: =TEXT(INDIRECT("$A"&MOD(ROW()-ROW($D$4)+MATCH(Pasture!$C$8,table_PeriodStarts,0) - 1, 24) + ROW($D$4)),"d mmm")&IF(24 - MATCH(Pasture!$C$8,table_PeriodStarts,0) < ROW() - ROW($D$4), " (yr 2)", "") -> 1 Feb | D6: =INDIRECT("$A"&MOD(ROW()-ROW($D$4)+MATCH(Pasture!$C$8,table_PeriodStarts,0) - 1, 24) + ROW($D$4)) -> 1900-02-01 | F6: Bos indicus (e.g. Brahman) | I6: Sheep only | N6: DLF(1) | O6: 0 | P6: 0 | Q6: 0 | R6: 0 | S6: 0 | T6: 0.23 | U6: 0.34 | W6: 3 | X6: NSW - Central Tablelands | Y6: -33.4 | Z6: =SUM(IF($W$71:$W$1041=$W6,$Y$71:$Y$1041*Z$71:Z$1041,0))/$EG6 -> 0.17 | AA6: =SUM(IF($W$71:$W$1041=$W6,$Y$71:$Y$1041*AA$71:AA$1041,0))/$EG6 -> 14.6 | AB6: =SUM(IF($W$71:$W$1041=$W6,$Y$71:$Y$1041*AB$71:AB$1041,0))/$EG6 -> 10 | AC6: =SUM(IF($W$71:$W$1041=$W6,$Y$71:$Y$1041*AC$71:AC$1041,0))/$EG6 -> 13.8 | AD6: =SUM(IF($W$71:$W$1041=$W6,$Y$71:$Y$1041*AD$71:AD$1041,0))/$EG6 -> 16.7 | AE6: =SUM(IF($W$71:$W$1041=$W6,$Y$71:$Y$1041*AE$71:AE$1041,0))/$EG6 -> 15.1 | AF6: =SUM(IF($W$71:$W$1041=$W6,$Y$71:$Y$1041*AF$71:AF$1041,0))/$EG6 -> 7.8 | AG6: =SUM(IF($W$71:$W$1041=$W6,$Y$71:$Y$1041*AG$71:AG$1041,0))/$EG6 -> 5.5 | AH6: =SUM(IF($W$71:$W$1041=$W6,$Y$71:$Y$1041*AH$71:AH$1041,0))/$EG6 -> 9.3 | AI6: =SUM(IF($W$71:$W$1041=$W6,$Y$71:$Y$1041*AI$71:AI$1041,0))/$EG6 -> 24.6 | AJ6: =SUM(IF($W$71:$W$1041=$W6,$Y$71:$Y$1041*AJ$71:AJ$1041,0))/$EG6 -> 51.1 | AK6: =SUM(IF($W$71:$W$1041=$W6,$Y$71:$Y$1041*AK$71:AK$1041,0))/$EG6 -> 44.3 | AL6: =SUM(IF($W$71:$W$1041=$W6,$Y$71:$Y$1041*AL$71:AL$1041,0))/$EG6 -> 31.5 | AM6: =SUM(IF($W$71:$W$1041=$W6,$Y$71:$Y$1041*AM$71:AM$1041,0))/$EG6 -> 0.676 | AN6: =SUM(IF($W$71:$W$1041=$W6,$Y$71:$Y$1041*AN$71:AN$1041,0))/$EG6 -> 0.658 | AO6: =SUM(IF($W$71:$W$1041=$W6,$Y$71:$Y$1041*AO$71:AO$1041,0))/$EG6 -> 0.65 | AP6: =SUM(IF($W$71:$W$1041=$W6,$Y$71:$Y$1041*AP$71:AP$1041,0))/$EG6 -> 0.656 | AQ6: =SUM(IF($W$71:$W$1041=$W6,$Y$71:$Y$1041*AQ$71:AQ$1041,0))/$EG6 -> 0.66 | AR6: =SUM(IF($W$71:$W$1041=$W6,$Y$71:$Y$1041*AR$71:AR$1041,0))/$EG6 -> 0.668 | AS6: =SUM(IF($W$71:$W$1041=$W6,$Y$71:$Y$1041*AS$71:AS$1041,0))/$EG6 -> 0.692 | AT6: =SUM(IF($W$71:$W$1041=$W6,$Y$71:$Y$1041*AT$71:AT$1041,0))/$EG6 -> 0.708 | AU6: =SUM(IF($W$71:$W$1041=$W6,$Y$71:$Y$1041*AU$71:AU$1041,0))/$EG6 -> 0.716 | AV6: =SUM(IF($W$71:$W$1041=$W6,$Y$71:$Y$1041*AV$71:AV$1041,0))/$EG6 -> 0.722 | AW6: =SUM(IF($W$71:$W$1041=$W6,$Y$71:$Y$1041*AW$71:AW$1041,0))/$EG6 -> 0.728 | AX6: =SUM(IF($W$71:$W$1041=$W6,$Y$71:$Y$1041*AX$71:AX$1041,0))/$EG6 -> 0.732 | AY6: =SUM(IF($W$71:$W$1041=$W6,$Y$71:$Y$1041*AY$71:AY$1041,0))/$EG6 -> 0.728 | AZ6: =SUM(IF($W$71:$W$1041=$W6,$Y$71:$Y$1041*AZ$71:AZ$1041,0))/$EG6 -> 0.732 | BA6: =SUM(IF($W$71:$W$1041=$W6,$Y$71:$Y$1041*BA$71:BA$1041,0))/$EG6 -> 0.732 | BB6: =SUM(IF($W$71:$W$1041=$W6,$Y$71:$Y$1041*BB$71:BB$1041,0))/$EG6 -> 0.73 | BC6: =SUM(IF($W$71:$W$1041=$W6,$Y$71:$Y$1041*BC$71:BC$1041,0))/$EG6 -> 0.734 | BD6: =SUM(IF($W$71:$W$1041=$W6,$Y$71:$Y$1041*BD$71:BD$1041,0))/$EG6 -> 0.734 | BE6: =SUM(IF($W$71:$W$1041=$W6,$Y$71:$Y$1041*BE$71:BE$1041,0))/$EG6 -> 0.74 | BF6: =SUM(IF($W$71:$W$1041=$W6,$Y$71:$Y$1041*BF$71:BF$1041,0))/$EG6 -> 0.738 | BG6: =SUM(IF($W$71:$W$1041=$W6,$Y$71:$Y$1041*BG$71:BG$1041,0))/$EG6 -> 0.73 | BH6: =SUM(IF($W$71:$W$1041=$W6,$Y$71:$Y$1041*BH$71:BH$1041,0))/$EG6 -> 0.724 | BI6: =SUM(IF($W$71:$W$1041=$W6,$Y$71:$Y$1041*BI$71:BI$1041,0))/$EG6 -> 0.71 | BJ6: =SUM(IF($W$71:$W$1041=$W6,$Y$71:$Y$1041*BJ$71:BJ$1041,0))/$EG6 -> 0.698 | BK6: =SUM(IF($W$71:$W$1041=$W6,$Y$71:$Y$1041*BK$71:BK$1041,0))/$EG6 -> 0.69 | BL6: =SUM(IF($W$71:$W$1041=$W6,$Y$71:$Y$1041*BL$71:BL$1041,0))/$EG6 -> 0.68 | BM6: =SUM(IF($W$71:$W$1041=$W6,$Y$71:$Y$1041*BM$71:BM$1041,0))/$EG6 -> 0.672 | BN6: =SUM(IF($W$71:$W$1041=$W6,$Y$71:$Y$1041*BN$71:BN$1041,0))/$EG6 -> 0.672 | BO6: =SUM(IF($W$71:$W$1041=$W6,$Y$71:$Y$1041*BO$71:BO$1041,0))/$EG6 -> 0.682 | BP6: =SUM(IF($W$71:$W$1041=$W6,$Y$71:$Y$1041*BP$71:BP$1041,0))/$EG6 -> 0.69 | BQ6: =SUM(IF($W$71:$W$1041=$W6,$Y$71:$Y$1041*BQ$71:BQ$1041,0))/$EG6 -> 0.708 | BR6: =SUM(IF($W$71:$W$1041=$W6,$Y$71:$Y$1041*BR$71:BR$1041,0))/$EG6 -> 0.722 | BS6: =SUM(IF($W$71:$W$1041=$W6,$Y$71:$Y$1041*BS$71:BS$1041,0))/$EG6 -> 0.73 | BT6: =SUM(IF($W$71:$W$1041=$W6,$Y$71:$Y$1041*BT$71:BT$1041,0))/$EG6 -> 0.734 | BU6: =SUM(IF($W$71:$W$1041=$W6,$Y$71:$Y$1041*BU$71:BU$1041,0))/$EG6 -> 0.732 | BV6: =SUM(IF($W$71:$W$1041=$W6,$Y$71:$Y$1041*BV$71:BV$1041,0))/$EG6 -> 0.736 | BW6: =SUM(IF($W$71:$W$1041=$W6,$Y$71:$Y$1041*BW$71:BW$1041,0))/$EG6 -> 0.74 | BX6: =SUM(IF($W$71:$W$1041=$W6,$Y$71:$Y$1041*BX$71:BX$1041,0))/$EG6 -> 0.736 | BY6: =SUM(IF($W$71:$W$1041=$W6,$Y$71:$Y$1041*BY$71:BY$1041,0))/$EG6 -> 0.732 | BZ6: =SUM(IF($W$71:$W$1041=$W6,$Y$71:$Y$1041*BZ$71:BZ$1041,0))/$EG6 -> 0.738 | CA6: =SUM(IF($W$71:$W$1041=$W6,$Y$71:$Y$1041*CA$71:CA$1041,0))/$EG6 -> 0.736 | CB6: =SUM(IF($W$71:$W$1041=$W6,$Y$71:$Y$1041*CB$71:CB$1041,0))/$EG6 -> 0.742 | CC6: =SUM(IF($W$71:$W$1041=$W6,$Y$71:$Y$1041*CC$71:CC$1041,0))/$EG6 -> 0.742 | CD6: =SUM(IF($W$71:$W$1041=$W6,$Y$71:$Y$1041*CD$71:CD$1041,0))/$EG6 -> 0.74 | CE6: =SUM(IF($W$71:$W$1041=$W6,$Y$71:$Y$1041*CE$71:CE$1041,0))/$EG6 -> 0.736 | CF6: =SUM(IF($W$71:$W$1041=$W6,$Y$71:$Y$1041*CF$71:CF$1041,0))/$EG6 -> 0.732 | CG6: =SUM(IF($W$71:$W$1041=$W6,$Y$71:$Y$1041*CG$71:CG$1041,0))/$EG6 -> 0.722 | CH6: =SUM(IF($W$71:$W$1041=$W6,$Y$71:$Y$1041*CH$71:CH$1041,0))/$EG6 -> 0.716 | CI6: =SUM(IF($W$71:$W$1041=$W6,$Y$71:$Y$1041*CI$71:CI$1041,0))/$EG6 -> -0.00058 | CJ6: =SUM(IF($W$71:$W$1041=$W6,$Y$71:$Y$1041*CJ$71:CJ$1041,0))/$EG6 -> -0.00076 | CK6: =SUM(IF($W$71:$W$1041=$W6,$Y$71:$Y$1041*CK$71:CK$1041,0))/$EG6 -> -0.000858 | CL6: =SUM(IF($W$71:$W$1041=$W6,$Y$71:$Y$1041*CL$71:CL$1041,0))/$EG6 -> -0.000692 | CM6: =SUM(IF($W$71:$W$1041=$W6,$Y$71:$Y$1041*CM$71:CM$1041,0))/$EG6 -> -0.000664 | CN6: =SUM(IF($W$71:$W$1041=$W6,$Y$71:$Y$1041*CN$71:CN$1041,0))/$EG6 -> -0.000522 | CO6: =SUM(IF($W$71:$W$1041=$W6,$Y$71:$Y$1041*CO$71:CO$1041,0))/$EG6 -> -0.00025 | CP6: =SUM(IF($W$71:$W$1041=$W6,$Y$71:$Y$1041*CP$71:CP$1041,0))/$EG6 -> -3.2e-05 | CQ6: =SUM(IF($W$71:$W$1041=$W6,$Y$71:$Y$1041*CQ$71:CQ$1041,0))/$EG6 -> 3e-05 | CR6: =SUM(IF($W$71:$W$1041=$W6,$Y$71:$Y$1041*CR$71:CR$1041,0))/$EG6 -> 0.000102 | CS6: =SUM(IF($W$71:$W$1041=$W6,$Y$71:$Y$1041*CS$71:CS$1041,0))/$EG6 -> 0.000178 | CT6: =SUM(IF($W$71:$W$1041=$W6,$Y$71:$Y$1041*CT$71:CT$1041,0))/$EG6 -> 0.000252 | CU6: =SUM(IF($W$71:$W$1041=$W6,$Y$71:$Y$1041*CU$71:CU$1041,0))/$EG6 -> 0.000302 | CV6: =SUM(IF($W$71:$W$1041=$W6,$Y$71:$Y$1041*CV$71:CV$1041,0))/$EG6 -> 0.000336 | CW6: =SUM(IF($W$71:$W$1041=$W6,$Y$71:$Y$1041*CW$71:CW$1041,0))/$EG6 -> 0.000342 | CX6: =SUM(IF($W$71:$W$1041=$W6,$Y$71:$Y$1041*CX$71:CX$1041,0))/$EG6 -> 0.000392 | CY6: =SUM(IF($W$71:$W$1041=$W6,$Y$71:$Y$1041*CY$71:CY$1041,0))/$EG6 -> 0.000456 | CZ6: =SUM(IF($W$71:$W$1041=$W6,$Y$71:$Y$1041*CZ$71:CZ$1041,0))/$EG6 -> 0.000564 | DA6: =SUM(IF($W$71:$W$1041=$W6,$Y$71:$Y$1041*DA$71:DA$1041,0))/$EG6 -> 0.00067 | DB6: =SUM(IF($W$71:$W$1041=$W6,$Y$71:$Y$1041*DB$71:DB$1041,0))/$EG6 -> 0.000698 | DC6: =SUM(IF($W$71:$W$1041=$W6,$Y$71:$Y$1041*DC$71:DC$1041,0))/$EG6 -> 0.000592 | DD6: =SUM(IF($W$71:$W$1041=$W6,$Y$71:$Y$1041*DD$71:DD$1041,0))/$EG6 -> 0.0004 | DE6: =SUM(IF($W$71:$W$1041=$W6,$Y$71:$Y$1041*DE$71:DE$1041,0))/$EG6 -> 0.000108 | DF6: =SUM(IF($W$71:$W$1041=$W6,$Y$71:$Y$1041*DF$71:DF$1041,0))/$EG6 -> -0.000192 | DG6: =SUM(IF($W$71:$W$1041=$W6,$Y$71:$Y$1041*DG$71:DG$1041,0))/$EG6 -> -0.000538 | DH6: =SUM(IF($W$71:$W$1041=$W6,$Y$71:$Y$1041*DH$71:DH$1041,0))/$EG6 -> -0.000526 | DI6: =SUM(IF($W$71:$W$1041=$W6,$Y$71:$Y$1041*DI$71:DI$1041,0))/$EG6 -> -0.000568 | DJ6: =SUM(IF($W$71:$W$1041=$W6,$Y$71:$Y$1041*DJ$71:DJ$1041,0))/$EG6 -> -0.000414 | DK6: =SUM(IF($W$71:$W$1041=$W6,$Y$71:$Y$1041*DK$71:DK$1041,0))/$EG6 -> -0.000308 | DL6: =SUM(IF($W$71:$W$1041=$W6,$Y$71:$Y$1041*DL$71:DL$1041,0))/$EG6 -> -0.000204 | DM6: =SUM(IF($W$71:$W$1041=$W6,$Y$71:$Y$1041*DM$71:DM$1041,0))/$EG6 -> 0.000192 | DN6: =SUM(IF($W$71:$W$1041=$W6,$Y$71:$Y$1041*DN$71:DN$1041,0))/$EG6 -> 0.000418 | DO6: =SUM(IF($W$71:$W$1041=$W6,$Y$71:$Y$1041*DO$71:DO$1041,0))/$EG6 -> 0.000486 | DP6: =SUM(IF($W$71:$W$1041=$W6,$Y$71:$Y$1041*DP$71:DP$1041,0))/$EG6 -> 0.000522 | DQ6: =SUM(IF($W$71:$W$1041=$W6,$Y$71:$Y$1041*DQ$71:DQ$1041,0))/$EG6 -> 0.00049 | DR6: =SUM(IF($W$71:$W$1041=$W6,$Y$71:$Y$1041*DR$71:DR$1041,0))/$EG6 -> 0.000442 | DS6: =SUM(IF($W$71:$W$1041=$W6,$Y$71:$Y$1041*DS$71:DS$1041,0))/$EG6 -> 0.00036 | DT6: =SUM(IF($W$71:$W$1041=$W6,$Y$71:$Y$1041*DT$71:DT$1041,0))/$EG6 -> 0.000244 | DU6: =SUM(IF($W$71:$W$1041=$W6,$Y$71:$Y$1041*DU$71:DU$1041,0))/$EG6 -> 0.00017 | DV6: =SUM(IF($W$71:$W$1041=$W6,$Y$71:$Y$1041*DV$71:DV$1041,0))/$EG6 -> 0.000264 | DW6: =SUM(IF($W$71:$W$1041=$W6,$Y$71:$Y$1041*DW$71:DW$1041,0))/$EG6 -> 0.00039 | DX6: =SUM(IF($W$71:$W$1041=$W6,$Y$71:$Y$1041*DX$71:DX$1041,0))/$EG6 -> 0.000566 | DY6: =SUM(IF($W$71:$W$1041=$W6,$Y$71:$Y$1041*DY$71:DY$1041,0))/$EG6 -> 0.000704 | DZ6: =SUM(IF($W$71:$W$1041=$W6,$Y$71:$Y$1041*DZ$71:DZ$1041,0))/$EG6 -> 0.000728 | EA6: =SUM(IF($W$71:$W$1041=$W6,$Y$71:$Y$1041*EA$71:EA$1041,0))/$EG6 -> 0.000586 | EB6: =SUM(IF($W$71:$W$1041=$W6,$Y$71:$Y$1041*EB$71:EB$1041,0))/$EG6 -> 0.000372 | EC6: =SUM(IF($W$71:$W$1041=$W6,$Y$71:$Y$1041*EC$71:EC$1041,0))/$EG6 -> -4.6e-05 | ED6: =SUM(IF($W$71:$W$1041=$W6,$Y$71:$Y$1041*ED$71:ED$1041,0))/$EG6 -> -0.000766 | EE6: 30 | EF6: 50 | EG6: 1
A7: 1900-02-15 | B7: 1900-02-22 | C7: =TEXT(INDIRECT("$A"&MOD(ROW()-ROW($D$4)+MATCH(Pasture!$C$8,table_PeriodStarts,0) - 1, 24) + ROW($D$4)),"d mmm")&IF(24 - MATCH(Pasture!$C$8,table_PeriodStarts,0) < ROW() - ROW($D$4), " (yr 2)", "") -> 15 Feb | D7: =INDIRECT("$A"&MOD(ROW()-ROW($D$4)+MATCH(Pasture!$C$8,table_PeriodStarts,0) - 1, 24) + ROW($D$4)) -> 1900-02-15 | F7: British x European | N7: DLF(2) | O7: 0 | P7: 0 | Q7: 0 | R7: 0 | S7: 0 | T7: 0.39 | U7: 0.64 | W7: 4 | X7: NSW - Southern Tablelands & Monaro | Y7: -35.3 | Z7: =SUM(IF($W$71:$W$1041=$W7,$Y$71:$Y$1041*Z$71:Z$1041,0))/$EG7 -> 0.158 | AA7: =SUM(IF($W$71:$W$1041=$W7,$Y$71:$Y$1041*AA$71:AA$1041,0))/$EG7 -> 9.82 | AB7: =SUM(IF($W$71:$W$1041=$W7,$Y$71:$Y$1041*AB$71:AB$1041,0))/$EG7 -> 7.92 | AC7: =SUM(IF($W$71:$W$1041=$W7,$Y$71:$Y$1041*AC$71:AC$1041,0))/$EG7 -> 8.85 | AD7: =SUM(IF($W$71:$W$1041=$W7,$Y$71:$Y$1041*AD$71:AD$1041,0))/$EG7 -> 14.5 | AE7: =SUM(IF($W$71:$W$1041=$W7,$Y$71:$Y$1041*AE$71:AE$1041,0))/$EG7 -> 11.9 | AF7: =SUM(IF($W$71:$W$1041=$W7,$Y$71:$Y$1041*AF$71:AF$1041,0))/$EG7 -> 7.25 | AG7: =SUM(IF($W$71:$W$1041=$W7,$Y$71:$Y$1041*AG$71:AG$1041,0))/$EG7 -> 6.31 | AH7: =SUM(IF($W$71:$W$1041=$W7,$Y$71:$Y$1041*AH$71:AH$1041,0))/$EG7 -> 9.91 | AI7: =SUM(IF($W$71:$W$1041=$W7,$Y$71:$Y$1041*AI$71:AI$1041,0))/$EG7 -> 27.42 | AJ7: =SUM(IF($W$71:$W$1041=$W7,$Y$71:$Y$1041*AJ$71:AJ$1041,0))/$EG7 -> 44.85 | AK7: =SUM(IF($W$71:$W$1041=$W7,$Y$71:$Y$1041*AK$71:AK$1041,0))/$EG7 -> 44.13 | AL7: =SUM(IF($W$71:$W$1041=$W7,$Y$71:$Y$1041*AL$71:AL$1041,0))/$EG7 -> 16.98 | AM7: =SUM(IF($W$71:$W$1041=$W7,$Y$71:$Y$1041*AM$71:AM$1041,0))/$EG7 -> 0.6376 | AN7: =SUM(IF($W$71:$W$1041=$W7,$Y$71:$Y$1041*AN$71:AN$1041,0))/$EG7 -> 0.626 | AO7: =SUM(IF($W$71:$W$1041=$W7,$Y$71:$Y$1041*AO$71:AO$1041,0))/$EG7 -> 0.6216 | AP7: =SUM(IF($W$71:$W$1041=$W7,$Y$71:$Y$1041*AP$71:AP$1041,0))/$EG7 -> 0.61 | AQ7: =SUM(IF($W$71:$W$1041=$W7,$Y$71:$Y$1041*AQ$71:AQ$1041,0))/$EG7 -> 0.6028 | AR7: =SUM(IF($W$71:$W$1041=$W7,$Y$71:$Y$1041*AR$71:AR$1041,0))/$EG7 -> 0.6128 | AS7: =SUM(IF($W$71:$W$1041=$W7,$Y$71:$Y$1041*AS$71:AS$1041,0))/$EG7 -> 0.6244 | AT7: =SUM(IF($W$71:$W$1041=$W7,$Y$71:$Y$1041*AT$71:AT$1041,0))/$EG7 -> 0.636 | AU7: =SUM(IF($W$71:$W$1041=$W7,$Y$71:$Y$1041*AU$71:AU$1041,0))/$EG7 -> 0.652 | AV7: =SUM(IF($W$71:$W$1041=$W7,$Y$71:$Y$1041*AV$71:AV$1041,0))/$EG7 -> 0.658 | AW7: =SUM(IF($W$71:$W$1041=$W7,$Y$71:$Y$1041*AW$71:AW$1041,0))/$EG7 -> 0.6624 | AX7: =SUM(IF($W$71:$W$1041=$W7,$Y$71:$Y$1041*AX$71:AX$1041,0))/$EG7 -> 0.674 | AY7: =SUM(IF($W$71:$W$1041=$W7,$Y$71:$Y$1041*AY$71:AY$1041,0))/$EG7 -> 0.6784 | AZ7: =SUM(IF($W$71:$W$1041=$W7,$Y$71:$Y$1041*AZ$71:AZ$1041,0))/$EG7 -> 0.6856 | BA7: =SUM(IF($W$71:$W$1041=$W7,$Y$71:$Y$1041*BA$71:BA$1041,0))/$EG7 -> 0.69 | BB7: =SUM(IF($W$71:$W$1041=$W7,$Y$71:$Y$1041*BB$71:BB$1041,0))/$EG7 -> 0.7044 | BC7: =SUM(IF($W$71:$W$1041=$W7,$Y$71:$Y$1041*BC$71:BC$1041,0))/$EG7 -> 0.7088 | BD7: =SUM(IF($W$71:$W$1041=$W7,$Y$71:$Y$1041*BD$71:BD$1041,0))/$EG7 -> 0.7088 | BE7: =SUM(IF($W$71:$W$1041=$W7,$Y$71:$Y$1041*BE$71:BE$1041,0))/$EG7 -> 0.706 | BF7: =SUM(IF($W$71:$W$1041=$W7,$Y$71:$Y$1041*BF$71:BF$1041,0))/$EG7 -> 0.706 | BG7: =SUM(IF($W$71:$W$1041=$W7,$Y$71:$Y$1041*BG$71:BG$1041,0))/$EG7 -> 0.6916 | BH7: =SUM(IF($W$71:$W$1041=$W7,$Y$71:$Y$1041*BH$71:BH$1041,0))/$EG7 -> 0.6828 | BI7: =SUM(IF($W$71:$W$1041=$W7,$Y$71:$Y$1041*BI$71:BI$1041,0))/$EG7 -> 0.6752 | BJ7: =SUM(IF($W$71:$W$1041=$W7,$Y$71:$Y$1041*BJ$71:BJ$1041,0))/$EG7 -> 0.652 | BK7: =SUM(IF($W$71:$W$1041=$W7,$Y$71:$Y$1041*BK$71:BK$1041,0))/$EG7 -> 0.6504 | BL7: =SUM(IF($W$71:$W$1041=$W7,$Y$71:$Y$1041*BL$71:BL$1041,0))/$EG7 -> 0.646 | BM7: =SUM(IF($W$71:$W$1041=$W7,$Y$71:$Y$1041*BM$71:BM$1041,0))/$EG7 -> 0.6344 | BN7: =SUM(IF($W$71:$W$1041=$W7,$Y$71:$Y$1041*BN$71:BN$1041,0))/$EG7 -> 0.63 | BO7: =SUM(IF($W$71:$W$1041=$W7,$Y$71:$Y$1041*BO$71:BO$1041,0))/$EG7 -> 0.6256 | BP7: =SUM(IF($W$71:$W$1041=$W7,$Y$71:$Y$1041*BP$71:BP$1041,0))/$EG7 -> 0.6256 | BQ7: =SUM(IF($W$71:$W$1041=$W7,$Y$71:$Y$1041*BQ$71:BQ$1041,0))/$EG7 -> 0.64 | BR7: =SUM(IF($W$71:$W$1041=$W7,$Y$71:$Y$1041*BR$71:BR$1041,0))/$EG7 -> 0.6516 | BS7: =SUM(IF($W$71:$W$1041=$W7,$Y$71:$Y$1041*BS$71:BS$1041,0))/$EG7 -> 0.6648 | BT7: =SUM(IF($W$71:$W$1041=$W7,$Y$71:$Y$1041*BT$71:BT$1041,0))/$EG7 -> 0.6636 | BU7: =SUM(IF($W$71:$W$1041=$W7,$Y$71:$Y$1041*BU$71:BU$1041,0))/$EG7 -> 0.6752 | BV7: =SUM(IF($W$71:$W$1041=$W7,$Y$71:$Y$1041*BV$71:BV$1041,0))/$EG7 -> 0.6768 | BW7: =SUM(IF($W$71:$W$1041=$W7,$Y$71:$Y$1041*BW$71:BW$1041,0))/$EG7 -> 0.6884 | BX7: =SUM(IF($W$71:$W$1041=$W7,$Y$71:$Y$1041*BX$71:BX$1041,0))/$EG7 -> 0.6928 | BY7: =SUM(IF($W$71:$W$1041=$W7,$Y$71:$Y$1041*BY$71:BY$1041,0))/$EG7 -> 0.6972 | BZ7: =SUM(IF($W$71:$W$1041=$W7,$Y$71:$Y$1041*BZ$71:BZ$1041,0))/$EG7 -> 0.7044 | CA7: =SUM(IF($W$71:$W$1041=$W7,$Y$71:$Y$1041*CA$71:CA$1041,0))/$EG7 -> 0.7088 | CB7: =SUM(IF($W$71:$W$1041=$W7,$Y$71:$Y$1041*CB$71:CB$1041,0))/$EG7 -> 0.7088 | CC7: =SUM(IF($W$71:$W$1041=$W7,$Y$71:$Y$1041*CC$71:CC$1041,0))/$EG7 -> 0.7132 | CD7: =SUM(IF($W$71:$W$1041=$W7,$Y$71:$Y$1041*CD$71:CD$1041,0))/$EG7 -> 0.706 | CE7: =SUM(IF($W$71:$W$1041=$W7,$Y$71:$Y$1041*CE$71:CE$1041,0))/$EG7 -> 0.6988 | CF7: =SUM(IF($W$71:$W$1041=$W7,$Y$71:$Y$1041*CF$71:CF$1041,0))/$EG7 -> 0.69 | CG7: =SUM(IF($W$71:$W$1041=$W7,$Y$71:$Y$1041*CG$71:CG$1041,0))/$EG7 -> 0.6824 | CH7: =SUM(IF($W$71:$W$1041=$W7,$Y$71:$Y$1041*CH$71:CH$1041,0))/$EG7 -> 0.6692 | CI7: =SUM(IF($W$71:$W$1041=$W7,$Y$71:$Y$1041*CI$71:CI$1041,0))/$EG7 -> -0.00068 | CJ7: =SUM(IF($W$71:$W$1041=$W7,$Y$71:$Y$1041*CJ$71:CJ$1041,0))/$EG7 -> -0.0010888 | CK7: =SUM(IF($W$71:$W$1041=$W7,$Y$71:$Y$1041*CK$71:CK$1041,0))/$EG7 -> -0.0010456 | CL7: =SUM(IF($W$71:$W$1041=$W7,$Y$71:$Y$1041*CL$71:CL$1041,0))/$EG7 -> -0.000938 | CM7: =SUM(IF($W$71:$W$1041=$W7,$Y$71:$Y$1041*CM$71:CM$1041,0))/$EG7 -> -0.0009324 | CN7: =SUM(IF($W$71:$W$1041=$W7,$Y$71:$Y$1041*CN$71:CN$1041,0))/$EG7 -> -0.0008784 | CO7: =SUM(IF($W$71:$W$1041=$W7,$Y$71:$Y$1041*CO$71:CO$1041,0))/$EG7 -> -0.000704 | CP7: =SUM(IF($W$71:$W$1041=$W7,$Y$71:$Y$1041*CP$71:CP$1041,0))/$EG7 -> -0.0005044 | CQ7: =SUM(IF($W$71:$W$1041=$W7,$Y$71:$Y$1041*CQ$71:CQ$1041,0))/$EG7 -> -0.0003236 | CR7: =SUM(IF($W$71:$W$1041=$W7,$Y$71:$Y$1041*CR$71:CR$1041,0))/$EG7 -> -5.08e-05 | CS7: =SUM(IF($W$71:$W$1041=$W7,$Y$71:$Y$1041*CS$71:CS$1041,0))/$EG7 -> 0.0002216 | CT7: =SUM(IF($W$71:$W$1041=$W7,$Y$71:$Y$1041*CT$71:CT$1041,0))/$EG7 -> 0.0003376 | CU7: =SUM(IF($W$71:$W$1041=$W7,$Y$71:$Y$1041*CU$71:CU$1041,0))/$EG7 -> 0.0003548 | CV7: =SUM(IF($W$71:$W$1041=$W7,$Y$71:$Y$1041*CV$71:CV$1041,0))/$EG7 -> 0.0003448 | CW7: =SUM(IF($W$71:$W$1041=$W7,$Y$71:$Y$1041*CW$71:CW$1041,0))/$EG7 -> 0.0003636 | CX7: =SUM(IF($W$71:$W$1041=$W7,$Y$71:$Y$1041*CX$71:CX$1041,0))/$EG7 -> 0.0004528 | CY7: =SUM(IF($W$71:$W$1041=$W7,$Y$71:$Y$1041*CY$71:CY$1041,0))/$EG7 -> 0.000548 | CZ7: =SUM(IF($W$71:$W$1041=$W7,$Y$71:$Y$1041*CZ$71:CZ$1041,0))/$EG7 -> 0.0006516 | DA7: =SUM(IF($W$71:$W$1041=$W7,$Y$71:$Y$1041*DA$71:DA$1041,0))/$EG7 -> 0.0007848 | DB7: =SUM(IF($W$71:$W$1041=$W7,$Y$71:$Y$1041*DB$71:DB$1041,0))/$EG7 -> 0.0007272 | DC7: =SUM(IF($W$71:$W$1041=$W7,$Y$71:$Y$1041*DC$71:DC$1041,0))/$EG7 -> 0.0005832 | DD7: =SUM(IF($W$71:$W$1041=$W7,$Y$71:$Y$1041*DD$71:DD$1041,0))/$EG7 -> 0.0003656 | DE7: =SUM(IF($W$71:$W$1041=$W7,$Y$71:$Y$1041*DE$71:DE$1041,0))/$EG7 -> 4.72e-05 | DF7: =SUM(IF($W$71:$W$1041=$W7,$Y$71:$Y$1041*DF$71:DF$1041,0))/$EG7 -> -0.0002752 | DG7: =SUM(IF($W$71:$W$1041=$W7,$Y$71:$Y$1041*DG$71:DG$1041,0))/$EG7 -> -0.0006672 | DH7: =SUM(IF($W$71:$W$1041=$W7,$Y$71:$Y$1041*DH$71:DH$1041,0))/$EG7 -> -0.00054 | DI7: =SUM(IF($W$71:$W$1041=$W7,$Y$71:$Y$1041*DI$71:DI$1041,0))/$EG7 -> -0.0005876 | DJ7: =SUM(IF($W$71:$W$1041=$W7,$Y$71:$Y$1041*DJ$71:DJ$1041,0))/$EG7 -> -0.0006156 | DK7: =SUM(IF($W$71:$W$1041=$W7,$Y$71:$Y$1041*DK$71:DK$1041,0))/$EG7 -> -0.0007128 | DL7: =SUM(IF($W$71:$W$1041=$W7,$Y$71:$Y$1041*DL$71:DL$1041,0))/$EG7 -> -0.000664 | DM7: =SUM(IF($W$71:$W$1041=$W7,$Y$71:$Y$1041*DM$71:DM$1041,0))/$EG7 -> -0.0004488 | DN7: =SUM(IF($W$71:$W$1041=$W7,$Y$71:$Y$1041*DN$71:DN$1041,0))/$EG7 -> -0.0002028 | DO7: =SUM(IF($W$71:$W$1041=$W7,$Y$71:$Y$1041*DO$71:DO$1041,0))/$EG7 -> -1.04e-05 | DP7: =SUM(IF($W$71:$W$1041=$W7,$Y$71:$Y$1041*DP$71:DP$1041,0))/$EG7 -> 8e-05 | DQ7: =SUM(IF($W$71:$W$1041=$W7,$Y$71:$Y$1041*DQ$71:DQ$1041,0))/$EG7 -> 0.000164 | DR7: =SUM(IF($W$71:$W$1041=$W7,$Y$71:$Y$1041*DR$71:DR$1041,0))/$EG7 -> 0.0002476 | DS7: =SUM(IF($W$71:$W$1041=$W7,$Y$71:$Y$1041*DS$71:DS$1041,0))/$EG7 -> 0.0003784 | DT7: =SUM(IF($W$71:$W$1041=$W7,$Y$71:$Y$1041*DT$71:DT$1041,0))/$EG7 -> 0.0003156 | DU7: =SUM(IF($W$71:$W$1041=$W7,$Y$71:$Y$1041*DU$71:DU$1041,0))/$EG7 -> 0.000438 | DV7: =SUM(IF($W$71:$W$1041=$W7,$Y$71:$Y$1041*DV$71:DV$1041,0))/$EG7 -> 0.0006208 | DW7: =SUM(IF($W$71:$W$1041=$W7,$Y$71:$Y$1041*DW$71:DW$1041,0))/$EG7 -> 0.0007884 | DX7: =SUM(IF($W$71:$W$1041=$W7,$Y$71:$Y$1041*DX$71:DX$1041,0))/$EG7 -> 0.0009044 | DY7: =SUM(IF($W$71:$W$1041=$W7,$Y$71:$Y$1041*DY$71:DY$1041,0))/$EG7 -> 0.0009692 | DZ7: =SUM(IF($W$71:$W$1041=$W7,$Y$71:$Y$1041*DZ$71:DZ$1041,0))/$EG7 -> 0.000864 | EA7: =SUM(IF($W$71:$W$1041=$W7,$Y$71:$Y$1041*EA$71:EA$1041,0))/$EG7 -> 0.000622 | EB7: =SUM(IF($W$71:$W$1041=$W7,$Y$71:$Y$1041*EB$71:EB$1041,0))/$EG7 -> 0.0003488 | EC7: =SUM(IF($W$71:$W$1041=$W7,$Y$71:$Y$1041*EC$71:EC$1041,0))/$EG7 -> -0.000106 | ED7: =SUM(IF($W$71:$W$1041=$W7,$Y$71:$Y$1041*ED$71:ED$1041,0))/$EG7 -> -0.0008592 | EE7: 51 | EF7: 64 | EG7: 1
A8: 1900-03-01 | B8: 1900-03-08 | C8: =TEXT(INDIRECT("$A"&MOD(ROW()-ROW($D$4)+MATCH(Pasture!$C$8,table_PeriodStarts,0) - 1, 24) + ROW($D$4)),"d mmm")&IF(24 - MATCH(Pasture!$C$8,table_PeriodStarts,0) < ROW() - ROW($D$4), " (yr 2)", "") -> 1 Mar | D8: =INDIRECT("$A"&MOD(ROW()-ROW($D$4)+MATCH(Pasture!$C$8,table_PeriodStarts,0) - 1, 24) + ROW($D$4)) -> 1900-03-01 | F8: British x B. indicus | N8: BW:N | O8: 0.07 | P8: 0.07 | Q8: 0.07 | R8: 0.07 | S8: 0.07 | T8: 0.1 | U8: 0.1 | W8: 5 | X8: NSW - Upper Hunter | Y8: -31.1 | Z8: =SUM(IF($W$71:$W$1041=$W8,$Y$71:$Y$1041*Z$71:Z$1041,0))/$EG8 -> 0.4083333333 | AA8: =SUM(IF($W$71:$W$1041=$W8,$Y$71:$Y$1041*AA$71:AA$1041,0))/$EG8 -> 24.22222222 | AB8: =SUM(IF($W$71:$W$1041=$W8,$Y$71:$Y$1041*AB$71:AB$1041,0))/$EG8 -> 22 | AC8: =SUM(IF($W$71:$W$1041=$W8,$Y$71:$Y$1041*AC$71:AC$1041,0))/$EG8 -> 16.88888889 | AD8: =SUM(IF($W$71:$W$1041=$W8,$Y$71:$Y$1041*AD$71:AD$1041,0))/$EG8 -> 11.5 | AE8: =SUM(IF($W$71:$W$1041=$W8,$Y$71:$Y$1041*AE$71:AE$1041,0))/$EG8 -> 7.944444444 | AF8: =SUM(IF($W$71:$W$1041=$W8,$Y$71:$Y$1041*AF$71:AF$1041,0))/$EG8 -> 6.388888889 | AG8: =SUM(IF($W$71:$W$1041=$W8,$Y$71:$Y$1041*AG$71:AG$1041,0))/$EG8 -> 7.055555556 | AH8: =SUM(IF($W$71:$W$1041=$W8,$Y$71:$Y$1041*AH$71:AH$1041,0))/$EG8 -> 10.38888889 | AI8: =SUM(IF($W$71:$W$1041=$W8,$Y$71:$Y$1041*AI$71:AI$1041,0))/$EG8 -> 19.72222222 | AJ8: =SUM(IF($W$71:$W$1041=$W8,$Y$71:$Y$1041*AJ$71:AJ$1041,0))/$EG8 -> 28 | AK8: =SUM(IF($W$71:$W$1041=$W8,$Y$71:$Y$1041*AK$71:AK$1041,0))/$EG8 -> 24.66666667 | AL8: =SUM(IF($W$71:$W$1041=$W8,$Y$71:$Y$1041*AL$71:AL$1041,0))/$EG8 -> 22.22222222 | AM8: =SUM(IF($W$71:$W$1041=$W8,$Y$71:$Y$1041*AM$71:AM$1041,0))/$EG8 -> 0.6038888889 | AN8: =SUM(IF($W$71:$W$1041=$W8,$Y$71:$Y$1041*AN$71:AN$1041,0))/$EG8 -> 0.59 | AO8: =SUM(IF($W$71:$W$1041=$W8,$Y$71:$Y$1041*AO$71:AO$1041,0))/$EG8 -> 0.5788888889 | AP8: =SUM(IF($W$71:$W$1041=$W8,$Y$71:$Y$1041*AP$71:AP$1041,0))/$EG8 -> 0.575 | AQ8: =SUM(IF($W$71:$W$1041=$W8,$Y$71:$Y$1041*AQ$71:AQ$1041,0))/$EG8 -> 0.5666666667 | AR8: =SUM(IF($W$71:$W$1041=$W8,$Y$71:$Y$1041*AR$71:AR$1041,0))/$EG8 -> 0.5655555556 | AS8: =SUM(IF($W$71:$W$1041=$W8,$Y$71:$Y$1041*AS$71:AS$1041,0))/$EG8 -> 0.5711111111 | AT8: =SUM(IF($W$71:$W$1041=$W8,$Y$71:$Y$1041*AT$71:AT$1041,0))/$EG8 -> 0.5866666667 | AU8: =SUM(IF($W$71:$W$1041=$W8,$Y$71:$Y$1041*AU$71:AU$1041,0))/$EG8 -> 0.6061111111 | AV8: =SUM(IF($W$71:$W$1041=$W8,$Y$71:$Y$1041*AV$71:AV$1041,0))/$EG8 -> 0.6388888889 | AW8: =SUM(IF($W$71:$W$1041=$W8,$Y$71:$Y$1041*AW$71:AW$1041,0))/$EG8 -> 0.6566666667 | AX8: =SUM(IF($W$71:$W$1041=$W8,$Y$71:$Y$1041*AX$71:AX$1041,0))/$EG8 -> 0.6711111111 | AY8: =SUM(IF($W$71:$W$1041=$W8,$Y$71:$Y$1041*AY$71:AY$1041,0))/$EG8 -> 0.6827777778 | AZ8: =SUM(IF($W$71:$W$1041=$W8,$Y$71:$Y$1041*AZ$71:AZ$1041,0))/$EG8 -> 0.6972222222 | BA8: =SUM(IF($W$71:$W$1041=$W8,$Y$71:$Y$1041*BA$71:BA$1041,0))/$EG8 -> 0.7027777778 | BB8: =SUM(IF($W$71:$W$1041=$W8,$Y$71:$Y$1041*BB$71:BB$1041,0))/$EG8 -> 0.6994444444 | BC8: =SUM(IF($W$71:$W$1041=$W8,$Y$71:$Y$1041*BC$71:BC$1041,0))/$EG8 -> 0.705 | BD8: =SUM(IF($W$71:$W$1041=$W8,$Y$71:$Y$1041*BD$71:BD$1041,0))/$EG8 -> 0.7 | BE8: =SUM(IF($W$71:$W$1041=$W8,$Y$71:$Y$1041*BE$71:BE$1041,0))/$EG8 -> 0.6944444444 | BF8: =SUM(IF($W$71:$W$1041=$W8,$Y$71:$Y$1041*BF$71:BF$1041,0))/$EG8 -> 0.6961111111 | BG8: =SUM(IF($W$71:$W$1041=$W8,$Y$71:$Y$1041*BG$71:BG$1041,0))/$EG8 -> 0.6827777778 | BH8: =SUM(IF($W$71:$W$1041=$W8,$Y$71:$Y$1041*BH$71:BH$1041,0))/$EG8 -> 0.6666666667 | BI8: =SUM(IF($W$71:$W$1041=$W8,$Y$71:$Y$1041*BI$71:BI$1041,0))/$EG8 -> 0.6322222222 | BJ8: =SUM(IF($W$71:$W$1041=$W8,$Y$71:$Y$1041*BJ$71:BJ$1041,0))/$EG8 -> 0.6183333333 | BK8: =SUM(IF($W$71:$W$1041=$W8,$Y$71:$Y$1041*BK$71:BK$1041,0))/$EG8 -> 0.6211111111 | BL8: =SUM(IF($W$71:$W$1041=$W8,$Y$71:$Y$1041*BL$71:BL$1041,0))/$EG8 -> 0.6094444444 | BM8: =SUM(IF($W$71:$W$1041=$W8,$Y$71:$Y$1041*BM$71:BM$1041,0))/$EG8 -> 0.5983333333 | BN8: =SUM(IF($W$71:$W$1041=$W8,$Y$71:$Y$1041*BN$71:BN$1041,0))/$EG8 -> 0.5877777778 | BO8: =SUM(IF($W$71:$W$1041=$W8,$Y$71:$Y$1041*BO$71:BO$1041,0))/$EG8 -> 0.5822222222 | BP8: =SUM(IF($W$71:$W$1041=$W8,$Y$71:$Y$1041*BP$71:BP$1041,0))/$EG8 -> 0.5811111111 | BQ8: =SUM(IF($W$71:$W$1041=$W8,$Y$71:$Y$1041*BQ$71:BQ$1041,0))/$EG8 -> 0.5866666667 | BR8: =SUM(IF($W$71:$W$1041=$W8,$Y$71:$Y$1041*BR$71:BR$1041,0))/$EG8 -> 0.6016666667 | BS8: =SUM(IF($W$71:$W$1041=$W8,$Y$71:$Y$1041*BS$71:BS$1041,0))/$EG8 -> 0.6161111111 | BT8: =SUM(IF($W$71:$W$1041=$W8,$Y$71:$Y$1041*BT$71:BT$1041,0))/$EG8 -> 0.6488888889 | BU8: =SUM(IF($W$71:$W$1041=$W8,$Y$71:$Y$1041*BU$71:BU$1041,0))/$EG8 -> 0.6694444444 | BV8: =SUM(IF($W$71:$W$1041=$W8,$Y$71:$Y$1041*BV$71:BV$1041,0))/$EG8 -> 0.6811111111 | BW8: =SUM(IF($W$71:$W$1041=$W8,$Y$71:$Y$1041*BW$71:BW$1041,0))/$EG8 -> 0.69 | BX8: =SUM(IF($W$71:$W$1041=$W8,$Y$71:$Y$1041*BX$71:BX$1041,0))/$EG8 -> 0.7011111111 | BY8: =SUM(IF($W$71:$W$1041=$W8,$Y$71:$Y$1041*BY$71:BY$1041,0))/$EG8 -> 0.7055555556 | BZ8: =SUM(IF($W$71:$W$1041=$W8,$Y$71:$Y$1041*BZ$71:BZ$1041,0))/$EG8 -> 0.7038888889 | CA8: =SUM(IF($W$71:$W$1041=$W8,$Y$71:$Y$1041*CA$71:CA$1041,0))/$EG8 -> 0.7055555556 | CB8: =SUM(IF($W$71:$W$1041=$W8,$Y$71:$Y$1041*CB$71:CB$1041,0))/$EG8 -> 0.7044444444 | CC8: =SUM(IF($W$71:$W$1041=$W8,$Y$71:$Y$1041*CC$71:CC$1041,0))/$EG8 -> 0.6983333333 | CD8: =SUM(IF($W$71:$W$1041=$W8,$Y$71:$Y$1041*CD$71:CD$1041,0))/$EG8 -> 0.7038888889 | CE8: =SUM(IF($W$71:$W$1041=$W8,$Y$71:$Y$1041*CE$71:CE$1041,0))/$EG8 -> 0.6961111111 | CF8: =SUM(IF($W$71:$W$1041=$W8,$Y$71:$Y$1041*CF$71:CF$1041,0))/$EG8 -> 0.6772222222 | CG8: =SUM(IF($W$71:$W$1041=$W8,$Y$71:$Y$1041*CG$71:CG$1041,0))/$EG8 -> 0.6522222222 | CH8: =SUM(IF($W$71:$W$1041=$W8,$Y$71:$Y$1041*CH$71:CH$1041,0))/$EG8 -> 0.6377777778 | CI8: =SUM(IF($W$71:$W$1041=$W8,$Y$71:$Y$1041*CI$71:CI$1041,0))/$EG8 -> -0.001002222222 | CJ8: =SUM(IF($W$71:$W$1041=$W8,$Y$71:$Y$1041*CJ$71:CJ$1041,0))/$EG8 -> -0.001552777778 | CK8: =SUM(IF($W$71:$W$1041=$W8,$Y$71:$Y$1041*CK$71:CK$1041,0))/$EG8 -> -0.001505 | CL8: =SUM(IF($W$71:$W$1041=$W8,$Y$71:$Y$1041*CL$71:CL$1041,0))/$EG8 -> -0.001176666667 | CM8: =SUM(IF($W$71:$W$1041=$W8,$Y$71:$Y$1041*CM$71:CM$1041,0))/$EG8 -> -0.001307222222 | CN8: =SUM(IF($W$71:$W$1041=$W8,$Y$71:$Y$1041*CN$71:CN$1041,0))/$EG8 -> -0.001255555556 | CO8: =SUM(IF($W$71:$W$1041=$W8,$Y$71:$Y$1041*CO$71:CO$1041,0))/$EG8 -> -0.00099 | CP8: =SUM(IF($W$71:$W$1041=$W8,$Y$71:$Y$1041*CP$71:CP$1041,0))/$EG8 -> -0.0007627777778 | CQ8: =SUM(IF($W$71:$W$1041=$W8,$Y$71:$Y$1041*CQ$71:CQ$1041,0))/$EG8 -> -0.0005088888889 | CR8: =SUM(IF($W$71:$W$1041=$W8,$Y$71:$Y$1041*CR$71:CR$1041,0))/$EG8 -> -7.166666667e-05 | CS8: =SUM(IF($W$71:$W$1041=$W8,$Y$71:$Y$1041*CS$71:CS$1041,0))/$EG8 -> 0.0002022222222 | CT8: =SUM(IF($W$71:$W$1041=$W8,$Y$71:$Y$1041*CT$71:CT$1041,0))/$EG8 -> 0.0004933333333 | CU8: =SUM(IF($W$71:$W$1041=$W8,$Y$71:$Y$1041*CU$71:CU$1041,0))/$EG8 -> 0.0006516666667 | CV8: =SUM(IF($W$71:$W$1041=$W8,$Y$71:$Y$1041*CV$71:CV$1041,0))/$EG8 -> 0.000795 | CW8: =SUM(IF($W$71:$W$1041=$W8,$Y$71:$Y$1041*CW$71:CW$1041,0))/$EG8 -> 0.0009038888889 | CX8: =SUM(IF($W$71:$W$1041=$W8,$Y$71:$Y$1041*CX$71:CX$1041,0))/$EG8 -> 0.001003333333 | CY8: =SUM(IF($W$71:$W$1041=$W8,$Y$71:$Y$1041*CY$71:CY$1041,0))/$EG8 -> 0.001070555556 | CZ8: =SUM(IF($W$71:$W$1041=$W8,$Y$71:$Y$1041*CZ$71:CZ$1041,0))/$EG8 -> 0.001003333333 | DA8: =SUM(IF($W$71:$W$1041=$W8,$Y$71:$Y$1041*DA$71:DA$1041,0))/$EG8 -> 0.000795 | DB8: =SUM(IF($W$71:$W$1041=$W8,$Y$71:$Y$1041*DB$71:DB$1041,0))/$EG8 -> 0.0006261111111 | DC8: =SUM(IF($W$71:$W$1041=$W8,$Y$71:$Y$1041*DC$71:DC$1041,0))/$EG8 -> 0.0004011111111 | DD8: =SUM(IF($W$71:$W$1041=$W8,$Y$71:$Y$1041*DD$71:DD$1041,0))/$EG8 -> 0.0001144444444 | DE8: =SUM(IF($W$71:$W$1041=$W8,$Y$71:$Y$1041*DE$71:DE$1041,0))/$EG8 -> -0.0002577777778 | DF8: =SUM(IF($W$71:$W$1041=$W8,$Y$71:$Y$1041*DF$71:DF$1041,0))/$EG8 -> -0.0005066666667 | DG8: =SUM(IF($W$71:$W$1041=$W8,$Y$71:$Y$1041*DG$71:DG$1041,0))/$EG8 -> -0.0007533333333 | DH8: =SUM(IF($W$71:$W$1041=$W8,$Y$71:$Y$1041*DH$71:DH$1041,0))/$EG8 -> -0.0009305555556 | DI8: =SUM(IF($W$71:$W$1041=$W8,$Y$71:$Y$1041*DI$71:DI$1041,0))/$EG8 -> -0.001046666667 | DJ8: =SUM(IF($W$71:$W$1041=$W8,$Y$71:$Y$1041*DJ$71:DJ$1041,0))/$EG8 -> -0.001158888889 | DK8: =SUM(IF($W$71:$W$1041=$W8,$Y$71:$Y$1041*DK$71:DK$1041,0))/$EG8 -> -0.001298333333 | DL8: =SUM(IF($W$71:$W$1041=$W8,$Y$71:$Y$1041*DL$71:DL$1041,0))/$EG8 -> -0.001344444444 | DM8: =SUM(IF($W$71:$W$1041=$W8,$Y$71:$Y$1041*DM$71:DM$1041,0))/$EG8 -> -0.001073333333 | DN8: =SUM(IF($W$71:$W$1041=$W8,$Y$71:$Y$1041*DN$71:DN$1041,0))/$EG8 -> -0.0007394444444 | DO8: =SUM(IF($W$71:$W$1041=$W8,$Y$71:$Y$1041*DO$71:DO$1041,0))/$EG8 -> -0.0004133333333 | DP8: =SUM(IF($W$71:$W$1041=$W8,$Y$71:$Y$1041*DP$71:DP$1041,0))/$EG8 -> 0.0001188888889 | DQ8: =SUM(IF($W$71:$W$1041=$W8,$Y$71:$Y$1041*DQ$71:DQ$1041,0))/$EG8 -> 0.0005044444444 | DR8: =SUM(IF($W$71:$W$1041=$W8,$Y$71:$Y$1041*DR$71:DR$1041,0))/$EG8 -> 0.0007283333333 | DS8: =SUM(IF($W$71:$W$1041=$W8,$Y$71:$Y$1041*DS$71:DS$1041,0))/$EG8 -> 0.0008661111111 | DT8: =SUM(IF($W$71:$W$1041=$W8,$Y$71:$Y$1041*DT$71:DT$1041,0))/$EG8 -> 0.0009794444444 | DU8: =SUM(IF($W$71:$W$1041=$W8,$Y$71:$Y$1041*DU$71:DU$1041,0))/$EG8 -> 0.001153888889 | DV8: =SUM(IF($W$71:$W$1041=$W8,$Y$71:$Y$1041*DV$71:DV$1041,0))/$EG8 -> 0.001234444444 | DW8: =SUM(IF($W$71:$W$1041=$W8,$Y$71:$Y$1041*DW$71:DW$1041,0))/$EG8 -> 0.001335555556 | DX8: =SUM(IF($W$71:$W$1041=$W8,$Y$71:$Y$1041*DX$71:DX$1041,0))/$EG8 -> 0.001296111111 | DY8: =SUM(IF($W$71:$W$1041=$W8,$Y$71:$Y$1041*DY$71:DY$1041,0))/$EG8 -> 0.001043888889 | DZ8: =SUM(IF($W$71:$W$1041=$W8,$Y$71:$Y$1041*DZ$71:DZ$1041,0))/$EG8 -> 0.0007427777778 | EA8: =SUM(IF($W$71:$W$1041=$W8,$Y$71:$Y$1041*EA$71:EA$1041,0))/$EG8 -> 0.0004494444444 | EB8: =SUM(IF($W$71:$W$1041=$W8,$Y$71:$Y$1041*EB$71:EB$1041,0))/$EG8 -> 0.00013 | EC8: =SUM(IF($W$71:$W$1041=$W8,$Y$71:$Y$1041*EC$71:EC$1041,0))/$EG8 -> -0.0003016666667 | ED8: =SUM(IF($W$71:$W$1041=$W8,$Y$71:$Y$1041*ED$71:ED$1041,0))/$EG8 -> -0.0007516666667 | EE8: 65 | EF8: 87 | EG8: 0.9
A9: 1900-03-16 | B9: 1900-03-23 | C9: =IF(24 - MATCH(Pasture!$C$8,table_PeriodStarts,0) < ROW() - ROW($D$4), "* ", "")&TEXT(INDIRECT("$A"&MOD(ROW()-ROW($D$4)+MATCH(Pasture!$C$8,table_PeriodStarts,0) - 1, 24) + ROW($D$4)),"d mmm") -> 16 Mar | D9: =INDIRECT("$A"&MOD(ROW()-ROW($D$4)+MATCH(Pasture!$C$8,table_PeriodStarts,0) - 1, 24) + ROW($D$4)) -> 1900-03-16 | N9: C(N,1) | O9: 0.0115 | P9: 0.0115 | Q9: 0.0115 | R9: 0.0115 | S9: 0.0115 | T9: 0.0157 | U9: 0.0157 | W9: 6 | X9: NSW - Central West Slopes | Y9: -33.2 | Z9: =SUM(IF($W$71:$W$1041=$W9,$Y$71:$Y$1041*Z$71:Z$1041,0))/$EG9 -> 0.3775 | AA9: =SUM(IF($W$71:$W$1041=$W9,$Y$71:$Y$1041*AA$71:AA$1041,0))/$EG9 -> 10.5 | AB9: =SUM(IF($W$71:$W$1041=$W9,$Y$71:$Y$1041*AB$71:AB$1041,0))/$EG9 -> 10.3 | AC9: =SUM(IF($W$71:$W$1041=$W9,$Y$71:$Y$1041*AC$71:AC$1041,0))/$EG9 -> 9.1 | AD9: =SUM(IF($W$71:$W$1041=$W9,$Y$71:$Y$1041*AD$71:AD$1041,0))/$EG9 -> 10.4 | AE9: =SUM(IF($W$71:$W$1041=$W9,$Y$71:$Y$1041*AE$71:AE$1041,0))/$EG9 -> 12.95 | AF9: =SUM(IF($W$71:$W$1041=$W9,$Y$71:$Y$1041*AF$71:AF$1041,0))/$EG9 -> 12.5 | AG9: =SUM(IF($W$71:$W$1041=$W9,$Y$71:$Y$1041*AG$71:AG$1041,0))/$EG9 -> 9 | AH9: =SUM(IF($W$71:$W$1041=$W9,$Y$71:$Y$1041*AH$71:AH$1041,0))/$EG9 -> 12.75 | AI9: =SUM(IF($W$71:$W$1041=$W9,$Y$71:$Y$1041*AI$71:AI$1041,0))/$EG9 -> 22.75 | AJ9: =SUM(IF($W$71:$W$1041=$W9,$Y$71:$Y$1041*AJ$71:AJ$1041,0))/$EG9 -> 35 | AK9: =SUM(IF($W$71:$W$1041=$W9,$Y$71:$Y$1041*AK$71:AK$1041,0))/$EG9 -> 24.5 | AL9: =SUM(IF($W$71:$W$1041=$W9,$Y$71:$Y$1041*AL$71:AL$1041,0))/$EG9 -> 13.95 | AM9: =SUM(IF($W$71:$W$1041=$W9,$Y$71:$Y$1041*AM$71:AM$1041,0))/$EG9 -> 0.6165 | AN9: =SUM(IF($W$71:$W$1041=$W9,$Y$71:$Y$1041*AN$71:AN$1041,0))/$EG9 -> 0.6 | AO9: =SUM(IF($W$71:$W$1041=$W9,$Y$71:$Y$1041*AO$71:AO$1041,0))/$EG9 -> 0.5835 | AP9: =SUM(IF($W$71:$W$1041=$W9,$Y$71:$Y$1041*AP$71:AP$1041,0))/$EG9 -> 0.5785 | AQ9: =SUM(IF($W$71:$W$1041=$W9,$Y$71:$Y$1041*AQ$71:AQ$1041,0))/$EG9 -> 0.5805 | AR9: =SUM(IF($W$71:$W$1041=$W9,$Y$71:$Y$1041*AR$71:AR$1041,0))/$EG9 -> 0.606 | AS9: =SUM(IF($W$71:$W$1041=$W9,$Y$71:$Y$1041*AS$71:AS$1041,0))/$EG9 -> 0.6275 | AT9: =SUM(IF($W$71:$W$1041=$W9,$Y$71:$Y$1041*AT$71:AT$1041,0))/$EG9 -> 0.662 | AU9: =SUM(IF($W$71:$W$1041=$W9,$Y$71:$Y$1041*AU$71:AU$1041,0))/$EG9 -> 0.695 | AV9: =SUM(IF($W$71:$W$1041=$W9,$Y$71:$Y$1041*AV$71:AV$1041,0))/$EG9 -> 0.723 | AW9: =SUM(IF($W$71:$W$1041=$W9,$Y$71:$Y$1041*AW$71:AW$1041,0))/$EG9 -> 0.734 | AX9: =SUM(IF($W$71:$W$1041=$W9,$Y$71:$Y$1041*AX$71:AX$1041,0))/$EG9 -> 0.7395 | AY9: =SUM(IF($W$71:$W$1041=$W9,$Y$71:$Y$1041*AY$71:AY$1041,0))/$EG9 -> 0.745 | AZ9: =SUM(IF($W$71:$W$1041=$W9,$Y$71:$Y$1041*AZ$71:AZ$1041,0))/$EG9 -> 0.746 | BA9: =SUM(IF($W$71:$W$1041=$W9,$Y$71:$Y$1041*BA$71:BA$1041,0))/$EG9 -> 0.7525 | BB9: =SUM(IF($W$71:$W$1041=$W9,$Y$71:$Y$1041*BB$71:BB$1041,0))/$EG9 -> 0.7445 | BC9: =SUM(IF($W$71:$W$1041=$W9,$Y$71:$Y$1041*BC$71:BC$1041,0))/$EG9 -> 0.7445 | BD9: =SUM(IF($W$71:$W$1041=$W9,$Y$71:$Y$1041*BD$71:BD$1041,0))/$EG9 -> 0.746 | BE9: =SUM(IF($W$71:$W$1041=$W9,$Y$71:$Y$1041*BE$71:BE$1041,0))/$EG9 -> 0.737 | BF9: =SUM(IF($W$71:$W$1041=$W9,$Y$71:$Y$1041*BF$71:BF$1041,0))/$EG9 -> 0.723 | BG9: =SUM(IF($W$71:$W$1041=$W9,$Y$71:$Y$1041*BG$71:BG$1041,0))/$EG9 -> 0.691 | BH9: =SUM(IF($W$71:$W$1041=$W9,$Y$71:$Y$1041*BH$71:BH$1041,0))/$EG9 -> 0.669 | BI9: =SUM(IF($W$71:$W$1041=$W9,$Y$71:$Y$1041*BI$71:BI$1041,0))/$EG9 -> 0.648 | BJ9: =SUM(IF($W$71:$W$1041=$W9,$Y$71:$Y$1041*BJ$71:BJ$1041,0))/$EG9 -> 0.6355 | BK9: =SUM(IF($W$71:$W$1041=$W9,$Y$71:$Y$1041*BK$71:BK$1041,0))/$EG9 -> 0.638 | BL9: =SUM(IF($W$71:$W$1041=$W9,$Y$71:$Y$1041*BL$71:BL$1041,0))/$EG9 -> 0.6195 | BM9: =SUM(IF($W$71:$W$1041=$W9,$Y$71:$Y$1041*BM$71:BM$1041,0))/$EG9 -> 0.603 | BN9: =SUM(IF($W$71:$W$1041=$W9,$Y$71:$Y$1041*BN$71:BN$1041,0))/$EG9 -> 0.598 | BO9: =SUM(IF($W$71:$W$1041=$W9,$Y$71:$Y$1041*BO$71:BO$1041,0))/$EG9 -> 0.6 | BP9: =SUM(IF($W$71:$W$1041=$W9,$Y$71:$Y$1041*BP$71:BP$1041,0))/$EG9 -> 0.619 | BQ9: =SUM(IF($W$71:$W$1041=$W9,$Y$71:$Y$1041*BQ$71:BQ$1041,0))/$EG9 -> 0.6385 | BR9: =SUM(IF($W$71:$W$1041=$W9,$Y$71:$Y$1041*BR$71:BR$1041,0))/$EG9 -> 0.673 | BS9: =SUM(IF($W$71:$W$1041=$W9,$Y$71:$Y$1041*BS$71:BS$1041,0))/$EG9 -> 0.708 | BT9: =SUM(IF($W$71:$W$1041=$W9,$Y$71:$Y$1041*BT$71:BT$1041,0))/$EG9 -> 0.734 | BU9: =SUM(IF($W$71:$W$1041=$W9,$Y$71:$Y$1041*BU$71:BU$1041,0))/$EG9 -> 0.747 | BV9: =SUM(IF($W$71:$W$1041=$W9,$Y$71:$Y$1041*BV$71:BV$1041,0))/$EG9 -> 0.7445 | BW9: =SUM(IF($W$71:$W$1041=$W9,$Y$71:$Y$1041*BW$71:BW$1041,0))/$EG9 -> 0.7485 | BX9: =SUM(IF($W$71:$W$1041=$W9,$Y$71:$Y$1041*BX$71:BX$1041,0))/$EG9 -> 0.754 | BY9: =SUM(IF($W$71:$W$1041=$W9,$Y$71:$Y$1041*BY$71:BY$1041,0))/$EG9 -> 0.7545 | BZ9: =SUM(IF($W$71:$W$1041=$W9,$Y$71:$Y$1041*BZ$71:BZ$1041,0))/$EG9 -> 0.751 | CA9: =SUM(IF($W$71:$W$1041=$W9,$Y$71:$Y$1041*CA$71:CA$1041,0))/$EG9 -> 0.751 | CB9: =SUM(IF($W$71:$W$1041=$W9,$Y$71:$Y$1041*CB$71:CB$1041,0))/$EG9 -> 0.7445 | CC9: =SUM(IF($W$71:$W$1041=$W9,$Y$71:$Y$1041*CC$71:CC$1041,0))/$EG9 -> 0.7435 | CD9: =SUM(IF($W$71:$W$1041=$W9,$Y$71:$Y$1041*CD$71:CD$1041,0))/$EG9 -> 0.731 | CE9: =SUM(IF($W$71:$W$1041=$W9,$Y$71:$Y$1041*CE$71:CE$1041,0))/$EG9 -> 0.7075 | CF9: =SUM(IF($W$71:$W$1041=$W9,$Y$71:$Y$1041*CF$71:CF$1041,0))/$EG9 -> 0.679 | CG9: =SUM(IF($W$71:$W$1041=$W9,$Y$71:$Y$1041*CG$71:CG$1041,0))/$EG9 -> 0.668 | CH9: =SUM(IF($W$71:$W$1041=$W9,$Y$71:$Y$1041*CH$71:CH$1041,0))/$EG9 -> 0.6555 | CI9: =SUM(IF($W$71:$W$1041=$W9,$Y$71:$Y$1041*CI$71:CI$1041,0))/$EG9 -> -0.0011575 | CJ9: =SUM(IF($W$71:$W$1041=$W9,$Y$71:$Y$1041*CJ$71:CJ$1041,0))/$EG9 -> -0.0014975 | CK9: =SUM(IF($W$71:$W$1041=$W9,$Y$71:$Y$1041*CK$71:CK$1041,0))/$EG9 -> -0.0016845 | CL9: =SUM(IF($W$71:$W$1041=$W9,$Y$71:$Y$1041*CL$71:CL$1041,0))/$EG9 -> -0.001492 | CM9: =SUM(IF($W$71:$W$1041=$W9,$Y$71:$Y$1041*CM$71:CM$1041,0))/$EG9 -> -0.001567 | CN9: =SUM(IF($W$71:$W$1041=$W9,$Y$71:$Y$1041*CN$71:CN$1041,0))/$EG9 -> -0.001301 | CO9: =SUM(IF($W$71:$W$1041=$W9,$Y$71:$Y$1041*CO$71:CO$1041,0))/$EG9 -> -0.000785 | CP9: =SUM(IF($W$71:$W$1041=$W9,$Y$71:$Y$1041*CP$71:CP$1041,0))/$EG9 -> -0.000221 | CQ9: =SUM(IF($W$71:$W$1041=$W9,$Y$71:$Y$1041*CQ$71:CQ$1041,0))/$EG9 -> 0.0001475 | CR9: =SUM(IF($W$71:$W$1041=$W9,$Y$71:$Y$1041*CR$71:CR$1041,0))/$EG9 -> 0.0004715 | CS9: =SUM(IF($W$71:$W$1041=$W9,$Y$71:$Y$1041*CS$71:CS$1041,0))/$EG9 -> 0.0007145 | CT9: =SUM(IF($W$71:$W$1041=$W9,$Y$71:$Y$1041*CT$71:CT$1041,0))/$EG9 -> 0.000875 | CU9: =SUM(IF($W$71:$W$1041=$W9,$Y$71:$Y$1041*CU$71:CU$1041,0))/$EG9 -> 0.0010375 | CV9: =SUM(IF($W$71:$W$1041=$W9,$Y$71:$Y$1041*CV$71:CV$1041,0))/$EG9 -> 0.0011285 | CW9: =SUM(IF($W$71:$W$1041=$W9,$Y$71:$Y$1041*CW$71:CW$1041,0))/$EG9 -> 0.001167 | CX9: =SUM(IF($W$71:$W$1041=$W9,$Y$71:$Y$1041*CX$71:CX$1041,0))/$EG9 -> 0.0011585 | CY9: =SUM(IF($W$71:$W$1041=$W9,$Y$71:$Y$1041*CY$71:CY$1041,0))/$EG9 -> 0.0011205 | CZ9: =SUM(IF($W$71:$W$1041=$W9,$Y$71:$Y$1041*CZ$71:CZ$1041,0))/$EG9 -> 0.001049 | DA9: =SUM(IF($W$71:$W$1041=$W9,$Y$71:$Y$1041*DA$71:DA$1041,0))/$EG9 -> 0.0008805 | DB9: =SUM(IF($W$71:$W$1041=$W9,$Y$71:$Y$1041*DB$71:DB$1041,0))/$EG9 -> 0.0005105 | DC9: =SUM(IF($W$71:$W$1041=$W9,$Y$71:$Y$1041*DC$71:DC$1041,0))/$EG9 -> 0.0001025 | DD9: =SUM(IF($W$71:$W$1041=$W9,$Y$71:$Y$1041*DD$71:DD$1041,0))/$EG9 -> -0.0002335 | DE9: =SUM(IF($W$71:$W$1041=$W9,$Y$71:$Y$1041*DE$71:DE$1041,0))/$EG9 -> -0.0004915 | DF9: =SUM(IF($W$71:$W$1041=$W9,$Y$71:$Y$1041*DF$71:DF$1041,0))/$EG9 -> -0.000767 | DG9: =SUM(IF($W$71:$W$1041=$W9,$Y$71:$Y$1041*DG$71:DG$1041,0))/$EG9 -> -0.000941 | DH9: =SUM(IF($W$71:$W$1041=$W9,$Y$71:$Y$1041*DH$71:DH$1041,0))/$EG9 -> -0.0011845 | DI9: =SUM(IF($W$71:$W$1041=$W9,$Y$71:$Y$1041*DI$71:DI$1041,0))/$EG9 -> -0.0013715 | DJ9: =SUM(IF($W$71:$W$1041=$W9,$Y$71:$Y$1041*DJ$71:DJ$1041,0))/$EG9 -> -0.001371 | DK9: =SUM(IF($W$71:$W$1041=$W9,$Y$71:$Y$1041*DK$71:DK$1041,0))/$EG9 -> -0.0014 | DL9: =SUM(IF($W$71:$W$1041=$W9,$Y$71:$Y$1041*DL$71:DL$1041,0))/$EG9 -> -0.0010925 | DM9: =SUM(IF($W$71:$W$1041=$W9,$Y$71:$Y$1041*DM$71:DM$1041,0))/$EG9 -> -0.000685 | DN9: =SUM(IF($W$71:$W$1041=$W9,$Y$71:$Y$1041*DN$71:DN$1041,0))/$EG9 -> -4.7e-05 | DO9: =SUM(IF($W$71:$W$1041=$W9,$Y$71:$Y$1041*DO$71:DO$1041,0))/$EG9 -> 0.000565 | DP9: =SUM(IF($W$71:$W$1041=$W9,$Y$71:$Y$1041*DP$71:DP$1041,0))/$EG9 -> 0.0010405 | DQ9: =SUM(IF($W$71:$W$1041=$W9,$Y$71:$Y$1041*DQ$71:DQ$1041,0))/$EG9 -> 0.001196 | DR9: =SUM(IF($W$71:$W$1041=$W9,$Y$71:$Y$1041*DR$71:DR$1041,0))/$EG9 -> 0.001253 | DS9: =SUM(IF($W$71:$W$1041=$W9,$Y$71:$Y$1041*DS$71:DS$1041,0))/$EG9 -> 0.0013105 | DT9: =SUM(IF($W$71:$W$1041=$W9,$Y$71:$Y$1041*DT$71:DT$1041,0))/$EG9 -> 0.0013145 | DU9: =SUM(IF($W$71:$W$1041=$W9,$Y$71:$Y$1041*DU$71:DU$1041,0))/$EG9 -> 0.0012455 | DV9: =SUM(IF($W$71:$W$1041=$W9,$Y$71:$Y$1041*DV$71:DV$1041,0))/$EG9 -> 0.0012165 | DW9: =SUM(IF($W$71:$W$1041=$W9,$Y$71:$Y$1041*DW$71:DW$1041,0))/$EG9 -> 0.00122 | DX9: =SUM(IF($W$71:$W$1041=$W9,$Y$71:$Y$1041*DX$71:DX$1041,0))/$EG9 -> 0.0011575 | DY9: =SUM(IF($W$71:$W$1041=$W9,$Y$71:$Y$1041*DY$71:DY$1041,0))/$EG9 -> 0.0009245 | DZ9: =SUM(IF($W$71:$W$1041=$W9,$Y$71:$Y$1041*DZ$71:DZ$1041,0))/$EG9 -> 0.0004935 | EA9: =SUM(IF($W$71:$W$1041=$W9,$Y$71:$Y$1041*EA$71:EA$1041,0))/$EG9 -> -3.05e-05 | EB9: =SUM(IF($W$71:$W$1041=$W9,$Y$71:$Y$1041*EB$71:EB$1041,0))/$EG9 -> -0.0003785 | EC9: =SUM(IF($W$71:$W$1041=$W9,$Y$71:$Y$1041*EC$71:EC$1041,0))/$EG9 -> -0.000603 | ED9: =SUM(IF($W$71:$W$1041=$W9,$Y$71:$Y$1041*ED$71:ED$1041,0))/$EG9 -> -0.0011155 | EE9: 88 | EF9: 110 | EG9: 1
A10: 1900-04-01 | B10: 1900-04-08 | C10: =IF(24 - MATCH(Pasture!$C$8,table_PeriodStarts,0) < ROW() - ROW($D$4), "* ", "")&TEXT(INDIRECT("$A"&MOD(ROW()-ROW($D$4)+MATCH(Pasture!$C$8,table_PeriodStarts,0) - 1, 24) + ROW($D$4)),"d mmm") -> 1 Apr | D10: =INDIRECT("$A"&MOD(ROW()-ROW($D$4)+MATCH(Pasture!$C$8,table_PeriodStarts,0) - 1, 24) + ROW($D$4)) -> 1900-04-01 | F10: Breeding Classes - Cattle | G10: Breeding Classes - Sheep | I10: Pasture Growth Rate options | N10: C(M,2) | O10: 0.36 | P10: 0.36 | Q10: 0.31 | R10: 0.36 | S10: 0.335 | T10: 0.26 | U10: 0.26 | W10: 7 | X10: NSW - Central West (Narromine) | Y10: -32.2 | Z10: =SUM(IF($W$71:$W$1041=$W10,$Y$71:$Y$1041*Z$71:Z$1041,0))/$EG10 -> 0.1970873786 | AA10: =SUM(IF($W$71:$W$1041=$W10,$Y$71:$Y$1041*AA$71:AA$1041,0))/$EG10 -> 1.296992557 | AB10: =SUM(IF($W$71:$W$1041=$W10,$Y$71:$Y$1041*AB$71:AB$1041,0))/$EG10 -> 1.48108714 | AC10: =SUM(IF($W$71:$W$1041=$W10,$Y$71:$Y$1041*AC$71:AC$1041,0))/$EG10 -> 0.5078343306 | AD10: =SUM(IF($W$71:$W$1041=$W10,$Y$71:$Y$1041*AD$71:AD$1041,0))/$EG10 -> 2.399052475 | AE10: =SUM(IF($W$71:$W$1041=$W10,$Y$71:$Y$1041*AE$71:AE$1041,0))/$EG10 -> 6.281555247 | AF10: =SUM(IF($W$71:$W$1041=$W10,$Y$71:$Y$1041*AF$71:AF$1041,0))/$EG10 -> 7.037573363 | AG10: =SUM(IF($W$71:$W$1041=$W10,$Y$71:$Y$1041*AG$71:AG$1041,0))/$EG10 -> 4.708578665 | AH10: =SUM(IF($W$71:$W$1041=$W10,$Y$71:$Y$1041*AH$71:AH$1041,0))/$EG10 -> 2.43696131 | AI10: =SUM(IF($W$71:$W$1041=$W10,$Y$71:$Y$1041*AI$71:AI$1041,0))/$EG10 -> 4.755366116 | AJ10: =SUM(IF($W$71:$W$1041=$W10,$Y$71:$Y$1041*AJ$71:AJ$1041,0))/$EG10 -> 8.72895871 | AK10: =SUM(IF($W$71:$W$1041=$W10,$Y$71:$Y$1041*AK$71:AK$1041,0))/$EG10 -> 2.528440737 | AL10: =SUM(IF($W$71:$W$1041=$W10,$Y$71:$Y$1041*AL$71:AL$1041,0))/$EG10 -> 1.390270698 | AM10: =SUM(IF($W$71:$W$1041=$W10,$Y$71:$Y$1041*AM$71:AM$1041,0))/$EG10 -> 0.6073786408 | AN10: =SUM(IF($W$71:$W$1041=$W10,$Y$71:$Y$1041*AN$71:AN$1041,0))/$EG10 -> 0.587961165 | AO10: =SUM(IF($W$71:$W$1041=$W10,$Y$71:$Y$1041*AO$71:AO$1041,0))/$EG10 -> 0.5685436893 | AP10: =SUM(IF($W$71:$W$1041=$W10,$Y$71:$Y$1041*AP$71:AP$1041,0))/$EG10 -> 0.5588349515 | AQ10: =SUM(IF($W$71:$W$1041=$W10,$Y$71:$Y$1041*AQ$71:AQ$1041,0))/$EG10 -> 0.5588349515 | AR10: =SUM(IF($W$71:$W$1041=$W10,$Y$71:$Y$1041*AR$71:AR$1041,0))/$EG10 -> 0.587961165 | AS10: =SUM(IF($W$71:$W$1041=$W10,$Y$71:$Y$1041*AS$71:AS$1041,0))/$EG10 -> 0.6170873786 | AT10: =SUM(IF($W$71:$W$1041=$W10,$Y$71:$Y$1041*AT$71:AT$1041,0))/$EG10 -> 0.665631068 | AU10: =SUM(IF($W$71:$W$1041=$W10,$Y$71:$Y$1041*AU$71:AU$1041,0))/$EG10 -> 0.7141747573 | AV10: =SUM(IF($W$71:$W$1041=$W10,$Y$71:$Y$1041*AV$71:AV$1041,0))/$EG10 -> 0.7433009709 | AW10: =SUM(IF($W$71:$W$1041=$W10,$Y$71:$Y$1041*AW$71:AW$1041,0))/$EG10 -> 0.7627184466 | AX10: =SUM(IF($W$71:$W$1041=$W10,$Y$71:$Y$1041*AX$71:AX$1041,0))/$EG10 -> 0.7724271845 | AY10: =SUM(IF($W$71:$W$1041=$W10,$Y$71:$Y$1041*AY$71:AY$1041,0))/$EG10 -> 0.7821359223 | AZ10: =SUM(IF($W$71:$W$1041=$W10,$Y$71:$Y$1041*AZ$71:AZ$1041,0))/$EG10 -> 0.7821359223 | BA10: =SUM(IF($W$71:$W$1041=$W10,$Y$71:$Y$1041*BA$71:BA$1041,0))/$EG10 -> 0.7918446602 | BB10: =SUM(IF($W$71:$W$1041=$W10,$Y$71:$Y$1041*BB$71:BB$1041,0))/$EG10 -> 0.7821359223 | BC10: =SUM(IF($W$71:$W$1041=$W10,$Y$71:$Y$1041*BC$71:BC$1041,0))/$EG10 -> 0.7821359223 | BD10: =SUM(IF($W$71:$W$1041=$W10,$Y$71:$Y$1041*BD$71:BD$1041,0))/$EG10 -> 0.7821359223 | BE10: =SUM(IF($W$71:$W$1041=$W10,$Y$71:$Y$1041*BE$71:BE$1041,0))/$EG10 -> 0.7627184466 | BF10: =SUM(IF($W$71:$W$1041=$W10,$Y$71:$Y$1041*BF$71:BF$1041,0))/$EG10 -> 0.733592233 | BG10: =SUM(IF($W$71:$W$1041=$W10,$Y$71:$Y$1041*BG$71:BG$1041,0))/$EG10 -> 0.6850485437 | BH10: =SUM(IF($W$71:$W$1041=$W10,$Y$71:$Y$1041*BH$71:BH$1041,0))/$EG10 -> 0.6559223301 | BI10: =SUM(IF($W$71:$W$1041=$W10,$Y$71:$Y$1041*BI$71:BI$1041,0))/$EG10 -> 0.6365048544 | BJ10: =SUM(IF($W$71:$W$1041=$W10,$Y$71:$Y$1041*BJ$71:BJ$1041,0))/$EG10 -> 0.6267961165 | BK10: =SUM(IF($W$71:$W$1041=$W10,$Y$71:$Y$1041*BK$71:BK$1041,0))/$EG10 -> 0.6267961165 | BL10: =SUM(IF($W$71:$W$1041=$W10,$Y$71:$Y$1041*BL$71:BL$1041,0))/$EG10 -> 0.6073786408 | BM10: =SUM(IF($W$71:$W$1041=$W10,$Y$71:$Y$1041*BM$71:BM$1041,0))/$EG10 -> 0.587961165 | BN10: =SUM(IF($W$71:$W$1041=$W10,$Y$71:$Y$1041*BN$71:BN$1041,0))/$EG10 -> 0.5782524272 | BO10: =SUM(IF($W$71:$W$1041=$W10,$Y$71:$Y$1041*BO$71:BO$1041,0))/$EG10 -> 0.5782524272 | BP10: =SUM(IF($W$71:$W$1041=$W10,$Y$71:$Y$1041*BP$71:BP$1041,0))/$EG10 -> 0.5976699029 | BQ10: =SUM(IF($W$71:$W$1041=$W10,$Y$71:$Y$1041*BQ$71:BQ$1041,0))/$EG10 -> 0.6267961165 | BR10: =SUM(IF($W$71:$W$1041=$W10,$Y$71:$Y$1041*BR$71:BR$1041,0))/$EG10 -> 0.6753398058 | BS10: =SUM(IF($W$71:$W$1041=$W10,$Y$71:$Y$1041*BS$71:BS$1041,0))/$EG10 -> 0.7238834951 | BT10: =SUM(IF($W$71:$W$1041=$W10,$Y$71:$Y$1041*BT$71:BT$1041,0))/$EG10 -> 0.7530097087 | BU10: =SUM(IF($W$71:$W$1041=$W10,$Y$71:$Y$1041*BU$71:BU$1041,0))/$EG10 -> 0.7724271845 | BV10: =SUM(IF($W$71:$W$1041=$W10,$Y$71:$Y$1041*BV$71:BV$1041,0))/$EG10 -> 0.7724271845 | BW10: =SUM(IF($W$71:$W$1041=$W10,$Y$71:$Y$1041*BW$71:BW$1041,0))/$EG10 -> 0.7821359223 | BX10: =SUM(IF($W$71:$W$1041=$W10,$Y$71:$Y$1041*BX$71:BX$1041,0))/$EG10 -> 0.7918446602 | BY10: =SUM(IF($W$71:$W$1041=$W10,$Y$71:$Y$1041*BY$71:BY$1041,0))/$EG10 -> 0.7918446602 | BZ10: =SUM(IF($W$71:$W$1041=$W10,$Y$71:$Y$1041*BZ$71:BZ$1041,0))/$EG10 -> 0.7918446602 | CA10: =SUM(IF($W$71:$W$1041=$W10,$Y$71:$Y$1041*CA$71:CA$1041,0))/$EG10 -> 0.7918446602 | CB10: =SUM(IF($W$71:$W$1041=$W10,$Y$71:$Y$1041*CB$71:CB$1041,0))/$EG10 -> 0.7821359223 | CC10: =SUM(IF($W$71:$W$1041=$W10,$Y$71:$Y$1041*CC$71:CC$1041,0))/$EG10 -> 0.7724271845 | CD10: =SUM(IF($W$71:$W$1041=$W10,$Y$71:$Y$1041*CD$71:CD$1041,0))/$EG10 -> 0.7433009709 | CE10: =SUM(IF($W$71:$W$1041=$W10,$Y$71:$Y$1041*CE$71:CE$1041,0))/$EG10 -> 0.7044660194 | CF10: =SUM(IF($W$71:$W$1041=$W10,$Y$71:$Y$1041*CF$71:CF$1041,0))/$EG10 -> 0.665631068 | CG10: =SUM(IF($W$71:$W$1041=$W10,$Y$71:$Y$1041*CG$71:CG$1041,0))/$EG10 -> 0.6559223301 | CH10: =SUM(IF($W$71:$W$1041=$W10,$Y$71:$Y$1041*CH$71:CH$1041,0))/$EG10 -> 0.6462135922 | CI10: =SUM(IF($W$71:$W$1041=$W10,$Y$71:$Y$1041*CI$71:CI$1041,0))/$EG10 -> -0.00133 | CJ10: =SUM(IF($W$71:$W$1041=$W10,$Y$71:$Y$1041*CJ$71:CJ$1041,0))/$EG10 -> -0.0017 | CK10: =SUM(IF($W$71:$W$1041=$W10,$Y$71:$Y$1041*CK$71:CK$1041,0))/$EG10 -> -0.00196 | CL10: =SUM(IF($W$71:$W$1041=$W10,$Y$71:$Y$1041*CL$71:CL$1041,0))/$EG10 -> -0.00176 | CM10: =SUM(IF($W$71:$W$1041=$W10,$Y$71:$Y$1041*CM$71:CM$1041,0))/$EG10 -> -0.00189 | CN10: =SUM(IF($W$71:$W$1041=$W10,$Y$71:$Y$1041*CN$71:CN$1041,0))/$EG10 -> -0.00161 | CO10: =SUM(IF($W$71:$W$1041=$W10,$Y$71:$Y$1041*CO$71:CO$1041,0))/$EG10 -> -0.00088 | CP10: =SUM(IF($W$71:$W$1041=$W10,$Y$71:$Y$1041*CP$71:CP$1041,0))/$EG10 -> -8e-05 | CQ10: =SUM(IF($W$71:$W$1041=$W10,$Y$71:$Y$1041*CQ$71:CQ$1041,0))/$EG10 -> 0.0004 | CR10: =SUM(IF($W$71:$W$1041=$W10,$Y$71:$Y$1041*CR$71:CR$1041,0))/$EG10 -> 0.00076 | CS10: =SUM(IF($W$71:$W$1041=$W10,$Y$71:$Y$1041*CS$71:CS$1041,0))/$EG10 -> 0.0011 | CT10: =SUM(IF($W$71:$W$1041=$W10,$Y$71:$Y$1041*CT$71:CT$1041,0))/$EG10 -> 0.00126 | CU10: =SUM(IF($W$71:$W$1041=$W10,$Y$71:$Y$1041*CU$71:CU$1041,0))/$EG10 -> 0.00131 | CV10: =SUM(IF($W$71:$W$1041=$W10,$Y$71:$Y$1041*CV$71:CV$1041,0))/$EG10 -> 0.00135 | CW10: =SUM(IF($W$71:$W$1041=$W10,$Y$71:$Y$1041*CW$71:CW$1041,0))/$EG10 -> 0.00137 | CX10: =SUM(IF($W$71:$W$1041=$W10,$Y$71:$Y$1041*CX$71:CX$1041,0))/$EG10 -> 0.00136 | CY10: =SUM(IF($W$71:$W$1041=$W10,$Y$71:$Y$1041*CY$71:CY$1041,0))/$EG10 -> 0.00132 | CZ10: =SUM(IF($W$71:$W$1041=$W10,$Y$71:$Y$1041*CZ$71:CZ$1041,0))/$EG10 -> 0.00121 | DA10: =SUM(IF($W$71:$W$1041=$W10,$Y$71:$Y$1041*DA$71:DA$1041,0))/$EG10 -> 0.00096 | DB10: =SUM(IF($W$71:$W$1041=$W10,$Y$71:$Y$1041*DB$71:DB$1041,0))/$EG10 -> 0.00049 | DC10: =SUM(IF($W$71:$W$1041=$W10,$Y$71:$Y$1041*DC$71:DC$1041,0))/$EG10 -> -7e-05 | DD10: =SUM(IF($W$71:$W$1041=$W10,$Y$71:$Y$1041*DD$71:DD$1041,0))/$EG10 -> -0.00044 | DE10: =SUM(IF($W$71:$W$1041=$W10,$Y$71:$Y$1041*DE$71:DE$1041,0))/$EG10 -> -0.00064 | DF10: =SUM(IF($W$71:$W$1041=$W10,$Y$71:$Y$1041*DF$71:DF$1041,0))/$EG10 -> -0.00091 | DG10: =SUM(IF($W$71:$W$1041=$W10,$Y$71:$Y$1041*DG$71:DG$1041,0))/$EG10 -> -0.00121 | DH10: =SUM(IF($W$71:$W$1041=$W10,$Y$71:$Y$1041*DH$71:DH$1041,0))/$EG10 -> -0.00148 | DI10: =SUM(IF($W$71:$W$1041=$W10,$Y$71:$Y$1041*DI$71:DI$1041,0))/$EG10 -> -0.00171 | DJ10: =SUM(IF($W$71:$W$1041=$W10,$Y$71:$Y$1041*DJ$71:DJ$1041,0))/$EG10 -> -0.00175 | DK10: =SUM(IF($W$71:$W$1041=$W10,$Y$71:$Y$1041*DK$71:DK$1041,0))/$EG10 -> -0.00179 | DL10: =SUM(IF($W$71:$W$1041=$W10,$Y$71:$Y$1041*DL$71:DL$1041,0))/$EG10 -> -0.00148 | DM10: =SUM(IF($W$71:$W$1041=$W10,$Y$71:$Y$1041*DM$71:DM$1041,0))/$EG10 -> -0.00093 | DN10: =SUM(IF($W$71:$W$1041=$W10,$Y$71:$Y$1041*DN$71:DN$1041,0))/$EG10 -> -3e-05 | DO10: =SUM(IF($W$71:$W$1041=$W10,$Y$71:$Y$1041*DO$71:DO$1041,0))/$EG10 -> 0.00079 | DP10: =SUM(IF($W$71:$W$1041=$W10,$Y$71:$Y$1041*DP$71:DP$1041,0))/$EG10 -> 0.00135 | DQ10: =SUM(IF($W$71:$W$1041=$W10,$Y$71:$Y$1041*DQ$71:DQ$1041,0))/$EG10 -> 0.00159 | DR10: =SUM(IF($W$71:$W$1041=$W10,$Y$71:$Y$1041*DR$71:DR$1041,0))/$EG10 -> 0.00172 | DS10: =SUM(IF($W$71:$W$1041=$W10,$Y$71:$Y$1041*DS$71:DS$1041,0))/$EG10 -> 0.00183 | DT10: =SUM(IF($W$71:$W$1041=$W10,$Y$71:$Y$1041*DT$71:DT$1041,0))/$EG10 -> 0.00184 | DU10: =SUM(IF($W$71:$W$1041=$W10,$Y$71:$Y$1041*DU$71:DU$1041,0))/$EG10 -> 0.0018 | DV10: =SUM(IF($W$71:$W$1041=$W10,$Y$71:$Y$1041*DV$71:DV$1041,0))/$EG10 -> 0.00173 | DW10: =SUM(IF($W$71:$W$1041=$W10,$Y$71:$Y$1041*DW$71:DW$1041,0))/$EG10 -> 0.00159 | DX10: =SUM(IF($W$71:$W$1041=$W10,$Y$71:$Y$1041*DX$71:DX$1041,0))/$EG10 -> 0.0014 | DY10: =SUM(IF($W$71:$W$1041=$W10,$Y$71:$Y$1041*DY$71:DY$1041,0))/$EG10 -> 0.00107 | DZ10: =SUM(IF($W$71:$W$1041=$W10,$Y$71:$Y$1041*DZ$71:DZ$1041,0))/$EG10 -> 0.00051 | EA10: =SUM(IF($W$71:$W$1041=$W10,$Y$71:$Y$1041*EA$71:EA$1041,0))/$EG10 -> -0.00023 | EB10: =SUM(IF($W$71:$W$1041=$W10,$Y$71:$Y$1041*EB$71:EB$1041,0))/$EG10 -> -0.00064 | EC10: =SUM(IF($W$71:$W$1041=$W10,$Y$71:$Y$1041*EC$71:EC$1041,0))/$EG10 -> -0.00087 | ED10: =SUM(IF($W$71:$W$1041=$W10,$Y$71:$Y$1041*ED$71:ED$1041,0))/$EG10 -> -0.00146 | EE10: 111 | EF10: 114 | EG10: 1.03
A11: 1900-04-16 | B11: 1900-04-23 | C11: =IF(24 - MATCH(Pasture!$C$8,table_PeriodStarts,0) < ROW() - ROW($D$4), "* ", "")&TEXT(INDIRECT("$A"&MOD(ROW()-ROW($D$4)+MATCH(Pasture!$C$8,table_PeriodStarts,0) - 1, 24) + ROW($D$4)),"d mmm") -> 16 Apr | D11: =INDIRECT("$A"&MOD(ROW()-ROW($D$4)+MATCH(Pasture!$C$8,table_PeriodStarts,0) - 1, 24) + ROW($D$4)) -> 1900-04-16 | F11: Cows (>3 years) | G11: Ewes (>2 years) | I11: User-supplied average values | N11: C(M,6) | O11: 0.0025 | P11: 0.0025 | Q11: 0.0025 | R11: 0.0025 | S11: 0.0025 | T11: 0.02 | U11: 0.02 | W11: 8 | X11: NSW - Central West (Condobolin) | Y11: -33.1 | Z11: =SUM(IF($W$71:$W$1041=$W11,$Y$71:$Y$1041*Z$71:Z$1041,0))/$EG11 -> 0.1970873786 | AA11: =SUM(IF($W$71:$W$1041=$W11,$Y$71:$Y$1041*AA$71:AA$1041,0))/$EG11 -> 1.333227976 | AB11: =SUM(IF($W$71:$W$1041=$W11,$Y$71:$Y$1041*AB$71:AB$1041,0))/$EG11 -> 1.51620254 | AC11: =SUM(IF($W$71:$W$1041=$W11,$Y$71:$Y$1041*AC$71:AC$1041,0))/$EG11 -> 0.5211104213 | AD11: =SUM(IF($W$71:$W$1041=$W11,$Y$71:$Y$1041*AD$71:AD$1041,0))/$EG11 -> 2.406714184 | AE11: =SUM(IF($W$71:$W$1041=$W11,$Y$71:$Y$1041*AE$71:AE$1041,0))/$EG11 -> 6.289106693 | AF11: =SUM(IF($W$71:$W$1041=$W11,$Y$71:$Y$1041*AF$71:AF$1041,0))/$EG11 -> 7.042826929 | AG11: =SUM(IF($W$71:$W$1041=$W11,$Y$71:$Y$1041*AG$71:AG$1041,0))/$EG11 -> 4.71395472 | AH11: =SUM(IF($W$71:$W$1041=$W11,$Y$71:$Y$1041*AH$71:AH$1041,0))/$EG11 -> 2.448835113 | AI11: =SUM(IF($W$71:$W$1041=$W11,$Y$71:$Y$1041*AI$71:AI$1041,0))/$EG11 -> 4.787515749 | AJ11: =SUM(IF($W$71:$W$1041=$W11,$Y$71:$Y$1041*AJ$71:AJ$1041,0))/$EG11 -> 8.792694144 | AK11: =SUM(IF($W$71:$W$1041=$W11,$Y$71:$Y$1041*AK$71:AK$1041,0))/$EG11 -> 2.593628866 | AL11: =SUM(IF($W$71:$W$1041=$W11,$Y$71:$Y$1041*AL$71:AL$1041,0))/$EG11 -> 1.436870355 | AM11: =SUM(IF($W$71:$W$1041=$W11,$Y$71:$Y$1041*AM$71:AM$1041,0))/$EG11 -> 0.6073786408 | AN11: =SUM(IF($W$71:$W$1041=$W11,$Y$71:$Y$1041*AN$71:AN$1041,0))/$EG11 -> 0.587961165 | AO11: =SUM(IF($W$71:$W$1041=$W11,$Y$71:$Y$1041*AO$71:AO$1041,0))/$EG11 -> 0.5685436893 | AP11: =SUM(IF($W$71:$W$1041=$W11,$Y$71:$Y$1041*AP$71:AP$1041,0))/$EG11 -> 0.5588349515 | AQ11: =SUM(IF($W$71:$W$1041=$W11,$Y$71:$Y$1041*AQ$71:AQ$1041,0))/$EG11 -> 0.5588349515 | AR11: =SUM(IF($W$71:$W$1041=$W11,$Y$71:$Y$1041*AR$71:AR$1041,0))/$EG11 -> 0.587961165 | AS11: =SUM(IF($W$71:$W$1041=$W11,$Y$71:$Y$1041*AS$71:AS$1041,0))/$EG11 -> 0.6170873786 | AT11: =SUM(IF($W$71:$W$1041=$W11,$Y$71:$Y$1041*AT$71:AT$1041,0))/$EG11 -> 0.665631068 | AU11: =SUM(IF($W$71:$W$1041=$W11,$Y$71:$Y$1041*AU$71:AU$1041,0))/$EG11 -> 0.7141747573 | AV11: =SUM(IF($W$71:$W$1041=$W11,$Y$71:$Y$1041*AV$71:AV$1041,0))/$EG11 -> 0.7433009709 | AW11: =SUM(IF($W$71:$W$1041=$W11,$Y$71:$Y$1041*AW$71:AW$1041,0))/$EG11 -> 0.7627184466 | AX11: =SUM(IF($W$71:$W$1041=$W11,$Y$71:$Y$1041*AX$71:AX$1041,0))/$EG11 -> 0.7724271845 | AY11: =SUM(IF($W$71:$W$1041=$W11,$Y$71:$Y$1041*AY$71:AY$1041,0))/$EG11 -> 0.7821359223 | AZ11: =SUM(IF($W$71:$W$1041=$W11,$Y$71:$Y$1041*AZ$71:AZ$1041,0))/$EG11 -> 0.7821359223 | BA11: =SUM(IF($W$71:$W$1041=$W11,$Y$71:$Y$1041*BA$71:BA$1041,0))/$EG11 -> 0.7918446602 | BB11: =SUM(IF($W$71:$W$1041=$W11,$Y$71:$Y$1041*BB$71:BB$1041,0))/$EG11 -> 0.7821359223 | BC11: =SUM(IF($W$71:$W$1041=$W11,$Y$71:$Y$1041*BC$71:BC$1041,0))/$EG11 -> 0.7821359223 | BD11: =SUM(IF($W$71:$W$1041=$W11,$Y$71:$Y$1041*BD$71:BD$1041,0))/$EG11 -> 0.7821359223 | BE11: =SUM(IF($W$71:$W$1041=$W11,$Y$71:$Y$1041*BE$71:BE$1041,0))/$EG11 -> 0.7627184466 | BF11: =SUM(IF($W$71:$W$1041=$W11,$Y$71:$Y$1041*BF$71:BF$1041,0))/$EG11 -> 0.733592233 | BG11: =SUM(IF($W$71:$W$1041=$W11,$Y$71:$Y$1041*BG$71:BG$1041,0))/$EG11 -> 0.6850485437 | BH11: =SUM(IF($W$71:$W$1041=$W11,$Y$71:$Y$1041*BH$71:BH$1041,0))/$EG11 -> 0.6559223301 | BI11: =SUM(IF($W$71:$W$1041=$W11,$Y$71:$Y$1041*BI$71:BI$1041,0))/$EG11 -> 0.6365048544 | BJ11: =SUM(IF($W$71:$W$1041=$W11,$Y$71:$Y$1041*BJ$71:BJ$1041,0))/$EG11 -> 0.6267961165 | BK11: =SUM(IF($W$71:$W$1041=$W11,$Y$71:$Y$1041*BK$71:BK$1041,0))/$EG11 -> 0.6267961165 | BL11: =SUM(IF($W$71:$W$1041=$W11,$Y$71:$Y$1041*BL$71:BL$1041,0))/$EG11 -> 0.6073786408 | BM11: =SUM(IF($W$71:$W$1041=$W11,$Y$71:$Y$1041*BM$71:BM$1041,0))/$EG11 -> 0.587961165 | BN11: =SUM(IF($W$71:$W$1041=$W11,$Y$71:$Y$1041*BN$71:BN$1041,0))/$EG11 -> 0.5782524272 | BO11: =SUM(IF($W$71:$W$1041=$W11,$Y$71:$Y$1041*BO$71:BO$1041,0))/$EG11 -> 0.5782524272 | BP11: =SUM(IF($W$71:$W$1041=$W11,$Y$71:$Y$1041*BP$71:BP$1041,0))/$EG11 -> 0.5976699029 | BQ11: =SUM(IF($W$71:$W$1041=$W11,$Y$71:$Y$1041*BQ$71:BQ$1041,0))/$EG11 -> 0.6267961165 | BR11: =SUM(IF($W$71:$W$1041=$W11,$Y$71:$Y$1041*BR$71:BR$1041,0))/$EG11 -> 0.6753398058 | BS11: =SUM(IF($W$71:$W$1041=$W11,$Y$71:$Y$1041*BS$71:BS$1041,0))/$EG11 -> 0.7238834951 | BT11: =SUM(IF($W$71:$W$1041=$W11,$Y$71:$Y$1041*BT$71:BT$1041,0))/$EG11 -> 0.7530097087 | BU11: =SUM(IF($W$71:$W$1041=$W11,$Y$71:$Y$1041*BU$71:BU$1041,0))/$EG11 -> 0.7724271845 | BV11: =SUM(IF($W$71:$W$1041=$W11,$Y$71:$Y$1041*BV$71:BV$1041,0))/$EG11 -> 0.7724271845 | BW11: =SUM(IF($W$71:$W$1041=$W11,$Y$71:$Y$1041*BW$71:BW$1041,0))/$EG11 -> 0.7821359223 | BX11: =SUM(IF($W$71:$W$1041=$W11,$Y$71:$Y$1041*BX$71:BX$1041,0))/$EG11 -> 0.7918446602 | BY11: =SUM(IF($W$71:$W$1041=$W11,$Y$71:$Y$1041*BY$71:BY$1041,0))/$EG11 -> 0.7918446602 | BZ11: =SUM(IF($W$71:$W$1041=$W11,$Y$71:$Y$1041*BZ$71:BZ$1041,0))/$EG11 -> 0.7918446602 | CA11: =SUM(IF($W$71:$W$1041=$W11,$Y$71:$Y$1041*CA$71:CA$1041,0))/$EG11 -> 0.7918446602 | CB11: =SUM(IF($W$71:$W$1041=$W11,$Y$71:$Y$1041*CB$71:CB$1041,0))/$EG11 -> 0.7821359223 | CC11: =SUM(IF($W$71:$W$1041=$W11,$Y$71:$Y$1041*CC$71:CC$1041,0))/$EG11 -> 0.7724271845 | CD11: =SUM(IF($W$71:$W$1041=$W11,$Y$71:$Y$1041*CD$71:CD$1041,0))/$EG11 -> 0.7433009709 | CE11: =SUM(IF($W$71:$W$1041=$W11,$Y$71:$Y$1041*CE$71:CE$1041,0))/$EG11 -> 0.7044660194 | CF11: =SUM(IF($W$71:$W$1041=$W11,$Y$71:$Y$1041*CF$71:CF$1041,0))/$EG11 -> 0.665631068 | CG11: =SUM(IF($W$71:$W$1041=$W11,$Y$71:$Y$1041*CG$71:CG$1041,0))/$EG11 -> 0.6559223301 | CH11: =SUM(IF($W$71:$W$1041=$W11,$Y$71:$Y$1041*CH$71:CH$1041,0))/$EG11 -> 0.6462135922 | CI11: =SUM(IF($W$71:$W$1041=$W11,$Y$71:$Y$1041*CI$71:CI$1041,0))/$EG11 -> -0.00133 | CJ11: =SUM(IF($W$71:$W$1041=$W11,$Y$71:$Y$1041*CJ$71:CJ$1041,0))/$EG11 -> -0.0017 | CK11: =SUM(IF($W$71:$W$1041=$W11,$Y$71:$Y$1041*CK$71:CK$1041,0))/$EG11 -> -0.00196 | CL11: =SUM(IF($W$71:$W$1041=$W11,$Y$71:$Y$1041*CL$71:CL$1041,0))/$EG11 -> -0.00176 | CM11: =SUM(IF($W$71:$W$1041=$W11,$Y$71:$Y$1041*CM$71:CM$1041,0))/$EG11 -> -0.00189 | CN11: =SUM(IF($W$71:$W$1041=$W11,$Y$71:$Y$1041*CN$71:CN$1041,0))/$EG11 -> -0.00161 | CO11: =SUM(IF($W$71:$W$1041=$W11,$Y$71:$Y$1041*CO$71:CO$1041,0))/$EG11 -> -0.00088 | CP11: =SUM(IF($W$71:$W$1041=$W11,$Y$71:$Y$1041*CP$71:CP$1041,0))/$EG11 -> -8e-05 | CQ11: =SUM(IF($W$71:$W$1041=$W11,$Y$71:$Y$1041*CQ$71:CQ$1041,0))/$EG11 -> 0.0004 | CR11: =SUM(IF($W$71:$W$1041=$W11,$Y$71:$Y$1041*CR$71:CR$1041,0))/$EG11 -> 0.00076 | CS11: =SUM(IF($W$71:$W$1041=$W11,$Y$71:$Y$1041*CS$71:CS$1041,0))/$EG11 -> 0.0011 | CT11: =SUM(IF($W$71:$W$1041=$W11,$Y$71:$Y$1041*CT$71:CT$1041,0))/$EG11 -> 0.00126 | CU11: =SUM(IF($W$71:$W$1041=$W11,$Y$71:$Y$1041*CU$71:CU$1041,0))/$EG11 -> 0.00131 | CV11: =SUM(IF($W$71:$W$1041=$W11,$Y$71:$Y$1041*CV$71:CV$1041,0))/$EG11 -> 0.00135 | CW11: =SUM(IF($W$71:$W$1041=$W11,$Y$71:$Y$1041*CW$71:CW$1041,0))/$EG11 -> 0.00137 | CX11: =SUM(IF($W$71:$W$1041=$W11,$Y$71:$Y$1041*CX$71:CX$1041,0))/$EG11 -> 0.00136 | CY11: =SUM(IF($W$71:$W$1041=$W11,$Y$71:$Y$1041*CY$71:CY$1041,0))/$EG11 -> 0.00132 | CZ11: =SUM(IF($W$71:$W$1041=$W11,$Y$71:$Y$1041*CZ$71:CZ$1041,0))/$EG11 -> 0.00121 | DA11: =SUM(IF($W$71:$W$1041=$W11,$Y$71:$Y$1041*DA$71:DA$1041,0))/$EG11 -> 0.00096 | DB11: =SUM(IF($W$71:$W$1041=$W11,$Y$71:$Y$1041*DB$71:DB$1041,0))/$EG11 -> 0.00049 | DC11: =SUM(IF($W$71:$W$1041=$W11,$Y$71:$Y$1041*DC$71:DC$1041,0))/$EG11 -> -7e-05 | DD11: =SUM(IF($W$71:$W$1041=$W11,$Y$71:$Y$1041*DD$71:DD$1041,0))/$EG11 -> -0.00044 | DE11: =SUM(IF($W$71:$W$1041=$W11,$Y$71:$Y$1041*DE$71:DE$1041,0))/$EG11 -> -0.00064 | DF11: =SUM(IF($W$71:$W$1041=$W11,$Y$71:$Y$1041*DF$71:DF$1041,0))/$EG11 -> -0.00091 | DG11: =SUM(IF($W$71:$W$1041=$W11,$Y$71:$Y$1041*DG$71:DG$1041,0))/$EG11 -> -0.00121 | DH11: =SUM(IF($W$71:$W$1041=$W11,$Y$71:$Y$1041*DH$71:DH$1041,0))/$EG11 -> -0.00148 | DI11: =SUM(IF($W$71:$W$1041=$W11,$Y$71:$Y$1041*DI$71:DI$1041,0))/$EG11 -> -0.00171 | DJ11: =SUM(IF($W$71:$W$1041=$W11,$Y$71:$Y$1041*DJ$71:DJ$1041,0))/$EG11 -> -0.00175 | DK11: =SUM(IF($W$71:$W$1041=$W11,$Y$71:$Y$1041*DK$71:DK$1041,0))/$EG11 -> -0.00179 | DL11: =SUM(IF($W$71:$W$1041=$W11,$Y$71:$Y$1041*DL$71:DL$1041,0))/$EG11 -> -0.00148 | DM11: =SUM(IF($W$71:$W$1041=$W11,$Y$71:$Y$1041*DM$71:DM$1041,0))/$EG11 -> -0.00093 | DN11: =SUM(IF($W$71:$W$1041=$W11,$Y$71:$Y$1041*DN$71:DN$1041,0))/$EG11 -> -3e-05 | DO11: =SUM(IF($W$71:$W$1041=$W11,$Y$71:$Y$1041*DO$71:DO$1041,0))/$EG11 -> 0.00079 | DP11: =SUM(IF($W$71:$W$1041=$W11,$Y$71:$Y$1041*DP$71:DP$1041,0))/$EG11 -> 0.00135 | DQ11: =SUM(IF($W$71:$W$1041=$W11,$Y$71:$Y$1041*DQ$71:DQ$1041,0))/$EG11 -> 0.00159 | DR11: =SUM(IF($W$71:$W$1041=$W11,$Y$71:$Y$1041*DR$71:DR$1041,0))/$EG11 -> 0.00172 | DS11: =SUM(IF($W$71:$W$1041=$W11,$Y$71:$Y$1041*DS$71:DS$1041,0))/$EG11 -> 0.00183 | DT11: =SUM(IF($W$71:$W$1041=$W11,$Y$71:$Y$1041*DT$71:DT$1041,0))/$EG11 -> 0.00184 | DU11: =SUM(IF($W$71:$W$1041=$W11,$Y$71:$Y$1041*DU$71:DU$1041,0))/$EG11 -> 0.0018 | DV11: =SUM(IF($W$71:$W$1041=$W11,$Y$71:$Y$1041*DV$71:DV$1041,0))/$EG11 -> 0.00173 | DW11: =SUM(IF($W$71:$W$1041=$W11,$Y$71:$Y$1041*DW$71:DW$1041,0))/$EG11 -> 0.00159 | DX11: =SUM(IF($W$71:$W$1041=$W11,$Y$71:$Y$1041*DX$71:DX$1041,0))/$EG11 -> 0.0014 | DY11: =SUM(IF($W$71:$W$1041=$W11,$Y$71:$Y$1041*DY$71:DY$1041,0))/$EG11 -> 0.00107 | DZ11: =SUM(IF($W$71:$W$1041=$W11,$Y$71:$Y$1041*DZ$71:DZ$1041,0))/$EG11 -> 0.00051 | EA11: =SUM(IF($W$71:$W$1041=$W11,$Y$71:$Y$1041*EA$71:EA$1041,0))/$EG11 -> -0.00023 | EB11: =SUM(IF($W$71:$W$1041=$W11,$Y$71:$Y$1041*EB$71:EB$1041,0))/$EG11 -> -0.00064 | EC11: =SUM(IF($W$71:$W$1041=$W11,$Y$71:$Y$1041*EC$71:EC$1041,0))/$EG11 -> -0.00087 | ED11: =SUM(IF($W$71:$W$1041=$W11,$Y$71:$Y$1041*ED$71:ED$1041,0))/$EG11 -> -0.00146 | EE11: 115 | EF11: 118 | EG11: 1.03
A12: 1900-05-01 | B12: 1900-05-08 | C12: =IF(24 - MATCH(Pasture!$C$8,table_PeriodStarts,0) < ROW() - ROW($D$4), "* ", "")&TEXT(INDIRECT("$A"&MOD(ROW()-ROW($D$4)+MATCH(Pasture!$C$8,table_PeriodStarts,0) - 1, 24) + ROW($D$4)),"d mmm") -> 1 May | D12: =INDIRECT("$A"&MOD(ROW()-ROW($D$4)+MATCH(Pasture!$C$8,table_PeriodStarts,0) - 1, 24) + ROW($D$4)) -> 1900-05-01 | F12: Cows (2-3 years) | G12: Ewes (1-2 years) | I12: Standard average values | N12: C(P,1) | O12: 285 | P12: 285 | Q12: 285 | R12: 285 | S12: 285 | T12: 150 | U12: 150 | W12: 9 | X12: NSW - Central West (Hillston) | Y12: -33.5 | Z12: =SUM(IF($W$71:$W$1041=$W12,$Y$71:$Y$1041*Z$71:Z$1041,0))/$EG12 -> 0.1970873786 | AA12: =SUM(IF($W$71:$W$1041=$W12,$Y$71:$Y$1041*AA$71:AA$1041,0))/$EG12 -> 1.261943743 | AB12: =SUM(IF($W$71:$W$1041=$W12,$Y$71:$Y$1041*AB$71:AB$1041,0))/$EG12 -> 1.39072933 | AC12: =SUM(IF($W$71:$W$1041=$W12,$Y$71:$Y$1041*AC$71:AC$1041,0))/$EG12 -> 0.4815295307 | AD12: =SUM(IF($W$71:$W$1041=$W12,$Y$71:$Y$1041*AD$71:AD$1041,0))/$EG12 -> 2.396332752 | AE12: =SUM(IF($W$71:$W$1041=$W12,$Y$71:$Y$1041*AE$71:AE$1041,0))/$EG12 -> 6.276799797 | AF12: =SUM(IF($W$71:$W$1041=$W12,$Y$71:$Y$1041*AF$71:AF$1041,0))/$EG12 -> 7.035447247 | AG12: =SUM(IF($W$71:$W$1041=$W12,$Y$71:$Y$1041*AG$71:AG$1041,0))/$EG12 -> 4.706382002 | AH12: =SUM(IF($W$71:$W$1041=$W12,$Y$71:$Y$1041*AH$71:AH$1041,0))/$EG12 -> 2.440092793 | AI12: =SUM(IF($W$71:$W$1041=$W12,$Y$71:$Y$1041*AI$71:AI$1041,0))/$EG12 -> 4.757847136 | AJ12: =SUM(IF($W$71:$W$1041=$W12,$Y$71:$Y$1041*AJ$71:AJ$1041,0))/$EG12 -> 8.709481737 | AK12: =SUM(IF($W$71:$W$1041=$W12,$Y$71:$Y$1041*AK$71:AK$1041,0))/$EG12 -> 2.497377804 | AL12: =SUM(IF($W$71:$W$1041=$W12,$Y$71:$Y$1041*AL$71:AL$1041,0))/$EG12 -> 1.392917451 | AM12: =SUM(IF($W$71:$W$1041=$W12,$Y$71:$Y$1041*AM$71:AM$1041,0))/$EG12 -> 0.6073786408 | AN12: =SUM(IF($W$71:$W$1041=$W12,$Y$71:$Y$1041*AN$71:AN$1041,0))/$EG12 -> 0.587961165 | AO12: =SUM(IF($W$71:$W$1041=$W12,$Y$71:$Y$1041*AO$71:AO$1041,0))/$EG12 -> 0.5685436893 | AP12: =SUM(IF($W$71:$W$1041=$W12,$Y$71:$Y$1041*AP$71:AP$1041,0))/$EG12 -> 0.5588349515 | AQ12: =SUM(IF($W$71:$W$1041=$W12,$Y$71:$Y$1041*AQ$71:AQ$1041,0))/$EG12 -> 0.5588349515 | AR12: =SUM(IF($W$71:$W$1041=$W12,$Y$71:$Y$1041*AR$71:AR$1041,0))/$EG12 -> 0.587961165 | AS12: =SUM(IF($W$71:$W$1041=$W12,$Y$71:$Y$1041*AS$71:AS$1041,0))/$EG12 -> 0.6170873786 | AT12: =SUM(IF($W$71:$W$1041=$W12,$Y$71:$Y$1041*AT$71:AT$1041,0))/$EG12 -> 0.665631068 | AU12: =SUM(IF($W$71:$W$1041=$W12,$Y$71:$Y$1041*AU$71:AU$1041,0))/$EG12 -> 0.7141747573 | AV12: =SUM(IF($W$71:$W$1041=$W12,$Y$71:$Y$1041*AV$71:AV$1041,0))/$EG12 -> 0.7433009709 | AW12: =SUM(IF($W$71:$W$1041=$W12,$Y$71:$Y$1041*AW$71:AW$1041,0))/$EG12 -> 0.7627184466 | AX12: =SUM(IF($W$71:$W$1041=$W12,$Y$71:$Y$1041*AX$71:AX$1041,0))/$EG12 -> 0.7724271845 | AY12: =SUM(IF($W$71:$W$1041=$W12,$Y$71:$Y$1041*AY$71:AY$1041,0))/$EG12 -> 0.7821359223 | AZ12: =SUM(IF($W$71:$W$1041=$W12,$Y$71:$Y$1041*AZ$71:AZ$1041,0))/$EG12 -> 0.7821359223 | BA12: =SUM(IF($W$71:$W$1041=$W12,$Y$71:$Y$1041*BA$71:BA$1041,0))/$EG12 -> 0.7918446602 | BB12: =SUM(IF($W$71:$W$1041=$W12,$Y$71:$Y$1041*BB$71:BB$1041,0))/$EG12 -> 0.7821359223 | BC12: =SUM(IF($W$71:$W$1041=$W12,$Y$71:$Y$1041*BC$71:BC$1041,0))/$EG12 -> 0.7821359223 | BD12: =SUM(IF($W$71:$W$1041=$W12,$Y$71:$Y$1041*BD$71:BD$1041,0))/$EG12 -> 0.7821359223 | BE12: =SUM(IF($W$71:$W$1041=$W12,$Y$71:$Y$1041*BE$71:BE$1041,0))/$EG12 -> 0.7627184466 | BF12: =SUM(IF($W$71:$W$1041=$W12,$Y$71:$Y$1041*BF$71:BF$1041,0))/$EG12 -> 0.733592233 | BG12: =SUM(IF($W$71:$W$1041=$W12,$Y$71:$Y$1041*BG$71:BG$1041,0))/$EG12 -> 0.6850485437 | BH12: =SUM(IF($W$71:$W$1041=$W12,$Y$71:$Y$1041*BH$71:BH$1041,0))/$EG12 -> 0.6559223301 | BI12: =SUM(IF($W$71:$W$1041=$W12,$Y$71:$Y$1041*BI$71:BI$1041,0))/$EG12 -> 0.6365048544 | BJ12: =SUM(IF($W$71:$W$1041=$W12,$Y$71:$Y$1041*BJ$71:BJ$1041,0))/$EG12 -> 0.6267961165 | BK12: =SUM(IF($W$71:$W$1041=$W12,$Y$71:$Y$1041*BK$71:BK$1041,0))/$EG12 -> 0.6267961165 | BL12: =SUM(IF($W$71:$W$1041=$W12,$Y$71:$Y$1041*BL$71:BL$1041,0))/$EG12 -> 0.6073786408 | BM12: =SUM(IF($W$71:$W$1041=$W12,$Y$71:$Y$1041*BM$71:BM$1041,0))/$EG12 -> 0.587961165 | BN12: =SUM(IF($W$71:$W$1041=$W12,$Y$71:$Y$1041*BN$71:BN$1041,0))/$EG12 -> 0.5782524272 | BO12: =SUM(IF($W$71:$W$1041=$W12,$Y$71:$Y$1041*BO$71:BO$1041,0))/$EG12 -> 0.5782524272 | BP12: =SUM(IF($W$71:$W$1041=$W12,$Y$71:$Y$1041*BP$71:BP$1041,0))/$EG12 -> 0.5976699029 | BQ12: =SUM(IF($W$71:$W$1041=$W12,$Y$71:$Y$1041*BQ$71:BQ$1041,0))/$EG12 -> 0.6267961165 | BR12: =SUM(IF($W$71:$W$1041=$W12,$Y$71:$Y$1041*BR$71:BR$1041,0))/$EG12 -> 0.6753398058 | BS12: =SUM(IF($W$71:$W$1041=$W12,$Y$71:$Y$1041*BS$71:BS$1041,0))/$EG12 -> 0.7238834951 | BT12: =SUM(IF($W$71:$W$1041=$W12,$Y$71:$Y$1041*BT$71:BT$1041,0))/$EG12 -> 0.7530097087 | BU12: =SUM(IF($W$71:$W$1041=$W12,$Y$71:$Y$1041*BU$71:BU$1041,0))/$EG12 -> 0.7724271845 | BV12: =SUM(IF($W$71:$W$1041=$W12,$Y$71:$Y$1041*BV$71:BV$1041,0))/$EG12 -> 0.7724271845 | BW12: =SUM(IF($W$71:$W$1041=$W12,$Y$71:$Y$1041*BW$71:BW$1041,0))/$EG12 -> 0.7821359223 | BX12: =SUM(IF($W$71:$W$1041=$W12,$Y$71:$Y$1041*BX$71:BX$1041,0))/$EG12 -> 0.7918446602 | BY12: =SUM(IF($W$71:$W$1041=$W12,$Y$71:$Y$1041*BY$71:BY$1041,0))/$EG12 -> 0.7918446602 | BZ12: =SUM(IF($W$71:$W$1041=$W12,$Y$71:$Y$1041*BZ$71:BZ$1041,0))/$EG12 -> 0.7918446602 | CA12: =SUM(IF($W$71:$W$1041=$W12,$Y$71:$Y$1041*CA$71:CA$1041,0))/$EG12 -> 0.7918446602 | CB12: =SUM(IF($W$71:$W$1041=$W12,$Y$71:$Y$1041*CB$71:CB$1041,0))/$EG12 -> 0.7821359223 | CC12: =SUM(IF($W$71:$W$1041=$W12,$Y$71:$Y$1041*CC$71:CC$1041,0))/$EG12 -> 0.7724271845 | CD12: =SUM(IF($W$71:$W$1041=$W12,$Y$71:$Y$1041*CD$71:CD$1041,0))/$EG12 -> 0.7433009709 | CE12: =SUM(IF($W$71:$W$1041=$W12,$Y$71:$Y$1041*CE$71:CE$1041,0))/$EG12 -> 0.7044660194 | CF12: =SUM(IF($W$71:$W$1041=$W12,$Y$71:$Y$1041*CF$71:CF$1041,0))/$EG12 -> 0.665631068 | CG12: =SUM(IF($W$71:$W$1041=$W12,$Y$71:$Y$1041*CG$71:CG$1041,0))/$EG12 -> 0.6559223301 | CH12: =SUM(IF($W$71:$W$1041=$W12,$Y$71:$Y$1041*CH$71:CH$1041,0))/$EG12 -> 0.6462135922 | CI12: =SUM(IF($W$71:$W$1041=$W12,$Y$71:$Y$1041*CI$71:CI$1041,0))/$EG12 -> -0.00133 | CJ12: =SUM(IF($W$71:$W$1041=$W12,$Y$71:$Y$1041*CJ$71:CJ$1041,0))/$EG12 -> -0.0017 | CK12: =SUM(IF($W$71:$W$1041=$W12,$Y$71:$Y$1041*CK$71:CK$1041,0))/$EG12 -> -0.00196 | CL12: =SUM(IF($W$71:$W$1041=$W12,$Y$71:$Y$1041*CL$71:CL$1041,0))/$EG12 -> -0.00176 | CM12: =SUM(IF($W$71:$W$1041=$W12,$Y$71:$Y$1041*CM$71:CM$1041,0))/$EG12 -> -0.00189 | CN12: =SUM(IF($W$71:$W$1041=$W12,$Y$71:$Y$1041*CN$71:CN$1041,0))/$EG12 -> -0.00161 | CO12: =SUM(IF($W$71:$W$1041=$W12,$Y$71:$Y$1041*CO$71:CO$1041,0))/$EG12 -> -0.00088 | CP12: =SUM(IF($W$71:$W$1041=$W12,$Y$71:$Y$1041*CP$71:CP$1041,0))/$EG12 -> -8e-05 | CQ12: =SUM(IF($W$71:$W$1041=$W12,$Y$71:$Y$1041*CQ$71:CQ$1041,0))/$EG12 -> 0.0004 | CR12: =SUM(IF($W$71:$W$1041=$W12,$Y$71:$Y$1041*CR$71:CR$1041,0))/$EG12 -> 0.00076 | CS12: =SUM(IF($W$71:$W$1041=$W12,$Y$71:$Y$1041*CS$71:CS$1041,0))/$EG12 -> 0.0011 | CT12: =SUM(IF($W$71:$W$1041=$W12,$Y$71:$Y$1041*CT$71:CT$1041,0))/$EG12 -> 0.00126 | CU12: =SUM(IF($W$71:$W$1041=$W12,$Y$71:$Y$1041*CU$71:CU$1041,0))/$EG12 -> 0.00131 | CV12: =SUM(IF($W$71:$W$1041=$W12,$Y$71:$Y$1041*CV$71:CV$1041,0))/$EG12 -> 0.00135 | CW12: =SUM(IF($W$71:$W$1041=$W12,$Y$71:$Y$1041*CW$71:CW$1041,0))/$EG12 -> 0.00137 | CX12: =SUM(IF($W$71:$W$1041=$W12,$Y$71:$Y$1041*CX$71:CX$1041,0))/$EG12 -> 0.00136 | CY12: =SUM(IF($W$71:$W$1041=$W12,$Y$71:$Y$1041*CY$71:CY$1041,0))/$EG12 -> 0.00132 | CZ12: =SUM(IF($W$71:$W$1041=$W12,$Y$71:$Y$1041*CZ$71:CZ$1041,0))/$EG12 -> 0.00121 | DA12: =SUM(IF($W$71:$W$1041=$W12,$Y$71:$Y$1041*DA$71:DA$1041,0))/$EG12 -> 0.00096 | DB12: =SUM(IF($W$71:$W$1041=$W12,$Y$71:$Y$1041*DB$71:DB$1041,0))/$EG12 -> 0.00049 | DC12: =SUM(IF($W$71:$W$1041=$W12,$Y$71:$Y$1041*DC$71:DC$1041,0))/$EG12 -> -7e-05 | DD12: =SUM(IF($W$71:$W$1041=$W12,$Y$71:$Y$1041*DD$71:DD$1041,0))/$EG12 -> -0.00044 | DE12: =SUM(IF($W$71:$W$1041=$W12,$Y$71:$Y$1041*DE$71:DE$1041,0))/$EG12 -> -0.00064 | DF12: =SUM(IF($W$71:$W$1041=$W12,$Y$71:$Y$1041*DF$71:DF$1041,0))/$EG12 -> -0.00091 | DG12: =SUM(IF($W$71:$W$1041=$W12,$Y$71:$Y$1041*DG$71:DG$1041,0))/$EG12 -> -0.00121 | DH12: =SUM(IF($W$71:$W$1041=$W12,$Y$71:$Y$1041*DH$71:DH$1041,0))/$EG12 -> -0.00148 | DI12: =SUM(IF($W$71:$W$1041=$W12,$Y$71:$Y$1041*DI$71:DI$1041,0))/$EG12 -> -0.00171 | DJ12: =SUM(IF($W$71:$W$1041=$W12,$Y$71:$Y$1041*DJ$71:DJ$1041,0))/$EG12 -> -0.00175 | DK12: =SUM(IF($W$71:$W$1041=$W12,$Y$71:$Y$1041*DK$71:DK$1041,0))/$EG12 -> -0.00179 | DL12: =SUM(IF($W$71:$W$1041=$W12,$Y$71:$Y$1041*DL$71:DL$1041,0))/$EG12 -> -0.00148 | DM12: =SUM(IF($W$71:$W$1041=$W12,$Y$71:$Y$1041*DM$71:DM$1041,0))/$EG12 -> -0.00093 | DN12: =SUM(IF($W$71:$W$1041=$W12,$Y$71:$Y$1041*DN$71:DN$1041,0))/$EG12 -> -3e-05 | DO12: =SUM(IF($W$71:$W$1041=$W12,$Y$71:$Y$1041*DO$71:DO$1041,0))/$EG12 -> 0.00079 | DP12: =SUM(IF($W$71:$W$1041=$W12,$Y$71:$Y$1041*DP$71:DP$1041,0))/$EG12 -> 0.00135 | DQ12: =SUM(IF($W$71:$W$1041=$W12,$Y$71:$Y$1041*DQ$71:DQ$1041,0))/$EG12 -> 0.00159 | DR12: =SUM(IF($W$71:$W$1041=$W12,$Y$71:$Y$1041*DR$71:DR$1041,0))/$EG12 -> 0.00172 | DS12: =SUM(IF($W$71:$W$1041=$W12,$Y$71:$Y$1041*DS$71:DS$1041,0))/$EG12 -> 0.00183 | DT12: =SUM(IF($W$71:$W$1041=$W12,$Y$71:$Y$1041*DT$71:DT$1041,0))/$EG12 -> 0.00184 | DU12: =SUM(IF($W$71:$W$1041=$W12,$Y$71:$Y$1041*DU$71:DU$1041,0))/$EG12 -> 0.0018 | DV12: =SUM(IF($W$71:$W$1041=$W12,$Y$71:$Y$1041*DV$71:DV$1041,0))/$EG12 -> 0.00173 | DW12: =SUM(IF($W$71:$W$1041=$W12,$Y$71:$Y$1041*DW$71:DW$1041,0))/$EG12 -> 0.00159 | DX12: =SUM(IF($W$71:$W$1041=$W12,$Y$71:$Y$1041*DX$71:DX$1041,0))/$EG12 -> 0.0014 | DY12: =SUM(IF($W$71:$W$1041=$W12,$Y$71:$Y$1041*DY$71:DY$1041,0))/$EG12 -> 0.00107 | DZ12: =SUM(IF($W$71:$W$1041=$W12,$Y$71:$Y$1041*DZ$71:DZ$1041,0))/$EG12 -> 0.00051 | EA12: =SUM(IF($W$71:$W$1041=$W12,$Y$71:$Y$1041*EA$71:EA$1041,0))/$EG12 -> -0.00023 | EB12: =SUM(IF($W$71:$W$1041=$W12,$Y$71:$Y$1041*EB$71:EB$1041,0))/$EG12 -> -0.00064 | EC12: =SUM(IF($W$71:$W$1041=$W12,$Y$71:$Y$1041*EC$71:EC$1041,0))/$EG12 -> -0.00087 | ED12: =SUM(IF($W$71:$W$1041=$W12,$Y$71:$Y$1041*ED$71:ED$1041,0))/$EG12 -> -0.00146 | EE12: 119 | EF12: 122 | EG12: 1.03
A13: 1900-05-16 | B13: 1900-05-23 | C13: =IF(24 - MATCH(Pasture!$C$8,table_PeriodStarts,0) < ROW() - ROW($D$4), "* ", "")&TEXT(INDIRECT("$A"&MOD(ROW()-ROW($D$4)+MATCH(Pasture!$C$8,table_PeriodStarts,0) - 1, 24) + ROW($D$4)),"d mmm") -> 16 May | D13: =INDIRECT("$A"&MOD(ROW()-ROW($D$4)+MATCH(Pasture!$C$8,table_PeriodStarts,0) - 1, 24) + ROW($D$4)) -> 1900-05-16 | F13: Heifers (1-2 years) | G13: Wethers (1-2 years) | I13: Combine pasture types | N13: C(P,2) | O13: 2.2 | P13: 2.2 | Q13: 2.2 | R13: 2.2 | S13: 2.2 | T13: 1.304 | U13: 1.304 | W13: 10 | X13: NSW - South West (Hay) | Y13: -34.5 | Z13: =SUM(IF($W$71:$W$1041=$W13,$Y$71:$Y$1041*Z$71:Z$1041,0))/$EG13 -> 0.1970873786 | AA13: =SUM(IF($W$71:$W$1041=$W13,$Y$71:$Y$1041*AA$71:AA$1041,0))/$EG13 -> 1.261943743 | AB13: =SUM(IF($W$71:$W$1041=$W13,$Y$71:$Y$1041*AB$71:AB$1041,0))/$EG13 -> 1.39072933 | AC13: =SUM(IF($W$71:$W$1041=$W13,$Y$71:$Y$1041*AC$71:AC$1041,0))/$EG13 -> 0.4815295307 | AD13: =SUM(IF($W$71:$W$1041=$W13,$Y$71:$Y$1041*AD$71:AD$1041,0))/$EG13 -> 2.396332752 | AE13: =SUM(IF($W$71:$W$1041=$W13,$Y$71:$Y$1041*AE$71:AE$1041,0))/$EG13 -> 6.276799797 | AF13: =SUM(IF($W$71:$W$1041=$W13,$Y$71:$Y$1041*AF$71:AF$1041,0))/$EG13 -> 7.035447247 | AG13: =SUM(IF($W$71:$W$1041=$W13,$Y$71:$Y$1041*AG$71:AG$1041,0))/$EG13 -> 4.706382002 | AH13: =SUM(IF($W$71:$W$1041=$W13,$Y$71:$Y$1041*AH$71:AH$1041,0))/$EG13 -> 2.440092793 | AI13: =SUM(IF($W$71:$W$1041=$W13,$Y$71:$Y$1041*AI$71:AI$1041,0))/$EG13 -> 4.757847136 | AJ13: =SUM(IF($W$71:$W$1041=$W13,$Y$71:$Y$1041*AJ$71:AJ$1041,0))/$EG13 -> 8.709481737 | AK13: =SUM(IF($W$71:$W$1041=$W13,$Y$71:$Y$1041*AK$71:AK$1041,0))/$EG13 -> 2.497377804 | AL13: =SUM(IF($W$71:$W$1041=$W13,$Y$71:$Y$1041*AL$71:AL$1041,0))/$EG13 -> 1.392917451 | AM13: =SUM(IF($W$71:$W$1041=$W13,$Y$71:$Y$1041*AM$71:AM$1041,0))/$EG13 -> 0.6073786408 | AN13: =SUM(IF($W$71:$W$1041=$W13,$Y$71:$Y$1041*AN$71:AN$1041,0))/$EG13 -> 0.587961165 | AO13: =SUM(IF($W$71:$W$1041=$W13,$Y$71:$Y$1041*AO$71:AO$1041,0))/$EG13 -> 0.5685436893 | AP13: =SUM(IF($W$71:$W$1041=$W13,$Y$71:$Y$1041*AP$71:AP$1041,0))/$EG13 -> 0.5588349515 | AQ13: =SUM(IF($W$71:$W$1041=$W13,$Y$71:$Y$1041*AQ$71:AQ$1041,0))/$EG13 -> 0.5588349515 | AR13: =SUM(IF($W$71:$W$1041=$W13,$Y$71:$Y$1041*AR$71:AR$1041,0))/$EG13 -> 0.587961165 | AS13: =SUM(IF($W$71:$W$1041=$W13,$Y$71:$Y$1041*AS$71:AS$1041,0))/$EG13 -> 0.6170873786 | AT13: =SUM(IF($W$71:$W$1041=$W13,$Y$71:$Y$1041*AT$71:AT$1041,0))/$EG13 -> 0.665631068 | AU13: =SUM(IF($W$71:$W$1041=$W13,$Y$71:$Y$1041*AU$71:AU$1041,0))/$EG13 -> 0.7141747573 | AV13: =SUM(IF($W$71:$W$1041=$W13,$Y$71:$Y$1041*AV$71:AV$1041,0))/$EG13 -> 0.7433009709 | AW13: =SUM(IF($W$71:$W$1041=$W13,$Y$71:$Y$1041*AW$71:AW$1041,0))/$EG13 -> 0.7627184466 | AX13: =SUM(IF($W$71:$W$1041=$W13,$Y$71:$Y$1041*AX$71:AX$1041,0))/$EG13 -> 0.7724271845 | AY13: =SUM(IF($W$71:$W$1041=$W13,$Y$71:$Y$1041*AY$71:AY$1041,0))/$EG13 -> 0.7821359223 | AZ13: =SUM(IF($W$71:$W$1041=$W13,$Y$71:$Y$1041*AZ$71:AZ$1041,0))/$EG13 -> 0.7821359223 | BA13: =SUM(IF($W$71:$W$1041=$W13,$Y$71:$Y$1041*BA$71:BA$1041,0))/$EG13 -> 0.7918446602 | BB13: =SUM(IF($W$71:$W$1041=$W13,$Y$71:$Y$1041*BB$71:BB$1041,0))/$EG13 -> 0.7821359223 | BC13: =SUM(IF($W$71:$W$1041=$W13,$Y$71:$Y$1041*BC$71:BC$1041,0))/$EG13 -> 0.7821359223 | BD13: =SUM(IF($W$71:$W$1041=$W13,$Y$71:$Y$1041*BD$71:BD$1041,0))/$EG13 -> 0.7821359223 | BE13: =SUM(IF($W$71:$W$1041=$W13,$Y$71:$Y$1041*BE$71:BE$1041,0))/$EG13 -> 0.7627184466 | BF13: =SUM(IF($W$71:$W$1041=$W13,$Y$71:$Y$1041*BF$71:BF$1041,0))/$EG13 -> 0.733592233 | BG13: =SUM(IF($W$71:$W$1041=$W13,$Y$71:$Y$1041*BG$71:BG$1041,0))/$EG13 -> 0.6850485437 | BH13: =SUM(IF($W$71:$W$1041=$W13,$Y$71:$Y$1041*BH$71:BH$1041,0))/$EG13 -> 0.6559223301 | BI13: =SUM(IF($W$71:$W$1041=$W13,$Y$71:$Y$1041*BI$71:BI$1041,0))/$EG13 -> 0.6365048544 | BJ13: =SUM(IF($W$71:$W$1041=$W13,$Y$71:$Y$1041*BJ$71:BJ$1041,0))/$EG13 -> 0.6267961165 | BK13: =SUM(IF($W$71:$W$1041=$W13,$Y$71:$Y$1041*BK$71:BK$1041,0))/$EG13 -> 0.6267961165 | BL13: =SUM(IF($W$71:$W$1041=$W13,$Y$71:$Y$1041*BL$71:BL$1041,0))/$EG13 -> 0.6073786408 | BM13: =SUM(IF($W$71:$W$1041=$W13,$Y$71:$Y$1041*BM$71:BM$1041,0))/$EG13 -> 0.587961165 | BN13: =SUM(IF($W$71:$W$1041=$W13,$Y$71:$Y$1041*BN$71:BN$1041,0))/$EG13 -> 0.5782524272 | BO13: =SUM(IF($W$71:$W$1041=$W13,$Y$71:$Y$1041*BO$71:BO$1041,0))/$EG13 -> 0.5782524272 | BP13: =SUM(IF($W$71:$W$1041=$W13,$Y$71:$Y$1041*BP$71:BP$1041,0))/$EG13 -> 0.5976699029 | BQ13: =SUM(IF($W$71:$W$1041=$W13,$Y$71:$Y$1041*BQ$71:BQ$1041,0))/$EG13 -> 0.6267961165 | BR13: =SUM(IF($W$71:$W$1041=$W13,$Y$71:$Y$1041*BR$71:BR$1041,0))/$EG13 -> 0.6753398058 | BS13: =SUM(IF($W$71:$W$1041=$W13,$Y$71:$Y$1041*BS$71:BS$1041,0))/$EG13 -> 0.7238834951 | BT13: =SUM(IF($W$71:$W$1041=$W13,$Y$71:$Y$1041*BT$71:BT$1041,0))/$EG13 -> 0.7530097087 | BU13: =SUM(IF($W$71:$W$1041=$W13,$Y$71:$Y$1041*BU$71:BU$1041,0))/$EG13 -> 0.7724271845 | BV13: =SUM(IF($W$71:$W$1041=$W13,$Y$71:$Y$1041*BV$71:BV$1041,0))/$EG13 -> 0.7724271845 | BW13: =SUM(IF($W$71:$W$1041=$W13,$Y$71:$Y$1041*BW$71:BW$1041,0))/$EG13 -> 0.7821359223 | BX13: =SUM(IF($W$71:$W$1041=$W13,$Y$71:$Y$1041*BX$71:BX$1041,0))/$EG13 -> 0.7918446602 | BY13: =SUM(IF($W$71:$W$1041=$W13,$Y$71:$Y$1041*BY$71:BY$1041,0))/$EG13 -> 0.7918446602 | BZ13: =SUM(IF($W$71:$W$1041=$W13,$Y$71:$Y$1041*BZ$71:BZ$1041,0))/$EG13 -> 0.7918446602 | CA13: =SUM(IF($W$71:$W$1041=$W13,$Y$71:$Y$1041*CA$71:CA$1041,0))/$EG13 -> 0.7918446602 | CB13: =SUM(IF($W$71:$W$1041=$W13,$Y$71:$Y$1041*CB$71:CB$1041,0))/$EG13 -> 0.7821359223 | CC13: =SUM(IF($W$71:$W$1041=$W13,$Y$71:$Y$1041*CC$71:CC$1041,0))/$EG13 -> 0.7724271845 | CD13: =SUM(IF($W$71:$W$1041=$W13,$Y$71:$Y$1041*CD$71:CD$1041,0))/$EG13 -> 0.7433009709 | CE13: =SUM(IF($W$71:$W$1041=$W13,$Y$71:$Y$1041*CE$71:CE$1041,0))/$EG13 -> 0.7044660194 | CF13: =SUM(IF($W$71:$W$1041=$W13,$Y$71:$Y$1041*CF$71:CF$1041,0))/$EG13 -> 0.665631068 | CG13: =SUM(IF($W$71:$W$1041=$W13,$Y$71:$Y$1041*CG$71:CG$1041,0))/$EG13 -> 0.6559223301 | CH13: =SUM(IF($W$71:$W$1041=$W13,$Y$71:$Y$1041*CH$71:CH$1041,0))/$EG13 -> 0.6462135922 | CI13: =SUM(IF($W$71:$W$1041=$W13,$Y$71:$Y$1041*CI$71:CI$1041,0))/$EG13 -> -0.001326504854 | CJ13: =SUM(IF($W$71:$W$1041=$W13,$Y$71:$Y$1041*CJ$71:CJ$1041,0))/$EG13 -> -0.001695339806 | CK13: =SUM(IF($W$71:$W$1041=$W13,$Y$71:$Y$1041*CK$71:CK$1041,0))/$EG13 -> -0.001955048544 | CL13: =SUM(IF($W$71:$W$1041=$W13,$Y$71:$Y$1041*CL$71:CL$1041,0))/$EG13 -> -0.001763203883 | CM13: =SUM(IF($W$71:$W$1041=$W13,$Y$71:$Y$1041*CM$71:CM$1041,0))/$EG13 -> -0.00189 | CN13: =SUM(IF($W$71:$W$1041=$W13,$Y$71:$Y$1041*CN$71:CN$1041,0))/$EG13 -> -0.001612038835 | CO13: =SUM(IF($W$71:$W$1041=$W13,$Y$71:$Y$1041*CO$71:CO$1041,0))/$EG13 -> -0.0008846601942 | CP13: =SUM(IF($W$71:$W$1041=$W13,$Y$71:$Y$1041*CP$71:CP$1041,0))/$EG13 -> -9.077669903e-05 | CQ13: =SUM(IF($W$71:$W$1041=$W13,$Y$71:$Y$1041*CQ$71:CQ$1041,0))/$EG13 -> 0.000389223301 | CR13: =SUM(IF($W$71:$W$1041=$W13,$Y$71:$Y$1041*CR$71:CR$1041,0))/$EG13 -> 0.0007521359223 | CS13: =SUM(IF($W$71:$W$1041=$W13,$Y$71:$Y$1041*CS$71:CS$1041,0))/$EG13 -> 0.00109038835 | CT13: =SUM(IF($W$71:$W$1041=$W13,$Y$71:$Y$1041*CT$71:CT$1041,0))/$EG13 -> 0.001250679612 | CU13: =SUM(IF($W$71:$W$1041=$W13,$Y$71:$Y$1041*CU$71:CU$1041,0))/$EG13 -> 0.001300679612 | CV13: =SUM(IF($W$71:$W$1041=$W13,$Y$71:$Y$1041*CV$71:CV$1041,0))/$EG13 -> 0.001339805825 | CW13: =SUM(IF($W$71:$W$1041=$W13,$Y$71:$Y$1041*CW$71:CW$1041,0))/$EG13 -> 0.001361262136 | CX13: =SUM(IF($W$71:$W$1041=$W13,$Y$71:$Y$1041*CX$71:CX$1041,0))/$EG13 -> 0.00135592233 | CY13: =SUM(IF($W$71:$W$1041=$W13,$Y$71:$Y$1041*CY$71:CY$1041,0))/$EG13 -> 0.001321165049 | CZ13: =SUM(IF($W$71:$W$1041=$W13,$Y$71:$Y$1041*CZ$71:CZ$1041,0))/$EG13 -> 0.001216990291 | DA13: =SUM(IF($W$71:$W$1041=$W13,$Y$71:$Y$1041*DA$71:DA$1041,0))/$EG13 -> 0.0009719417476 | DB13: =SUM(IF($W$71:$W$1041=$W13,$Y$71:$Y$1041*DB$71:DB$1041,0))/$EG13 -> 0.0005063106796 | DC13: =SUM(IF($W$71:$W$1041=$W13,$Y$71:$Y$1041*DC$71:DC$1041,0))/$EG13 -> -5.689320388e-05 | DD13: =SUM(IF($W$71:$W$1041=$W13,$Y$71:$Y$1041*DD$71:DD$1041,0))/$EG13 -> -0.000429223301 | DE13: =SUM(IF($W$71:$W$1041=$W13,$Y$71:$Y$1041*DE$71:DE$1041,0))/$EG13 -> -0.0006321359223 | DF13: =SUM(IF($W$71:$W$1041=$W13,$Y$71:$Y$1041*DF$71:DF$1041,0))/$EG13 -> -0.0009038834951 | DG13: =SUM(IF($W$71:$W$1041=$W13,$Y$71:$Y$1041*DG$71:DG$1041,0))/$EG13 -> -0.00120592233 | DH13: =SUM(IF($W$71:$W$1041=$W13,$Y$71:$Y$1041*DH$71:DH$1041,0))/$EG13 -> -0.001476796117 | DI13: =SUM(IF($W$71:$W$1041=$W13,$Y$71:$Y$1041*DI$71:DI$1041,0))/$EG13 -> -0.001707378641 | DJ13: =SUM(IF($W$71:$W$1041=$W13,$Y$71:$Y$1041*DJ$71:DJ$1041,0))/$EG13 -> -0.00175 | DK13: =SUM(IF($W$71:$W$1041=$W13,$Y$71:$Y$1041*DK$71:DK$1041,0))/$EG13 -> -0.001787961165 | DL13: =SUM(IF($W$71:$W$1041=$W13,$Y$71:$Y$1041*DL$71:DL$1041,0))/$EG13 -> -0.001480582524 | DM13: =SUM(IF($W$71:$W$1041=$W13,$Y$71:$Y$1041*DM$71:DM$1041,0))/$EG13 -> -0.0009346601942 | DN13: =SUM(IF($W$71:$W$1041=$W13,$Y$71:$Y$1041*DN$71:DN$1041,0))/$EG13 -> -3.815533981e-05 | DO13: =SUM(IF($W$71:$W$1041=$W13,$Y$71:$Y$1041*DO$71:DO$1041,0))/$EG13 -> 0.0007777669903 | DP13: =SUM(IF($W$71:$W$1041=$W13,$Y$71:$Y$1041*DP$71:DP$1041,0))/$EG13 -> 0.001340097087 | DQ13: =SUM(IF($W$71:$W$1041=$W13,$Y$71:$Y$1041*DQ$71:DQ$1041,0))/$EG13 -> 0.001585631068 | DR13: =SUM(IF($W$71:$W$1041=$W13,$Y$71:$Y$1041*DR$71:DR$1041,0))/$EG13 -> 0.00171592233 | DS13: =SUM(IF($W$71:$W$1041=$W13,$Y$71:$Y$1041*DS$71:DS$1041,0))/$EG13 -> 0.00182184466 | DT13: =SUM(IF($W$71:$W$1041=$W13,$Y$71:$Y$1041*DT$71:DT$1041,0))/$EG13 -> 0.001829514563 | DU13: =SUM(IF($W$71:$W$1041=$W13,$Y$71:$Y$1041*DU$71:DU$1041,0))/$EG13 -> 0.001790970874 | DV13: =SUM(IF($W$71:$W$1041=$W13,$Y$71:$Y$1041*DV$71:DV$1041,0))/$EG13 -> 0.001725339806 | DW13: =SUM(IF($W$71:$W$1041=$W13,$Y$71:$Y$1041*DW$71:DW$1041,0))/$EG13 -> 0.001591456311 | DX13: =SUM(IF($W$71:$W$1041=$W13,$Y$71:$Y$1041*DX$71:DX$1041,0))/$EG13 -> 0.001406699029 | DY13: =SUM(IF($W$71:$W$1041=$W13,$Y$71:$Y$1041*DY$71:DY$1041,0))/$EG13 -> 0.00108223301 | DZ13: =SUM(IF($W$71:$W$1041=$W13,$Y$71:$Y$1041*DZ$71:DZ$1041,0))/$EG13 -> 0.0005283495146 | EA13: =SUM(IF($W$71:$W$1041=$W13,$Y$71:$Y$1041*EA$71:EA$1041,0))/$EG13 -> -0.0002151456311 | EB13: =SUM(IF($W$71:$W$1041=$W13,$Y$71:$Y$1041*EB$71:EB$1041,0))/$EG13 -> -0.0006306796117 | EC13: =SUM(IF($W$71:$W$1041=$W13,$Y$71:$Y$1041*EC$71:EC$1041,0))/$EG13 -> -0.0008633009709 | ED13: =SUM(IF($W$71:$W$1041=$W13,$Y$71:$Y$1041*ED$71:ED$1041,0))/$EG13 -> -0.001457669903 | EE13: 123 | EF13: 126 | EG13: 1.03
A14: 1900-06-01 | B14: 1900-06-08 | C14: =IF(24 - MATCH(Pasture!$C$8,table_PeriodStarts,0) < ROW() - ROW($D$4), "* ", "")&TEXT(INDIRECT("$A"&MOD(ROW()-ROW($D$4)+MATCH(Pasture!$C$8,table_PeriodStarts,0) - 1, 24) + ROW($D$4)),"d mmm") -> 1 Jun | D14: =INDIRECT("$A"&MOD(ROW()-ROW($D$4)+MATCH(Pasture!$C$8,table_PeriodStarts,0) - 1, 24) + ROW($D$4)) -> 1900-06-01 | F14: Steers (1-2 years) | G14: Weaned young ewes | N14: C(P,3) | O14: 1.77 | P14: 1.77 | Q14: 1.77 | R14: 1.77 | S14: 1.77 | T14: 2.625 | U14: 2.625 | W14: 11 | X14: NSW - South West Slopes | Y14: -35.1 | Z14: =SUM(IF($W$71:$W$1041=$W14,$Y$71:$Y$1041*Z$71:Z$1041,0))/$EG14 -> 0.1833333333 | AA14: =SUM(IF($W$71:$W$1041=$W14,$Y$71:$Y$1041*AA$71:AA$1041,0))/$EG14 -> 6.166666667 | AB14: =SUM(IF($W$71:$W$1041=$W14,$Y$71:$Y$1041*AB$71:AB$1041,0))/$EG14 -> 6.125 | AC14: =SUM(IF($W$71:$W$1041=$W14,$Y$71:$Y$1041*AC$71:AC$1041,0))/$EG14 -> 10.66666667 | AD14: =SUM(IF($W$71:$W$1041=$W14,$Y$71:$Y$1041*AD$71:AD$1041,0))/$EG14 -> 19.79166667 | AE14: =SUM(IF($W$71:$W$1041=$W14,$Y$71:$Y$1041*AE$71:AE$1041,0))/$EG14 -> 19.5 | AF14: =SUM(IF($W$71:$W$1041=$W14,$Y$71:$Y$1041*AF$71:AF$1041,0))/$EG14 -> 12.83333333 | AG14: =SUM(IF($W$71:$W$1041=$W14,$Y$71:$Y$1041*AG$71:AG$1041,0))/$EG14 -> 9 | AH14: =SUM(IF($W$71:$W$1041=$W14,$Y$71:$Y$1041*AH$71:AH$1041,0))/$EG14 -> 17.625 | AI14: =SUM(IF($W$71:$W$1041=$W14,$Y$71:$Y$1041*AI$71:AI$1041,0))/$EG14 -> 33 | AJ14: =SUM(IF($W$71:$W$1041=$W14,$Y$71:$Y$1041*AJ$71:AJ$1041,0))/$EG14 -> 49.16666667 | AK14: =SUM(IF($W$71:$W$1041=$W14,$Y$71:$Y$1041*AK$71:AK$1041,0))/$EG14 -> 33.45833333 | AL14: =SUM(IF($W$71:$W$1041=$W14,$Y$71:$Y$1041*AL$71:AL$1041,0))/$EG14 -> 11.04166667 | AM14: =SUM(IF($W$71:$W$1041=$W14,$Y$71:$Y$1041*AM$71:AM$1041,0))/$EG14 -> 0.61 | AN14: =SUM(IF($W$71:$W$1041=$W14,$Y$71:$Y$1041*AN$71:AN$1041,0))/$EG14 -> 0.59 | AO14: =SUM(IF($W$71:$W$1041=$W14,$Y$71:$Y$1041*AO$71:AO$1041,0))/$EG14 -> 0.57 | AP14: =SUM(IF($W$71:$W$1041=$W14,$Y$71:$Y$1041*AP$71:AP$1041,0))/$EG14 -> 0.56 | AQ14: =SUM(IF($W$71:$W$1041=$W14,$Y$71:$Y$1041*AQ$71:AQ$1041,0))/$EG14 -> 0.57 | AR14: =SUM(IF($W$71:$W$1041=$W14,$Y$71:$Y$1041*AR$71:AR$1041,0))/$EG14 -> 0.58 | AS14: =SUM(IF($W$71:$W$1041=$W14,$Y$71:$Y$1041*AS$71:AS$1041,0))/$EG14 -> 0.61 | AT14: =SUM(IF($W$71:$W$1041=$W14,$Y$71:$Y$1041*AT$71:AT$1041,0))/$EG14 -> 0.65 | AU14: =SUM(IF($W$71:$W$1041=$W14,$Y$71:$Y$1041*AU$71:AU$1041,0))/$EG14 -> 0.69 | AV14: =SUM(IF($W$71:$W$1041=$W14,$Y$71:$Y$1041*AV$71:AV$1041,0))/$EG14 -> 0.74 | AW14: =SUM(IF($W$71:$W$1041=$W14,$Y$71:$Y$1041*AW$71:AW$1041,0))/$EG14 -> 0.76 | AX14: =SUM(IF($W$71:$W$1041=$W14,$Y$71:$Y$1041*AX$71:AX$1041,0))/$EG14 -> 0.78 | AY14: =SUM(IF($W$71:$W$1041=$W14,$Y$71:$Y$1041*AY$71:AY$1041,0))/$EG14 -> 0.78 | AZ14: =SUM(IF($W$71:$W$1041=$W14,$Y$71:$Y$1041*AZ$71:AZ$1041,0))/$EG14 -> 0.78 | BA14: =SUM(IF($W$71:$W$1041=$W14,$Y$71:$Y$1041*BA$71:BA$1041,0))/$EG14 -> 0.79 | BB14: =SUM(IF($W$71:$W$1041=$W14,$Y$71:$Y$1041*BB$71:BB$1041,0))/$EG14 -> 0.79 | BC14: =SUM(IF($W$71:$W$1041=$W14,$Y$71:$Y$1041*BC$71:BC$1041,0))/$EG14 -> 0.79 | BD14: =SUM(IF($W$71:$W$1041=$W14,$Y$71:$Y$1041*BD$71:BD$1041,0))/$EG14 -> 0.79 | BE14: =SUM(IF($W$71:$W$1041=$W14,$Y$71:$Y$1041*BE$71:BE$1041,0))/$EG14 -> 0.79 | BF14: =SUM(IF($W$71:$W$1041=$W14,$Y$71:$Y$1041*BF$71:BF$1041,0))/$EG14 -> 0.77 | BG14: =SUM(IF($W$71:$W$1041=$W14,$Y$71:$Y$1041*BG$71:BG$1041,0))/$EG14 -> 0.72 | BH14: =SUM(IF($W$71:$W$1041=$W14,$Y$71:$Y$1041*BH$71:BH$1041,0))/$EG14 -> 0.68 | BI14: =SUM(IF($W$71:$W$1041=$W14,$Y$71:$Y$1041*BI$71:BI$1041,0))/$EG14 -> 0.66 | BJ14: =SUM(IF($W$71:$W$1041=$W14,$Y$71:$Y$1041*BJ$71:BJ$1041,0))/$EG14 -> 0.63 | BK14: =SUM(IF($W$71:$W$1041=$W14,$Y$71:$Y$1041*BK$71:BK$1041,0))/$EG14 -> 0.64 | BL14: =SUM(IF($W$71:$W$1041=$W14,$Y$71:$Y$1041*BL$71:BL$1041,0))/$EG14 -> 0.62 | BM14: =SUM(IF($W$71:$W$1041=$W14,$Y$71:$Y$1041*BM$71:BM$1041,0))/$EG14 -> 0.6 | BN14: =SUM(IF($W$71:$W$1041=$W14,$Y$71:$Y$1041*BN$71:BN$1041,0))/$EG14 -> 0.58 | BO14: =SUM(IF($W$71:$W$1041=$W14,$Y$71:$Y$1041*BO$71:BO$1041,0))/$EG14 -> 0.59 | BP14: =SUM(IF($W$71:$W$1041=$W14,$Y$71:$Y$1041*BP$71:BP$1041,0))/$EG14 -> 0.6 | BQ14: =SUM(IF($W$71:$W$1041=$W14,$Y$71:$Y$1041*BQ$71:BQ$1041,0))/$EG14 -> 0.62 | BR14: =SUM(IF($W$71:$W$1041=$W14,$Y$71:$Y$1041*BR$71:BR$1041,0))/$EG14 -> 0.66 | BS14: =SUM(IF($W$71:$W$1041=$W14,$Y$71:$Y$1041*BS$71:BS$1041,0))/$EG14 -> 0.7 | BT14: =SUM(IF($W$71:$W$1041=$W14,$Y$71:$Y$1041*BT$71:BT$1041,0))/$EG14 -> 0.75 | BU14: =SUM(IF($W$71:$W$1041=$W14,$Y$71:$Y$1041*BU$71:BU$1041,0))/$EG14 -> 0.77 | BV14: =SUM(IF($W$71:$W$1041=$W14,$Y$71:$Y$1041*BV$71:BV$1041,0))/$EG14 -> 0.78 | BW14: =SUM(IF($W$71:$W$1041=$W14,$Y$71:$Y$1041*BW$71:BW$1041,0))/$EG14 -> 0.79 | BX14: =SUM(IF($W$71:$W$1041=$W14,$Y$71:$Y$1041*BX$71:BX$1041,0))/$EG14 -> 0.79 | BY14: =SUM(IF($W$71:$W$1041=$W14,$Y$71:$Y$1041*BY$71:BY$1041,0))/$EG14 -> 0.79 | BZ14: =SUM(IF($W$71:$W$1041=$W14,$Y$71:$Y$1041*BZ$71:BZ$1041,0))/$EG14 -> 0.79 | CA14: =SUM(IF($W$71:$W$1041=$W14,$Y$71:$Y$1041*CA$71:CA$1041,0))/$EG14 -> 0.8 | CB14: =SUM(IF($W$71:$W$1041=$W14,$Y$71:$Y$1041*CB$71:CB$1041,0))/$EG14 -> 0.8 | CC14: =SUM(IF($W$71:$W$1041=$W14,$Y$71:$Y$1041*CC$71:CC$1041,0))/$EG14 -> 0.8 | CD14: =SUM(IF($W$71:$W$1041=$W14,$Y$71:$Y$1041*CD$71:CD$1041,0))/$EG14 -> 0.79 | CE14: =SUM(IF($W$71:$W$1041=$W14,$Y$71:$Y$1041*CE$71:CE$1041,0))/$EG14 -> 0.74 | CF14: =SUM(IF($W$71:$W$1041=$W14,$Y$71:$Y$1041*CF$71:CF$1041,0))/$EG14 -> 0.69 | CG14: =SUM(IF($W$71:$W$1041=$W14,$Y$71:$Y$1041*CG$71:CG$1041,0))/$EG14 -> 0.67 | CH14: =SUM(IF($W$71:$W$1041=$W14,$Y$71:$Y$1041*CH$71:CH$1041,0))/$EG14 -> 0.66 | CI14: =SUM(IF($W$71:$W$1041=$W14,$Y$71:$Y$1041*CI$71:CI$1041,0))/$EG14 -> -0.00121 | CJ14: =SUM(IF($W$71:$W$1041=$W14,$Y$71:$Y$1041*CJ$71:CJ$1041,0))/$EG14 -> -0.00154 | CK14: =SUM(IF($W$71:$W$1041=$W14,$Y$71:$Y$1041*CK$71:CK$1041,0))/$EG14 -> -0.00179 | CL14: =SUM(IF($W$71:$W$1041=$W14,$Y$71:$Y$1041*CL$71:CL$1041,0))/$EG14 -> -0.00187 | CM14: =SUM(IF($W$71:$W$1041=$W14,$Y$71:$Y$1041*CM$71:CM$1041,0))/$EG14 -> -0.00189 | CN14: =SUM(IF($W$71:$W$1041=$W14,$Y$71:$Y$1041*CN$71:CN$1041,0))/$EG14 -> -0.00168 | CO14: =SUM(IF($W$71:$W$1041=$W14,$Y$71:$Y$1041*CO$71:CO$1041,0))/$EG14 -> -0.00104 | CP14: =SUM(IF($W$71:$W$1041=$W14,$Y$71:$Y$1041*CP$71:CP$1041,0))/$EG14 -> -0.00045 | CQ14: =SUM(IF($W$71:$W$1041=$W14,$Y$71:$Y$1041*CQ$71:CQ$1041,0))/$EG14 -> 3e-05 | CR14: =SUM(IF($W$71:$W$1041=$W14,$Y$71:$Y$1041*CR$71:CR$1041,0))/$EG14 -> 0.00049 | CS14: =SUM(IF($W$71:$W$1041=$W14,$Y$71:$Y$1041*CS$71:CS$1041,0))/$EG14 -> 0.00077 | CT14: =SUM(IF($W$71:$W$1041=$W14,$Y$71:$Y$1041*CT$71:CT$1041,0))/$EG14 -> 0.00094 | CU14: =SUM(IF($W$71:$W$1041=$W14,$Y$71:$Y$1041*CU$71:CU$1041,0))/$EG14 -> 0.00099 | CV14: =SUM(IF($W$71:$W$1041=$W14,$Y$71:$Y$1041*CV$71:CV$1041,0))/$EG14 -> 0.001 | CW14: =SUM(IF($W$71:$W$1041=$W14,$Y$71:$Y$1041*CW$71:CW$1041,0))/$EG14 -> 0.00107 | CX14: =SUM(IF($W$71:$W$1041=$W14,$Y$71:$Y$1041*CX$71:CX$1041,0))/$EG14 -> 0.00122 | CY14: =SUM(IF($W$71:$W$1041=$W14,$Y$71:$Y$1041*CY$71:CY$1041,0))/$EG14 -> 0.00136 | CZ14: =SUM(IF($W$71:$W$1041=$W14,$Y$71:$Y$1041*CZ$71:CZ$1041,0))/$EG14 -> 0.00145 | DA14: =SUM(IF($W$71:$W$1041=$W14,$Y$71:$Y$1041*DA$71:DA$1041,0))/$EG14 -> 0.00137 | DB14: =SUM(IF($W$71:$W$1041=$W14,$Y$71:$Y$1041*DB$71:DB$1041,0))/$EG14 -> 0.00105 | DC14: =SUM(IF($W$71:$W$1041=$W14,$Y$71:$Y$1041*DC$71:DC$1041,0))/$EG14 -> 0.00038 | DD14: =SUM(IF($W$71:$W$1041=$W14,$Y$71:$Y$1041*DD$71:DD$1041,0))/$EG14 -> -7e-05 | DE14: =SUM(IF($W$71:$W$1041=$W14,$Y$71:$Y$1041*DE$71:DE$1041,0))/$EG14 -> -0.00037 | DF14: =SUM(IF($W$71:$W$1041=$W14,$Y$71:$Y$1041*DF$71:DF$1041,0))/$EG14 -> -0.0007 | DG14: =SUM(IF($W$71:$W$1041=$W14,$Y$71:$Y$1041*DG$71:DG$1041,0))/$EG14 -> -0.00107 | DH14: =SUM(IF($W$71:$W$1041=$W14,$Y$71:$Y$1041*DH$71:DH$1041,0))/$EG14 -> -0.00137 | DI14: =SUM(IF($W$71:$W$1041=$W14,$Y$71:$Y$1041*DI$71:DI$1041,0))/$EG14 -> -0.00162 | DJ14: =SUM(IF($W$71:$W$1041=$W14,$Y$71:$Y$1041*DJ$71:DJ$1041,0))/$EG14 -> -0.00175 | DK14: =SUM(IF($W$71:$W$1041=$W14,$Y$71:$Y$1041*DK$71:DK$1041,0))/$EG14 -> -0.00172 | DL14: =SUM(IF($W$71:$W$1041=$W14,$Y$71:$Y$1041*DL$71:DL$1041,0))/$EG14 -> -0.0015 | DM14: =SUM(IF($W$71:$W$1041=$W14,$Y$71:$Y$1041*DM$71:DM$1041,0))/$EG14 -> -0.00109 | DN14: =SUM(IF($W$71:$W$1041=$W14,$Y$71:$Y$1041*DN$71:DN$1041,0))/$EG14 -> -0.00031 | DO14: =SUM(IF($W$71:$W$1041=$W14,$Y$71:$Y$1041*DO$71:DO$1041,0))/$EG14 -> 0.00037 | DP14: =SUM(IF($W$71:$W$1041=$W14,$Y$71:$Y$1041*DP$71:DP$1041,0))/$EG14 -> 0.00101 | DQ14: =SUM(IF($W$71:$W$1041=$W14,$Y$71:$Y$1041*DQ$71:DQ$1041,0))/$EG14 -> 0.00144 | DR14: =SUM(IF($W$71:$W$1041=$W14,$Y$71:$Y$1041*DR$71:DR$1041,0))/$EG14 -> 0.00158 | DS14: =SUM(IF($W$71:$W$1041=$W14,$Y$71:$Y$1041*DS$71:DS$1041,0))/$EG14 -> 0.00155 | DT14: =SUM(IF($W$71:$W$1041=$W14,$Y$71:$Y$1041*DT$71:DT$1041,0))/$EG14 -> 0.00148 | DU14: =SUM(IF($W$71:$W$1041=$W14,$Y$71:$Y$1041*DU$71:DU$1041,0))/$EG14 -> 0.00149 | DV14: =SUM(IF($W$71:$W$1041=$W14,$Y$71:$Y$1041*DV$71:DV$1041,0))/$EG14 -> 0.00157 | DW14: =SUM(IF($W$71:$W$1041=$W14,$Y$71:$Y$1041*DW$71:DW$1041,0))/$EG14 -> 0.00164 | DX14: =SUM(IF($W$71:$W$1041=$W14,$Y$71:$Y$1041*DX$71:DX$1041,0))/$EG14 -> 0.00163 | DY14: =SUM(IF($W$71:$W$1041=$W14,$Y$71:$Y$1041*DY$71:DY$1041,0))/$EG14 -> 0.00149 | DZ14: =SUM(IF($W$71:$W$1041=$W14,$Y$71:$Y$1041*DZ$71:DZ$1041,0))/$EG14 -> 0.00114 | EA14: =SUM(IF($W$71:$W$1041=$W14,$Y$71:$Y$1041*EA$71:EA$1041,0))/$EG14 -> 0.00028 | EB14: =SUM(IF($W$71:$W$1041=$W14,$Y$71:$Y$1041*EB$71:EB$1041,0))/$EG14 -> -0.00032 | EC14: =SUM(IF($W$71:$W$1041=$W14,$Y$71:$Y$1041*EC$71:EC$1041,0))/$EG14 -> -0.00064 | ED14: =SUM(IF($W$71:$W$1041=$W14,$Y$71:$Y$1041*ED$71:ED$1041,0))/$EG14 -> -0.00138 | EE14: 127 | EF14: 146 | EG14: 1.2
A15: 1900-06-16 | B15: 1900-06-23 | C15: =IF(24 - MATCH(Pasture!$C$8,table_PeriodStarts,0) < ROW() - ROW($D$4), "* ", "")&TEXT(INDIRECT("$A"&MOD(ROW()-ROW($D$4)+MATCH(Pasture!$C$8,table_PeriodStarts,0) - 1, 24) + ROW($D$4)),"d mmm") -> 16 Jun | D15: =INDIRECT("$A"&MOD(ROW()-ROW($D$4)+MATCH(Pasture!$C$8,table_PeriodStarts,0) - 1, 24) + ROW($D$4)) -> 1900-06-16 | F15: Weaned young heifers | G15: Weaned young wethers | N15: C(P,5) | O15: 1.8 | P15: 1.8 | Q15: 1.8 | R15: 1.8 | S15: 1.8 | T15: 1.43 | U15: 1.43 | W15: 12 | X15: NSW - North Coast | Y15: -29.7 | Z15: =SUM(IF($W$71:$W$1041=$W15,$Y$71:$Y$1041*Z$71:Z$1041,0))/$EG15 -> 0.0795 | AA15: =SUM(IF($W$71:$W$1041=$W15,$Y$71:$Y$1041*AA$71:AA$1041,0))/$EG15 -> 36.4 | AB15: =SUM(IF($W$71:$W$1041=$W15,$Y$71:$Y$1041*AB$71:AB$1041,0))/$EG15 -> 53.95 | AC15: =SUM(IF($W$71:$W$1041=$W15,$Y$71:$Y$1041*AC$71:AC$1041,0))/$EG15 -> 52.65 | AD15: =SUM(IF($W$71:$W$1041=$W15,$Y$71:$Y$1041*AD$71:AD$1041,0))/$EG15 -> 32.35 | AE15: =SUM(IF($W$71:$W$1041=$W15,$Y$71:$Y$1041*AE$71:AE$1041,0))/$EG15 -> 15.61 | AF15: =SUM(IF($W$71:$W$1041=$W15,$Y$71:$Y$1041*AF$71:AF$1041,0))/$EG15 -> 7.35 | AG15: =SUM(IF($W$71:$W$1041=$W15,$Y$71:$Y$1041*AG$71:AG$1041,0))/$EG15 -> 3 | AH15: =SUM(IF($W$71:$W$1041=$W15,$Y$71:$Y$1041*AH$71:AH$1041,0))/$EG15 -> 3 | AI15: =SUM(IF($W$71:$W$1041=$W15,$Y$71:$Y$1041*AI$71:AI$1041,0))/$EG15 -> 8.1 | AJ15: =SUM(IF($W$71:$W$1041=$W15,$Y$71:$Y$1041*AJ$71:AJ$1041,0))/$EG15 -> 15.2 | AK15: =SUM(IF($W$71:$W$1041=$W15,$Y$71:$Y$1041*AK$71:AK$1041,0))/$EG15 -> 21.27 | AL15: =SUM(IF($W$71:$W$1041=$W15,$Y$71:$Y$1041*AL$71:AL$1041,0))/$EG15 -> 28.45 | AM15: =SUM(IF($W$71:$W$1041=$W15,$Y$71:$Y$1041*AM$71:AM$1041,0))/$EG15 -> 0.6648 | AN15: =SUM(IF($W$71:$W$1041=$W15,$Y$71:$Y$1041*AN$71:AN$1041,0))/$EG15 -> 0.6603 | AO15: =SUM(IF($W$71:$W$1041=$W15,$Y$71:$Y$1041*AO$71:AO$1041,0))/$EG15 -> 0.66 | AP15: =SUM(IF($W$71:$W$1041=$W15,$Y$71:$Y$1041*AP$71:AP$1041,0))/$EG15 -> 0.6697 | AQ15: =SUM(IF($W$71:$W$1041=$W15,$Y$71:$Y$1041*AQ$71:AQ$1041,0))/$EG15 -> 0.6707 | AR15: =SUM(IF($W$71:$W$1041=$W15,$Y$71:$Y$1041*AR$71:AR$1041,0))/$EG15 -> 0.6771 | AS15: =SUM(IF($W$71:$W$1041=$W15,$Y$71:$Y$1041*AS$71:AS$1041,0))/$EG15 -> 0.6825 | AT15: =SUM(IF($W$71:$W$1041=$W15,$Y$71:$Y$1041*AT$71:AT$1041,0))/$EG15 -> 0.6856 | AU15: =SUM(IF($W$71:$W$1041=$W15,$Y$71:$Y$1041*AU$71:AU$1041,0))/$EG15 -> 0.6929 | AV15: =SUM(IF($W$71:$W$1041=$W15,$Y$71:$Y$1041*AV$71:AV$1041,0))/$EG15 -> 0.6938 | AW15: =SUM(IF($W$71:$W$1041=$W15,$Y$71:$Y$1041*AW$71:AW$1041,0))/$EG15 -> 0.6892 | AX15: =SUM(IF($W$71:$W$1041=$W15,$Y$71:$Y$1041*AX$71:AX$1041,0))/$EG15 -> 0.6746 | AY15: =SUM(IF($W$71:$W$1041=$W15,$Y$71:$Y$1041*AY$71:AY$1041,0))/$EG15 -> 0.6497 | AZ15: =SUM(IF($W$71:$W$1041=$W15,$Y$71:$Y$1041*AZ$71:AZ$1041,0))/$EG15 -> 0.63 | BA15: =SUM(IF($W$71:$W$1041=$W15,$Y$71:$Y$1041*BA$71:BA$1041,0))/$EG15 -> 0.6103 | BB15: =SUM(IF($W$71:$W$1041=$W15,$Y$71:$Y$1041*BB$71:BB$1041,0))/$EG15 -> 0.5987 | BC15: =SUM(IF($W$71:$W$1041=$W15,$Y$71:$Y$1041*BC$71:BC$1041,0))/$EG15 -> 0.5884 | BD15: =SUM(IF($W$71:$W$1041=$W15,$Y$71:$Y$1041*BD$71:BD$1041,0))/$EG15 -> 0.5901 | BE15: =SUM(IF($W$71:$W$1041=$W15,$Y$71:$Y$1041*BE$71:BE$1041,0))/$EG15 -> 0.5928 | BF15: =SUM(IF($W$71:$W$1041=$W15,$Y$71:$Y$1041*BF$71:BF$1041,0))/$EG15 -> 0.6129 | BG15: =SUM(IF($W$71:$W$1041=$W15,$Y$71:$Y$1041*BG$71:BG$1041,0))/$EG15 -> 0.6317 | BH15: =SUM(IF($W$71:$W$1041=$W15,$Y$71:$Y$1041*BH$71:BH$1041,0))/$EG15 -> 0.6463 | BI15: =SUM(IF($W$71:$W$1041=$W15,$Y$71:$Y$1041*BI$71:BI$1041,0))/$EG15 -> 0.6512 | BJ15: =SUM(IF($W$71:$W$1041=$W15,$Y$71:$Y$1041*BJ$71:BJ$1041,0))/$EG15 -> 0.6551 | BK15: =SUM(IF($W$71:$W$1041=$W15,$Y$71:$Y$1041*BK$71:BK$1041,0))/$EG15 -> 0.6845 | BL15: =SUM(IF($W$71:$W$1041=$W15,$Y$71:$Y$1041*BL$71:BL$1041,0))/$EG15 -> 0.6842 | BM15: =SUM(IF($W$71:$W$1041=$W15,$Y$71:$Y$1041*BM$71:BM$1041,0))/$EG15 -> 0.6836 | BN15: =SUM(IF($W$71:$W$1041=$W15,$Y$71:$Y$1041*BN$71:BN$1041,0))/$EG15 -> 0.6891 | BO15: =SUM(IF($W$71:$W$1041=$W15,$Y$71:$Y$1041*BO$71:BO$1041,0))/$EG15 -> 0.6943 | BP15: =SUM(IF($W$71:$W$1041=$W15,$Y$71:$Y$1041*BP$71:BP$1041,0))/$EG15 -> 0.6949 | BQ15: =SUM(IF($W$71:$W$1041=$W15,$Y$71:$Y$1041*BQ$71:BQ$1041,0))/$EG15 -> 0.7019 | BR15: =SUM(IF($W$71:$W$1041=$W15,$Y$71:$Y$1041*BR$71:BR$1041,0))/$EG15 -> 0.7037 | BS15: =SUM(IF($W$71:$W$1041=$W15,$Y$71:$Y$1041*BS$71:BS$1041,0))/$EG15 -> 0.7068 | BT15: =SUM(IF($W$71:$W$1041=$W15,$Y$71:$Y$1041*BT$71:BT$1041,0))/$EG15 -> 0.708 | BU15: =SUM(IF($W$71:$W$1041=$W15,$Y$71:$Y$1041*BU$71:BU$1041,0))/$EG15 -> 0.7034 | BV15: =SUM(IF($W$71:$W$1041=$W15,$Y$71:$Y$1041*BV$71:BV$1041,0))/$EG15 -> 0.6885 | BW15: =SUM(IF($W$71:$W$1041=$W15,$Y$71:$Y$1041*BW$71:BW$1041,0))/$EG15 -> 0.6594 | BX15: =SUM(IF($W$71:$W$1041=$W15,$Y$71:$Y$1041*BX$71:BX$1041,0))/$EG15 -> 0.64 | BY15: =SUM(IF($W$71:$W$1041=$W15,$Y$71:$Y$1041*BY$71:BY$1041,0))/$EG15 -> 0.6203 | BZ15: =SUM(IF($W$71:$W$1041=$W15,$Y$71:$Y$1041*BZ$71:BZ$1041,0))/$EG15 -> 0.6048 | CA15: =SUM(IF($W$71:$W$1041=$W15,$Y$71:$Y$1041*CA$71:CA$1041,0))/$EG15 -> 0.5984 | CB15: =SUM(IF($W$71:$W$1041=$W15,$Y$71:$Y$1041*CB$71:CB$1041,0))/$EG15 -> 0.5959 | CC15: =SUM(IF($W$71:$W$1041=$W15,$Y$71:$Y$1041*CC$71:CC$1041,0))/$EG15 -> 0.6086 | CD15: =SUM(IF($W$71:$W$1041=$W15,$Y$71:$Y$1041*CD$71:CD$1041,0))/$EG15 -> 0.6274 | CE15: =SUM(IF($W$71:$W$1041=$W15,$Y$71:$Y$1041*CE$71:CE$1041,0))/$EG15 -> 0.6517 | CF15: =SUM(IF($W$71:$W$1041=$W15,$Y$71:$Y$1041*CF$71:CF$1041,0))/$EG15 -> 0.6663 | CG15: =SUM(IF($W$71:$W$1041=$W15,$Y$71:$Y$1041*CG$71:CG$1041,0))/$EG15 -> 0.6712 | CH15: =SUM(IF($W$71:$W$1041=$W15,$Y$71:$Y$1041*CH$71:CH$1041,0))/$EG15 -> 0.6748 | CI15: =SUM(IF($W$71:$W$1041=$W15,$Y$71:$Y$1041*CI$71:CI$1041,0))/$EG15 -> -0.0002579 | CJ15: =SUM(IF($W$71:$W$1041=$W15,$Y$71:$Y$1041*CJ$71:CJ$1041,0))/$EG15 -> -0.0006313 | CK15: =SUM(IF($W$71:$W$1041=$W15,$Y$71:$Y$1041*CK$71:CK$1041,0))/$EG15 -> -0.000524 | CL15: =SUM(IF($W$71:$W$1041=$W15,$Y$71:$Y$1041*CL$71:CL$1041,0))/$EG15 -> -0.0002607 | CM15: =SUM(IF($W$71:$W$1041=$W15,$Y$71:$Y$1041*CM$71:CM$1041,0))/$EG15 -> -0.0001468 | CN15: =SUM(IF($W$71:$W$1041=$W15,$Y$71:$Y$1041*CN$71:CN$1041,0))/$EG15 -> 5.75e-05 | CO15: =SUM(IF($W$71:$W$1041=$W15,$Y$71:$Y$1041*CO$71:CO$1041,0))/$EG15 -> 0.0001853 | CP15: =SUM(IF($W$71:$W$1041=$W15,$Y$71:$Y$1041*CP$71:CP$1041,0))/$EG15 -> 0.0002773 | CQ15: =SUM(IF($W$71:$W$1041=$W15,$Y$71:$Y$1041*CQ$71:CQ$1041,0))/$EG15 -> 0.0003288 | CR15: =SUM(IF($W$71:$W$1041=$W15,$Y$71:$Y$1041*CR$71:CR$1041,0))/$EG15 -> 0.000362 | CS15: =SUM(IF($W$71:$W$1041=$W15,$Y$71:$Y$1041*CS$71:CS$1041,0))/$EG15 -> 0.0003206 | CT15: =SUM(IF($W$71:$W$1041=$W15,$Y$71:$Y$1041*CT$71:CT$1041,0))/$EG15 -> 0.0001904 | CU15: =SUM(IF($W$71:$W$1041=$W15,$Y$71:$Y$1041*CU$71:CU$1041,0))/$EG15 -> 3.4e-05 | CV15: =SUM(IF($W$71:$W$1041=$W15,$Y$71:$Y$1041*CV$71:CV$1041,0))/$EG15 -> -9.46e-05 | CW15: =SUM(IF($W$71:$W$1041=$W15,$Y$71:$Y$1041*CW$71:CW$1041,0))/$EG15 -> -0.0002162 | CX15: =SUM(IF($W$71:$W$1041=$W15,$Y$71:$Y$1041*CX$71:CX$1041,0))/$EG15 -> -0.0003425 | CY15: =SUM(IF($W$71:$W$1041=$W15,$Y$71:$Y$1041*CY$71:CY$1041,0))/$EG15 -> -0.0004405 | CZ15: =SUM(IF($W$71:$W$1041=$W15,$Y$71:$Y$1041*CZ$71:CZ$1041,0))/$EG15 -> -0.0004943 | DA15: =SUM(IF($W$71:$W$1041=$W15,$Y$71:$Y$1041*DA$71:DA$1041,0))/$EG15 -> -0.0004771 | DB15: =SUM(IF($W$71:$W$1041=$W15,$Y$71:$Y$1041*DB$71:DB$1041,0))/$EG15 -> -0.0003405 | DC15: =SUM(IF($W$71:$W$1041=$W15,$Y$71:$Y$1041*DC$71:DC$1041,0))/$EG15 -> -0.0001928 | DD15: =SUM(IF($W$71:$W$1041=$W15,$Y$71:$Y$1041*DD$71:DD$1041,0))/$EG15 -> -9.03e-05 | DE15: =SUM(IF($W$71:$W$1041=$W15,$Y$71:$Y$1041*DE$71:DE$1041,0))/$EG15 -> -9.3e-06 | DF15: =SUM(IF($W$71:$W$1041=$W15,$Y$71:$Y$1041*DF$71:DF$1041,0))/$EG15 -> 1.1e-06 | DG15: =SUM(IF($W$71:$W$1041=$W15,$Y$71:$Y$1041*DG$71:DG$1041,0))/$EG15 -> 0.000208 | DH15: =SUM(IF($W$71:$W$1041=$W15,$Y$71:$Y$1041*DH$71:DH$1041,0))/$EG15 -> 0.0001676 | DI15: =SUM(IF($W$71:$W$1041=$W15,$Y$71:$Y$1041*DI$71:DI$1041,0))/$EG15 -> 0.0001935 | DJ15: =SUM(IF($W$71:$W$1041=$W15,$Y$71:$Y$1041*DJ$71:DJ$1041,0))/$EG15 -> 0.000233 | DK15: =SUM(IF($W$71:$W$1041=$W15,$Y$71:$Y$1041*DK$71:DK$1041,0))/$EG15 -> 0.0003023 | DL15: =SUM(IF($W$71:$W$1041=$W15,$Y$71:$Y$1041*DL$71:DL$1041,0))/$EG15 -> 0.0003532 | DM15: =SUM(IF($W$71:$W$1041=$W15,$Y$71:$Y$1041*DM$71:DM$1041,0))/$EG15 -> 0.0003933 | DN15: =SUM(IF($W$71:$W$1041=$W15,$Y$71:$Y$1041*DN$71:DN$1041,0))/$EG15 -> 0.0004518 | DO15: =SUM(IF($W$71:$W$1041=$W15,$Y$71:$Y$1041*DO$71:DO$1041,0))/$EG15 -> 0.0004749 | DP15: =SUM(IF($W$71:$W$1041=$W15,$Y$71:$Y$1041*DP$71:DP$1041,0))/$EG15 -> 0.0004874 | DQ15: =SUM(IF($W$71:$W$1041=$W15,$Y$71:$Y$1041*DQ$71:DQ$1041,0))/$EG15 -> 0.000385 | DR15: =SUM(IF($W$71:$W$1041=$W15,$Y$71:$Y$1041*DR$71:DR$1041,0))/$EG15 -> 0.000117 | DS15: =SUM(IF($W$71:$W$1041=$W15,$Y$71:$Y$1041*DS$71:DS$1041,0))/$EG15 -> -0.0002663 | DT15: =SUM(IF($W$71:$W$1041=$W15,$Y$71:$Y$1041*DT$71:DT$1041,0))/$EG15 -> -0.0005279 | DU15: =SUM(IF($W$71:$W$1041=$W15,$Y$71:$Y$1041*DU$71:DU$1041,0))/$EG15 -> -0.0004845 | DV15: =SUM(IF($W$71:$W$1041=$W15,$Y$71:$Y$1041*DV$71:DV$1041,0))/$EG15 -> -0.0004745 | DW15: =SUM(IF($W$71:$W$1041=$W15,$Y$71:$Y$1041*DW$71:DW$1041,0))/$EG15 -> -0.000527 | DX15: =SUM(IF($W$71:$W$1041=$W15,$Y$71:$Y$1041*DX$71:DX$1041,0))/$EG15 -> -0.0005822 | DY15: =SUM(IF($W$71:$W$1041=$W15,$Y$71:$Y$1041*DY$71:DY$1041,0))/$EG15 -> -0.0005375 | DZ15: =SUM(IF($W$71:$W$1041=$W15,$Y$71:$Y$1041*DZ$71:DZ$1041,0))/$EG15 -> -0.0003296 | EA15: =SUM(IF($W$71:$W$1041=$W15,$Y$71:$Y$1041*EA$71:EA$1041,0))/$EG15 -> -9.66e-05 | EB15: =SUM(IF($W$71:$W$1041=$W15,$Y$71:$Y$1041*EB$71:EB$1041,0))/$EG15 -> 4.14e-05 | EC15: =SUM(IF($W$71:$W$1041=$W15,$Y$71:$Y$1041*EC$71:EC$1041,0))/$EG15 -> 7.81e-05 | ED15: =SUM(IF($W$71:$W$1041=$W15,$Y$71:$Y$1041*ED$71:ED$1041,0))/$EG15 -> 2.9e-05 | EE15: 147 | EF15: 166 | EG15: 1
A16: 1900-07-01 | B16: 1900-07-08 | C16: =IF(24 - MATCH(Pasture!$C$8,table_PeriodStarts,0) < ROW() - ROW($D$4), "* ", "")&TEXT(INDIRECT("$A"&MOD(ROW()-ROW($D$4)+MATCH(Pasture!$C$8,table_PeriodStarts,0) - 1, 24) + ROW($D$4)),"d mmm") -> 1 Jul | D16: =INDIRECT("$A"&MOD(ROW()-ROW($D$4)+MATCH(Pasture!$C$8,table_PeriodStarts,0) - 1, 24) + ROW($D$4)) -> 1900-07-01 | F16: Weaned young steers | G16: Lambs weaned this year | I16: Scaling factor options | K16: Wastage options | N16: C(P,6) | O16: 2.42 | P16: 2.42 | Q16: 2.42 | R16: 2.42 | S16: 2.42 | T16: 3.38 | U16: 3.38 | W16: 13 | X16: NSW - Mid North Coast & Lower Hunter | Y16: -32.6 | Z16: =SUM(IF($W$71:$W$1041=$W16,$Y$71:$Y$1041*Z$71:Z$1041,0))/$EG16 -> 0.0665 | AA16: =SUM(IF($W$71:$W$1041=$W16,$Y$71:$Y$1041*AA$71:AA$1041,0))/$EG16 -> 18.39 | AB16: =SUM(IF($W$71:$W$1041=$W16,$Y$71:$Y$1041*AB$71:AB$1041,0))/$EG16 -> 27.45 | AC16: =SUM(IF($W$71:$W$1041=$W16,$Y$71:$Y$1041*AC$71:AC$1041,0))/$EG16 -> 26.3 | AD16: =SUM(IF($W$71:$W$1041=$W16,$Y$71:$Y$1041*AD$71:AD$1041,0))/$EG16 -> 12.27 | AE16: =SUM(IF($W$71:$W$1041=$W16,$Y$71:$Y$1041*AE$71:AE$1041,0))/$EG16 -> 4.45 | AF16: =SUM(IF($W$71:$W$1041=$W16,$Y$71:$Y$1041*AF$71:AF$1041,0))/$EG16 -> 2.49 | AG16: =SUM(IF($W$71:$W$1041=$W16,$Y$71:$Y$1041*AG$71:AG$1041,0))/$EG16 -> 2.06 | AH16: =SUM(IF($W$71:$W$1041=$W16,$Y$71:$Y$1041*AH$71:AH$1041,0))/$EG16 -> 2.31 | AI16: =SUM(IF($W$71:$W$1041=$W16,$Y$71:$Y$1041*AI$71:AI$1041,0))/$EG16 -> 5.24 | AJ16: =SUM(IF($W$71:$W$1041=$W16,$Y$71:$Y$1041*AJ$71:AJ$1041,0))/$EG16 -> 6.94 | AK16: =SUM(IF($W$71:$W$1041=$W16,$Y$71:$Y$1041*AK$71:AK$1041,0))/$EG16 -> 9.07 | AL16: =SUM(IF($W$71:$W$1041=$W16,$Y$71:$Y$1041*AL$71:AL$1041,0))/$EG16 -> 9.93 | AM16: =SUM(IF($W$71:$W$1041=$W16,$Y$71:$Y$1041*AM$71:AM$1041,0))/$EG16 -> 0.6112 | AN16: =SUM(IF($W$71:$W$1041=$W16,$Y$71:$Y$1041*AN$71:AN$1041,0))/$EG16 -> 0.6131 | AO16: =SUM(IF($W$71:$W$1041=$W16,$Y$71:$Y$1041*AO$71:AO$1041,0))/$EG16 -> 0.6156 | AP16: =SUM(IF($W$71:$W$1041=$W16,$Y$71:$Y$1041*AP$71:AP$1041,0))/$EG16 -> 0.6256 | AQ16: =SUM(IF($W$71:$W$1041=$W16,$Y$71:$Y$1041*AQ$71:AQ$1041,0))/$EG16 -> 0.6284 | AR16: =SUM(IF($W$71:$W$1041=$W16,$Y$71:$Y$1041*AR$71:AR$1041,0))/$EG16 -> 0.6315 | AS16: =SUM(IF($W$71:$W$1041=$W16,$Y$71:$Y$1041*AS$71:AS$1041,0))/$EG16 -> 0.6265 | AT16: =SUM(IF($W$71:$W$1041=$W16,$Y$71:$Y$1041*AT$71:AT$1041,0))/$EG16 -> 0.629 | AU16: =SUM(IF($W$71:$W$1041=$W16,$Y$71:$Y$1041*AU$71:AU$1041,0))/$EG16 -> 0.6293 | AV16: =SUM(IF($W$71:$W$1041=$W16,$Y$71:$Y$1041*AV$71:AV$1041,0))/$EG16 -> 0.6221 | AW16: =SUM(IF($W$71:$W$1041=$W16,$Y$71:$Y$1041*AW$71:AW$1041,0))/$EG16 -> 0.603 | AX16: =SUM(IF($W$71:$W$1041=$W16,$Y$71:$Y$1041*AX$71:AX$1041,0))/$EG16 -> 0.5801 | AY16: =SUM(IF($W$71:$W$1041=$W16,$Y$71:$Y$1041*AY$71:AY$1041,0))/$EG16 -> 0.5588 | AZ16: =SUM(IF($W$71:$W$1041=$W16,$Y$71:$Y$1041*AZ$71:AZ$1041,0))/$EG16 -> 0.5472 | BA16: =SUM(IF($W$71:$W$1041=$W16,$Y$71:$Y$1041*BA$71:BA$1041,0))/$EG16 -> 0.5434 | BB16: =SUM(IF($W$71:$W$1041=$W16,$Y$71:$Y$1041*BB$71:BB$1041,0))/$EG16 -> 0.5412 | BC16: =SUM(IF($W$71:$W$1041=$W16,$Y$71:$Y$1041*BC$71:BC$1041,0))/$EG16 -> 0.5449 | BD16: =SUM(IF($W$71:$W$1041=$W16,$Y$71:$Y$1041*BD$71:BD$1041,0))/$EG16 -> 0.558 | BE16: =SUM(IF($W$71:$W$1041=$W16,$Y$71:$Y$1041*BE$71:BE$1041,0))/$EG16 -> 0.5786 | BF16: =SUM(IF($W$71:$W$1041=$W16,$Y$71:$Y$1041*BF$71:BF$1041,0))/$EG16 -> 0.5865 | BG16: =SUM(IF($W$71:$W$1041=$W16,$Y$71:$Y$1041*BG$71:BG$1041,0))/$EG16 -> 0.5854 | BH16: =SUM(IF($W$71:$W$1041=$W16,$Y$71:$Y$1041*BH$71:BH$1041,0))/$EG16 -> 0.6061 | BI16: =SUM(IF($W$71:$W$1041=$W16,$Y$71:$Y$1041*BI$71:BI$1041,0))/$EG16 -> 0.6093 | BJ16: =SUM(IF($W$71:$W$1041=$W16,$Y$71:$Y$1041*BJ$71:BJ$1041,0))/$EG16 -> 0.6012 | BK16: =SUM(IF($W$71:$W$1041=$W16,$Y$71:$Y$1041*BK$71:BK$1041,0))/$EG16 -> 0.6368 | BL16: =SUM(IF($W$71:$W$1041=$W16,$Y$71:$Y$1041*BL$71:BL$1041,0))/$EG16 -> 0.6409 | BM16: =SUM(IF($W$71:$W$1041=$W16,$Y$71:$Y$1041*BM$71:BM$1041,0))/$EG16 -> 0.6431 | BN16: =SUM(IF($W$71:$W$1041=$W16,$Y$71:$Y$1041*BN$71:BN$1041,0))/$EG16 -> 0.6453 | BO16: =SUM(IF($W$71:$W$1041=$W16,$Y$71:$Y$1041*BO$71:BO$1041,0))/$EG16 -> 0.6481 | BP16: =SUM(IF($W$71:$W$1041=$W16,$Y$71:$Y$1041*BP$71:BP$1041,0))/$EG16 -> 0.6512 | BQ16: =SUM(IF($W$71:$W$1041=$W16,$Y$71:$Y$1041*BQ$71:BQ$1041,0))/$EG16 -> 0.6518 | BR16: =SUM(IF($W$71:$W$1041=$W16,$Y$71:$Y$1041*BR$71:BR$1041,0))/$EG16 -> 0.6546 | BS16: =SUM(IF($W$71:$W$1041=$W16,$Y$71:$Y$1041*BS$71:BS$1041,0))/$EG16 -> 0.6471 | BT16: =SUM(IF($W$71:$W$1041=$W16,$Y$71:$Y$1041*BT$71:BT$1041,0))/$EG16 -> 0.6396 | BU16: =SUM(IF($W$71:$W$1041=$W16,$Y$71:$Y$1041*BU$71:BU$1041,0))/$EG16 -> 0.6205 | BV16: =SUM(IF($W$71:$W$1041=$W16,$Y$71:$Y$1041*BV$71:BV$1041,0))/$EG16 -> 0.5976 | BW16: =SUM(IF($W$71:$W$1041=$W16,$Y$71:$Y$1041*BW$71:BW$1041,0))/$EG16 -> 0.5688 | BX16: =SUM(IF($W$71:$W$1041=$W16,$Y$71:$Y$1041*BX$71:BX$1041,0))/$EG16 -> 0.5494 | BY16: =SUM(IF($W$71:$W$1041=$W16,$Y$71:$Y$1041*BY$71:BY$1041,0))/$EG16 -> 0.5378 | BZ16: =SUM(IF($W$71:$W$1041=$W16,$Y$71:$Y$1041*BZ$71:BZ$1041,0))/$EG16 -> 0.5434 | CA16: =SUM(IF($W$71:$W$1041=$W16,$Y$71:$Y$1041*CA$71:CA$1041,0))/$EG16 -> 0.549 | CB16: =SUM(IF($W$71:$W$1041=$W16,$Y$71:$Y$1041*CB$71:CB$1041,0))/$EG16 -> 0.5602 | CC16: =SUM(IF($W$71:$W$1041=$W16,$Y$71:$Y$1041*CC$71:CC$1041,0))/$EG16 -> 0.5808 | CD16: =SUM(IF($W$71:$W$1041=$W16,$Y$71:$Y$1041*CD$71:CD$1041,0))/$EG16 -> 0.5887 | CE16: =SUM(IF($W$71:$W$1041=$W16,$Y$71:$Y$1041*CE$71:CE$1041,0))/$EG16 -> 0.5898 | CF16: =SUM(IF($W$71:$W$1041=$W16,$Y$71:$Y$1041*CF$71:CF$1041,0))/$EG16 -> 0.6183 | CG16: =SUM(IF($W$71:$W$1041=$W16,$Y$71:$Y$1041*CG$71:CG$1041,0))/$EG16 -> 0.6274 | CH16: =SUM(IF($W$71:$W$1041=$W16,$Y$71:$Y$1041*CH$71:CH$1041,0))/$EG16 -> 0.629 | CI16: =SUM(IF($W$71:$W$1041=$W16,$Y$71:$Y$1041*CI$71:CI$1041,0))/$EG16 -> -0.0005451 | CJ16: =SUM(IF($W$71:$W$1041=$W16,$Y$71:$Y$1041*CJ$71:CJ$1041,0))/$EG16 -> -0.0011097 | CK16: =SUM(IF($W$71:$W$1041=$W16,$Y$71:$Y$1041*CK$71:CK$1041,0))/$EG16 -> -0.0008651 | CL16: =SUM(IF($W$71:$W$1041=$W16,$Y$71:$Y$1041*CL$71:CL$1041,0))/$EG16 -> -0.0005853 | CM16: =SUM(IF($W$71:$W$1041=$W16,$Y$71:$Y$1041*CM$71:CM$1041,0))/$EG16 -> -0.0004383 | CN16: =SUM(IF($W$71:$W$1041=$W16,$Y$71:$Y$1041*CN$71:CN$1041,0))/$EG16 -> -0.000222 | CO16: =SUM(IF($W$71:$W$1041=$W16,$Y$71:$Y$1041*CO$71:CO$1041,0))/$EG16 -> -8.28e-05 | CP16: =SUM(IF($W$71:$W$1041=$W16,$Y$71:$Y$1041*CP$71:CP$1041,0))/$EG16 -> 0.0001018 | CQ16: =SUM(IF($W$71:$W$1041=$W16,$Y$71:$Y$1041*CQ$71:CQ$1041,0))/$EG16 -> 0.0001266 | CR16: =SUM(IF($W$71:$W$1041=$W16,$Y$71:$Y$1041*CR$71:CR$1041,0))/$EG16 -> 0.0001193 | CS16: =SUM(IF($W$71:$W$1041=$W16,$Y$71:$Y$1041*CS$71:CS$1041,0))/$EG16 -> 5.83e-05 | CT16: =SUM(IF($W$71:$W$1041=$W16,$Y$71:$Y$1041*CT$71:CT$1041,0))/$EG16 -> 1.8e-06 | CU16: =SUM(IF($W$71:$W$1041=$W16,$Y$71:$Y$1041*CU$71:CU$1041,0))/$EG16 -> -5.11e-05 | CV16: =SUM(IF($W$71:$W$1041=$W16,$Y$71:$Y$1041*CV$71:CV$1041,0))/$EG16 -> -9.67e-05 | CW16: =SUM(IF($W$71:$W$1041=$W16,$Y$71:$Y$1041*CW$71:CW$1041,0))/$EG16 -> -0.0001356 | CX16: =SUM(IF($W$71:$W$1041=$W16,$Y$71:$Y$1041*CX$71:CX$1041,0))/$EG16 -> -0.0001718 | CY16: =SUM(IF($W$71:$W$1041=$W16,$Y$71:$Y$1041*CY$71:CY$1041,0))/$EG16 -> -0.0001583 | CZ16: =SUM(IF($W$71:$W$1041=$W16,$Y$71:$Y$1041*CZ$71:CZ$1041,0))/$EG16 -> -0.000178 | DA16: =SUM(IF($W$71:$W$1041=$W16,$Y$71:$Y$1041*DA$71:DA$1041,0))/$EG16 -> -0.0002103 | DB16: =SUM(IF($W$71:$W$1041=$W16,$Y$71:$Y$1041*DB$71:DB$1041,0))/$EG16 -> -0.0002272 | DC16: =SUM(IF($W$71:$W$1041=$W16,$Y$71:$Y$1041*DC$71:DC$1041,0))/$EG16 -> -0.0001123 | DD16: =SUM(IF($W$71:$W$1041=$W16,$Y$71:$Y$1041*DD$71:DD$1041,0))/$EG16 -> -3.01e-05 | DE16: =SUM(IF($W$71:$W$1041=$W16,$Y$71:$Y$1041*DE$71:DE$1041,0))/$EG16 -> -2.89e-05 | DF16: =SUM(IF($W$71:$W$1041=$W16,$Y$71:$Y$1041*DF$71:DF$1041,0))/$EG16 -> -2.94e-05 | DG16: =SUM(IF($W$71:$W$1041=$W16,$Y$71:$Y$1041*DG$71:DG$1041,0))/$EG16 -> 1.9e-06 | DH16: =SUM(IF($W$71:$W$1041=$W16,$Y$71:$Y$1041*DH$71:DH$1041,0))/$EG16 -> 8.24e-05 | DI16: =SUM(IF($W$71:$W$1041=$W16,$Y$71:$Y$1041*DI$71:DI$1041,0))/$EG16 -> 0.0001246 | DJ16: =SUM(IF($W$71:$W$1041=$W16,$Y$71:$Y$1041*DJ$71:DJ$1041,0))/$EG16 -> 0.0001566 | DK16: =SUM(IF($W$71:$W$1041=$W16,$Y$71:$Y$1041*DK$71:DK$1041,0))/$EG16 -> 0.0001976 | DL16: =SUM(IF($W$71:$W$1041=$W16,$Y$71:$Y$1041*DL$71:DL$1041,0))/$EG16 -> 0.0002219 | DM16: =SUM(IF($W$71:$W$1041=$W16,$Y$71:$Y$1041*DM$71:DM$1041,0))/$EG16 -> 0.0002133 | DN16: =SUM(IF($W$71:$W$1041=$W16,$Y$71:$Y$1041*DN$71:DN$1041,0))/$EG16 -> 0.0002023 | DO16: =SUM(IF($W$71:$W$1041=$W16,$Y$71:$Y$1041*DO$71:DO$1041,0))/$EG16 -> 0.000148 | DP16: =SUM(IF($W$71:$W$1041=$W16,$Y$71:$Y$1041*DP$71:DP$1041,0))/$EG16 -> 4.48e-05 | DQ16: =SUM(IF($W$71:$W$1041=$W16,$Y$71:$Y$1041*DQ$71:DQ$1041,0))/$EG16 -> -0.0002829 | DR16: =SUM(IF($W$71:$W$1041=$W16,$Y$71:$Y$1041*DR$71:DR$1041,0))/$EG16 -> -0.0007057 | DS16: =SUM(IF($W$71:$W$1041=$W16,$Y$71:$Y$1041*DS$71:DS$1041,0))/$EG16 -> -0.0008268 | DT16: =SUM(IF($W$71:$W$1041=$W16,$Y$71:$Y$1041*DT$71:DT$1041,0))/$EG16 -> -0.0007437 | DU16: =SUM(IF($W$71:$W$1041=$W16,$Y$71:$Y$1041*DU$71:DU$1041,0))/$EG16 -> -0.0003541 | DV16: =SUM(IF($W$71:$W$1041=$W16,$Y$71:$Y$1041*DV$71:DV$1041,0))/$EG16 -> -0.0002835 | DW16: =SUM(IF($W$71:$W$1041=$W16,$Y$71:$Y$1041*DW$71:DW$1041,0))/$EG16 -> -0.0003034 | DX16: =SUM(IF($W$71:$W$1041=$W16,$Y$71:$Y$1041*DX$71:DX$1041,0))/$EG16 -> -0.0003793 | DY16: =SUM(IF($W$71:$W$1041=$W16,$Y$71:$Y$1041*DY$71:DY$1041,0))/$EG16 -> -0.000317 | DZ16: =SUM(IF($W$71:$W$1041=$W16,$Y$71:$Y$1041*DZ$71:DZ$1041,0))/$EG16 -> -0.0003309 | EA16: =SUM(IF($W$71:$W$1041=$W16,$Y$71:$Y$1041*EA$71:EA$1041,0))/$EG16 -> -0.0001111 | EB16: =SUM(IF($W$71:$W$1041=$W16,$Y$71:$Y$1041*EB$71:EB$1041,0))/$EG16 -> 5.96e-05 | EC16: =SUM(IF($W$71:$W$1041=$W16,$Y$71:$Y$1041*EC$71:EC$1041,0))/$EG16 -> 9.62e-05 | ED16: =SUM(IF($W$71:$W$1041=$W16,$Y$71:$Y$1041*ED$71:ED$1041,0))/$EG16 -> 0.0001547 | EE16: 167 | EF16: 186 | EG16: 1
A17: 1900-07-16 | B17: 1900-07-23 | C17: =IF(24 - MATCH(Pasture!$C$8,table_PeriodStarts,0) < ROW() - ROW($D$4), "* ", "")&TEXT(INDIRECT("$A"&MOD(ROW()-ROW($D$4)+MATCH(Pasture!$C$8,table_PeriodStarts,0) - 1, 24) + ROW($D$4)),"d mmm") -> 16 Jul | D17: =INDIRECT("$A"&MOD(ROW()-ROW($D$4)+MATCH(Pasture!$C$8,table_PeriodStarts,0) - 1, 24) + ROW($D$4)) -> 1900-07-16 | F17: Calves weaned this year | I17: 0.5 | K17: 0.1 | N17: C(P,7) | O17: 1.16 | P17: 1.16 | Q17: 1.16 | R17: 1.16 | S17: 1.16 | T17: 0.91 | U17: 0.91 | W17: 14 | X17: NSW - Warialda | Y17: -29.5 | Z17: =SUM(IF($W$71:$W$1041=$W17,$Y$71:$Y$1041*Z$71:Z$1041,0))/$EG17 -> 0.05 | AA17: =SUM(IF($W$71:$W$1041=$W17,$Y$71:$Y$1041*AA$71:AA$1041,0))/$EG17 -> 27 | AB17: =SUM(IF($W$71:$W$1041=$W17,$Y$71:$Y$1041*AB$71:AB$1041,0))/$EG17 -> 23 | AC17: =SUM(IF($W$71:$W$1041=$W17,$Y$71:$Y$1041*AC$71:AC$1041,0))/$EG17 -> 20 | AD17: =SUM(IF($W$71:$W$1041=$W17,$Y$71:$Y$1041*AD$71:AD$1041,0))/$EG17 -> 8 | AE17: =SUM(IF($W$71:$W$1041=$W17,$Y$71:$Y$1041*AE$71:AE$1041,0))/$EG17 -> 2 | AF17: =SUM(IF($W$71:$W$1041=$W17,$Y$71:$Y$1041*AF$71:AF$1041,0))/$EG17 -> 0 | AG17: =SUM(IF($W$71:$W$1041=$W17,$Y$71:$Y$1041*AG$71:AG$1041,0))/$EG17 -> 0 | AH17: =SUM(IF($W$71:$W$1041=$W17,$Y$71:$Y$1041*AH$71:AH$1041,0))/$EG17 -> 0 | AI17: =SUM(IF($W$71:$W$1041=$W17,$Y$71:$Y$1041*AI$71:AI$1041,0))/$EG17 -> 5 | AJ17: =SUM(IF($W$71:$W$1041=$W17,$Y$71:$Y$1041*AJ$71:AJ$1041,0))/$EG17 -> 18 | AK17: =SUM(IF($W$71:$W$1041=$W17,$Y$71:$Y$1041*AK$71:AK$1041,0))/$EG17 -> 29 | AL17: =SUM(IF($W$71:$W$1041=$W17,$Y$71:$Y$1041*AL$71:AL$1041,0))/$EG17 -> 30 | AM17: =SUM(IF($W$71:$W$1041=$W17,$Y$71:$Y$1041*AM$71:AM$1041,0))/$EG17 -> 0.69 | AN17: =SUM(IF($W$71:$W$1041=$W17,$Y$71:$Y$1041*AN$71:AN$1041,0))/$EG17 -> 0.69 | AO17: =SUM(IF($W$71:$W$1041=$W17,$Y$71:$Y$1041*AO$71:AO$1041,0))/$EG17 -> 0.69 | AP17: =SUM(IF($W$71:$W$1041=$W17,$Y$71:$Y$1041*AP$71:AP$1041,0))/$EG17 -> 0.69 | AQ17: =SUM(IF($W$71:$W$1041=$W17,$Y$71:$Y$1041*AQ$71:AQ$1041,0))/$EG17 -> 0.68 | AR17: =SUM(IF($W$71:$W$1041=$W17,$Y$71:$Y$1041*AR$71:AR$1041,0))/$EG17 -> 0.66 | AS17: =SUM(IF($W$71:$W$1041=$W17,$Y$71:$Y$1041*AS$71:AS$1041,0))/$EG17 -> 0.59 | AT17: =SUM(IF($W$71:$W$1041=$W17,$Y$71:$Y$1041*AT$71:AT$1041,0))/$EG17 -> 0.55 | AU17: =SUM(IF($W$71:$W$1041=$W17,$Y$71:$Y$1041*AU$71:AU$1041,0))/$EG17 -> 0.52 | AV17: =SUM(IF($W$71:$W$1041=$W17,$Y$71:$Y$1041*AV$71:AV$1041,0))/$EG17 -> 0.49 | AW17: =SUM(IF($W$71:$W$1041=$W17,$Y$71:$Y$1041*AW$71:AW$1041,0))/$EG17 -> 0.47 | AX17: =SUM(IF($W$71:$W$1041=$W17,$Y$71:$Y$1041*AX$71:AX$1041,0))/$EG17 -> 0.46 | AY17: =SUM(IF($W$71:$W$1041=$W17,$Y$71:$Y$1041*AY$71:AY$1041,0))/$EG17 -> 0.46 | AZ17: =SUM(IF($W$71:$W$1041=$W17,$Y$71:$Y$1041*AZ$71:AZ$1041,0))/$EG17 -> 0.46 | BA17: =SUM(IF($W$71:$W$1041=$W17,$Y$71:$Y$1041*BA$71:BA$1041,0))/$EG17 -> 0.47 | BB17: =SUM(IF($W$71:$W$1041=$W17,$Y$71:$Y$1041*BB$71:BB$1041,0))/$EG17 -> 0.5 | BC17: =SUM(IF($W$71:$W$1041=$W17,$Y$71:$Y$1041*BC$71:BC$1041,0))/$EG17 -> 0.61 | BD17: =SUM(IF($W$71:$W$1041=$W17,$Y$71:$Y$1041*BD$71:BD$1041,0))/$EG17 -> 0.68 | BE17: =SUM(IF($W$71:$W$1041=$W17,$Y$71:$Y$1041*BE$71:BE$1041,0))/$EG17 -> 0.69 | BF17: =SUM(IF($W$71:$W$1041=$W17,$Y$71:$Y$1041*BF$71:BF$1041,0))/$EG17 -> 0.69 | BG17: =SUM(IF($W$71:$W$1041=$W17,$Y$71:$Y$1041*BG$71:BG$1041,0))/$EG17 -> 0.69 | BH17: =SUM(IF($W$71:$W$1041=$W17,$Y$71:$Y$1041*BH$71:BH$1041,0))/$EG17 -> 0.69 | BI17: =SUM(IF($W$71:$W$1041=$W17,$Y$71:$Y$1041*BI$71:BI$1041,0))/$EG17 -> 0.69 | BJ17: =SUM(IF($W$71:$W$1041=$W17,$Y$71:$Y$1041*BJ$71:BJ$1041,0))/$EG17 -> 0.69 | BK17: =SUM(IF($W$71:$W$1041=$W17,$Y$71:$Y$1041*BK$71:BK$1041,0))/$EG17 -> 0.69 | BL17: =SUM(IF($W$71:$W$1041=$W17,$Y$71:$Y$1041*BL$71:BL$1041,0))/$EG17 -> 0.69 | BM17: =SUM(IF($W$71:$W$1041=$W17,$Y$71:$Y$1041*BM$71:BM$1041,0))/$EG17 -> 0.69 | BN17: =SUM(IF($W$71:$W$1041=$W17,$Y$71:$Y$1041*BN$71:BN$1041,0))/$EG17 -> 0.69 | BO17: =SUM(IF($W$71:$W$1041=$W17,$Y$71:$Y$1041*BO$71:BO$1041,0))/$EG17 -> 0.68 | BP17: =SUM(IF($W$71:$W$1041=$W17,$Y$71:$Y$1041*BP$71:BP$1041,0))/$EG17 -> 0.66 | BQ17: =SUM(IF($W$71:$W$1041=$W17,$Y$71:$Y$1041*BQ$71:BQ$1041,0))/$EG17 -> 0.59 | BR17: =SUM(IF($W$71:$W$1041=$W17,$Y$71:$Y$1041*BR$71:BR$1041,0))/$EG17 -> 0.55 | BS17: =SUM(IF($W$71:$W$1041=$W17,$Y$71:$Y$1041*BS$71:BS$1041,0))/$EG17 -> 0.52 | BT17: =SUM(IF($W$71:$W$1041=$W17,$Y$71:$Y$1041*BT$71:BT$1041,0))/$EG17 -> 0.49 | BU17: =SUM(IF($W$71:$W$1041=$W17,$Y$71:$Y$1041*BU$71:BU$1041,0))/$EG17 -> 0.47 | BV17: =SUM(IF($W$71:$W$1041=$W17,$Y$71:$Y$1041*BV$71:BV$1041,0))/$EG17 -> 0.46 | BW17: =SUM(IF($W$71:$W$1041=$W17,$Y$71:$Y$1041*BW$71:BW$1041,0))/$EG17 -> 0.46 | BX17: =SUM(IF($W$71:$W$1041=$W17,$Y$71:$Y$1041*BX$71:BX$1041,0))/$EG17 -> 0.46 | BY17: =SUM(IF($W$71:$W$1041=$W17,$Y$71:$Y$1041*BY$71:BY$1041,0))/$EG17 -> 0.47 | BZ17: =SUM(IF($W$71:$W$1041=$W17,$Y$71:$Y$1041*BZ$71:BZ$1041,0))/$EG17 -> 0.5 | CA17: =SUM(IF($W$71:$W$1041=$W17,$Y$71:$Y$1041*CA$71:CA$1041,0))/$EG17 -> 0.61 | CB17: =SUM(IF($W$71:$W$1041=$W17,$Y$71:$Y$1041*CB$71:CB$1041,0))/$EG17 -> 0.68 | CC17: =SUM(IF($W$71:$W$1041=$W17,$Y$71:$Y$1041*CC$71:CC$1041,0))/$EG17 -> 0.69 | CD17: =SUM(IF($W$71:$W$1041=$W17,$Y$71:$Y$1041*CD$71:CD$1041,0))/$EG17 -> 0.69 | CE17: =SUM(IF($W$71:$W$1041=$W17,$Y$71:$Y$1041*CE$71:CE$1041,0))/$EG17 -> 0.69 | CF17: =SUM(IF($W$71:$W$1041=$W17,$Y$71:$Y$1041*CF$71:CF$1041,0))/$EG17 -> 0.69 | CG17: =SUM(IF($W$71:$W$1041=$W17,$Y$71:$Y$1041*CG$71:CG$1041,0))/$EG17 -> 0.69 | CH17: =SUM(IF($W$71:$W$1041=$W17,$Y$71:$Y$1041*CH$71:CH$1041,0))/$EG17 -> 0.69 | CI17: =SUM(IF($W$71:$W$1041=$W17,$Y$71:$Y$1041*CI$71:CI$1041,0))/$EG17 -> 0.00042 | CJ17: =SUM(IF($W$71:$W$1041=$W17,$Y$71:$Y$1041*CJ$71:CJ$1041,0))/$EG17 -> 0.00036 | CK17: =SUM(IF($W$71:$W$1041=$W17,$Y$71:$Y$1041*CK$71:CK$1041,0))/$EG17 -> 0.00043 | CL17: =SUM(IF($W$71:$W$1041=$W17,$Y$71:$Y$1041*CL$71:CL$1041,0))/$EG17 -> 0.00051 | CM17: =SUM(IF($W$71:$W$1041=$W17,$Y$71:$Y$1041*CM$71:CM$1041,0))/$EG17 -> 0.00058 | CN17: =SUM(IF($W$71:$W$1041=$W17,$Y$71:$Y$1041*CN$71:CN$1041,0))/$EG17 -> 0.00067 | CO17: =SUM(IF($W$71:$W$1041=$W17,$Y$71:$Y$1041*CO$71:CO$1041,0))/$EG17 -> 0.0007 | CP17: =SUM(IF($W$71:$W$1041=$W17,$Y$71:$Y$1041*CP$71:CP$1041,0))/$EG17 -> 0.00075 | CQ17: =SUM(IF($W$71:$W$1041=$W17,$Y$71:$Y$1041*CQ$71:CQ$1041,0))/$EG17 -> 0.00076 | CR17: =SUM(IF($W$71:$W$1041=$W17,$Y$71:$Y$1041*CR$71:CR$1041,0))/$EG17 -> 0.00079 | CS17: =SUM(IF($W$71:$W$1041=$W17,$Y$71:$Y$1041*CS$71:CS$1041,0))/$EG17 -> 0.00061 | CT17: =SUM(IF($W$71:$W$1041=$W17,$Y$71:$Y$1041*CT$71:CT$1041,0))/$EG17 -> 0.00024 | CU17: =SUM(IF($W$71:$W$1041=$W17,$Y$71:$Y$1041*CU$71:CU$1041,0))/$EG17 -> -0.0003 | CV17: =SUM(IF($W$71:$W$1041=$W17,$Y$71:$Y$1041*CV$71:CV$1041,0))/$EG17 -> -0.00088 | CW17: =SUM(IF($W$71:$W$1041=$W17,$Y$71:$Y$1041*CW$71:CW$1041,0))/$EG17 -> -0.00115 | CX17: =SUM(IF($W$71:$W$1041=$W17,$Y$71:$Y$1041*CX$71:CX$1041,0))/$EG17 -> -0.00128 | CY17: =SUM(IF($W$71:$W$1041=$W17,$Y$71:$Y$1041*CY$71:CY$1041,0))/$EG17 -> -0.00144 | CZ17: =SUM(IF($W$71:$W$1041=$W17,$Y$71:$Y$1041*CZ$71:CZ$1041,0))/$EG17 -> -0.00124 | DA17: =SUM(IF($W$71:$W$1041=$W17,$Y$71:$Y$1041*DA$71:DA$1041,0))/$EG17 -> -0.00096 | DB17: =SUM(IF($W$71:$W$1041=$W17,$Y$71:$Y$1041*DB$71:DB$1041,0))/$EG17 -> -0.00047 | DC17: =SUM(IF($W$71:$W$1041=$W17,$Y$71:$Y$1041*DC$71:DC$1041,0))/$EG17 -> -1e-05 | DD17: =SUM(IF($W$71:$W$1041=$W17,$Y$71:$Y$1041*DD$71:DD$1041,0))/$EG17 -> 0.00025 | DE17: =SUM(IF($W$71:$W$1041=$W17,$Y$71:$Y$1041*DE$71:DE$1041,0))/$EG17 -> 0.00036 | DF17: =SUM(IF($W$71:$W$1041=$W17,$Y$71:$Y$1041*DF$71:DF$1041,0))/$EG17 -> 0.00033 | DG17: =SUM(IF($W$71:$W$1041=$W17,$Y$71:$Y$1041*DG$71:DG$1041,0))/$EG17 -> 0.00042 | DH17: =SUM(IF($W$71:$W$1041=$W17,$Y$71:$Y$1041*DH$71:DH$1041,0))/$EG17 -> 0.00036 | DI17: =SUM(IF($W$71:$W$1041=$W17,$Y$71:$Y$1041*DI$71:DI$1041,0))/$EG17 -> 0.00043 | DJ17: =SUM(IF($W$71:$W$1041=$W17,$Y$71:$Y$1041*DJ$71:DJ$1041,0))/$EG17 -> 0.00051 | DK17: =SUM(IF($W$71:$W$1041=$W17,$Y$71:$Y$1041*DK$71:DK$1041,0))/$EG17 -> 0.00058 | DL17: =SUM(IF($W$71:$W$1041=$W17,$Y$71:$Y$1041*DL$71:DL$1041,0))/$EG17 -> 0.00067 | DM17: =SUM(IF($W$71:$W$1041=$W17,$Y$71:$Y$1041*DM$71:DM$1041,0))/$EG17 -> 0.0007 | DN17: =SUM(IF($W$71:$W$1041=$W17,$Y$71:$Y$1041*DN$71:DN$1041,0))/$EG17 -> 0.00075 | DO17: =SUM(IF($W$71:$W$1041=$W17,$Y$71:$Y$1041*DO$71:DO$1041,0))/$EG17 -> 0.00076 | DP17: =SUM(IF($W$71:$W$1041=$W17,$Y$71:$Y$1041*DP$71:DP$1041,0))/$EG17 -> 0.00079 | DQ17: =SUM(IF($W$71:$W$1041=$W17,$Y$71:$Y$1041*DQ$71:DQ$1041,0))/$EG17 -> 0.00061 | DR17: =SUM(IF($W$71:$W$1041=$W17,$Y$71:$Y$1041*DR$71:DR$1041,0))/$EG17 -> 0.00024 | DS17: =SUM(IF($W$71:$W$1041=$W17,$Y$71:$Y$1041*DS$71:DS$1041,0))/$EG17 -> -0.0003 | DT17: =SUM(IF($W$71:$W$1041=$W17,$Y$71:$Y$1041*DT$71:DT$1041,0))/$EG17 -> -0.00088 | DU17: =SUM(IF($W$71:$W$1041=$W17,$Y$71:$Y$1041*DU$71:DU$1041,0))/$EG17 -> -0.00115 | DV17: =SUM(IF($W$71:$W$1041=$W17,$Y$71:$Y$1041*DV$71:DV$1041,0))/$EG17 -> -0.00128 | DW17: =SUM(IF($W$71:$W$1041=$W17,$Y$71:$Y$1041*DW$71:DW$1041,0))/$EG17 -> -0.00144 | DX17: =SUM(IF($W$71:$W$1041=$W17,$Y$71:$Y$1041*DX$71:DX$1041,0))/$EG17 -> -0.00124 | DY17: =SUM(IF($W$71:$W$1041=$W17,$Y$71:$Y$1041*DY$71:DY$1041,0))/$EG17 -> -0.00096 | DZ17: =SUM(IF($W$71:$W$1041=$W17,$Y$71:$Y$1041*DZ$71:DZ$1041,0))/$EG17 -> -0.00047 | EA17: =SUM(IF($W$71:$W$1041=$W17,$Y$71:$Y$1041*EA$71:EA$1041,0))/$EG17 -> -1e-05 | EB17: =SUM(IF($W$71:$W$1041=$W17,$Y$71:$Y$1041*EB$71:EB$1041,0))/$EG17 -> 0.00025 | EC17: =SUM(IF($W$71:$W$1041=$W17,$Y$71:$Y$1041*EC$71:EC$1041,0))/$EG17 -> 0.00036 | ED17: =SUM(IF($W$71:$W$1041=$W17,$Y$71:$Y$1041*ED$71:ED$1041,0))/$EG17 -> 0.00033 | EE17: 187 | EF17: 206 | EG17: 1
A18: 1900-08-01 | B18: 1900-08-08 | C18: =IF(24 - MATCH(Pasture!$C$8,table_PeriodStarts,0) < ROW() - ROW($D$4), "* ", "")&TEXT(INDIRECT("$A"&MOD(ROW()-ROW($D$4)+MATCH(Pasture!$C$8,table_PeriodStarts,0) - 1, 24) + ROW($D$4)),"d mmm") -> 1 Aug | D18: =INDIRECT("$A"&MOD(ROW()-ROW($D$4)+MATCH(Pasture!$C$8,table_PeriodStarts,0) - 1, 24) + ROW($D$4)) -> 1900-08-01 | F18: Trading classes - cattle | G18: Trading classes - sheep | H18: SRW scalar | I18: 0.6 | K18: 0.15 | N18: C(P,8) | O18: 4.11 | P18: 4.11 | Q18: 4.11 | R18: 4.11 | S18: 4.11 | T18: 4.33 | U18: 4.33 | W18: 15 | X18: VIC - Mallee (Carwarp) | Y18: -34.45 | Z18: =SUM(IF($W$71:$W$1041=$W18,$Y$71:$Y$1041*Z$71:Z$1041,0))/$EG18 -> 0.1970873786 | AA18: =SUM(IF($W$71:$W$1041=$W18,$Y$71:$Y$1041*AA$71:AA$1041,0))/$EG18 -> 0.3623541896 | AB18: =SUM(IF($W$71:$W$1041=$W18,$Y$71:$Y$1041*AB$71:AB$1041,0))/$EG18 -> 0.3511539962 | AC18: =SUM(IF($W$71:$W$1041=$W18,$Y$71:$Y$1041*AC$71:AC$1041,0))/$EG18 -> 0.1327609067 | AD18: =SUM(IF($W$71:$W$1041=$W18,$Y$71:$Y$1041*AD$71:AD$1041,0))/$EG18 -> 4.930986029 | AE18: =SUM(IF($W$71:$W$1041=$W18,$Y$71:$Y$1041*AE$71:AE$1041,0))/$EG18 -> 9.784252324 | AF18: =SUM(IF($W$71:$W$1041=$W18,$Y$71:$Y$1041*AF$71:AF$1041,0))/$EG18 -> 14.61564246 | AG18: =SUM(IF($W$71:$W$1041=$W18,$Y$71:$Y$1041*AG$71:AG$1041,0))/$EG18 -> 14.61686734 | AH18: =SUM(IF($W$71:$W$1041=$W18,$Y$71:$Y$1041*AH$71:AH$1041,0))/$EG18 -> 29.24495162 | AI18: =SUM(IF($W$71:$W$1041=$W18,$Y$71:$Y$1041*AI$71:AI$1041,0))/$EG18 -> 44.01081672 | AJ18: =SUM(IF($W$71:$W$1041=$W18,$Y$71:$Y$1041*AJ$71:AJ$1041,0))/$EG18 -> 20.05483007 | AK18: =SUM(IF($W$71:$W$1041=$W18,$Y$71:$Y$1041*AK$71:AK$1041,0))/$EG18 -> 10.36061916 | AL18: =SUM(IF($W$71:$W$1041=$W18,$Y$71:$Y$1041*AL$71:AL$1041,0))/$EG18 -> 0.4659965689 | AM18: =SUM(IF($W$71:$W$1041=$W18,$Y$71:$Y$1041*AM$71:AM$1041,0))/$EG18 -> 0.6925381415 | AN18: =SUM(IF($W$71:$W$1041=$W18,$Y$71:$Y$1041*AN$71:AN$1041,0))/$EG18 -> 0.6796393897 | AO18: =SUM(IF($W$71:$W$1041=$W18,$Y$71:$Y$1041*AO$71:AO$1041,0))/$EG18 -> 0.6752011096 | AP18: =SUM(IF($W$71:$W$1041=$W18,$Y$71:$Y$1041*AP$71:AP$1041,0))/$EG18 -> 0.6573092926 | AQ18: =SUM(IF($W$71:$W$1041=$W18,$Y$71:$Y$1041*AQ$71:AQ$1041,0))/$EG18 -> 0.6573092926 | AR18: =SUM(IF($W$71:$W$1041=$W18,$Y$71:$Y$1041*AR$71:AR$1041,0))/$EG18 -> 0.7026629681 | AS18: =SUM(IF($W$71:$W$1041=$W18,$Y$71:$Y$1041*AS$71:AS$1041,0))/$EG18 -> 0.7234674064 | AT18: =SUM(IF($W$71:$W$1041=$W18,$Y$71:$Y$1041*AT$71:AT$1041,0))/$EG18 -> 0.7492649098 | AU18: =SUM(IF($W$71:$W$1041=$W18,$Y$71:$Y$1041*AU$71:AU$1041,0))/$EG18 -> 0.7620249653 | AV18: =SUM(IF($W$71:$W$1041=$W18,$Y$71:$Y$1041*AV$71:AV$1041,0))/$EG18 -> 0.7693758669 | AW18: =SUM(IF($W$71:$W$1041=$W18,$Y$71:$Y$1041*AW$71:AW$1041,0))/$EG18 -> 0.774368932 | AX18: =SUM(IF($W$71:$W$1041=$W18,$Y$71:$Y$1041*AX$71:AX$1041,0))/$EG18 -> 0.7722884882 | AY18: =SUM(IF($W$71:$W$1041=$W18,$Y$71:$Y$1041*AY$71:AY$1041,0))/$EG18 -> 0.7577253814 | AZ18: =SUM(IF($W$71:$W$1041=$W18,$Y$71:$Y$1041*AZ$71:AZ$1041,0))/$EG18 -> 0.7414979196 | BA18: =SUM(IF($W$71:$W$1041=$W18,$Y$71:$Y$1041*BA$71:BA$1041,0))/$EG18 -> 0.7365048544 | BB18: =SUM(IF($W$71:$W$1041=$W18,$Y$71:$Y$1041*BB$71:BB$1041,0))/$EG18 -> 0.7452427184 | BC18: =SUM(IF($W$71:$W$1041=$W18,$Y$71:$Y$1041*BC$71:BC$1041,0))/$EG18 -> 0.7592510402 | BD18: =SUM(IF($W$71:$W$1041=$W18,$Y$71:$Y$1041*BD$71:BD$1041,0))/$EG18 -> 0.7720110957 | BE18: =SUM(IF($W$71:$W$1041=$W18,$Y$71:$Y$1041*BE$71:BE$1041,0))/$EG18 -> 0.773814147 | BF18: =SUM(IF($W$71:$W$1041=$W18,$Y$71:$Y$1041*BF$71:BF$1041,0))/$EG18 -> 0.7632732316 | BG18: =SUM(IF($W$71:$W$1041=$W18,$Y$71:$Y$1041*BG$71:BG$1041,0))/$EG18 -> 0.7577253814 | BH18: =SUM(IF($W$71:$W$1041=$W18,$Y$71:$Y$1041*BH$71:BH$1041,0))/$EG18 -> 0.7410818308 | BI18: =SUM(IF($W$71:$W$1041=$W18,$Y$71:$Y$1041*BI$71:BI$1041,0))/$EG18 -> 0.7365048544 | BJ18: =SUM(IF($W$71:$W$1041=$W18,$Y$71:$Y$1041*BJ$71:BJ$1041,0))/$EG18 -> 0.7287378641 | BK18: =SUM(IF($W$71:$W$1041=$W18,$Y$71:$Y$1041*BK$71:BK$1041,0))/$EG18 -> 0.7090776699 | BL18: =SUM(IF($W$71:$W$1041=$W18,$Y$71:$Y$1041*BL$71:BL$1041,0))/$EG18 -> 0.6943932039 | BM18: =SUM(IF($W$71:$W$1041=$W18,$Y$71:$Y$1041*BM$71:BM$1041,0))/$EG18 -> 0.6860194175 | BN18: =SUM(IF($W$71:$W$1041=$W18,$Y$71:$Y$1041*BN$71:BN$1041,0))/$EG18 -> 0.6659951456 | BO18: =SUM(IF($W$71:$W$1041=$W18,$Y$71:$Y$1041*BO$71:BO$1041,0))/$EG18 -> 0.6646601942 | BP18: =SUM(IF($W$71:$W$1041=$W18,$Y$71:$Y$1041*BP$71:BP$1041,0))/$EG18 -> 0.717815534 | BQ18: =SUM(IF($W$71:$W$1041=$W18,$Y$71:$Y$1041*BQ$71:BQ$1041,0))/$EG18 -> 0.7383252427 | BR18: =SUM(IF($W$71:$W$1041=$W18,$Y$71:$Y$1041*BR$71:BR$1041,0))/$EG18 -> 0.7615048544 | BS18: =SUM(IF($W$71:$W$1041=$W18,$Y$71:$Y$1041*BS$71:BS$1041,0))/$EG18 -> 0.7704854369 | BT18: =SUM(IF($W$71:$W$1041=$W18,$Y$71:$Y$1041*BT$71:BT$1041,0))/$EG18 -> 0.7753398058 | BU18: =SUM(IF($W$71:$W$1041=$W18,$Y$71:$Y$1041*BU$71:BU$1041,0))/$EG18 -> 0.7788592233 | BV18: =SUM(IF($W$71:$W$1041=$W18,$Y$71:$Y$1041*BV$71:BV$1041,0))/$EG18 -> 0.7772815534 | BW18: =SUM(IF($W$71:$W$1041=$W18,$Y$71:$Y$1041*BW$71:BW$1041,0))/$EG18 -> 0.7684223301 | BX18: =SUM(IF($W$71:$W$1041=$W18,$Y$71:$Y$1041*BX$71:BX$1041,0))/$EG18 -> 0.7560436893 | BY18: =SUM(IF($W$71:$W$1041=$W18,$Y$71:$Y$1041*BY$71:BY$1041,0))/$EG18 -> 0.752038835 | BZ18: =SUM(IF($W$71:$W$1041=$W18,$Y$71:$Y$1041*BZ$71:BZ$1041,0))/$EG18 -> 0.7594417476 | CA18: =SUM(IF($W$71:$W$1041=$W18,$Y$71:$Y$1041*CA$71:CA$1041,0))/$EG18 -> 0.7707281553 | CB18: =SUM(IF($W$71:$W$1041=$W18,$Y$71:$Y$1041*CB$71:CB$1041,0))/$EG18 -> 0.7798300971 | CC18: =SUM(IF($W$71:$W$1041=$W18,$Y$71:$Y$1041*CC$71:CC$1041,0))/$EG18 -> 0.7809223301 | CD18: =SUM(IF($W$71:$W$1041=$W18,$Y$71:$Y$1041*CD$71:CD$1041,0))/$EG18 -> 0.7748543689 | CE18: =SUM(IF($W$71:$W$1041=$W18,$Y$71:$Y$1041*CE$71:CE$1041,0))/$EG18 -> 0.7707281553 | CF18: =SUM(IF($W$71:$W$1041=$W18,$Y$71:$Y$1041*CF$71:CF$1041,0))/$EG18 -> 0.7558009709 | CG18: =SUM(IF($W$71:$W$1041=$W18,$Y$71:$Y$1041*CG$71:CG$1041,0))/$EG18 -> 0.7524029126 | CH18: =SUM(IF($W$71:$W$1041=$W18,$Y$71:$Y$1041*CH$71:CH$1041,0))/$EG18 -> 0.7487621359 | CI18: =SUM(IF($W$71:$W$1041=$W18,$Y$71:$Y$1041*CI$71:CI$1041,0))/$EG18 -> -0.0004013935346 | CJ18: =SUM(IF($W$71:$W$1041=$W18,$Y$71:$Y$1041*CJ$71:CJ$1041,0))/$EG18 -> -0.0007047342793 | CK18: =SUM(IF($W$71:$W$1041=$W18,$Y$71:$Y$1041*CK$71:CK$1041,0))/$EG18 -> -0.0009472533447 | CL18: =SUM(IF($W$71:$W$1041=$W18,$Y$71:$Y$1041*CL$71:CL$1041,0))/$EG18 -> -0.001327237384 | CM18: =SUM(IF($W$71:$W$1041=$W18,$Y$71:$Y$1041*CM$71:CM$1041,0))/$EG18 -> -0.001416427099 | CN18: =SUM(IF($W$71:$W$1041=$W18,$Y$71:$Y$1041*CN$71:CN$1041,0))/$EG18 -> -0.0006611432839 | CO18: =SUM(IF($W$71:$W$1041=$W18,$Y$71:$Y$1041*CO$71:CO$1041,0))/$EG18 -> -0.0002191924891 | CP18: =SUM(IF($W$71:$W$1041=$W18,$Y$71:$Y$1041*CP$71:CP$1041,0))/$EG18 -> 0.0003755112771 | CQ18: =SUM(IF($W$71:$W$1041=$W18,$Y$71:$Y$1041*CQ$71:CQ$1041,0))/$EG18 -> 0.0006786674064 | CR18: =SUM(IF($W$71:$W$1041=$W18,$Y$71:$Y$1041*CR$71:CR$1041,0))/$EG18 -> 0.0008484964046 | CS18: =SUM(IF($W$71:$W$1041=$W18,$Y$71:$Y$1041*CS$71:CS$1041,0))/$EG18 -> 0.0009315815214 | CT18: =SUM(IF($W$71:$W$1041=$W18,$Y$71:$Y$1041*CT$71:CT$1041,0))/$EG18 -> 0.0008561168463 | CU18: =SUM(IF($W$71:$W$1041=$W18,$Y$71:$Y$1041*CU$71:CU$1041,0))/$EG18 -> 0.000593376635 | CV18: =SUM(IF($W$71:$W$1041=$W18,$Y$71:$Y$1041*CV$71:CV$1041,0))/$EG18 -> 0.0003267523312 | CW18: =SUM(IF($W$71:$W$1041=$W18,$Y$71:$Y$1041*CW$71:CW$1041,0))/$EG18 -> 0.0002464728049 | CX18: =SUM(IF($W$71:$W$1041=$W18,$Y$71:$Y$1041*CX$71:CX$1041,0))/$EG18 -> 0.0003987126427 | CY18: =SUM(IF($W$71:$W$1041=$W18,$Y$71:$Y$1041*CY$71:CY$1041,0))/$EG18 -> 0.0006593232476 | CZ18: =SUM(IF($W$71:$W$1041=$W18,$Y$71:$Y$1041*CZ$71:CZ$1041,0))/$EG18 -> 0.0009127753334 | DA18: =SUM(IF($W$71:$W$1041=$W18,$Y$71:$Y$1041*DA$71:DA$1041,0))/$EG18 -> 0.0009655056865 | DB18: =SUM(IF($W$71:$W$1041=$W18,$Y$71:$Y$1041*DB$71:DB$1041,0))/$EG18 -> 0.0007672062307 | DC18: =SUM(IF($W$71:$W$1041=$W18,$Y$71:$Y$1041*DC$71:DC$1041,0))/$EG18 -> 0.0006261032327 | DD18: =SUM(IF($W$71:$W$1041=$W18,$Y$71:$Y$1041*DD$71:DD$1041,0))/$EG18 -> 0.0003539417476 | DE18: =SUM(IF($W$71:$W$1041=$W18,$Y$71:$Y$1041*DE$71:DE$1041,0))/$EG18 -> 0.0002847475942 | DF18: =SUM(IF($W$71:$W$1041=$W18,$Y$71:$Y$1041*DF$71:DF$1041,0))/$EG18 -> 0.000124795135 | DG18: =SUM(IF($W$71:$W$1041=$W18,$Y$71:$Y$1041*DG$71:DG$1041,0))/$EG18 -> -0.0001930282016 | DH18: =SUM(IF($W$71:$W$1041=$W18,$Y$71:$Y$1041*DH$71:DH$1041,0))/$EG18 -> -0.0004133888118 | DI18: =SUM(IF($W$71:$W$1041=$W18,$Y$71:$Y$1041*DI$71:DI$1041,0))/$EG18 -> -0.0006138696255 | DJ18: =SUM(IF($W$71:$W$1041=$W18,$Y$71:$Y$1041*DJ$71:DJ$1041,0))/$EG18 -> -0.001213684697 | DK18: =SUM(IF($W$71:$W$1041=$W18,$Y$71:$Y$1041*DK$71:DK$1041,0))/$EG18 -> -0.001356893204 | DL18: =SUM(IF($W$71:$W$1041=$W18,$Y$71:$Y$1041*DL$71:DL$1041,0))/$EG18 -> -6.624133148e-05 | DM18: =SUM(IF($W$71:$W$1041=$W18,$Y$71:$Y$1041*DM$71:DM$1041,0))/$EG18 -> 0.0004565141008 | DN18: =SUM(IF($W$71:$W$1041=$W18,$Y$71:$Y$1041*DN$71:DN$1041,0))/$EG18 -> 0.001131299122 | DO18: =SUM(IF($W$71:$W$1041=$W18,$Y$71:$Y$1041*DO$71:DO$1041,0))/$EG18 -> 0.001367619048 | DP18: =SUM(IF($W$71:$W$1041=$W18,$Y$71:$Y$1041*DP$71:DP$1041,0))/$EG18 -> 0.00147445215 | DQ18: =SUM(IF($W$71:$W$1041=$W18,$Y$71:$Y$1041*DQ$71:DQ$1041,0))/$EG18 -> 0.001446232085 | DR18: =SUM(IF($W$71:$W$1041=$W18,$Y$71:$Y$1041*DR$71:DR$1041,0))/$EG18 -> 0.001287489598 | DS18: =SUM(IF($W$71:$W$1041=$W18,$Y$71:$Y$1041*DS$71:DS$1041,0))/$EG18 -> 0.0009774387425 | DT18: =SUM(IF($W$71:$W$1041=$W18,$Y$71:$Y$1041*DT$71:DT$1041,0))/$EG18 -> 0.0006078594545 | DU18: =SUM(IF($W$71:$W$1041=$W18,$Y$71:$Y$1041*DU$71:DU$1041,0))/$EG18 -> 0.0004758576052 | DV18: =SUM(IF($W$71:$W$1041=$W18,$Y$71:$Y$1041*DV$71:DV$1041,0))/$EG18 -> 0.0006342302358 | DW18: =SUM(IF($W$71:$W$1041=$W18,$Y$71:$Y$1041*DW$71:DW$1041,0))/$EG18 -> 0.0008476745261 | DX18: =SUM(IF($W$71:$W$1041=$W18,$Y$71:$Y$1041*DX$71:DX$1041,0))/$EG18 -> 0.001011188165 | DY18: =SUM(IF($W$71:$W$1041=$W18,$Y$71:$Y$1041*DY$71:DY$1041,0))/$EG18 -> 0.0009549699491 | DZ18: =SUM(IF($W$71:$W$1041=$W18,$Y$71:$Y$1041*DZ$71:DZ$1041,0))/$EG18 -> 0.0007164678687 | EA18: =SUM(IF($W$71:$W$1041=$W18,$Y$71:$Y$1041*EA$71:EA$1041,0))/$EG18 -> 0.0005376791493 | EB18: =SUM(IF($W$71:$W$1041=$W18,$Y$71:$Y$1041*EB$71:EB$1041,0))/$EG18 -> 0.000172482663 | EC18: =SUM(IF($W$71:$W$1041=$W18,$Y$71:$Y$1041*EC$71:EC$1041,0))/$EG18 -> -5.148404993e-05 | ED18: =SUM(IF($W$71:$W$1041=$W18,$Y$71:$Y$1041*ED$71:ED$1041,0))/$EG18 -> -0.0007544151641 | EE18: 207 | EF18: 211 | EG18: 1.03
A19: 1900-08-16 | B19: 1900-08-23 | C19: =IF(24 - MATCH(Pasture!$C$8,table_PeriodStarts,0) < ROW() - ROW($D$4), "* ", "")&TEXT(INDIRECT("$A"&MOD(ROW()-ROW($D$4)+MATCH(Pasture!$C$8,table_PeriodStarts,0) - 1, 24) + ROW($D$4)),"d mmm") -> 16 Aug | D19: =INDIRECT("$A"&MOD(ROW()-ROW($D$4)+MATCH(Pasture!$C$8,table_PeriodStarts,0) - 1, 24) + ROW($D$4)) -> 1900-08-16 | F19: Dry cows or heifers | G19: Dry ewes | H19: 1 | I19: 0.7 | K19: 0.2 | N19: C(P,9) | O19: 343.5 | P19: 343.5 | Q19: 343.5 | R19: 343.5 | S19: 343.5 | T19: 4.37 | U19: 4.37 | W19: 16 | X19: VIC - Western (Hamilton) | Y19: -37.8 | Z19: =SUM(IF($W$71:$W$1041=$W19,$Y$71:$Y$1041*Z$71:Z$1041,0))/$EG19 -> 0.2 | AA19: =SUM(IF($W$71:$W$1041=$W19,$Y$71:$Y$1041*AA$71:AA$1041,0))/$EG19 -> 2.5 | AB19: =SUM(IF($W$71:$W$1041=$W19,$Y$71:$Y$1041*AB$71:AB$1041,0))/$EG19 -> 2.5 | AC19: =SUM(IF($W$71:$W$1041=$W19,$Y$71:$Y$1041*AC$71:AC$1041,0))/$EG19 -> 2.5 | AD19: =SUM(IF($W$71:$W$1041=$W19,$Y$71:$Y$1041*AD$71:AD$1041,0))/$EG19 -> 7 | AE19: =SUM(IF($W$71:$W$1041=$W19,$Y$71:$Y$1041*AE$71:AE$1041,0))/$EG19 -> 14 | AF19: =SUM(IF($W$71:$W$1041=$W19,$Y$71:$Y$1041*AF$71:AF$1041,0))/$EG19 -> 19.5 | AG19: =SUM(IF($W$71:$W$1041=$W19,$Y$71:$Y$1041*AG$71:AG$1041,0))/$EG19 -> 21 | AH19: =SUM(IF($W$71:$W$1041=$W19,$Y$71:$Y$1041*AH$71:AH$1041,0))/$EG19 -> 28.5 | AI19: =SUM(IF($W$71:$W$1041=$W19,$Y$71:$Y$1041*AI$71:AI$1041,0))/$EG19 -> 63.5 | AJ19: =SUM(IF($W$71:$W$1041=$W19,$Y$71:$Y$1041*AJ$71:AJ$1041,0))/$EG19 -> 90.5 | AK19: =SUM(IF($W$71:$W$1041=$W19,$Y$71:$Y$1041*AK$71:AK$1041,0))/$EG19 -> 64 | AL19: =SUM(IF($W$71:$W$1041=$W19,$Y$71:$Y$1041*AL$71:AL$1041,0))/$EG19 -> 12 | AM19: =SUM(IF($W$71:$W$1041=$W19,$Y$71:$Y$1041*AM$71:AM$1041,0))/$EG19 -> 0.75 | AN19: =SUM(IF($W$71:$W$1041=$W19,$Y$71:$Y$1041*AN$71:AN$1041,0))/$EG19 -> 0.69 | AO19: =SUM(IF($W$71:$W$1041=$W19,$Y$71:$Y$1041*AO$71:AO$1041,0))/$EG19 -> 0.65 | AP19: =SUM(IF($W$71:$W$1041=$W19,$Y$71:$Y$1041*AP$71:AP$1041,0))/$EG19 -> 0.63 | AQ19: =SUM(IF($W$71:$W$1041=$W19,$Y$71:$Y$1041*AQ$71:AQ$1041,0))/$EG19 -> 0.61 | AR19: =SUM(IF($W$71:$W$1041=$W19,$Y$71:$Y$1041*AR$71:AR$1041,0))/$EG19 -> 0.59 | AS19: =SUM(IF($W$71:$W$1041=$W19,$Y$71:$Y$1041*AS$71:AS$1041,0))/$EG19 -> 0.57 | AT19: =SUM(IF($W$71:$W$1041=$W19,$Y$71:$Y$1041*AT$71:AT$1041,0))/$EG19 -> 0.56 | AU19: =SUM(IF($W$71:$W$1041=$W19,$Y$71:$Y$1041*AU$71:AU$1041,0))/$EG19 -> 0.57 | AV19: =SUM(IF($W$71:$W$1041=$W19,$Y$71:$Y$1041*AV$71:AV$1041,0))/$EG19 -> 0.59 | AW19: =SUM(IF($W$71:$W$1041=$W19,$Y$71:$Y$1041*AW$71:AW$1041,0))/$EG19 -> 0.62 | AX19: =SUM(IF($W$71:$W$1041=$W19,$Y$71:$Y$1041*AX$71:AX$1041,0))/$EG19 -> 0.65 | AY19: =SUM(IF($W$71:$W$1041=$W19,$Y$71:$Y$1041*AY$71:AY$1041,0))/$EG19 -> 0.69 | AZ19: =SUM(IF($W$71:$W$1041=$W19,$Y$71:$Y$1041*AZ$71:AZ$1041,0))/$EG19 -> 0.74 | BA19: =SUM(IF($W$71:$W$1041=$W19,$Y$71:$Y$1041*BA$71:BA$1041,0))/$EG19 -> 0.77 | BB19: =SUM(IF($W$71:$W$1041=$W19,$Y$71:$Y$1041*BB$71:BB$1041,0))/$EG19 -> 0.79 | BC19: =SUM(IF($W$71:$W$1041=$W19,$Y$71:$Y$1041*BC$71:BC$1041,0))/$EG19 -> 0.8 | BD19: =SUM(IF($W$71:$W$1041=$W19,$Y$71:$Y$1041*BD$71:BD$1041,0))/$EG19 -> 0.81 | BE19: =SUM(IF($W$71:$W$1041=$W19,$Y$71:$Y$1041*BE$71:BE$1041,0))/$EG19 -> 0.81 | BF19: =SUM(IF($W$71:$W$1041=$W19,$Y$71:$Y$1041*BF$71:BF$1041,0))/$EG19 -> 0.81 | BG19: =SUM(IF($W$71:$W$1041=$W19,$Y$71:$Y$1041*BG$71:BG$1041,0))/$EG19 -> 0.81 | BH19: =SUM(IF($W$71:$W$1041=$W19,$Y$71:$Y$1041*BH$71:BH$1041,0))/$EG19 -> 0.81 | BI19: =SUM(IF($W$71:$W$1041=$W19,$Y$71:$Y$1041*BI$71:BI$1041,0))/$EG19 -> 0.8 | BJ19: =SUM(IF($W$71:$W$1041=$W19,$Y$71:$Y$1041*BJ$71:BJ$1041,0))/$EG19 -> 0.79 | BK19: =SUM(IF($W$71:$W$1041=$W19,$Y$71:$Y$1041*BK$71:BK$1041,0))/$EG19 -> 0.76 | BL19: =SUM(IF($W$71:$W$1041=$W19,$Y$71:$Y$1041*BL$71:BL$1041,0))/$EG19 -> 0.71 | BM19: =SUM(IF($W$71:$W$1041=$W19,$Y$71:$Y$1041*BM$71:BM$1041,0))/$EG19 -> 0.67 | BN19: =SUM(IF($W$71:$W$1041=$W19,$Y$71:$Y$1041*BN$71:BN$1041,0))/$EG19 -> 0.65 | BO19: =SUM(IF($W$71:$W$1041=$W19,$Y$71:$Y$1041*BO$71:BO$1041,0))/$EG19 -> 0.63 | BP19: =SUM(IF($W$71:$W$1041=$W19,$Y$71:$Y$1041*BP$71:BP$1041,0))/$EG19 -> 0.61 | BQ19: =SUM(IF($W$71:$W$1041=$W19,$Y$71:$Y$1041*BQ$71:BQ$1041,0))/$EG19 -> 0.59 | BR19: =SUM(IF($W$71:$W$1041=$W19,$Y$71:$Y$1041*BR$71:BR$1041,0))/$EG19 -> 0.58 | BS19: =SUM(IF($W$71:$W$1041=$W19,$Y$71:$Y$1041*BS$71:BS$1041,0))/$EG19 -> 0.59 | BT19: =SUM(IF($W$71:$W$1041=$W19,$Y$71:$Y$1041*BT$71:BT$1041,0))/$EG19 -> 0.61 | BU19: =SUM(IF($W$71:$W$1041=$W19,$Y$71:$Y$1041*BU$71:BU$1041,0))/$EG19 -> 0.63 | BV19: =SUM(IF($W$71:$W$1041=$W19,$Y$71:$Y$1041*BV$71:BV$1041,0))/$EG19 -> 0.66 | BW19: =SUM(IF($W$71:$W$1041=$W19,$Y$71:$Y$1041*BW$71:BW$1041,0))/$EG19 -> 0.7 | BX19: =SUM(IF($W$71:$W$1041=$W19,$Y$71:$Y$1041*BX$71:BX$1041,0))/$EG19 -> 0.74 | BY19: =SUM(IF($W$71:$W$1041=$W19,$Y$71:$Y$1041*BY$71:BY$1041,0))/$EG19 -> 0.78 | BZ19: =SUM(IF($W$71:$W$1041=$W19,$Y$71:$Y$1041*BZ$71:BZ$1041,0))/$EG19 -> 0.8 | CA19: =SUM(IF($W$71:$W$1041=$W19,$Y$71:$Y$1041*CA$71:CA$1041,0))/$EG19 -> 0.81 | CB19: =SUM(IF($W$71:$W$1041=$W19,$Y$71:$Y$1041*CB$71:CB$1041,0))/$EG19 -> 0.81 | CC19: =SUM(IF($W$71:$W$1041=$W19,$Y$71:$Y$1041*CC$71:CC$1041,0))/$EG19 -> 0.81 | CD19: =SUM(IF($W$71:$W$1041=$W19,$Y$71:$Y$1041*CD$71:CD$1041,0))/$EG19 -> 0.82 | CE19: =SUM(IF($W$71:$W$1041=$W19,$Y$71:$Y$1041*CE$71:CE$1041,0))/$EG19 -> 0.82 | CF19: =SUM(IF($W$71:$W$1041=$W19,$Y$71:$Y$1041*CF$71:CF$1041,0))/$EG19 -> 0.81 | CG19: =SUM(IF($W$71:$W$1041=$W19,$Y$71:$Y$1041*CG$71:CG$1041,0))/$EG19 -> 0.81 | CH19: =SUM(IF($W$71:$W$1041=$W19,$Y$71:$Y$1041*CH$71:CH$1041,0))/$EG19 -> 0.8 | CI19: =SUM(IF($W$71:$W$1041=$W19,$Y$71:$Y$1041*CI$71:CI$1041,0))/$EG19 -> 0.00043 | CJ19: =SUM(IF($W$71:$W$1041=$W19,$Y$71:$Y$1041*CJ$71:CJ$1041,0))/$EG19 -> -0.00029 | CK19: =SUM(IF($W$71:$W$1041=$W19,$Y$71:$Y$1041*CK$71:CK$1041,0))/$EG19 -> -0.00071 | CL19: =SUM(IF($W$71:$W$1041=$W19,$Y$71:$Y$1041*CL$71:CL$1041,0))/$EG19 -> -0.00093 | CM19: =SUM(IF($W$71:$W$1041=$W19,$Y$71:$Y$1041*CM$71:CM$1041,0))/$EG19 -> -0.00132 | CN19: =SUM(IF($W$71:$W$1041=$W19,$Y$71:$Y$1041*CN$71:CN$1041,0))/$EG19 -> -0.00157 | CO19: =SUM(IF($W$71:$W$1041=$W19,$Y$71:$Y$1041*CO$71:CO$1041,0))/$EG19 -> -0.00176 | CP19: =SUM(IF($W$71:$W$1041=$W19,$Y$71:$Y$1041*CP$71:CP$1041,0))/$EG19 -> -0.00178 | CQ19: =SUM(IF($W$71:$W$1041=$W19,$Y$71:$Y$1041*CQ$71:CQ$1041,0))/$EG19 -> -0.00157 | CR19: =SUM(IF($W$71:$W$1041=$W19,$Y$71:$Y$1041*CR$71:CR$1041,0))/$EG19 -> -0.00137 | CS19: =SUM(IF($W$71:$W$1041=$W19,$Y$71:$Y$1041*CS$71:CS$1041,0))/$EG19 -> -0.00105 | CT19: =SUM(IF($W$71:$W$1041=$W19,$Y$71:$Y$1041*CT$71:CT$1041,0))/$EG19 -> -0.00066 | CU19: =SUM(IF($W$71:$W$1041=$W19,$Y$71:$Y$1041*CU$71:CU$1041,0))/$EG19 -> -0.00016 | CV19: =SUM(IF($W$71:$W$1041=$W19,$Y$71:$Y$1041*CV$71:CV$1041,0))/$EG19 -> 0.00032 | CW19: =SUM(IF($W$71:$W$1041=$W19,$Y$71:$Y$1041*CW$71:CW$1041,0))/$EG19 -> 0.00069 | CX19: =SUM(IF($W$71:$W$1041=$W19,$Y$71:$Y$1041*CX$71:CX$1041,0))/$EG19 -> 0.00104 | CY19: =SUM(IF($W$71:$W$1041=$W19,$Y$71:$Y$1041*CY$71:CY$1041,0))/$EG19 -> 0.00134 | CZ19: =SUM(IF($W$71:$W$1041=$W19,$Y$71:$Y$1041*CZ$71:CZ$1041,0))/$EG19 -> 0.00156 | DA19: =SUM(IF($W$71:$W$1041=$W19,$Y$71:$Y$1041*DA$71:DA$1041,0))/$EG19 -> 0.00165 | DB19: =SUM(IF($W$71:$W$1041=$W19,$Y$71:$Y$1041*DB$71:DB$1041,0))/$EG19 -> 0.00172 | DC19: =SUM(IF($W$71:$W$1041=$W19,$Y$71:$Y$1041*DC$71:DC$1041,0))/$EG19 -> 0.00169 | DD19: =SUM(IF($W$71:$W$1041=$W19,$Y$71:$Y$1041*DD$71:DD$1041,0))/$EG19 -> 0.00157 | DE19: =SUM(IF($W$71:$W$1041=$W19,$Y$71:$Y$1041*DE$71:DE$1041,0))/$EG19 -> 0.00136 | DF19: =SUM(IF($W$71:$W$1041=$W19,$Y$71:$Y$1041*DF$71:DF$1041,0))/$EG19 -> 0.00104 | DG19: =SUM(IF($W$71:$W$1041=$W19,$Y$71:$Y$1041*DG$71:DG$1041,0))/$EG19 -> 0.00055 | DH19: =SUM(IF($W$71:$W$1041=$W19,$Y$71:$Y$1041*DH$71:DH$1041,0))/$EG19 -> -0.00034 | DI19: =SUM(IF($W$71:$W$1041=$W19,$Y$71:$Y$1041*DI$71:DI$1041,0))/$EG19 -> -0.00076 | DJ19: =SUM(IF($W$71:$W$1041=$W19,$Y$71:$Y$1041*DJ$71:DJ$1041,0))/$EG19 -> -0.00091 | DK19: =SUM(IF($W$71:$W$1041=$W19,$Y$71:$Y$1041*DK$71:DK$1041,0))/$EG19 -> -0.00126 | DL19: =SUM(IF($W$71:$W$1041=$W19,$Y$71:$Y$1041*DL$71:DL$1041,0))/$EG19 -> -0.00151 | DM19: =SUM(IF($W$71:$W$1041=$W19,$Y$71:$Y$1041*DM$71:DM$1041,0))/$EG19 -> -0.00181 | DN19: =SUM(IF($W$71:$W$1041=$W19,$Y$71:$Y$1041*DN$71:DN$1041,0))/$EG19 -> -0.00194 | DO19: =SUM(IF($W$71:$W$1041=$W19,$Y$71:$Y$1041*DO$71:DO$1041,0))/$EG19 -> -0.00161 | DP19: =SUM(IF($W$71:$W$1041=$W19,$Y$71:$Y$1041*DP$71:DP$1041,0))/$EG19 -> -0.00134 | DQ19: =SUM(IF($W$71:$W$1041=$W19,$Y$71:$Y$1041*DQ$71:DQ$1041,0))/$EG19 -> -0.00103 | DR19: =SUM(IF($W$71:$W$1041=$W19,$Y$71:$Y$1041*DR$71:DR$1041,0))/$EG19 -> -0.00054 | DS19: =SUM(IF($W$71:$W$1041=$W19,$Y$71:$Y$1041*DS$71:DS$1041,0))/$EG19 -> 0.00012 | DT19: =SUM(IF($W$71:$W$1041=$W19,$Y$71:$Y$1041*DT$71:DT$1041,0))/$EG19 -> 0.00077 | DU19: =SUM(IF($W$71:$W$1041=$W19,$Y$71:$Y$1041*DU$71:DU$1041,0))/$EG19 -> 0.00123 | DV19: =SUM(IF($W$71:$W$1041=$W19,$Y$71:$Y$1041*DV$71:DV$1041,0))/$EG19 -> 0.00168 | DW19: =SUM(IF($W$71:$W$1041=$W19,$Y$71:$Y$1041*DW$71:DW$1041,0))/$EG19 -> 0.00196 | DX19: =SUM(IF($W$71:$W$1041=$W19,$Y$71:$Y$1041*DX$71:DX$1041,0))/$EG19 -> 0.00212 | DY19: =SUM(IF($W$71:$W$1041=$W19,$Y$71:$Y$1041*DY$71:DY$1041,0))/$EG19 -> 0.00215 | DZ19: =SUM(IF($W$71:$W$1041=$W19,$Y$71:$Y$1041*DZ$71:DZ$1041,0))/$EG19 -> 0.00213 | EA19: =SUM(IF($W$71:$W$1041=$W19,$Y$71:$Y$1041*EA$71:EA$1041,0))/$EG19 -> 0.00196 | EB19: =SUM(IF($W$71:$W$1041=$W19,$Y$71:$Y$1041*EB$71:EB$1041,0))/$EG19 -> 0.00172 | EC19: =SUM(IF($W$71:$W$1041=$W19,$Y$71:$Y$1041*EC$71:EC$1041,0))/$EG19 -> 0.00135 | ED19: =SUM(IF($W$71:$W$1041=$W19,$Y$71:$Y$1041*ED$71:ED$1041,0))/$EG19 -> 0.00049 | EE19: 212 | EF19: 225 | EG19: 1
A20: 1900-09-01 | B20: 1900-09-08 | C20: =IF(24 - MATCH(Pasture!$C$8,table_PeriodStarts,0) < ROW() - ROW($D$4), "* ", "")&TEXT(INDIRECT("$A"&MOD(ROW()-ROW($D$4)+MATCH(Pasture!$C$8,table_PeriodStarts,0) - 1, 24) + ROW($D$4)),"d mmm") -> 1 Sep | D20: =INDIRECT("$A"&MOD(ROW()-ROW($D$4)+MATCH(Pasture!$C$8,table_PeriodStarts,0) - 1, 24) + ROW($D$4)) -> 1900-09-01 | F20: Steers | G20: Wethers | H20: 1.2 | I20: 0.8 | K20: 0.25 | N20: C(P,10) | O20: 0.0164 | P20: 0.0164 | Q20: 0.0164 | R20: 0.0164 | S20: 0.0164 | T20: 0.965 | U20: 0.965 | W20: 17 | X20: VIC - Western (Balmoral) | Y20: -37.2 | Z20: =SUM(IF($W$71:$W$1041=$W20,$Y$71:$Y$1041*Z$71:Z$1041,0))/$EG20 -> 0.2 | AA20: =SUM(IF($W$71:$W$1041=$W20,$Y$71:$Y$1041*AA$71:AA$1041,0))/$EG20 -> 0 | AB20: =SUM(IF($W$71:$W$1041=$W20,$Y$71:$Y$1041*AB$71:AB$1041,0))/$EG20 -> 0 | AC20: =SUM(IF($W$71:$W$1041=$W20,$Y$71:$Y$1041*AC$71:AC$1041,0))/$EG20 -> 0 | AD20: =SUM(IF($W$71:$W$1041=$W20,$Y$71:$Y$1041*AD$71:AD$1041,0))/$EG20 -> 7 | AE20: =SUM(IF($W$71:$W$1041=$W20,$Y$71:$Y$1041*AE$71:AE$1041,0))/$EG20 -> 13.5 | AF20: =SUM(IF($W$71:$W$1041=$W20,$Y$71:$Y$1041*AF$71:AF$1041,0))/$EG20 -> 18 | AG20: =SUM(IF($W$71:$W$1041=$W20,$Y$71:$Y$1041*AG$71:AG$1041,0))/$EG20 -> 16.5 | AH20: =SUM(IF($W$71:$W$1041=$W20,$Y$71:$Y$1041*AH$71:AH$1041,0))/$EG20 -> 32.5 | AI20: =SUM(IF($W$71:$W$1041=$W20,$Y$71:$Y$1041*AI$71:AI$1041,0))/$EG20 -> 47.5 | AJ20: =SUM(IF($W$71:$W$1041=$W20,$Y$71:$Y$1041*AJ$71:AJ$1041,0))/$EG20 -> 60 | AK20: =SUM(IF($W$71:$W$1041=$W20,$Y$71:$Y$1041*AK$71:AK$1041,0))/$EG20 -> 52.5 | AL20: =SUM(IF($W$71:$W$1041=$W20,$Y$71:$Y$1041*AL$71:AL$1041,0))/$EG20 -> 3.5 | AM20: =SUM(IF($W$71:$W$1041=$W20,$Y$71:$Y$1041*AM$71:AM$1041,0))/$EG20 -> 0.7 | AN20: =SUM(IF($W$71:$W$1041=$W20,$Y$71:$Y$1041*AN$71:AN$1041,0))/$EG20 -> 0.65 | AO20: =SUM(IF($W$71:$W$1041=$W20,$Y$71:$Y$1041*AO$71:AO$1041,0))/$EG20 -> 0.63 | AP20: =SUM(IF($W$71:$W$1041=$W20,$Y$71:$Y$1041*AP$71:AP$1041,0))/$EG20 -> 0.61 | AQ20: =SUM(IF($W$71:$W$1041=$W20,$Y$71:$Y$1041*AQ$71:AQ$1041,0))/$EG20 -> 0.59 | AR20: =SUM(IF($W$71:$W$1041=$W20,$Y$71:$Y$1041*AR$71:AR$1041,0))/$EG20 -> 0.56 | AS20: =SUM(IF($W$71:$W$1041=$W20,$Y$71:$Y$1041*AS$71:AS$1041,0))/$EG20 -> 0.54 | AT20: =SUM(IF($W$71:$W$1041=$W20,$Y$71:$Y$1041*AT$71:AT$1041,0))/$EG20 -> 0.52 | AU20: =SUM(IF($W$71:$W$1041=$W20,$Y$71:$Y$1041*AU$71:AU$1041,0))/$EG20 -> 0.52 | AV20: =SUM(IF($W$71:$W$1041=$W20,$Y$71:$Y$1041*AV$71:AV$1041,0))/$EG20 -> 0.54 | AW20: =SUM(IF($W$71:$W$1041=$W20,$Y$71:$Y$1041*AW$71:AW$1041,0))/$EG20 -> 0.57 | AX20: =SUM(IF($W$71:$W$1041=$W20,$Y$71:$Y$1041*AX$71:AX$1041,0))/$EG20 -> 0.62 | AY20: =SUM(IF($W$71:$W$1041=$W20,$Y$71:$Y$1041*AY$71:AY$1041,0))/$EG20 -> 0.67 | AZ20: =SUM(IF($W$71:$W$1041=$W20,$Y$71:$Y$1041*AZ$71:AZ$1041,0))/$EG20 -> 0.73 | BA20: =SUM(IF($W$71:$W$1041=$W20,$Y$71:$Y$1041*BA$71:BA$1041,0))/$EG20 -> 0.77 | BB20: =SUM(IF($W$71:$W$1041=$W20,$Y$71:$Y$1041*BB$71:BB$1041,0))/$EG20 -> 0.79 | BC20: =SUM(IF($W$71:$W$1041=$W20,$Y$71:$Y$1041*BC$71:BC$1041,0))/$EG20 -> 0.8 | BD20: =SUM(IF($W$71:$W$1041=$W20,$Y$71:$Y$1041*BD$71:BD$1041,0))/$EG20 -> 0.81 | BE20: =SUM(IF($W$71:$W$1041=$W20,$Y$71:$Y$1041*BE$71:BE$1041,0))/$EG20 -> 0.81 | BF20: =SUM(IF($W$71:$W$1041=$W20,$Y$71:$Y$1041*BF$71:BF$1041,0))/$EG20 -> 0.81 | BG20: =SUM(IF($W$71:$W$1041=$W20,$Y$71:$Y$1041*BG$71:BG$1041,0))/$EG20 -> 0.81 | BH20: =SUM(IF($W$71:$W$1041=$W20,$Y$71:$Y$1041*BH$71:BH$1041,0))/$EG20 -> 0.8 | BI20: =SUM(IF($W$71:$W$1041=$W20,$Y$71:$Y$1041*BI$71:BI$1041,0))/$EG20 -> 0.79 | BJ20: =SUM(IF($W$71:$W$1041=$W20,$Y$71:$Y$1041*BJ$71:BJ$1041,0))/$EG20 -> 0.76 | BK20: =SUM(IF($W$71:$W$1041=$W20,$Y$71:$Y$1041*BK$71:BK$1041,0))/$EG20 -> 0.72 | BL20: =SUM(IF($W$71:$W$1041=$W20,$Y$71:$Y$1041*BL$71:BL$1041,0))/$EG20 -> 0.67 | BM20: =SUM(IF($W$71:$W$1041=$W20,$Y$71:$Y$1041*BM$71:BM$1041,0))/$EG20 -> 0.65 | BN20: =SUM(IF($W$71:$W$1041=$W20,$Y$71:$Y$1041*BN$71:BN$1041,0))/$EG20 -> 0.63 | BO20: =SUM(IF($W$71:$W$1041=$W20,$Y$71:$Y$1041*BO$71:BO$1041,0))/$EG20 -> 0.61 | BP20: =SUM(IF($W$71:$W$1041=$W20,$Y$71:$Y$1041*BP$71:BP$1041,0))/$EG20 -> 0.59 | BQ20: =SUM(IF($W$71:$W$1041=$W20,$Y$71:$Y$1041*BQ$71:BQ$1041,0))/$EG20 -> 0.56 | BR20: =SUM(IF($W$71:$W$1041=$W20,$Y$71:$Y$1041*BR$71:BR$1041,0))/$EG20 -> 0.54 | BS20: =SUM(IF($W$71:$W$1041=$W20,$Y$71:$Y$1041*BS$71:BS$1041,0))/$EG20 -> 0.54 | BT20: =SUM(IF($W$71:$W$1041=$W20,$Y$71:$Y$1041*BT$71:BT$1041,0))/$EG20 -> 0.56 | BU20: =SUM(IF($W$71:$W$1041=$W20,$Y$71:$Y$1041*BU$71:BU$1041,0))/$EG20 -> 0.59 | BV20: =SUM(IF($W$71:$W$1041=$W20,$Y$71:$Y$1041*BV$71:BV$1041,0))/$EG20 -> 0.64 | BW20: =SUM(IF($W$71:$W$1041=$W20,$Y$71:$Y$1041*BW$71:BW$1041,0))/$EG20 -> 0.68 | BX20: =SUM(IF($W$71:$W$1041=$W20,$Y$71:$Y$1041*BX$71:BX$1041,0))/$EG20 -> 0.73 | BY20: =SUM(IF($W$71:$W$1041=$W20,$Y$71:$Y$1041*BY$71:BY$1041,0))/$EG20 -> 0.77 | BZ20: =SUM(IF($W$71:$W$1041=$W20,$Y$71:$Y$1041*BZ$71:BZ$1041,0))/$EG20 -> 0.79 | CA20: =SUM(IF($W$71:$W$1041=$W20,$Y$71:$Y$1041*CA$71:CA$1041,0))/$EG20 -> 0.81 | CB20: =SUM(IF($W$71:$W$1041=$W20,$Y$71:$Y$1041*CB$71:CB$1041,0))/$EG20 -> 0.81 | CC20: =SUM(IF($W$71:$W$1041=$W20,$Y$71:$Y$1041*CC$71:CC$1041,0))/$EG20 -> 0.81 | CD20: =SUM(IF($W$71:$W$1041=$W20,$Y$71:$Y$1041*CD$71:CD$1041,0))/$EG20 -> 0.82 | CE20: =SUM(IF($W$71:$W$1041=$W20,$Y$71:$Y$1041*CE$71:CE$1041,0))/$EG20 -> 0.81 | CF20: =SUM(IF($W$71:$W$1041=$W20,$Y$71:$Y$1041*CF$71:CF$1041,0))/$EG20 -> 0.81 | CG20: =SUM(IF($W$71:$W$1041=$W20,$Y$71:$Y$1041*CG$71:CG$1041,0))/$EG20 -> 0.8 | CH20: =SUM(IF($W$71:$W$1041=$W20,$Y$71:$Y$1041*CH$71:CH$1041,0))/$EG20 -> 0.77 | CI20: =SUM(IF($W$71:$W$1041=$W20,$Y$71:$Y$1041*CI$71:CI$1041,0))/$EG20 -> -0.00016 | CJ20: =SUM(IF($W$71:$W$1041=$W20,$Y$71:$Y$1041*CJ$71:CJ$1041,0))/$EG20 -> -0.00057 | CK20: =SUM(IF($W$71:$W$1041=$W20,$Y$71:$Y$1041*CK$71:CK$1041,0))/$EG20 -> -0.00088 | CL20: =SUM(IF($W$71:$W$1041=$W20,$Y$71:$Y$1041*CL$71:CL$1041,0))/$EG20 -> -0.00107 | CM20: =SUM(IF($W$71:$W$1041=$W20,$Y$71:$Y$1041*CM$71:CM$1041,0))/$EG20 -> -0.00138 | CN20: =SUM(IF($W$71:$W$1041=$W20,$Y$71:$Y$1041*CN$71:CN$1041,0))/$EG20 -> -0.00168 | CO20: =SUM(IF($W$71:$W$1041=$W20,$Y$71:$Y$1041*CO$71:CO$1041,0))/$EG20 -> -0.00196 | CP20: =SUM(IF($W$71:$W$1041=$W20,$Y$71:$Y$1041*CP$71:CP$1041,0))/$EG20 -> -0.00213 | CQ20: =SUM(IF($W$71:$W$1041=$W20,$Y$71:$Y$1041*CQ$71:CQ$1041,0))/$EG20 -> -0.00206 | CR20: =SUM(IF($W$71:$W$1041=$W20,$Y$71:$Y$1041*CR$71:CR$1041,0))/$EG20 -> -0.00176 | CS20: =SUM(IF($W$71:$W$1041=$W20,$Y$71:$Y$1041*CS$71:CS$1041,0))/$EG20 -> -0.00129 | CT20: =SUM(IF($W$71:$W$1041=$W20,$Y$71:$Y$1041*CT$71:CT$1041,0))/$EG20 -> -0.00059 | CU20: =SUM(IF($W$71:$W$1041=$W20,$Y$71:$Y$1041*CU$71:CU$1041,0))/$EG20 -> -0.0001 | CV20: =SUM(IF($W$71:$W$1041=$W20,$Y$71:$Y$1041*CV$71:CV$1041,0))/$EG20 -> 0.00033 | CW20: =SUM(IF($W$71:$W$1041=$W20,$Y$71:$Y$1041*CW$71:CW$1041,0))/$EG20 -> 0.00085 | CX20: =SUM(IF($W$71:$W$1041=$W20,$Y$71:$Y$1041*CX$71:CX$1041,0))/$EG20 -> 0.00125 | CY20: =SUM(IF($W$71:$W$1041=$W20,$Y$71:$Y$1041*CY$71:CY$1041,0))/$EG20 -> 0.0016 | CZ20: =SUM(IF($W$71:$W$1041=$W20,$Y$71:$Y$1041*CZ$71:CZ$1041,0))/$EG20 -> 0.00183 | DA20: =SUM(IF($W$71:$W$1041=$W20,$Y$71:$Y$1041*DA$71:DA$1041,0))/$EG20 -> 0.00193 | DB20: =SUM(IF($W$71:$W$1041=$W20,$Y$71:$Y$1041*DB$71:DB$1041,0))/$EG20 -> 0.00196 | DC20: =SUM(IF($W$71:$W$1041=$W20,$Y$71:$Y$1041*DC$71:DC$1041,0))/$EG20 -> 0.00187 | DD20: =SUM(IF($W$71:$W$1041=$W20,$Y$71:$Y$1041*DD$71:DD$1041,0))/$EG20 -> 0.00164 | DE20: =SUM(IF($W$71:$W$1041=$W20,$Y$71:$Y$1041*DE$71:DE$1041,0))/$EG20 -> 0.00131 | DF20: =SUM(IF($W$71:$W$1041=$W20,$Y$71:$Y$1041*DF$71:DF$1041,0))/$EG20 -> 0.00073 | DG20: =SUM(IF($W$71:$W$1041=$W20,$Y$71:$Y$1041*DG$71:DG$1041,0))/$EG20 -> -6e-05 | DH20: =SUM(IF($W$71:$W$1041=$W20,$Y$71:$Y$1041*DH$71:DH$1041,0))/$EG20 -> -0.00056 | DI20: =SUM(IF($W$71:$W$1041=$W20,$Y$71:$Y$1041*DI$71:DI$1041,0))/$EG20 -> -0.00078 | DJ20: =SUM(IF($W$71:$W$1041=$W20,$Y$71:$Y$1041*DJ$71:DJ$1041,0))/$EG20 -> -0.00098 | DK20: =SUM(IF($W$71:$W$1041=$W20,$Y$71:$Y$1041*DK$71:DK$1041,0))/$EG20 -> -0.00126 | DL20: =SUM(IF($W$71:$W$1041=$W20,$Y$71:$Y$1041*DL$71:DL$1041,0))/$EG20 -> -0.00163 | DM20: =SUM(IF($W$71:$W$1041=$W20,$Y$71:$Y$1041*DM$71:DM$1041,0))/$EG20 -> -0.00199 | DN20: =SUM(IF($W$71:$W$1041=$W20,$Y$71:$Y$1041*DN$71:DN$1041,0))/$EG20 -> -0.00224 | DO20: =SUM(IF($W$71:$W$1041=$W20,$Y$71:$Y$1041*DO$71:DO$1041,0))/$EG20 -> -0.00224 | DP20: =SUM(IF($W$71:$W$1041=$W20,$Y$71:$Y$1041*DP$71:DP$1041,0))/$EG20 -> -0.00205 | DQ20: =SUM(IF($W$71:$W$1041=$W20,$Y$71:$Y$1041*DQ$71:DQ$1041,0))/$EG20 -> -0.0015 | DR20: =SUM(IF($W$71:$W$1041=$W20,$Y$71:$Y$1041*DR$71:DR$1041,0))/$EG20 -> -0.00073 | DS20: =SUM(IF($W$71:$W$1041=$W20,$Y$71:$Y$1041*DS$71:DS$1041,0))/$EG20 -> 0.00017 | DT20: =SUM(IF($W$71:$W$1041=$W20,$Y$71:$Y$1041*DT$71:DT$1041,0))/$EG20 -> 0.00091 | DU20: =SUM(IF($W$71:$W$1041=$W20,$Y$71:$Y$1041*DU$71:DU$1041,0))/$EG20 -> 0.00155 | DV20: =SUM(IF($W$71:$W$1041=$W20,$Y$71:$Y$1041*DV$71:DV$1041,0))/$EG20 -> 0.00206 | DW20: =SUM(IF($W$71:$W$1041=$W20,$Y$71:$Y$1041*DW$71:DW$1041,0))/$EG20 -> 0.00239 | DX20: =SUM(IF($W$71:$W$1041=$W20,$Y$71:$Y$1041*DX$71:DX$1041,0))/$EG20 -> 0.00255 | DY20: =SUM(IF($W$71:$W$1041=$W20,$Y$71:$Y$1041*DY$71:DY$1041,0))/$EG20 -> 0.00257 | DZ20: =SUM(IF($W$71:$W$1041=$W20,$Y$71:$Y$1041*DZ$71:DZ$1041,0))/$EG20 -> 0.00247 | EA20: =SUM(IF($W$71:$W$1041=$W20,$Y$71:$Y$1041*EA$71:EA$1041,0))/$EG20 -> 0.00222 | EB20: =SUM(IF($W$71:$W$1041=$W20,$Y$71:$Y$1041*EB$71:EB$1041,0))/$EG20 -> 0.00183 | EC20: =SUM(IF($W$71:$W$1041=$W20,$Y$71:$Y$1041*EC$71:EC$1041,0))/$EG20 -> 0.00134 | ED20: =SUM(IF($W$71:$W$1041=$W20,$Y$71:$Y$1041*ED$71:ED$1041,0))/$EG20 -> 0.00031 | EE20: 226 | EF20: 236 | EG20: 1
A21: 1900-09-16 | B21: 1900-09-23 | C21: =IF(24 - MATCH(Pasture!$C$8,table_PeriodStarts,0) < ROW() - ROW($D$4), "* ", "")&TEXT(INDIRECT("$A"&MOD(ROW()-ROW($D$4)+MATCH(Pasture!$C$8,table_PeriodStarts,0) - 1, 24) + ROW($D$4)),"d mmm") -> 16 Sep | D21: =INDIRECT("$A"&MOD(ROW()-ROW($D$4)+MATCH(Pasture!$C$8,table_PeriodStarts,0) - 1, 24) + ROW($D$4)) -> 1900-09-16 | F21: Bulls | G21: Rams | H21: 1.4 | I21: 0.9 | K21: 0.3 | N21: C(P,14,1) | O21: 1 | P21: 1 | Q21: 1 | R21: 1 | S21: 1 | T21: 1.5 | U21: 1.5 | W21: 18 | X21: VIC - Western (Edenhope) | Y21: -37 | Z21: =SUM(IF($W$71:$W$1041=$W21,$Y$71:$Y$1041*Z$71:Z$1041,0))/$EG21 -> 0.2 | AA21: =SUM(IF($W$71:$W$1041=$W21,$Y$71:$Y$1041*AA$71:AA$1041,0))/$EG21 -> 0 | AB21: =SUM(IF($W$71:$W$1041=$W21,$Y$71:$Y$1041*AB$71:AB$1041,0))/$EG21 -> 0 | AC21: =SUM(IF($W$71:$W$1041=$W21,$Y$71:$Y$1041*AC$71:AC$1041,0))/$EG21 -> 0 | AD21: =SUM(IF($W$71:$W$1041=$W21,$Y$71:$Y$1041*AD$71:AD$1041,0))/$EG21 -> 0.5 | AE21: =SUM(IF($W$71:$W$1041=$W21,$Y$71:$Y$1041*AE$71:AE$1041,0))/$EG21 -> 5.5 | AF21: =SUM(IF($W$71:$W$1041=$W21,$Y$71:$Y$1041*AF$71:AF$1041,0))/$EG21 -> 20 | AG21: =SUM(IF($W$71:$W$1041=$W21,$Y$71:$Y$1041*AG$71:AG$1041,0))/$EG21 -> 20 | AH21: =SUM(IF($W$71:$W$1041=$W21,$Y$71:$Y$1041*AH$71:AH$1041,0))/$EG21 -> 25 | AI21: =SUM(IF($W$71:$W$1041=$W21,$Y$71:$Y$1041*AI$71:AI$1041,0))/$EG21 -> 40 | AJ21: =SUM(IF($W$71:$W$1041=$W21,$Y$71:$Y$1041*AJ$71:AJ$1041,0))/$EG21 -> 70 | AK21: =SUM(IF($W$71:$W$1041=$W21,$Y$71:$Y$1041*AK$71:AK$1041,0))/$EG21 -> 47.5 | AL21: =SUM(IF($W$71:$W$1041=$W21,$Y$71:$Y$1041*AL$71:AL$1041,0))/$EG21 -> 0 | AM21: =SUM(IF($W$71:$W$1041=$W21,$Y$71:$Y$1041*AM$71:AM$1041,0))/$EG21 -> 0.7 | AN21: =SUM(IF($W$71:$W$1041=$W21,$Y$71:$Y$1041*AN$71:AN$1041,0))/$EG21 -> 0.65 | AO21: =SUM(IF($W$71:$W$1041=$W21,$Y$71:$Y$1041*AO$71:AO$1041,0))/$EG21 -> 0.63 | AP21: =SUM(IF($W$71:$W$1041=$W21,$Y$71:$Y$1041*AP$71:AP$1041,0))/$EG21 -> 0.61 | AQ21: =SUM(IF($W$71:$W$1041=$W21,$Y$71:$Y$1041*AQ$71:AQ$1041,0))/$EG21 -> 0.59 | AR21: =SUM(IF($W$71:$W$1041=$W21,$Y$71:$Y$1041*AR$71:AR$1041,0))/$EG21 -> 0.56 | AS21: =SUM(IF($W$71:$W$1041=$W21,$Y$71:$Y$1041*AS$71:AS$1041,0))/$EG21 -> 0.54 | AT21: =SUM(IF($W$71:$W$1041=$W21,$Y$71:$Y$1041*AT$71:AT$1041,0))/$EG21 -> 0.52 | AU21: =SUM(IF($W$71:$W$1041=$W21,$Y$71:$Y$1041*AU$71:AU$1041,0))/$EG21 -> 0.52 | AV21: =SUM(IF($W$71:$W$1041=$W21,$Y$71:$Y$1041*AV$71:AV$1041,0))/$EG21 -> 0.54 | AW21: =SUM(IF($W$71:$W$1041=$W21,$Y$71:$Y$1041*AW$71:AW$1041,0))/$EG21 -> 0.57 | AX21: =SUM(IF($W$71:$W$1041=$W21,$Y$71:$Y$1041*AX$71:AX$1041,0))/$EG21 -> 0.62 | AY21: =SUM(IF($W$71:$W$1041=$W21,$Y$71:$Y$1041*AY$71:AY$1041,0))/$EG21 -> 0.67 | AZ21: =SUM(IF($W$71:$W$1041=$W21,$Y$71:$Y$1041*AZ$71:AZ$1041,0))/$EG21 -> 0.73 | BA21: =SUM(IF($W$71:$W$1041=$W21,$Y$71:$Y$1041*BA$71:BA$1041,0))/$EG21 -> 0.77 | BB21: =SUM(IF($W$71:$W$1041=$W21,$Y$71:$Y$1041*BB$71:BB$1041,0))/$EG21 -> 0.79 | BC21: =SUM(IF($W$71:$W$1041=$W21,$Y$71:$Y$1041*BC$71:BC$1041,0))/$EG21 -> 0.8 | BD21: =SUM(IF($W$71:$W$1041=$W21,$Y$71:$Y$1041*BD$71:BD$1041,0))/$EG21 -> 0.81 | BE21: =SUM(IF($W$71:$W$1041=$W21,$Y$71:$Y$1041*BE$71:BE$1041,0))/$EG21 -> 0.81 | BF21: =SUM(IF($W$71:$W$1041=$W21,$Y$71:$Y$1041*BF$71:BF$1041,0))/$EG21 -> 0.81 | BG21: =SUM(IF($W$71:$W$1041=$W21,$Y$71:$Y$1041*BG$71:BG$1041,0))/$EG21 -> 0.81 | BH21: =SUM(IF($W$71:$W$1041=$W21,$Y$71:$Y$1041*BH$71:BH$1041,0))/$EG21 -> 0.8 | BI21: =SUM(IF($W$71:$W$1041=$W21,$Y$71:$Y$1041*BI$71:BI$1041,0))/$EG21 -> 0.79 | BJ21: =SUM(IF($W$71:$W$1041=$W21,$Y$71:$Y$1041*BJ$71:BJ$1041,0))/$EG21 -> 0.76 | BK21: =SUM(IF($W$71:$W$1041=$W21,$Y$71:$Y$1041*BK$71:BK$1041,0))/$EG21 -> 0.72 | BL21: =SUM(IF($W$71:$W$1041=$W21,$Y$71:$Y$1041*BL$71:BL$1041,0))/$EG21 -> 0.67 | BM21: =SUM(IF($W$71:$W$1041=$W21,$Y$71:$Y$1041*BM$71:BM$1041,0))/$EG21 -> 0.65 | BN21: =SUM(IF($W$71:$W$1041=$W21,$Y$71:$Y$1041*BN$71:BN$1041,0))/$EG21 -> 0.63 | BO21: =SUM(IF($W$71:$W$1041=$W21,$Y$71:$Y$1041*BO$71:BO$1041,0))/$EG21 -> 0.61 | BP21: =SUM(IF($W$71:$W$1041=$W21,$Y$71:$Y$1041*BP$71:BP$1041,0))/$EG21 -> 0.59 | BQ21: =SUM(IF($W$71:$W$1041=$W21,$Y$71:$Y$1041*BQ$71:BQ$1041,0))/$EG21 -> 0.56 | BR21: =SUM(IF($W$71:$W$1041=$W21,$Y$71:$Y$1041*BR$71:BR$1041,0))/$EG21 -> 0.54 | BS21: =SUM(IF($W$71:$W$1041=$W21,$Y$71:$Y$1041*BS$71:BS$1041,0))/$EG21 -> 0.54 | BT21: =SUM(IF($W$71:$W$1041=$W21,$Y$71:$Y$1041*BT$71:BT$1041,0))/$EG21 -> 0.56 | BU21: =SUM(IF($W$71:$W$1041=$W21,$Y$71:$Y$1041*BU$71:BU$1041,0))/$EG21 -> 0.59 | BV21: =SUM(IF($W$71:$W$1041=$W21,$Y$71:$Y$1041*BV$71:BV$1041,0))/$EG21 -> 0.64 | BW21: =SUM(IF($W$71:$W$1041=$W21,$Y$71:$Y$1041*BW$71:BW$1041,0))/$EG21 -> 0.68 | BX21: =SUM(IF($W$71:$W$1041=$W21,$Y$71:$Y$1041*BX$71:BX$1041,0))/$EG21 -> 0.73 | BY21: =SUM(IF($W$71:$W$1041=$W21,$Y$71:$Y$1041*BY$71:BY$1041,0))/$EG21 -> 0.77 | BZ21: =SUM(IF($W$71:$W$1041=$W21,$Y$71:$Y$1041*BZ$71:BZ$1041,0))/$EG21 -> 0.79 | CA21: =SUM(IF($W$71:$W$1041=$W21,$Y$71:$Y$1041*CA$71:CA$1041,0))/$EG21 -> 0.81 | CB21: =SUM(IF($W$71:$W$1041=$W21,$Y$71:$Y$1041*CB$71:CB$1041,0))/$EG21 -> 0.81 | CC21: =SUM(IF($W$71:$W$1041=$W21,$Y$71:$Y$1041*CC$71:CC$1041,0))/$EG21 -> 0.81 | CD21: =SUM(IF($W$71:$W$1041=$W21,$Y$71:$Y$1041*CD$71:CD$1041,0))/$EG21 -> 0.82 | CE21: =SUM(IF($W$71:$W$1041=$W21,$Y$71:$Y$1041*CE$71:CE$1041,0))/$EG21 -> 0.81 | CF21: =SUM(IF($W$71:$W$1041=$W21,$Y$71:$Y$1041*CF$71:CF$1041,0))/$EG21 -> 0.81 | CG21: =SUM(IF($W$71:$W$1041=$W21,$Y$71:$Y$1041*CG$71:CG$1041,0))/$EG21 -> 0.8 | CH21: =SUM(IF($W$71:$W$1041=$W21,$Y$71:$Y$1041*CH$71:CH$1041,0))/$EG21 -> 0.77 | CI21: =SUM(IF($W$71:$W$1041=$W21,$Y$71:$Y$1041*CI$71:CI$1041,0))/$EG21 -> -0.00016 | CJ21: =SUM(IF($W$71:$W$1041=$W21,$Y$71:$Y$1041*CJ$71:CJ$1041,0))/$EG21 -> -0.00057 | CK21: =SUM(IF($W$71:$W$1041=$W21,$Y$71:$Y$1041*CK$71:CK$1041,0))/$EG21 -> -0.00088 | CL21: =SUM(IF($W$71:$W$1041=$W21,$Y$71:$Y$1041*CL$71:CL$1041,0))/$EG21 -> -0.00107 | CM21: =SUM(IF($W$71:$W$1041=$W21,$Y$71:$Y$1041*CM$71:CM$1041,0))/$EG21 -> -0.00138 | CN21: =SUM(IF($W$71:$W$1041=$W21,$Y$71:$Y$1041*CN$71:CN$1041,0))/$EG21 -> -0.00168 | CO21: =SUM(IF($W$71:$W$1041=$W21,$Y$71:$Y$1041*CO$71:CO$1041,0))/$EG21 -> -0.00196 | CP21: =SUM(IF($W$71:$W$1041=$W21,$Y$71:$Y$1041*CP$71:CP$1041,0))/$EG21 -> -0.00213 | CQ21: =SUM(IF($W$71:$W$1041=$W21,$Y$71:$Y$1041*CQ$71:CQ$1041,0))/$EG21 -> -0.00206 | CR21: =SUM(IF($W$71:$W$1041=$W21,$Y$71:$Y$1041*CR$71:CR$1041,0))/$EG21 -> -0.00176 | CS21: =SUM(IF($W$71:$W$1041=$W21,$Y$71:$Y$1041*CS$71:CS$1041,0))/$EG21 -> -0.00129 | CT21: =SUM(IF($W$71:$W$1041=$W21,$Y$71:$Y$1041*CT$71:CT$1041,0))/$EG21 -> -0.00059 | CU21: =SUM(IF($W$71:$W$1041=$W21,$Y$71:$Y$1041*CU$71:CU$1041,0))/$EG21 -> -0.0001 | CV21: =SUM(IF($W$71:$W$1041=$W21,$Y$71:$Y$1041*CV$71:CV$1041,0))/$EG21 -> 0.00033 | CW21: =SUM(IF($W$71:$W$1041=$W21,$Y$71:$Y$1041*CW$71:CW$1041,0))/$EG21 -> 0.00085 | CX21: =SUM(IF($W$71:$W$1041=$W21,$Y$71:$Y$1041*CX$71:CX$1041,0))/$EG21 -> 0.00125 | CY21: =SUM(IF($W$71:$W$1041=$W21,$Y$71:$Y$1041*CY$71:CY$1041,0))/$EG21 -> 0.0016 | CZ21: =SUM(IF($W$71:$W$1041=$W21,$Y$71:$Y$1041*CZ$71:CZ$1041,0))/$EG21 -> 0.00183 | DA21: =SUM(IF($W$71:$W$1041=$W21,$Y$71:$Y$1041*DA$71:DA$1041,0))/$EG21 -> 0.00193 | DB21: =SUM(IF($W$71:$W$1041=$W21,$Y$71:$Y$1041*DB$71:DB$1041,0))/$EG21 -> 0.00196 | DC21: =SUM(IF($W$71:$W$1041=$W21,$Y$71:$Y$1041*DC$71:DC$1041,0))/$EG21 -> 0.00187 | DD21: =SUM(IF($W$71:$W$1041=$W21,$Y$71:$Y$1041*DD$71:DD$1041,0))/$EG21 -> 0.00164 | DE21: =SUM(IF($W$71:$W$1041=$W21,$Y$71:$Y$1041*DE$71:DE$1041,0))/$EG21 -> 0.00131 | DF21: =SUM(IF($W$71:$W$1041=$W21,$Y$71:$Y$1041*DF$71:DF$1041,0))/$EG21 -> 0.00073 | DG21: =SUM(IF($W$71:$W$1041=$W21,$Y$71:$Y$1041*DG$71:DG$1041,0))/$EG21 -> -6e-05 | DH21: =SUM(IF($W$71:$W$1041=$W21,$Y$71:$Y$1041*DH$71:DH$1041,0))/$EG21 -> -0.00056 | DI21: =SUM(IF($W$71:$W$1041=$W21,$Y$71:$Y$1041*DI$71:DI$1041,0))/$EG21 -> -0.00078 | DJ21: =SUM(IF($W$71:$W$1041=$W21,$Y$71:$Y$1041*DJ$71:DJ$1041,0))/$EG21 -> -0.00098 | DK21: =SUM(IF($W$71:$W$1041=$W21,$Y$71:$Y$1041*DK$71:DK$1041,0))/$EG21 -> -0.00126 | DL21: =SUM(IF($W$71:$W$1041=$W21,$Y$71:$Y$1041*DL$71:DL$1041,0))/$EG21 -> -0.00163 | DM21: =SUM(IF($W$71:$W$1041=$W21,$Y$71:$Y$1041*DM$71:DM$1041,0))/$EG21 -> -0.00199 | DN21: =SUM(IF($W$71:$W$1041=$W21,$Y$71:$Y$1041*DN$71:DN$1041,0))/$EG21 -> -0.00224 | DO21: =SUM(IF($W$71:$W$1041=$W21,$Y$71:$Y$1041*DO$71:DO$1041,0))/$EG21 -> -0.00224 | DP21: =SUM(IF($W$71:$W$1041=$W21,$Y$71:$Y$1041*DP$71:DP$1041,0))/$EG21 -> -0.00205 | DQ21: =SUM(IF($W$71:$W$1041=$W21,$Y$71:$Y$1041*DQ$71:DQ$1041,0))/$EG21 -> -0.0015 | DR21: =SUM(IF($W$71:$W$1041=$W21,$Y$71:$Y$1041*DR$71:DR$1041,0))/$EG21 -> -0.00073 | DS21: =SUM(IF($W$71:$W$1041=$W21,$Y$71:$Y$1041*DS$71:DS$1041,0))/$EG21 -> 0.00017 | DT21: =SUM(IF($W$71:$W$1041=$W21,$Y$71:$Y$1041*DT$71:DT$1041,0))/$EG21 -> 0.00091 | DU21: =SUM(IF($W$71:$W$1041=$W21,$Y$71:$Y$1041*DU$71:DU$1041,0))/$EG21 -> 0.00155 | DV21: =SUM(IF($W$71:$W$1041=$W21,$Y$71:$Y$1041*DV$71:DV$1041,0))/$EG21 -> 0.00206 | DW21: =SUM(IF($W$71:$W$1041=$W21,$Y$71:$Y$1041*DW$71:DW$1041,0))/$EG21 -> 0.00239 | DX21: =SUM(IF($W$71:$W$1041=$W21,$Y$71:$Y$1041*DX$71:DX$1041,0))/$EG21 -> 0.00255 | DY21: =SUM(IF($W$71:$W$1041=$W21,$Y$71:$Y$1041*DY$71:DY$1041,0))/$EG21 -> 0.00257 | DZ21: =SUM(IF($W$71:$W$1041=$W21,$Y$71:$Y$1041*DZ$71:DZ$1041,0))/$EG21 -> 0.00247 | EA21: =SUM(IF($W$71:$W$1041=$W21,$Y$71:$Y$1041*EA$71:EA$1041,0))/$EG21 -> 0.00222 | EB21: =SUM(IF($W$71:$W$1041=$W21,$Y$71:$Y$1041*EB$71:EB$1041,0))/$EG21 -> 0.00183 | EC21: =SUM(IF($W$71:$W$1041=$W21,$Y$71:$Y$1041*EC$71:EC$1041,0))/$EG21 -> 0.00134 | ED21: =SUM(IF($W$71:$W$1041=$W21,$Y$71:$Y$1041*ED$71:ED$1041,0))/$EG21 -> 0.00031 | EE21: 237 | EF21: 244 | EG21: 1
A22: 1900-10-01 | B22: 1900-10-08 | C22: =IF(24 - MATCH(Pasture!$C$8,table_PeriodStarts,0) < ROW() - ROW($D$4), "* ", "")&TEXT(INDIRECT("$A"&MOD(ROW()-ROW($D$4)+MATCH(Pasture!$C$8,table_PeriodStarts,0) - 1, 24) + ROW($D$4)),"d mmm") -> 1 Oct | D22: =INDIRECT("$A"&MOD(ROW()-ROW($D$4)+MATCH(Pasture!$C$8,table_PeriodStarts,0) - 1, 24) + ROW($D$4)) -> 1900-10-01 | F22: Weaned young heifers | G22: Weaned young ewes | H22: 1 | I22: 1 | K22: 0.35 | N22: C(P,14,2) | T22: 1.75 | U22: 1.75 | W22: 19 | X22: VIC - Central West (Ballarat) | Y22: -37.6 | Z22: =SUM(IF($W$71:$W$1041=$W22,$Y$71:$Y$1041*Z$71:Z$1041,0))/$EG22 -> 0.175 | AA22: =SUM(IF($W$71:$W$1041=$W22,$Y$71:$Y$1041*AA$71:AA$1041,0))/$EG22 -> 5 | AB22: =SUM(IF($W$71:$W$1041=$W22,$Y$71:$Y$1041*AB$71:AB$1041,0))/$EG22 -> 5 | AC22: =SUM(IF($W$71:$W$1041=$W22,$Y$71:$Y$1041*AC$71:AC$1041,0))/$EG22 -> 10 | AD22: =SUM(IF($W$71:$W$1041=$W22,$Y$71:$Y$1041*AD$71:AD$1041,0))/$EG22 -> 12.5 | AE22: =SUM(IF($W$71:$W$1041=$W22,$Y$71:$Y$1041*AE$71:AE$1041,0))/$EG22 -> 17.5 | AF22: =SUM(IF($W$71:$W$1041=$W22,$Y$71:$Y$1041*AF$71:AF$1041,0))/$EG22 -> 12.5 | AG22: =SUM(IF($W$71:$W$1041=$W22,$Y$71:$Y$1041*AG$71:AG$1041,0))/$EG22 -> 12.5 | AH22: =SUM(IF($W$71:$W$1041=$W22,$Y$71:$Y$1041*AH$71:AH$1041,0))/$EG22 -> 27.5 | AI22: =SUM(IF($W$71:$W$1041=$W22,$Y$71:$Y$1041*AI$71:AI$1041,0))/$EG22 -> 45 | AJ22: =SUM(IF($W$71:$W$1041=$W22,$Y$71:$Y$1041*AJ$71:AJ$1041,0))/$EG22 -> 75 | AK22: =SUM(IF($W$71:$W$1041=$W22,$Y$71:$Y$1041*AK$71:AK$1041,0))/$EG22 -> 60 | AL22: =SUM(IF($W$71:$W$1041=$W22,$Y$71:$Y$1041*AL$71:AL$1041,0))/$EG22 -> 50 | AM22: =SUM(IF($W$71:$W$1041=$W22,$Y$71:$Y$1041*AM$71:AM$1041,0))/$EG22 -> 0.77 | AN22: =SUM(IF($W$71:$W$1041=$W22,$Y$71:$Y$1041*AN$71:AN$1041,0))/$EG22 -> 0.72 | AO22: =SUM(IF($W$71:$W$1041=$W22,$Y$71:$Y$1041*AO$71:AO$1041,0))/$EG22 -> 0.68 | AP22: =SUM(IF($W$71:$W$1041=$W22,$Y$71:$Y$1041*AP$71:AP$1041,0))/$EG22 -> 0.64 | AQ22: =SUM(IF($W$71:$W$1041=$W22,$Y$71:$Y$1041*AQ$71:AQ$1041,0))/$EG22 -> 0.62 | AR22: =SUM(IF($W$71:$W$1041=$W22,$Y$71:$Y$1041*AR$71:AR$1041,0))/$EG22 -> 0.61 | AS22: =SUM(IF($W$71:$W$1041=$W22,$Y$71:$Y$1041*AS$71:AS$1041,0))/$EG22 -> 0.6 | AT22: =SUM(IF($W$71:$W$1041=$W22,$Y$71:$Y$1041*AT$71:AT$1041,0))/$EG22 -> 0.59 | AU22: =SUM(IF($W$71:$W$1041=$W22,$Y$71:$Y$1041*AU$71:AU$1041,0))/$EG22 -> 0.59 | AV22: =SUM(IF($W$71:$W$1041=$W22,$Y$71:$Y$1041*AV$71:AV$1041,0))/$EG22 -> 0.62 | AW22: =SUM(IF($W$71:$W$1041=$W22,$Y$71:$Y$1041*AW$71:AW$1041,0))/$EG22 -> 0.65 | AX22: =SUM(IF($W$71:$W$1041=$W22,$Y$71:$Y$1041*AX$71:AX$1041,0))/$EG22 -> 0.68 | AY22: =SUM(IF($W$71:$W$1041=$W22,$Y$71:$Y$1041*AY$71:AY$1041,0))/$EG22 -> 0.71 | AZ22: =SUM(IF($W$71:$W$1041=$W22,$Y$71:$Y$1041*AZ$71:AZ$1041,0))/$EG22 -> 0.73 | BA22: =SUM(IF($W$71:$W$1041=$W22,$Y$71:$Y$1041*BA$71:BA$1041,0))/$EG22 -> 0.76 | BB22: =SUM(IF($W$71:$W$1041=$W22,$Y$71:$Y$1041*BB$71:BB$1041,0))/$EG22 -> 0.78 | BC22: =SUM(IF($W$71:$W$1041=$W22,$Y$71:$Y$1041*BC$71:BC$1041,0))/$EG22 -> 0.8 | BD22: =SUM(IF($W$71:$W$1041=$W22,$Y$71:$Y$1041*BD$71:BD$1041,0))/$EG22 -> 0.81 | BE22: =SUM(IF($W$71:$W$1041=$W22,$Y$71:$Y$1041*BE$71:BE$1041,0))/$EG22 -> 0.81 | BF22: =SUM(IF($W$71:$W$1041=$W22,$Y$71:$Y$1041*BF$71:BF$1041,0))/$EG22 -> 0.81 | BG22: =SUM(IF($W$71:$W$1041=$W22,$Y$71:$Y$1041*BG$71:BG$1041,0))/$EG22 -> 0.81 | BH22: =SUM(IF($W$71:$W$1041=$W22,$Y$71:$Y$1041*BH$71:BH$1041,0))/$EG22 -> 0.81 | BI22: =SUM(IF($W$71:$W$1041=$W22,$Y$71:$Y$1041*BI$71:BI$1041,0))/$EG22 -> 0.81 | BJ22: =SUM(IF($W$71:$W$1041=$W22,$Y$71:$Y$1041*BJ$71:BJ$1041,0))/$EG22 -> 0.8 | BK22: =SUM(IF($W$71:$W$1041=$W22,$Y$71:$Y$1041*BK$71:BK$1041,0))/$EG22 -> 0.78 | BL22: =SUM(IF($W$71:$W$1041=$W22,$Y$71:$Y$1041*BL$71:BL$1041,0))/$EG22 -> 0.74 | BM22: =SUM(IF($W$71:$W$1041=$W22,$Y$71:$Y$1041*BM$71:BM$1041,0))/$EG22 -> 0.69 | BN22: =SUM(IF($W$71:$W$1041=$W22,$Y$71:$Y$1041*BN$71:BN$1041,0))/$EG22 -> 0.66 | BO22: =SUM(IF($W$71:$W$1041=$W22,$Y$71:$Y$1041*BO$71:BO$1041,0))/$EG22 -> 0.64 | BP22: =SUM(IF($W$71:$W$1041=$W22,$Y$71:$Y$1041*BP$71:BP$1041,0))/$EG22 -> 0.63 | BQ22: =SUM(IF($W$71:$W$1041=$W22,$Y$71:$Y$1041*BQ$71:BQ$1041,0))/$EG22 -> 0.62 | BR22: =SUM(IF($W$71:$W$1041=$W22,$Y$71:$Y$1041*BR$71:BR$1041,0))/$EG22 -> 0.61 | BS22: =SUM(IF($W$71:$W$1041=$W22,$Y$71:$Y$1041*BS$71:BS$1041,0))/$EG22 -> 0.61 | BT22: =SUM(IF($W$71:$W$1041=$W22,$Y$71:$Y$1041*BT$71:BT$1041,0))/$EG22 -> 0.63 | BU22: =SUM(IF($W$71:$W$1041=$W22,$Y$71:$Y$1041*BU$71:BU$1041,0))/$EG22 -> 0.66 | BV22: =SUM(IF($W$71:$W$1041=$W22,$Y$71:$Y$1041*BV$71:BV$1041,0))/$EG22 -> 0.69 | BW22: =SUM(IF($W$71:$W$1041=$W22,$Y$71:$Y$1041*BW$71:BW$1041,0))/$EG22 -> 0.72 | BX22: =SUM(IF($W$71:$W$1041=$W22,$Y$71:$Y$1041*BX$71:BX$1041,0))/$EG22 -> 0.75 | BY22: =SUM(IF($W$71:$W$1041=$W22,$Y$71:$Y$1041*BY$71:BY$1041,0))/$EG22 -> 0.77 | BZ22: =SUM(IF($W$71:$W$1041=$W22,$Y$71:$Y$1041*BZ$71:BZ$1041,0))/$EG22 -> 0.79 | CA22: =SUM(IF($W$71:$W$1041=$W22,$Y$71:$Y$1041*CA$71:CA$1041,0))/$EG22 -> 0.8 | CB22: =SUM(IF($W$71:$W$1041=$W22,$Y$71:$Y$1041*CB$71:CB$1041,0))/$EG22 -> 0.81 | CC22: =SUM(IF($W$71:$W$1041=$W22,$Y$71:$Y$1041*CC$71:CC$1041,0))/$EG22 -> 0.81 | CD22: =SUM(IF($W$71:$W$1041=$W22,$Y$71:$Y$1041*CD$71:CD$1041,0))/$EG22 -> 0.82 | CE22: =SUM(IF($W$71:$W$1041=$W22,$Y$71:$Y$1041*CE$71:CE$1041,0))/$EG22 -> 0.82 | CF22: =SUM(IF($W$71:$W$1041=$W22,$Y$71:$Y$1041*CF$71:CF$1041,0))/$EG22 -> 0.82 | CG22: =SUM(IF($W$71:$W$1041=$W22,$Y$71:$Y$1041*CG$71:CG$1041,0))/$EG22 -> 0.81 | CH22: =SUM(IF($W$71:$W$1041=$W22,$Y$71:$Y$1041*CH$71:CH$1041,0))/$EG22 -> 0.8 | CI22: =SUM(IF($W$71:$W$1041=$W22,$Y$71:$Y$1041*CI$71:CI$1041,0))/$EG22 -> 0.00064 | CJ22: =SUM(IF($W$71:$W$1041=$W22,$Y$71:$Y$1041*CJ$71:CJ$1041,0))/$EG22 -> -5e-05 | CK22: =SUM(IF($W$71:$W$1041=$W22,$Y$71:$Y$1041*CK$71:CK$1041,0))/$EG22 -> -0.00053 | CL22: =SUM(IF($W$71:$W$1041=$W22,$Y$71:$Y$1041*CL$71:CL$1041,0))/$EG22 -> -0.00086 | CM22: =SUM(IF($W$71:$W$1041=$W22,$Y$71:$Y$1041*CM$71:CM$1041,0))/$EG22 -> -0.00115 | CN22: =SUM(IF($W$71:$W$1041=$W22,$Y$71:$Y$1041*CN$71:CN$1041,0))/$EG22 -> -0.00139 | CO22: =SUM(IF($W$71:$W$1041=$W22,$Y$71:$Y$1041*CO$71:CO$1041,0))/$EG22 -> -0.00149 | CP22: =SUM(IF($W$71:$W$1041=$W22,$Y$71:$Y$1041*CP$71:CP$1041,0))/$EG22 -> -0.00156 | CQ22: =SUM(IF($W$71:$W$1041=$W22,$Y$71:$Y$1041*CQ$71:CQ$1041,0))/$EG22 -> -0.00149 | CR22: =SUM(IF($W$71:$W$1041=$W22,$Y$71:$Y$1041*CR$71:CR$1041,0))/$EG22 -> -0.00121 | CS22: =SUM(IF($W$71:$W$1041=$W22,$Y$71:$Y$1041*CS$71:CS$1041,0))/$EG22 -> -0.0009 | CT22: =SUM(IF($W$71:$W$1041=$W22,$Y$71:$Y$1041*CT$71:CT$1041,0))/$EG22 -> -0.00053 | CU22: =SUM(IF($W$71:$W$1041=$W22,$Y$71:$Y$1041*CU$71:CU$1041,0))/$EG22 -> -0.00024 | CV22: =SUM(IF($W$71:$W$1041=$W22,$Y$71:$Y$1041*CV$71:CV$1041,0))/$EG22 -> 5e-05 | CW22: =SUM(IF($W$71:$W$1041=$W22,$Y$71:$Y$1041*CW$71:CW$1041,0))/$EG22 -> 0.00037 | CX22: =SUM(IF($W$71:$W$1041=$W22,$Y$71:$Y$1041*CX$71:CX$1041,0))/$EG22 -> 0.00079 | CY22: =SUM(IF($W$71:$W$1041=$W22,$Y$71:$Y$1041*CY$71:CY$1041,0))/$EG22 -> 0.00113 | CZ22: =SUM(IF($W$71:$W$1041=$W22,$Y$71:$Y$1041*CZ$71:CZ$1041,0))/$EG22 -> 0.00136 | DA22: =SUM(IF($W$71:$W$1041=$W22,$Y$71:$Y$1041*DA$71:DA$1041,0))/$EG22 -> 0.00148 | DB22: =SUM(IF($W$71:$W$1041=$W22,$Y$71:$Y$1041*DB$71:DB$1041,0))/$EG22 -> 0.00155 | DC22: =SUM(IF($W$71:$W$1041=$W22,$Y$71:$Y$1041*DC$71:DC$1041,0))/$EG22 -> 0.00155 | DD22: =SUM(IF($W$71:$W$1041=$W22,$Y$71:$Y$1041*DD$71:DD$1041,0))/$EG22 -> 0.0015 | DE22: =SUM(IF($W$71:$W$1041=$W22,$Y$71:$Y$1041*DE$71:DE$1041,0))/$EG22 -> 0.00131 | DF22: =SUM(IF($W$71:$W$1041=$W22,$Y$71:$Y$1041*DF$71:DF$1041,0))/$EG22 -> 0.00108 | DG22: =SUM(IF($W$71:$W$1041=$W22,$Y$71:$Y$1041*DG$71:DG$1041,0))/$EG22 -> 0.00086 | DH22: =SUM(IF($W$71:$W$1041=$W22,$Y$71:$Y$1041*DH$71:DH$1041,0))/$EG22 -> 0 | DI22: =SUM(IF($W$71:$W$1041=$W22,$Y$71:$Y$1041*DI$71:DI$1041,0))/$EG22 -> -0.00056 | DJ22: =SUM(IF($W$71:$W$1041=$W22,$Y$71:$Y$1041*DJ$71:DJ$1041,0))/$EG22 -> -0.00087 | DK22: =SUM(IF($W$71:$W$1041=$W22,$Y$71:$Y$1041*DK$71:DK$1041,0))/$EG22 -> -0.0011 | DL22: =SUM(IF($W$71:$W$1041=$W22,$Y$71:$Y$1041*DL$71:DL$1041,0))/$EG22 -> -0.0013 | DM22: =SUM(IF($W$71:$W$1041=$W22,$Y$71:$Y$1041*DM$71:DM$1041,0))/$EG22 -> -0.00141 | DN22: =SUM(IF($W$71:$W$1041=$W22,$Y$71:$Y$1041*DN$71:DN$1041,0))/$EG22 -> -0.00153 | DO22: =SUM(IF($W$71:$W$1041=$W22,$Y$71:$Y$1041*DO$71:DO$1041,0))/$EG22 -> -0.00147 | DP22: =SUM(IF($W$71:$W$1041=$W22,$Y$71:$Y$1041*DP$71:DP$1041,0))/$EG22 -> -0.00109 | DQ22: =SUM(IF($W$71:$W$1041=$W22,$Y$71:$Y$1041*DQ$71:DQ$1041,0))/$EG22 -> -0.00061 | DR22: =SUM(IF($W$71:$W$1041=$W22,$Y$71:$Y$1041*DR$71:DR$1041,0))/$EG22 -> -0.00016 | DS22: =SUM(IF($W$71:$W$1041=$W22,$Y$71:$Y$1041*DS$71:DS$1041,0))/$EG22 -> 0.00019 | DT22: =SUM(IF($W$71:$W$1041=$W22,$Y$71:$Y$1041*DT$71:DT$1041,0))/$EG22 -> 0.00052 | DU22: =SUM(IF($W$71:$W$1041=$W22,$Y$71:$Y$1041*DU$71:DU$1041,0))/$EG22 -> 0.00084 | DV22: =SUM(IF($W$71:$W$1041=$W22,$Y$71:$Y$1041*DV$71:DV$1041,0))/$EG22 -> 0.00124 | DW22: =SUM(IF($W$71:$W$1041=$W22,$Y$71:$Y$1041*DW$71:DW$1041,0))/$EG22 -> 0.00155 | DX22: =SUM(IF($W$71:$W$1041=$W22,$Y$71:$Y$1041*DX$71:DX$1041,0))/$EG22 -> 0.00174 | DY22: =SUM(IF($W$71:$W$1041=$W22,$Y$71:$Y$1041*DY$71:DY$1041,0))/$EG22 -> 0.0018 | DZ22: =SUM(IF($W$71:$W$1041=$W22,$Y$71:$Y$1041*DZ$71:DZ$1041,0))/$EG22 -> 0.00179 | EA22: =SUM(IF($W$71:$W$1041=$W22,$Y$71:$Y$1041*EA$71:EA$1041,0))/$EG22 -> 0.00168 | EB22: =SUM(IF($W$71:$W$1041=$W22,$Y$71:$Y$1041*EB$71:EB$1041,0))/$EG22 -> 0.00151 | EC22: =SUM(IF($W$71:$W$1041=$W22,$Y$71:$Y$1041*EC$71:EC$1041,0))/$EG22 -> 0.00122 | ED22: =SUM(IF($W$71:$W$1041=$W22,$Y$71:$Y$1041*ED$71:ED$1041,0))/$EG22 -> 0.00056 | EE22: 245 | EF22: 248 | EG22: 1
A23: 1900-10-16 | B23: 1900-10-23 | C23: =IF(24 - MATCH(Pasture!$C$8,table_PeriodStarts,0) < ROW() - ROW($D$4), "* ", "")&TEXT(INDIRECT("$A"&MOD(ROW()-ROW($D$4)+MATCH(Pasture!$C$8,table_PeriodStarts,0) - 1, 24) + ROW($D$4)),"d mmm") -> 16 Oct | D23: =INDIRECT("$A"&MOD(ROW()-ROW($D$4)+MATCH(Pasture!$C$8,table_PeriodStarts,0) - 1, 24) + ROW($D$4)) -> 1900-10-16 | F23: Weaned young steers | G23: Weaned young wethers | H23: 1.2 | I23: 1.1 | K23: 0.4 | N23: C(L,0,1) | O23: 0.375 | P23: 0.375 | Q23: 0.375 | R23: 0.375 | S23: 0.375 | T23: 0.389 | U23: 0.486 | W23: 20 | X23: VIC - Central West (Lismore) | Y23: -38 | Z23: =SUM(IF($W$71:$W$1041=$W23,$Y$71:$Y$1041*Z$71:Z$1041,0))/$EG23 -> 0.2 | AA23: =SUM(IF($W$71:$W$1041=$W23,$Y$71:$Y$1041*AA$71:AA$1041,0))/$EG23 -> 0 | AB23: =SUM(IF($W$71:$W$1041=$W23,$Y$71:$Y$1041*AB$71:AB$1041,0))/$EG23 -> 0 | AC23: =SUM(IF($W$71:$W$1041=$W23,$Y$71:$Y$1041*AC$71:AC$1041,0))/$EG23 -> 0 | AD23: =SUM(IF($W$71:$W$1041=$W23,$Y$71:$Y$1041*AD$71:AD$1041,0))/$EG23 -> 5 | AE23: =SUM(IF($W$71:$W$1041=$W23,$Y$71:$Y$1041*AE$71:AE$1041,0))/$EG23 -> 15 | AF23: =SUM(IF($W$71:$W$1041=$W23,$Y$71:$Y$1041*AF$71:AF$1041,0))/$EG23 -> 20 | AG23: =SUM(IF($W$71:$W$1041=$W23,$Y$71:$Y$1041*AG$71:AG$1041,0))/$EG23 -> 20 | AH23: =SUM(IF($W$71:$W$1041=$W23,$Y$71:$Y$1041*AH$71:AH$1041,0))/$EG23 -> 32.5 | AI23: =SUM(IF($W$71:$W$1041=$W23,$Y$71:$Y$1041*AI$71:AI$1041,0))/$EG23 -> 57.5 | AJ23: =SUM(IF($W$71:$W$1041=$W23,$Y$71:$Y$1041*AJ$71:AJ$1041,0))/$EG23 -> 75 | AK23: =SUM(IF($W$71:$W$1041=$W23,$Y$71:$Y$1041*AK$71:AK$1041,0))/$EG23 -> 52.5 | AL23: =SUM(IF($W$71:$W$1041=$W23,$Y$71:$Y$1041*AL$71:AL$1041,0))/$EG23 -> 2.5 | AM23: =SUM(IF($W$71:$W$1041=$W23,$Y$71:$Y$1041*AM$71:AM$1041,0))/$EG23 -> 0.7 | AN23: =SUM(IF($W$71:$W$1041=$W23,$Y$71:$Y$1041*AN$71:AN$1041,0))/$EG23 -> 0.65 | AO23: =SUM(IF($W$71:$W$1041=$W23,$Y$71:$Y$1041*AO$71:AO$1041,0))/$EG23 -> 0.63 | AP23: =SUM(IF($W$71:$W$1041=$W23,$Y$71:$Y$1041*AP$71:AP$1041,0))/$EG23 -> 0.61 | AQ23: =SUM(IF($W$71:$W$1041=$W23,$Y$71:$Y$1041*AQ$71:AQ$1041,0))/$EG23 -> 0.59 | AR23: =SUM(IF($W$71:$W$1041=$W23,$Y$71:$Y$1041*AR$71:AR$1041,0))/$EG23 -> 0.56 | AS23: =SUM(IF($W$71:$W$1041=$W23,$Y$71:$Y$1041*AS$71:AS$1041,0))/$EG23 -> 0.54 | AT23: =SUM(IF($W$71:$W$1041=$W23,$Y$71:$Y$1041*AT$71:AT$1041,0))/$EG23 -> 0.52 | AU23: =SUM(IF($W$71:$W$1041=$W23,$Y$71:$Y$1041*AU$71:AU$1041,0))/$EG23 -> 0.52 | AV23: =SUM(IF($W$71:$W$1041=$W23,$Y$71:$Y$1041*AV$71:AV$1041,0))/$EG23 -> 0.54 | AW23: =SUM(IF($W$71:$W$1041=$W23,$Y$71:$Y$1041*AW$71:AW$1041,0))/$EG23 -> 0.57 | AX23: =SUM(IF($W$71:$W$1041=$W23,$Y$71:$Y$1041*AX$71:AX$1041,0))/$EG23 -> 0.62 | AY23: =SUM(IF($W$71:$W$1041=$W23,$Y$71:$Y$1041*AY$71:AY$1041,0))/$EG23 -> 0.67 | AZ23: =SUM(IF($W$71:$W$1041=$W23,$Y$71:$Y$1041*AZ$71:AZ$1041,0))/$EG23 -> 0.73 | BA23: =SUM(IF($W$71:$W$1041=$W23,$Y$71:$Y$1041*BA$71:BA$1041,0))/$EG23 -> 0.77 | BB23: =SUM(IF($W$71:$W$1041=$W23,$Y$71:$Y$1041*BB$71:BB$1041,0))/$EG23 -> 0.79 | BC23: =SUM(IF($W$71:$W$1041=$W23,$Y$71:$Y$1041*BC$71:BC$1041,0))/$EG23 -> 0.8 | BD23: =SUM(IF($W$71:$W$1041=$W23,$Y$71:$Y$1041*BD$71:BD$1041,0))/$EG23 -> 0.81 | BE23: =SUM(IF($W$71:$W$1041=$W23,$Y$71:$Y$1041*BE$71:BE$1041,0))/$EG23 -> 0.81 | BF23: =SUM(IF($W$71:$W$1041=$W23,$Y$71:$Y$1041*BF$71:BF$1041,0))/$EG23 -> 0.81 | BG23: =SUM(IF($W$71:$W$1041=$W23,$Y$71:$Y$1041*BG$71:BG$1041,0))/$EG23 -> 0.81 | BH23: =SUM(IF($W$71:$W$1041=$W23,$Y$71:$Y$1041*BH$71:BH$1041,0))/$EG23 -> 0.8 | BI23: =SUM(IF($W$71:$W$1041=$W23,$Y$71:$Y$1041*BI$71:BI$1041,0))/$EG23 -> 0.79 | BJ23: =SUM(IF($W$71:$W$1041=$W23,$Y$71:$Y$1041*BJ$71:BJ$1041,0))/$EG23 -> 0.76 | BK23: =SUM(IF($W$71:$W$1041=$W23,$Y$71:$Y$1041*BK$71:BK$1041,0))/$EG23 -> 0.72 | BL23: =SUM(IF($W$71:$W$1041=$W23,$Y$71:$Y$1041*BL$71:BL$1041,0))/$EG23 -> 0.67 | BM23: =SUM(IF($W$71:$W$1041=$W23,$Y$71:$Y$1041*BM$71:BM$1041,0))/$EG23 -> 0.65 | BN23: =SUM(IF($W$71:$W$1041=$W23,$Y$71:$Y$1041*BN$71:BN$1041,0))/$EG23 -> 0.63 | BO23: =SUM(IF($W$71:$W$1041=$W23,$Y$71:$Y$1041*BO$71:BO$1041,0))/$EG23 -> 0.61 | BP23: =SUM(IF($W$71:$W$1041=$W23,$Y$71:$Y$1041*BP$71:BP$1041,0))/$EG23 -> 0.59 | BQ23: =SUM(IF($W$71:$W$1041=$W23,$Y$71:$Y$1041*BQ$71:BQ$1041,0))/$EG23 -> 0.56 | BR23: =SUM(IF($W$71:$W$1041=$W23,$Y$71:$Y$1041*BR$71:BR$1041,0))/$EG23 -> 0.54 | BS23: =SUM(IF($W$71:$W$1041=$W23,$Y$71:$Y$1041*BS$71:BS$1041,0))/$EG23 -> 0.54 | BT23: =SUM(IF($W$71:$W$1041=$W23,$Y$71:$Y$1041*BT$71:BT$1041,0))/$EG23 -> 0.56 | BU23: =SUM(IF($W$71:$W$1041=$W23,$Y$71:$Y$1041*BU$71:BU$1041,0))/$EG23 -> 0.59 | BV23: =SUM(IF($W$71:$W$1041=$W23,$Y$71:$Y$1041*BV$71:BV$1041,0))/$EG23 -> 0.64 | BW23: =SUM(IF($W$71:$W$1041=$W23,$Y$71:$Y$1041*BW$71:BW$1041,0))/$EG23 -> 0.68 | BX23: =SUM(IF($W$71:$W$1041=$W23,$Y$71:$Y$1041*BX$71:BX$1041,0))/$EG23 -> 0.73 | BY23: =SUM(IF($W$71:$W$1041=$W23,$Y$71:$Y$1041*BY$71:BY$1041,0))/$EG23 -> 0.77 | BZ23: =SUM(IF($W$71:$W$1041=$W23,$Y$71:$Y$1041*BZ$71:BZ$1041,0))/$EG23 -> 0.79 | CA23: =SUM(IF($W$71:$W$1041=$W23,$Y$71:$Y$1041*CA$71:CA$1041,0))/$EG23 -> 0.81 | CB23: =SUM(IF($W$71:$W$1041=$W23,$Y$71:$Y$1041*CB$71:CB$1041,0))/$EG23 -> 0.81 | CC23: =SUM(IF($W$71:$W$1041=$W23,$Y$71:$Y$1041*CC$71:CC$1041,0))/$EG23 -> 0.81 | CD23: =SUM(IF($W$71:$W$1041=$W23,$Y$71:$Y$1041*CD$71:CD$1041,0))/$EG23 -> 0.82 | CE23: =SUM(IF($W$71:$W$1041=$W23,$Y$71:$Y$1041*CE$71:CE$1041,0))/$EG23 -> 0.81 | CF23: =SUM(IF($W$71:$W$1041=$W23,$Y$71:$Y$1041*CF$71:CF$1041,0))/$EG23 -> 0.81 | CG23: =SUM(IF($W$71:$W$1041=$W23,$Y$71:$Y$1041*CG$71:CG$1041,0))/$EG23 -> 0.8 | CH23: =SUM(IF($W$71:$W$1041=$W23,$Y$71:$Y$1041*CH$71:CH$1041,0))/$EG23 -> 0.77 | CI23: =SUM(IF($W$71:$W$1041=$W23,$Y$71:$Y$1041*CI$71:CI$1041,0))/$EG23 -> -0.00016 | CJ23: =SUM(IF($W$71:$W$1041=$W23,$Y$71:$Y$1041*CJ$71:CJ$1041,0))/$EG23 -> -0.00057 | CK23: =SUM(IF($W$71:$W$1041=$W23,$Y$71:$Y$1041*CK$71:CK$1041,0))/$EG23 -> -0.00088 | CL23: =SUM(IF($W$71:$W$1041=$W23,$Y$71:$Y$1041*CL$71:CL$1041,0))/$EG23 -> -0.00107 | CM23: =SUM(IF($W$71:$W$1041=$W23,$Y$71:$Y$1041*CM$71:CM$1041,0))/$EG23 -> -0.00138 | CN23: =SUM(IF($W$71:$W$1041=$W23,$Y$71:$Y$1041*CN$71:CN$1041,0))/$EG23 -> -0.00168 | CO23: =SUM(IF($W$71:$W$1041=$W23,$Y$71:$Y$1041*CO$71:CO$1041,0))/$EG23 -> -0.00196 | CP23: =SUM(IF($W$71:$W$1041=$W23,$Y$71:$Y$1041*CP$71:CP$1041,0))/$EG23 -> -0.00213 | CQ23: =SUM(IF($W$71:$W$1041=$W23,$Y$71:$Y$1041*CQ$71:CQ$1041,0))/$EG23 -> -0.00206 | CR23: =SUM(IF($W$71:$W$1041=$W23,$Y$71:$Y$1041*CR$71:CR$1041,0))/$EG23 -> -0.00176 | CS23: =SUM(IF($W$71:$W$1041=$W23,$Y$71:$Y$1041*CS$71:CS$1041,0))/$EG23 -> -0.00129 | CT23: =SUM(IF($W$71:$W$1041=$W23,$Y$71:$Y$1041*CT$71:CT$1041,0))/$EG23 -> -0.00059 | CU23: =SUM(IF($W$71:$W$1041=$W23,$Y$71:$Y$1041*CU$71:CU$1041,0))/$EG23 -> -0.0001 | CV23: =SUM(IF($W$71:$W$1041=$W23,$Y$71:$Y$1041*CV$71:CV$1041,0))/$EG23 -> 0.00033 | CW23: =SUM(IF($W$71:$W$1041=$W23,$Y$71:$Y$1041*CW$71:CW$1041,0))/$EG23 -> 0.00085 | CX23: =SUM(IF($W$71:$W$1041=$W23,$Y$71:$Y$1041*CX$71:CX$1041,0))/$EG23 -> 0.00125 | CY23: =SUM(IF($W$71:$W$1041=$W23,$Y$71:$Y$1041*CY$71:CY$1041,0))/$EG23 -> 0.0016 | CZ23: =SUM(IF($W$71:$W$1041=$W23,$Y$71:$Y$1041*CZ$71:CZ$1041,0))/$EG23 -> 0.00183 | DA23: =SUM(IF($W$71:$W$1041=$W23,$Y$71:$Y$1041*DA$71:DA$1041,0))/$EG23 -> 0.00193 | DB23: =SUM(IF($W$71:$W$1041=$W23,$Y$71:$Y$1041*DB$71:DB$1041,0))/$EG23 -> 0.00196 | DC23: =SUM(IF($W$71:$W$1041=$W23,$Y$71:$Y$1041*DC$71:DC$1041,0))/$EG23 -> 0.00187 | DD23: =SUM(IF($W$71:$W$1041=$W23,$Y$71:$Y$1041*DD$71:DD$1041,0))/$EG23 -> 0.00164 | DE23: =SUM(IF($W$71:$W$1041=$W23,$Y$71:$Y$1041*DE$71:DE$1041,0))/$EG23 -> 0.00131 | DF23: =SUM(IF($W$71:$W$1041=$W23,$Y$71:$Y$1041*DF$71:DF$1041,0))/$EG23 -> 0.00073 | DG23: =SUM(IF($W$71:$W$1041=$W23,$Y$71:$Y$1041*DG$71:DG$1041,0))/$EG23 -> -6e-05 | DH23: =SUM(IF($W$71:$W$1041=$W23,$Y$71:$Y$1041*DH$71:DH$1041,0))/$EG23 -> -0.00056 | DI23: =SUM(IF($W$71:$W$1041=$W23,$Y$71:$Y$1041*DI$71:DI$1041,0))/$EG23 -> -0.00078 | DJ23: =SUM(IF($W$71:$W$1041=$W23,$Y$71:$Y$1041*DJ$71:DJ$1041,0))/$EG23 -> -0.00098 | DK23: =SUM(IF($W$71:$W$1041=$W23,$Y$71:$Y$1041*DK$71:DK$1041,0))/$EG23 -> -0.00126 | DL23: =SUM(IF($W$71:$W$1041=$W23,$Y$71:$Y$1041*DL$71:DL$1041,0))/$EG23 -> -0.00163 | DM23: =SUM(IF($W$71:$W$1041=$W23,$Y$71:$Y$1041*DM$71:DM$1041,0))/$EG23 -> -0.00199 | DN23: =SUM(IF($W$71:$W$1041=$W23,$Y$71:$Y$1041*DN$71:DN$1041,0))/$EG23 -> -0.00224 | DO23: =SUM(IF($W$71:$W$1041=$W23,$Y$71:$Y$1041*DO$71:DO$1041,0))/$EG23 -> -0.00224 | DP23: =SUM(IF($W$71:$W$1041=$W23,$Y$71:$Y$1041*DP$71:DP$1041,0))/$EG23 -> -0.00205 | DQ23: =SUM(IF($W$71:$W$1041=$W23,$Y$71:$Y$1041*DQ$71:DQ$1041,0))/$EG23 -> -0.0015 | DR23: =SUM(IF($W$71:$W$1041=$W23,$Y$71:$Y$1041*DR$71:DR$1041,0))/$EG23 -> -0.00073 | DS23: =SUM(IF($W$71:$W$1041=$W23,$Y$71:$Y$1041*DS$71:DS$1041,0))/$EG23 -> 0.00017 | DT23: =SUM(IF($W$71:$W$1041=$W23,$Y$71:$Y$1041*DT$71:DT$1041,0))/$EG23 -> 0.00091 | DU23: =SUM(IF($W$71:$W$1041=$W23,$Y$71:$Y$1041*DU$71:DU$1041,0))/$EG23 -> 0.00155 | DV23: =SUM(IF($W$71:$W$1041=$W23,$Y$71:$Y$1041*DV$71:DV$1041,0))/$EG23 -> 0.00206 | DW23: =SUM(IF($W$71:$W$1041=$W23,$Y$71:$Y$1041*DW$71:DW$1041,0))/$EG23 -> 0.00239 | DX23: =SUM(IF($W$71:$W$1041=$W23,$Y$71:$Y$1041*DX$71:DX$1041,0))/$EG23 -> 0.00255 | DY23: =SUM(IF($W$71:$W$1041=$W23,$Y$71:$Y$1041*DY$71:DY$1041,0))/$EG23 -> 0.00257 | DZ23: =SUM(IF($W$71:$W$1041=$W23,$Y$71:$Y$1041*DZ$71:DZ$1041,0))/$EG23 -> 0.00247 | EA23: =SUM(IF($W$71:$W$1041=$W23,$Y$71:$Y$1041*EA$71:EA$1041,0))/$EG23 -> 0.00222 | EB23: =SUM(IF($W$71:$W$1041=$W23,$Y$71:$Y$1041*EB$71:EB$1041,0))/$EG23 -> 0.00183 | EC23: =SUM(IF($W$71:$W$1041=$W23,$Y$71:$Y$1041*EC$71:EC$1041,0))/$EG23 -> 0.00134 | ED23: =SUM(IF($W$71:$W$1041=$W23,$Y$71:$Y$1041*ED$71:ED$1041,0))/$EG23 -> 0.00031 | EE23: 249 | EF23: 256 | EG23: 1
A24: 1900-11-01 | B24: 1900-11-08 | C24: =IF(24 - MATCH(Pasture!$C$8,table_PeriodStarts,0) < ROW() - ROW($D$4), "* ", "")&TEXT(INDIRECT("$A"&MOD(ROW()-ROW($D$4)+MATCH(Pasture!$C$8,table_PeriodStarts,0) - 1, 24) + ROW($D$4)),"d mmm") -> 1 Nov | D24: =INDIRECT("$A"&MOD(ROW()-ROW($D$4)+MATCH(Pasture!$C$8,table_PeriodStarts,0) - 1, 24) + ROW($D$4)) -> 1900-11-01 | F24: Units options | I24: 1.2 | K24: 0.45 | N24: C(L,0,2) | T24: 0.622 | U24: 0.778 | W24: 21 | X24: VIC - Central (Ararat) | Y24: -37.3 | Z24: =SUM(IF($W$71:$W$1041=$W24,$Y$71:$Y$1041*Z$71:Z$1041,0))/$EG24 -> 0.2 | AA24: =SUM(IF($W$71:$W$1041=$W24,$Y$71:$Y$1041*AA$71:AA$1041,0))/$EG24 -> 0 | AB24: =SUM(IF($W$71:$W$1041=$W24,$Y$71:$Y$1041*AB$71:AB$1041,0))/$EG24 -> 0 | AC24: =SUM(IF($W$71:$W$1041=$W24,$Y$71:$Y$1041*AC$71:AC$1041,0))/$EG24 -> 0 | AD24: =SUM(IF($W$71:$W$1041=$W24,$Y$71:$Y$1041*AD$71:AD$1041,0))/$EG24 -> 3.5 | AE24: =SUM(IF($W$71:$W$1041=$W24,$Y$71:$Y$1041*AE$71:AE$1041,0))/$EG24 -> 10 | AF24: =SUM(IF($W$71:$W$1041=$W24,$Y$71:$Y$1041*AF$71:AF$1041,0))/$EG24 -> 10 | AG24: =SUM(IF($W$71:$W$1041=$W24,$Y$71:$Y$1041*AG$71:AG$1041,0))/$EG24 -> 15 | AH24: =SUM(IF($W$71:$W$1041=$W24,$Y$71:$Y$1041*AH$71:AH$1041,0))/$EG24 -> 27.5 | AI24: =SUM(IF($W$71:$W$1041=$W24,$Y$71:$Y$1041*AI$71:AI$1041,0))/$EG24 -> 42.5 | AJ24: =SUM(IF($W$71:$W$1041=$W24,$Y$71:$Y$1041*AJ$71:AJ$1041,0))/$EG24 -> 62.5 | AK24: =SUM(IF($W$71:$W$1041=$W24,$Y$71:$Y$1041*AK$71:AK$1041,0))/$EG24 -> 20 | AL24: =SUM(IF($W$71:$W$1041=$W24,$Y$71:$Y$1041*AL$71:AL$1041,0))/$EG24 -> 0 | AM24: =SUM(IF($W$71:$W$1041=$W24,$Y$71:$Y$1041*AM$71:AM$1041,0))/$EG24 -> 0.7 | AN24: =SUM(IF($W$71:$W$1041=$W24,$Y$71:$Y$1041*AN$71:AN$1041,0))/$EG24 -> 0.65 | AO24: =SUM(IF($W$71:$W$1041=$W24,$Y$71:$Y$1041*AO$71:AO$1041,0))/$EG24 -> 0.63 | AP24: =SUM(IF($W$71:$W$1041=$W24,$Y$71:$Y$1041*AP$71:AP$1041,0))/$EG24 -> 0.61 | AQ24: =SUM(IF($W$71:$W$1041=$W24,$Y$71:$Y$1041*AQ$71:AQ$1041,0))/$EG24 -> 0.59 | AR24: =SUM(IF($W$71:$W$1041=$W24,$Y$71:$Y$1041*AR$71:AR$1041,0))/$EG24 -> 0.56 | AS24: =SUM(IF($W$71:$W$1041=$W24,$Y$71:$Y$1041*AS$71:AS$1041,0))/$EG24 -> 0.54 | AT24: =SUM(IF($W$71:$W$1041=$W24,$Y$71:$Y$1041*AT$71:AT$1041,0))/$EG24 -> 0.52 | AU24: =SUM(IF($W$71:$W$1041=$W24,$Y$71:$Y$1041*AU$71:AU$1041,0))/$EG24 -> 0.52 | AV24: =SUM(IF($W$71:$W$1041=$W24,$Y$71:$Y$1041*AV$71:AV$1041,0))/$EG24 -> 0.54 | AW24: =SUM(IF($W$71:$W$1041=$W24,$Y$71:$Y$1041*AW$71:AW$1041,0))/$EG24 -> 0.57 | AX24: =SUM(IF($W$71:$W$1041=$W24,$Y$71:$Y$1041*AX$71:AX$1041,0))/$EG24 -> 0.62 | AY24: =SUM(IF($W$71:$W$1041=$W24,$Y$71:$Y$1041*AY$71:AY$1041,0))/$EG24 -> 0.67 | AZ24: =SUM(IF($W$71:$W$1041=$W24,$Y$71:$Y$1041*AZ$71:AZ$1041,0))/$EG24 -> 0.73 | BA24: =SUM(IF($W$71:$W$1041=$W24,$Y$71:$Y$1041*BA$71:BA$1041,0))/$EG24 -> 0.77 | BB24: =SUM(IF($W$71:$W$1041=$W24,$Y$71:$Y$1041*BB$71:BB$1041,0))/$EG24 -> 0.79 | BC24: =SUM(IF($W$71:$W$1041=$W24,$Y$71:$Y$1041*BC$71:BC$1041,0))/$EG24 -> 0.8 | BD24: =SUM(IF($W$71:$W$1041=$W24,$Y$71:$Y$1041*BD$71:BD$1041,0))/$EG24 -> 0.81 | BE24: =SUM(IF($W$71:$W$1041=$W24,$Y$71:$Y$1041*BE$71:BE$1041,0))/$EG24 -> 0.81 | BF24: =SUM(IF($W$71:$W$1041=$W24,$Y$71:$Y$1041*BF$71:BF$1041,0))/$EG24 -> 0.81 | BG24: =SUM(IF($W$71:$W$1041=$W24,$Y$71:$Y$1041*BG$71:BG$1041,0))/$EG24 -> 0.81 | BH24: =SUM(IF($W$71:$W$1041=$W24,$Y$71:$Y$1041*BH$71:BH$1041,0))/$EG24 -> 0.8 | BI24: =SUM(IF($W$71:$W$1041=$W24,$Y$71:$Y$1041*BI$71:BI$1041,0))/$EG24 -> 0.79 | BJ24: =SUM(IF($W$71:$W$1041=$W24,$Y$71:$Y$1041*BJ$71:BJ$1041,0))/$EG24 -> 0.76 | BK24: =SUM(IF($W$71:$W$1041=$W24,$Y$71:$Y$1041*BK$71:BK$1041,0))/$EG24 -> 0.72 | BL24: =SUM(IF($W$71:$W$1041=$W24,$Y$71:$Y$1041*BL$71:BL$1041,0))/$EG24 -> 0.67 | BM24: =SUM(IF($W$71:$W$1041=$W24,$Y$71:$Y$1041*BM$71:BM$1041,0))/$EG24 -> 0.65 | BN24: =SUM(IF($W$71:$W$1041=$W24,$Y$71:$Y$1041*BN$71:BN$1041,0))/$EG24 -> 0.63 | BO24: =SUM(IF($W$71:$W$1041=$W24,$Y$71:$Y$1041*BO$71:BO$1041,0))/$EG24 -> 0.61 | BP24: =SUM(IF($W$71:$W$1041=$W24,$Y$71:$Y$1041*BP$71:BP$1041,0))/$EG24 -> 0.59 | BQ24: =SUM(IF($W$71:$W$1041=$W24,$Y$71:$Y$1041*BQ$71:BQ$1041,0))/$EG24 -> 0.56 | BR24: =SUM(IF($W$71:$W$1041=$W24,$Y$71:$Y$1041*BR$71:BR$1041,0))/$EG24 -> 0.54 | BS24: =SUM(IF($W$71:$W$1041=$W24,$Y$71:$Y$1041*BS$71:BS$1041,0))/$EG24 -> 0.54 | BT24: =SUM(IF($W$71:$W$1041=$W24,$Y$71:$Y$1041*BT$71:BT$1041,0))/$EG24 -> 0.56 | BU24: =SUM(IF($W$71:$W$1041=$W24,$Y$71:$Y$1041*BU$71:BU$1041,0))/$EG24 -> 0.59 | BV24: =SUM(IF($W$71:$W$1041=$W24,$Y$71:$Y$1041*BV$71:BV$1041,0))/$EG24 -> 0.64 | BW24: =SUM(IF($W$71:$W$1041=$W24,$Y$71:$Y$1041*BW$71:BW$1041,0))/$EG24 -> 0.68 | BX24: =SUM(IF($W$71:$W$1041=$W24,$Y$71:$Y$1041*BX$71:BX$1041,0))/$EG24 -> 0.73 | BY24: =SUM(IF($W$71:$W$1041=$W24,$Y$71:$Y$1041*BY$71:BY$1041,0))/$EG24 -> 0.77 | BZ24: =SUM(IF($W$71:$W$1041=$W24,$Y$71:$Y$1041*BZ$71:BZ$1041,0))/$EG24 -> 0.79 | CA24: =SUM(IF($W$71:$W$1041=$W24,$Y$71:$Y$1041*CA$71:CA$1041,0))/$EG24 -> 0.81 | CB24: =SUM(IF($W$71:$W$1041=$W24,$Y$71:$Y$1041*CB$71:CB$1041,0))/$EG24 -> 0.81 | CC24: =SUM(IF($W$71:$W$1041=$W24,$Y$71:$Y$1041*CC$71:CC$1041,0))/$EG24 -> 0.81 | CD24: =SUM(IF($W$71:$W$1041=$W24,$Y$71:$Y$1041*CD$71:CD$1041,0))/$EG24 -> 0.82 | CE24: =SUM(IF($W$71:$W$1041=$W24,$Y$71:$Y$1041*CE$71:CE$1041,0))/$EG24 -> 0.81 | CF24: =SUM(IF($W$71:$W$1041=$W24,$Y$71:$Y$1041*CF$71:CF$1041,0))/$EG24 -> 0.81 | CG24: =SUM(IF($W$71:$W$1041=$W24,$Y$71:$Y$1041*CG$71:CG$1041,0))/$EG24 -> 0.8 | CH24: =SUM(IF($W$71:$W$1041=$W24,$Y$71:$Y$1041*CH$71:CH$1041,0))/$EG24 -> 0.77 | CI24: =SUM(IF($W$71:$W$1041=$W24,$Y$71:$Y$1041*CI$71:CI$1041,0))/$EG24 -> -0.00016 | CJ24: =SUM(IF($W$71:$W$1041=$W24,$Y$71:$Y$1041*CJ$71:CJ$1041,0))/$EG24 -> -0.00057 | CK24: =SUM(IF($W$71:$W$1041=$W24,$Y$71:$Y$1041*CK$71:CK$1041,0))/$EG24 -> -0.00088 | CL24: =SUM(IF($W$71:$W$1041=$W24,$Y$71:$Y$1041*CL$71:CL$1041,0))/$EG24 -> -0.00107 | CM24: =SUM(IF($W$71:$W$1041=$W24,$Y$71:$Y$1041*CM$71:CM$1041,0))/$EG24 -> -0.00138 | CN24: =SUM(IF($W$71:$W$1041=$W24,$Y$71:$Y$1041*CN$71:CN$1041,0))/$EG24 -> -0.00168 | CO24: =SUM(IF($W$71:$W$1041=$W24,$Y$71:$Y$1041*CO$71:CO$1041,0))/$EG24 -> -0.00196 | CP24: =SUM(IF($W$71:$W$1041=$W24,$Y$71:$Y$1041*CP$71:CP$1041,0))/$EG24 -> -0.00213 | CQ24: =SUM(IF($W$71:$W$1041=$W24,$Y$71:$Y$1041*CQ$71:CQ$1041,0))/$EG24 -> -0.00206 | CR24: =SUM(IF($W$71:$W$1041=$W24,$Y$71:$Y$1041*CR$71:CR$1041,0))/$EG24 -> -0.00176 | CS24: =SUM(IF($W$71:$W$1041=$W24,$Y$71:$Y$1041*CS$71:CS$1041,0))/$EG24 -> -0.00129 | CT24: =SUM(IF($W$71:$W$1041=$W24,$Y$71:$Y$1041*CT$71:CT$1041,0))/$EG24 -> -0.00059 | CU24: =SUM(IF($W$71:$W$1041=$W24,$Y$71:$Y$1041*CU$71:CU$1041,0))/$EG24 -> -0.0001 | CV24: =SUM(IF($W$71:$W$1041=$W24,$Y$71:$Y$1041*CV$71:CV$1041,0))/$EG24 -> 0.00033 | CW24: =SUM(IF($W$71:$W$1041=$W24,$Y$71:$Y$1041*CW$71:CW$1041,0))/$EG24 -> 0.00085 | CX24: =SUM(IF($W$71:$W$1041=$W24,$Y$71:$Y$1041*CX$71:CX$1041,0))/$EG24 -> 0.00125 | CY24: =SUM(IF($W$71:$W$1041=$W24,$Y$71:$Y$1041*CY$71:CY$1041,0))/$EG24 -> 0.0016 | CZ24: =SUM(IF($W$71:$W$1041=$W24,$Y$71:$Y$1041*CZ$71:CZ$1041,0))/$EG24 -> 0.00183 | DA24: =SUM(IF($W$71:$W$1041=$W24,$Y$71:$Y$1041*DA$71:DA$1041,0))/$EG24 -> 0.00193 | DB24: =SUM(IF($W$71:$W$1041=$W24,$Y$71:$Y$1041*DB$71:DB$1041,0))/$EG24 -> 0.00196 | DC24: =SUM(IF($W$71:$W$1041=$W24,$Y$71:$Y$1041*DC$71:DC$1041,0))/$EG24 -> 0.00187 | DD24: =SUM(IF($W$71:$W$1041=$W24,$Y$71:$Y$1041*DD$71:DD$1041,0))/$EG24 -> 0.00164 | DE24: =SUM(IF($W$71:$W$1041=$W24,$Y$71:$Y$1041*DE$71:DE$1041,0))/$EG24 -> 0.00131 | DF24: =SUM(IF($W$71:$W$1041=$W24,$Y$71:$Y$1041*DF$71:DF$1041,0))/$EG24 -> 0.00073 | DG24: =SUM(IF($W$71:$W$1041=$W24,$Y$71:$Y$1041*DG$71:DG$1041,0))/$EG24 -> -6e-05 | DH24: =SUM(IF($W$71:$W$1041=$W24,$Y$71:$Y$1041*DH$71:DH$1041,0))/$EG24 -> -0.00056 | DI24: =SUM(IF($W$71:$W$1041=$W24,$Y$71:$Y$1041*DI$71:DI$1041,0))/$EG24 -> -0.00078 | DJ24: =SUM(IF($W$71:$W$1041=$W24,$Y$71:$Y$1041*DJ$71:DJ$1041,0))/$EG24 -> -0.00098 | DK24: =SUM(IF($W$71:$W$1041=$W24,$Y$71:$Y$1041*DK$71:DK$1041,0))/$EG24 -> -0.00126 | DL24: =SUM(IF($W$71:$W$1041=$W24,$Y$71:$Y$1041*DL$71:DL$1041,0))/$EG24 -> -0.00163 | DM24: =SUM(IF($W$71:$W$1041=$W24,$Y$71:$Y$1041*DM$71:DM$1041,0))/$EG24 -> -0.00199 | DN24: =SUM(IF($W$71:$W$1041=$W24,$Y$71:$Y$1041*DN$71:DN$1041,0))/$EG24 -> -0.00224 | DO24: =SUM(IF($W$71:$W$1041=$W24,$Y$71:$Y$1041*DO$71:DO$1041,0))/$EG24 -> -0.00224 | DP24: =SUM(IF($W$71:$W$1041=$W24,$Y$71:$Y$1041*DP$71:DP$1041,0))/$EG24 -> -0.00205 | DQ24: =SUM(IF($W$71:$W$1041=$W24,$Y$71:$Y$1041*DQ$71:DQ$1041,0))/$EG24 -> -0.0015 | DR24: =SUM(IF($W$71:$W$1041=$W24,$Y$71:$Y$1041*DR$71:DR$1041,0))/$EG24 -> -0.00073 | DS24: =SUM(IF($W$71:$W$1041=$W24,$Y$71:$Y$1041*DS$71:DS$1041,0))/$EG24 -> 0.00017 | DT24: =SUM(IF($W$71:$W$1041=$W24,$Y$71:$Y$1041*DT$71:DT$1041,0))/$EG24 -> 0.00091 | DU24: =SUM(IF($W$71:$W$1041=$W24,$Y$71:$Y$1041*DU$71:DU$1041,0))/$EG24 -> 0.00155 | DV24: =SUM(IF($W$71:$W$1041=$W24,$Y$71:$Y$1041*DV$71:DV$1041,0))/$EG24 -> 0.00206 | DW24: =SUM(IF($W$71:$W$1041=$W24,$Y$71:$Y$1041*DW$71:DW$1041,0))/$EG24 -> 0.00239 | DX24: =SUM(IF($W$71:$W$1041=$W24,$Y$71:$Y$1041*DX$71:DX$1041,0))/$EG24 -> 0.00255 | DY24: =SUM(IF($W$71:$W$1041=$W24,$Y$71:$Y$1041*DY$71:DY$1041,0))/$EG24 -> 0.00257 | DZ24: =SUM(IF($W$71:$W$1041=$W24,$Y$71:$Y$1041*DZ$71:DZ$1041,0))/$EG24 -> 0.00247 | EA24: =SUM(IF($W$71:$W$1041=$W24,$Y$71:$Y$1041*EA$71:EA$1041,0))/$EG24 -> 0.00222 | EB24: =SUM(IF($W$71:$W$1041=$W24,$Y$71:$Y$1041*EB$71:EB$1041,0))/$EG24 -> 0.00183 | EC24: =SUM(IF($W$71:$W$1041=$W24,$Y$71:$Y$1041*EC$71:EC$1041,0))/$EG24 -> 0.00134 | ED24: =SUM(IF($W$71:$W$1041=$W24,$Y$71:$Y$1041*ED$71:ED$1041,0))/$EG24 -> 0.00031 | EE24: 257 | EF24: 265 | EG24: 1
A25: 1900-11-16 | B25: 1900-11-23 | C25: =IF(24 - MATCH(Pasture!$C$8,table_PeriodStarts,0) < ROW() - ROW($D$4), "* ", "")&TEXT(INDIRECT("$A"&MOD(ROW()-ROW($D$4)+MATCH(Pasture!$C$8,table_PeriodStarts,0) - 1, 24) + ROW($D$4)),"d mmm") -> 16 Nov | D25: =INDIRECT("$A"&MOD(ROW()-ROW($D$4)+MATCH(Pasture!$C$8,table_PeriodStarts,0) - 1, 24) + ROW($D$4)) -> 1900-11-16 | F25: tonnes/farm | I25: 1.3 | K25: 0.5 | N25: C(L,1) | O25: 4 | P25: 4 | Q25: 4 | R25: 4 | S25: 4 | T25: 2 | U25: 2 | W25: 22 | X25: VIC - Central (Seymour) | Y25: -37 | Z25: =SUM(IF($W$71:$W$1041=$W25,$Y$71:$Y$1041*Z$71:Z$1041,0))/$EG25 -> 0.3 | AA25: =SUM(IF($W$71:$W$1041=$W25,$Y$71:$Y$1041*AA$71:AA$1041,0))/$EG25 -> 6 | AB25: =SUM(IF($W$71:$W$1041=$W25,$Y$71:$Y$1041*AB$71:AB$1041,0))/$EG25 -> 5 | AC25: =SUM(IF($W$71:$W$1041=$W25,$Y$71:$Y$1041*AC$71:AC$1041,0))/$EG25 -> 5 | AD25: =SUM(IF($W$71:$W$1041=$W25,$Y$71:$Y$1041*AD$71:AD$1041,0))/$EG25 -> 33 | AE25: =SUM(IF($W$71:$W$1041=$W25,$Y$71:$Y$1041*AE$71:AE$1041,0))/$EG25 -> 17 | AF25: =SUM(IF($W$71:$W$1041=$W25,$Y$71:$Y$1041*AF$71:AF$1041,0))/$EG25 -> 10 | AG25: =SUM(IF($W$71:$W$1041=$W25,$Y$71:$Y$1041*AG$71:AG$1041,0))/$EG25 -> 15 | AH25: =SUM(IF($W$71:$W$1041=$W25,$Y$71:$Y$1041*AH$71:AH$1041,0))/$EG25 -> 20 | AI25: =SUM(IF($W$71:$W$1041=$W25,$Y$71:$Y$1041*AI$71:AI$1041,0))/$EG25 -> 40 | AJ25: =SUM(IF($W$71:$W$1041=$W25,$Y$71:$Y$1041*AJ$71:AJ$1041,0))/$EG25 -> 65 | AK25: =SUM(IF($W$71:$W$1041=$W25,$Y$71:$Y$1041*AK$71:AK$1041,0))/$EG25 -> 25 | AL25: =SUM(IF($W$71:$W$1041=$W25,$Y$71:$Y$1041*AL$71:AL$1041,0))/$EG25 -> 7 | AM25: =SUM(IF($W$71:$W$1041=$W25,$Y$71:$Y$1041*AM$71:AM$1041,0))/$EG25 -> 0.7054285714 | AN25: =SUM(IF($W$71:$W$1041=$W25,$Y$71:$Y$1041*AN$71:AN$1041,0))/$EG25 -> 0.696 | AO25: =SUM(IF($W$71:$W$1041=$W25,$Y$71:$Y$1041*AO$71:AO$1041,0))/$EG25 -> 0.6833571429 | AP25: =SUM(IF($W$71:$W$1041=$W25,$Y$71:$Y$1041*AP$71:AP$1041,0))/$EG25 -> 0.6755 | AQ25: =SUM(IF($W$71:$W$1041=$W25,$Y$71:$Y$1041*AQ$71:AQ$1041,0))/$EG25 -> 0.687 | AR25: =SUM(IF($W$71:$W$1041=$W25,$Y$71:$Y$1041*AR$71:AR$1041,0))/$EG25 -> 0.6706428571 | AS25: =SUM(IF($W$71:$W$1041=$W25,$Y$71:$Y$1041*AS$71:AS$1041,0))/$EG25 -> 0.6807142857 | AT25: =SUM(IF($W$71:$W$1041=$W25,$Y$71:$Y$1041*AT$71:AT$1041,0))/$EG25 -> 0.7198571429 | AU25: =SUM(IF($W$71:$W$1041=$W25,$Y$71:$Y$1041*AU$71:AU$1041,0))/$EG25 -> 0.7357857143 | AV25: =SUM(IF($W$71:$W$1041=$W25,$Y$71:$Y$1041*AV$71:AV$1041,0))/$EG25 -> 0.7733571429 | AW25: =SUM(IF($W$71:$W$1041=$W25,$Y$71:$Y$1041*AW$71:AW$1041,0))/$EG25 -> 0.7872857143 | AX25: =SUM(IF($W$71:$W$1041=$W25,$Y$71:$Y$1041*AX$71:AX$1041,0))/$EG25 -> 0.7905714286 | AY25: =SUM(IF($W$71:$W$1041=$W25,$Y$71:$Y$1041*AY$71:AY$1041,0))/$EG25 -> 0.7897142857 | AZ25: =SUM(IF($W$71:$W$1041=$W25,$Y$71:$Y$1041*AZ$71:AZ$1041,0))/$EG25 -> 0.7882142857 | BA25: =SUM(IF($W$71:$W$1041=$W25,$Y$71:$Y$1041*BA$71:BA$1041,0))/$EG25 -> 0.7884285714 | BB25: =SUM(IF($W$71:$W$1041=$W25,$Y$71:$Y$1041*BB$71:BB$1041,0))/$EG25 -> 0.7897857143 | BC25: =SUM(IF($W$71:$W$1041=$W25,$Y$71:$Y$1041*BC$71:BC$1041,0))/$EG25 -> 0.7902857143 | BD25: =SUM(IF($W$71:$W$1041=$W25,$Y$71:$Y$1041*BD$71:BD$1041,0))/$EG25 -> 0.7909285714 | BE25: =SUM(IF($W$71:$W$1041=$W25,$Y$71:$Y$1041*BE$71:BE$1041,0))/$EG25 -> 0.7905 | BF25: =SUM(IF($W$71:$W$1041=$W25,$Y$71:$Y$1041*BF$71:BF$1041,0))/$EG25 -> 0.7896428571 | BG25: =SUM(IF($W$71:$W$1041=$W25,$Y$71:$Y$1041*BG$71:BG$1041,0))/$EG25 -> 0.7826428571 | BH25: =SUM(IF($W$71:$W$1041=$W25,$Y$71:$Y$1041*BH$71:BH$1041,0))/$EG25 -> 0.7671428571 | BI25: =SUM(IF($W$71:$W$1041=$W25,$Y$71:$Y$1041*BI$71:BI$1041,0))/$EG25 -> 0.7454285714 | BJ25: =SUM(IF($W$71:$W$1041=$W25,$Y$71:$Y$1041*BJ$71:BJ$1041,0))/$EG25 -> 0.7247142857 | BK25: =SUM(IF($W$71:$W$1041=$W25,$Y$71:$Y$1041*BK$71:BK$1041,0))/$EG25 -> 0.7182142857 | BL25: =SUM(IF($W$71:$W$1041=$W25,$Y$71:$Y$1041*BL$71:BL$1041,0))/$EG25 -> 0.7075 | BM25: =SUM(IF($W$71:$W$1041=$W25,$Y$71:$Y$1041*BM$71:BM$1041,0))/$EG25 -> 0.6955 | BN25: =SUM(IF($W$71:$W$1041=$W25,$Y$71:$Y$1041*BN$71:BN$1041,0))/$EG25 -> 0.6903571429 | BO25: =SUM(IF($W$71:$W$1041=$W25,$Y$71:$Y$1041*BO$71:BO$1041,0))/$EG25 -> 0.7017857143 | BP25: =SUM(IF($W$71:$W$1041=$W25,$Y$71:$Y$1041*BP$71:BP$1041,0))/$EG25 -> 0.6873571429 | BQ25: =SUM(IF($W$71:$W$1041=$W25,$Y$71:$Y$1041*BQ$71:BQ$1041,0))/$EG25 -> 0.6980714286 | BR25: =SUM(IF($W$71:$W$1041=$W25,$Y$71:$Y$1041*BR$71:BR$1041,0))/$EG25 -> 0.7310714286 | BS25: =SUM(IF($W$71:$W$1041=$W25,$Y$71:$Y$1041*BS$71:BS$1041,0))/$EG25 -> 0.7431428571 | BT25: =SUM(IF($W$71:$W$1041=$W25,$Y$71:$Y$1041*BT$71:BT$1041,0))/$EG25 -> 0.7793571429 | BU25: =SUM(IF($W$71:$W$1041=$W25,$Y$71:$Y$1041*BU$71:BU$1041,0))/$EG25 -> 0.7907142857 | BV25: =SUM(IF($W$71:$W$1041=$W25,$Y$71:$Y$1041*BV$71:BV$1041,0))/$EG25 -> 0.7926428571 | BW25: =SUM(IF($W$71:$W$1041=$W25,$Y$71:$Y$1041*BW$71:BW$1041,0))/$EG25 -> 0.7915 | BX25: =SUM(IF($W$71:$W$1041=$W25,$Y$71:$Y$1041*BX$71:BX$1041,0))/$EG25 -> 0.7898571429 | BY25: =SUM(IF($W$71:$W$1041=$W25,$Y$71:$Y$1041*BY$71:BY$1041,0))/$EG25 -> 0.7899285714 | BZ25: =SUM(IF($W$71:$W$1041=$W25,$Y$71:$Y$1041*BZ$71:BZ$1041,0))/$EG25 -> 0.7912142857 | CA25: =SUM(IF($W$71:$W$1041=$W25,$Y$71:$Y$1041*CA$71:CA$1041,0))/$EG25 -> 0.7925 | CB25: =SUM(IF($W$71:$W$1041=$W25,$Y$71:$Y$1041*CB$71:CB$1041,0))/$EG25 -> 0.7934285714 | CC25: =SUM(IF($W$71:$W$1041=$W25,$Y$71:$Y$1041*CC$71:CC$1041,0))/$EG25 -> 0.7934285714 | CD25: =SUM(IF($W$71:$W$1041=$W25,$Y$71:$Y$1041*CD$71:CD$1041,0))/$EG25 -> 0.7924285714 | CE25: =SUM(IF($W$71:$W$1041=$W25,$Y$71:$Y$1041*CE$71:CE$1041,0))/$EG25 -> 0.7862142857 | CF25: =SUM(IF($W$71:$W$1041=$W25,$Y$71:$Y$1041*CF$71:CF$1041,0))/$EG25 -> 0.7765714286 | CG25: =SUM(IF($W$71:$W$1041=$W25,$Y$71:$Y$1041*CG$71:CG$1041,0))/$EG25 -> 0.7592142857 | CH25: =SUM(IF($W$71:$W$1041=$W25,$Y$71:$Y$1041*CH$71:CH$1041,0))/$EG25 -> 0.74 | CI25: =SUM(IF($W$71:$W$1041=$W25,$Y$71:$Y$1041*CI$71:CI$1041,0))/$EG25 -> -0.0004592571429 | CJ25: =SUM(IF($W$71:$W$1041=$W25,$Y$71:$Y$1041*CJ$71:CJ$1041,0))/$EG25 -> -0.0003984 | CK25: =SUM(IF($W$71:$W$1041=$W25,$Y$71:$Y$1041*CK$71:CK$1041,0))/$EG25 -> -0.0006390857143 | CL25: =SUM(IF($W$71:$W$1041=$W25,$Y$71:$Y$1041*CL$71:CL$1041,0))/$EG25 -> -0.0008808 | CM25: =SUM(IF($W$71:$W$1041=$W25,$Y$71:$Y$1041*CM$71:CM$1041,0))/$EG25 -> -0.0007841142857 | CN25: =SUM(IF($W$71:$W$1041=$W25,$Y$71:$Y$1041*CN$71:CN$1041,0))/$EG25 -> -0.001086857143 | CO25: =SUM(IF($W$71:$W$1041=$W25,$Y$71:$Y$1041*CO$71:CO$1041,0))/$EG25 -> -0.0009505714286 | CP25: =SUM(IF($W$71:$W$1041=$W25,$Y$71:$Y$1041*CP$71:CP$1041,0))/$EG25 -> -0.0002645142857 | CQ25: =SUM(IF($W$71:$W$1041=$W25,$Y$71:$Y$1041*CQ$71:CQ$1041,0))/$EG25 -> -4.234285714e-05 | CR25: =SUM(IF($W$71:$W$1041=$W25,$Y$71:$Y$1041*CR$71:CR$1041,0))/$EG25 -> 0.0005720571429 | CS25: =SUM(IF($W$71:$W$1041=$W25,$Y$71:$Y$1041*CS$71:CS$1041,0))/$EG25 -> 0.0008201142857 | CT25: =SUM(IF($W$71:$W$1041=$W25,$Y$71:$Y$1041*CT$71:CT$1041,0))/$EG25 -> 0.0008686285714 | CU25: =SUM(IF($W$71:$W$1041=$W25,$Y$71:$Y$1041*CU$71:CU$1041,0))/$EG25 -> 0.0008468571429 | CV25: =SUM(IF($W$71:$W$1041=$W25,$Y$71:$Y$1041*CV$71:CV$1041,0))/$EG25 -> 0.0008022857143 | CW25: =SUM(IF($W$71:$W$1041=$W25,$Y$71:$Y$1041*CW$71:CW$1041,0))/$EG25 -> 0.0007652571429 | CX25: =SUM(IF($W$71:$W$1041=$W25,$Y$71:$Y$1041*CX$71:CX$1041,0))/$EG25 -> 0.0007506857143 | CY25: =SUM(IF($W$71:$W$1041=$W25,$Y$71:$Y$1041*CY$71:CY$1041,0))/$EG25 -> 0.0007332 | CZ25: =SUM(IF($W$71:$W$1041=$W25,$Y$71:$Y$1041*CZ$71:CZ$1041,0))/$EG25 -> 0.0007208571429 | DA25: =SUM(IF($W$71:$W$1041=$W25,$Y$71:$Y$1041*DA$71:DA$1041,0))/$EG25 -> 0.0006857142857 | DB25: =SUM(IF($W$71:$W$1041=$W25,$Y$71:$Y$1041*DB$71:DB$1041,0))/$EG25 -> 0.0006466285714 | DC25: =SUM(IF($W$71:$W$1041=$W25,$Y$71:$Y$1041*DC$71:DC$1041,0))/$EG25 -> 0.0005172 | DD25: =SUM(IF($W$71:$W$1041=$W25,$Y$71:$Y$1041*DD$71:DD$1041,0))/$EG25 -> 0.0002571428571 | DE25: =SUM(IF($W$71:$W$1041=$W25,$Y$71:$Y$1041*DE$71:DE$1041,0))/$EG25 -> -1.217142857e-05 | DF25: =SUM(IF($W$71:$W$1041=$W25,$Y$71:$Y$1041*DF$71:DF$1041,0))/$EG25 -> -0.0003680571429 | DG25: =SUM(IF($W$71:$W$1041=$W25,$Y$71:$Y$1041*DG$71:DG$1041,0))/$EG25 -> -0.0002 | DH25: =SUM(IF($W$71:$W$1041=$W25,$Y$71:$Y$1041*DH$71:DH$1041,0))/$EG25 -> -0.0001371428571 | DI25: =SUM(IF($W$71:$W$1041=$W25,$Y$71:$Y$1041*DI$71:DI$1041,0))/$EG25 -> -0.0003447619048 | DJ25: =SUM(IF($W$71:$W$1041=$W25,$Y$71:$Y$1041*DJ$71:DJ$1041,0))/$EG25 -> -0.000500952381 | DK25: =SUM(IF($W$71:$W$1041=$W25,$Y$71:$Y$1041*DK$71:DK$1041,0))/$EG25 -> -0.0003066666667 | DL25: =SUM(IF($W$71:$W$1041=$W25,$Y$71:$Y$1041*DL$71:DL$1041,0))/$EG25 -> -0.000699047619 | DM25: =SUM(IF($W$71:$W$1041=$W25,$Y$71:$Y$1041*DM$71:DM$1041,0))/$EG25 -> -0.000580952381 | DN25: =SUM(IF($W$71:$W$1041=$W25,$Y$71:$Y$1041*DN$71:DN$1041,0))/$EG25 -> 0.0001447619048 | DO25: =SUM(IF($W$71:$W$1041=$W25,$Y$71:$Y$1041*DO$71:DO$1041,0))/$EG25 -> 0.0003752380952 | DP25: =SUM(IF($W$71:$W$1041=$W25,$Y$71:$Y$1041*DP$71:DP$1041,0))/$EG25 -> 0.001236190476 | DQ25: =SUM(IF($W$71:$W$1041=$W25,$Y$71:$Y$1041*DQ$71:DQ$1041,0))/$EG25 -> 0.001438095238 | DR25: =SUM(IF($W$71:$W$1041=$W25,$Y$71:$Y$1041*DR$71:DR$1041,0))/$EG25 -> 0.001382857143 | DS25: =SUM(IF($W$71:$W$1041=$W25,$Y$71:$Y$1041*DS$71:DS$1041,0))/$EG25 -> 0.001253333333 | DT25: =SUM(IF($W$71:$W$1041=$W25,$Y$71:$Y$1041*DT$71:DT$1041,0))/$EG25 -> 0.001106666667 | DU25: =SUM(IF($W$71:$W$1041=$W25,$Y$71:$Y$1041*DU$71:DU$1041,0))/$EG25 -> 0.0009923809524 | DV25: =SUM(IF($W$71:$W$1041=$W25,$Y$71:$Y$1041*DV$71:DV$1041,0))/$EG25 -> 0.0009238095238 | DW25: =SUM(IF($W$71:$W$1041=$W25,$Y$71:$Y$1041*DW$71:DW$1041,0))/$EG25 -> 0.000860952381 | DX25: =SUM(IF($W$71:$W$1041=$W25,$Y$71:$Y$1041*DX$71:DX$1041,0))/$EG25 -> 0.0008057142857 | DY25: =SUM(IF($W$71:$W$1041=$W25,$Y$71:$Y$1041*DY$71:DY$1041,0))/$EG25 -> 0.0007257142857 | DZ25: =SUM(IF($W$71:$W$1041=$W25,$Y$71:$Y$1041*DZ$71:DZ$1041,0))/$EG25 -> 0.0006323809524 | EA25: =SUM(IF($W$71:$W$1041=$W25,$Y$71:$Y$1041*EA$71:EA$1041,0))/$EG25 -> 0.0004323809524 | EB25: =SUM(IF($W$71:$W$1041=$W25,$Y$71:$Y$1041*EB$71:EB$1041,0))/$EG25 -> 0.000140952381 | EC25: =SUM(IF($W$71:$W$1041=$W25,$Y$71:$Y$1041*EC$71:EC$1041,0))/$EG25 -> -0.00028 | ED25: =SUM(IF($W$71:$W$1041=$W25,$Y$71:$Y$1041*ED$71:ED$1041,0))/$EG25 -> -0.001436190476 | EE25: 266 | EF25: 273 | EG25: 1
A26: 1900-12-01 | B26: 1900-12-08 | C26: =IF(24 - MATCH(Pasture!$C$8,table_PeriodStarts,0) < ROW() - ROW($D$4), "* ", "")&TEXT(INDIRECT("$A"&MOD(ROW()-ROW($D$4)+MATCH(Pasture!$C$8,table_PeriodStarts,0) - 1, 24) + ROW($D$4)),"d mmm") -> 1 Dec | D26: =INDIRECT("$A"&MOD(ROW()-ROW($D$4)+MATCH(Pasture!$C$8,table_PeriodStarts,0) - 1, 24) + ROW($D$4)) -> 1900-12-01 | F26: tonnes/ha | I26: 1.4 | N26: C(L,2) | O26: 30 | P26: 30 | Q26: 30 | R26: 30 | S26: 30 | T26: 22 | U26: 22 | W26: 23 | X26: VIC - Central (Maryborough) | Y26: -37 | Z26: =SUM(IF($W$71:$W$1041=$W26,$Y$71:$Y$1041*Z$71:Z$1041,0))/$EG26 -> 0.2 | AA26: =SUM(IF($W$71:$W$1041=$W26,$Y$71:$Y$1041*AA$71:AA$1041,0))/$EG26 -> 1.25 | AB26: =SUM(IF($W$71:$W$1041=$W26,$Y$71:$Y$1041*AB$71:AB$1041,0))/$EG26 -> 1.25 | AC26: =SUM(IF($W$71:$W$1041=$W26,$Y$71:$Y$1041*AC$71:AC$1041,0))/$EG26 -> 1.75 | AD26: =SUM(IF($W$71:$W$1041=$W26,$Y$71:$Y$1041*AD$71:AD$1041,0))/$EG26 -> 6.25 | AE26: =SUM(IF($W$71:$W$1041=$W26,$Y$71:$Y$1041*AE$71:AE$1041,0))/$EG26 -> 12.5 | AF26: =SUM(IF($W$71:$W$1041=$W26,$Y$71:$Y$1041*AF$71:AF$1041,0))/$EG26 -> 17.70535714 | AG26: =SUM(IF($W$71:$W$1041=$W26,$Y$71:$Y$1041*AG$71:AG$1041,0))/$EG26 -> 20 | AH26: =SUM(IF($W$71:$W$1041=$W26,$Y$71:$Y$1041*AH$71:AH$1041,0))/$EG26 -> 27.5 | AI26: =SUM(IF($W$71:$W$1041=$W26,$Y$71:$Y$1041*AI$71:AI$1041,0))/$EG26 -> 50.53571429 | AJ26: =SUM(IF($W$71:$W$1041=$W26,$Y$71:$Y$1041*AJ$71:AJ$1041,0))/$EG26 -> 50 | AK26: =SUM(IF($W$71:$W$1041=$W26,$Y$71:$Y$1041*AK$71:AK$1041,0))/$EG26 -> 22.5 | AL26: =SUM(IF($W$71:$W$1041=$W26,$Y$71:$Y$1041*AL$71:AL$1041,0))/$EG26 -> 3.75 | AM26: =SUM(IF($W$71:$W$1041=$W26,$Y$71:$Y$1041*AM$71:AM$1041,0))/$EG26 -> 0.7015357143 | AN26: =SUM(IF($W$71:$W$1041=$W26,$Y$71:$Y$1041*AN$71:AN$1041,0))/$EG26 -> 0.6877142857 | AO26: =SUM(IF($W$71:$W$1041=$W26,$Y$71:$Y$1041*AO$71:AO$1041,0))/$EG26 -> 0.6716428571 | AP26: =SUM(IF($W$71:$W$1041=$W26,$Y$71:$Y$1041*AP$71:AP$1041,0))/$EG26 -> 0.6632857143 | AQ26: =SUM(IF($W$71:$W$1041=$W26,$Y$71:$Y$1041*AQ$71:AQ$1041,0))/$EG26 -> 0.67425 | AR26: =SUM(IF($W$71:$W$1041=$W26,$Y$71:$Y$1041*AR$71:AR$1041,0))/$EG26 -> 0.6738571429 | AS26: =SUM(IF($W$71:$W$1041=$W26,$Y$71:$Y$1041*AS$71:AS$1041,0))/$EG26 -> 0.6901785714 | AT26: =SUM(IF($W$71:$W$1041=$W26,$Y$71:$Y$1041*AT$71:AT$1041,0))/$EG26 -> 0.71625 | AU26: =SUM(IF($W$71:$W$1041=$W26,$Y$71:$Y$1041*AU$71:AU$1041,0))/$EG26 -> 0.7333928571 | AV26: =SUM(IF($W$71:$W$1041=$W26,$Y$71:$Y$1041*AV$71:AV$1041,0))/$EG26 -> 0.7639285714 | AW26: =SUM(IF($W$71:$W$1041=$W26,$Y$71:$Y$1041*AW$71:AW$1041,0))/$EG26 -> 0.7804642857 | AX26: =SUM(IF($W$71:$W$1041=$W26,$Y$71:$Y$1041*AX$71:AX$1041,0))/$EG26 -> 0.7835 | AY26: =SUM(IF($W$71:$W$1041=$W26,$Y$71:$Y$1041*AY$71:AY$1041,0))/$EG26 -> 0.778 | AZ26: =SUM(IF($W$71:$W$1041=$W26,$Y$71:$Y$1041*AZ$71:AZ$1041,0))/$EG26 -> 0.7698928571 | BA26: =SUM(IF($W$71:$W$1041=$W26,$Y$71:$Y$1041*BA$71:BA$1041,0))/$EG26 -> 0.7657142857 | BB26: =SUM(IF($W$71:$W$1041=$W26,$Y$71:$Y$1041*BB$71:BB$1041,0))/$EG26 -> 0.7664642857 | BC26: =SUM(IF($W$71:$W$1041=$W26,$Y$71:$Y$1041*BC$71:BC$1041,0))/$EG26 -> 0.7730714286 | BD26: =SUM(IF($W$71:$W$1041=$W26,$Y$71:$Y$1041*BD$71:BD$1041,0))/$EG26 -> 0.7823928571 | BE26: =SUM(IF($W$71:$W$1041=$W26,$Y$71:$Y$1041*BE$71:BE$1041,0))/$EG26 -> 0.78475 | BF26: =SUM(IF($W$71:$W$1041=$W26,$Y$71:$Y$1041*BF$71:BF$1041,0))/$EG26 -> 0.7818571429 | BG26: =SUM(IF($W$71:$W$1041=$W26,$Y$71:$Y$1041*BG$71:BG$1041,0))/$EG26 -> 0.7720714286 | BH26: =SUM(IF($W$71:$W$1041=$W26,$Y$71:$Y$1041*BH$71:BH$1041,0))/$EG26 -> 0.75425 | BI26: =SUM(IF($W$71:$W$1041=$W26,$Y$71:$Y$1041*BI$71:BI$1041,0))/$EG26 -> 0.7297857143 | BJ26: =SUM(IF($W$71:$W$1041=$W26,$Y$71:$Y$1041*BJ$71:BJ$1041,0))/$EG26 -> 0.7175357143 | BK26: =SUM(IF($W$71:$W$1041=$W26,$Y$71:$Y$1041*BK$71:BK$1041,0))/$EG26 -> 0.7193214286 | BL26: =SUM(IF($W$71:$W$1041=$W26,$Y$71:$Y$1041*BL$71:BL$1041,0))/$EG26 -> 0.7051785714 | BM26: =SUM(IF($W$71:$W$1041=$W26,$Y$71:$Y$1041*BM$71:BM$1041,0))/$EG26 -> 0.69 | BN26: =SUM(IF($W$71:$W$1041=$W26,$Y$71:$Y$1041*BN$71:BN$1041,0))/$EG26 -> 0.6823928571 | BO26: =SUM(IF($W$71:$W$1041=$W26,$Y$71:$Y$1041*BO$71:BO$1041,0))/$EG26 -> 0.6925357143 | BP26: =SUM(IF($W$71:$W$1041=$W26,$Y$71:$Y$1041*BP$71:BP$1041,0))/$EG26 -> 0.6920714286 | BQ26: =SUM(IF($W$71:$W$1041=$W26,$Y$71:$Y$1041*BQ$71:BQ$1041,0))/$EG26 -> 0.7072142857 | BR26: =SUM(IF($W$71:$W$1041=$W26,$Y$71:$Y$1041*BR$71:BR$1041,0))/$EG26 -> 0.7309642857 | BS26: =SUM(IF($W$71:$W$1041=$W26,$Y$71:$Y$1041*BS$71:BS$1041,0))/$EG26 -> 0.7455714286 | BT26: =SUM(IF($W$71:$W$1041=$W26,$Y$71:$Y$1041*BT$71:BT$1041,0))/$EG26 -> 0.772 | BU26: =SUM(IF($W$71:$W$1041=$W26,$Y$71:$Y$1041*BU$71:BU$1041,0))/$EG26 -> 0.7856428571 | BV26: =SUM(IF($W$71:$W$1041=$W26,$Y$71:$Y$1041*BV$71:BV$1041,0))/$EG26 -> 0.7876071429 | BW26: =SUM(IF($W$71:$W$1041=$W26,$Y$71:$Y$1041*BW$71:BW$1041,0))/$EG26 -> 0.7837142857 | BX26: =SUM(IF($W$71:$W$1041=$W26,$Y$71:$Y$1041*BX$71:BX$1041,0))/$EG26 -> 0.7777142857 | BY26: =SUM(IF($W$71:$W$1041=$W26,$Y$71:$Y$1041*BY$71:BY$1041,0))/$EG26 -> 0.77425 | BZ26: =SUM(IF($W$71:$W$1041=$W26,$Y$71:$Y$1041*BZ$71:BZ$1041,0))/$EG26 -> 0.77475 | CA26: =SUM(IF($W$71:$W$1041=$W26,$Y$71:$Y$1041*CA$71:CA$1041,0))/$EG26 -> 0.78125 | CB26: =SUM(IF($W$71:$W$1041=$W26,$Y$71:$Y$1041*CB$71:CB$1041,0))/$EG26 -> 0.7889285714 | CC26: =SUM(IF($W$71:$W$1041=$W26,$Y$71:$Y$1041*CC$71:CC$1041,0))/$EG26 -> 0.7905 | CD26: =SUM(IF($W$71:$W$1041=$W26,$Y$71:$Y$1041*CD$71:CD$1041,0))/$EG26 -> 0.7886428571 | CE26: =SUM(IF($W$71:$W$1041=$W26,$Y$71:$Y$1041*CE$71:CE$1041,0))/$EG26 -> 0.7809285714 | CF26: =SUM(IF($W$71:$W$1041=$W26,$Y$71:$Y$1041*CF$71:CF$1041,0))/$EG26 -> 0.7678214286 | CG26: =SUM(IF($W$71:$W$1041=$W26,$Y$71:$Y$1041*CG$71:CG$1041,0))/$EG26 -> 0.7456785714 | CH26: =SUM(IF($W$71:$W$1041=$W26,$Y$71:$Y$1041*CH$71:CH$1041,0))/$EG26 -> 0.7351428571 | CI26: =SUM(IF($W$71:$W$1041=$W26,$Y$71:$Y$1041*CI$71:CI$1041,0))/$EG26 -> -0.0003490285714 | CJ26: =SUM(IF($W$71:$W$1041=$W26,$Y$71:$Y$1041*CJ$71:CJ$1041,0))/$EG26 -> -0.0004913142857 | CK26: =SUM(IF($W$71:$W$1041=$W26,$Y$71:$Y$1041*CK$71:CK$1041,0))/$EG26 -> -0.0008270571429 | CL26: =SUM(IF($W$71:$W$1041=$W26,$Y$71:$Y$1041*CL$71:CL$1041,0))/$EG26 -> -0.001048628571 | CM26: =SUM(IF($W$71:$W$1041=$W26,$Y$71:$Y$1041*CM$71:CM$1041,0))/$EG26 -> -0.0009474 | CN26: =SUM(IF($W$71:$W$1041=$W26,$Y$71:$Y$1041*CN$71:CN$1041,0))/$EG26 -> -0.0009948 | CO26: =SUM(IF($W$71:$W$1041=$W26,$Y$71:$Y$1041*CO$71:CO$1041,0))/$EG26 -> -0.0007014857143 | CP26: =SUM(IF($W$71:$W$1041=$W26,$Y$71:$Y$1041*CP$71:CP$1041,0))/$EG26 -> -0.0002218285714 | CQ26: =SUM(IF($W$71:$W$1041=$W26,$Y$71:$Y$1041*CQ$71:CQ$1041,0))/$EG26 -> -2.142857143e-06 | CR26: =SUM(IF($W$71:$W$1041=$W26,$Y$71:$Y$1041*CR$71:CR$1041,0))/$EG26 -> 0.0005050285714 | CS26: =SUM(IF($W$71:$W$1041=$W26,$Y$71:$Y$1041*CS$71:CS$1041,0))/$EG26 -> 0.000798 | CT26: =SUM(IF($W$71:$W$1041=$W26,$Y$71:$Y$1041*CT$71:CT$1041,0))/$EG26 -> 0.0008355428571 | CU26: =SUM(IF($W$71:$W$1041=$W26,$Y$71:$Y$1041*CU$71:CU$1041,0))/$EG26 -> 0.0007080857143 | CV26: =SUM(IF($W$71:$W$1041=$W26,$Y$71:$Y$1041*CV$71:CV$1041,0))/$EG26 -> 0.0005454 | CW26: =SUM(IF($W$71:$W$1041=$W26,$Y$71:$Y$1041*CW$71:CW$1041,0))/$EG26 -> 0.0004646571429 | CX26: =SUM(IF($W$71:$W$1041=$W26,$Y$71:$Y$1041*CX$71:CX$1041,0))/$EG26 -> 0.0004780285714 | CY26: =SUM(IF($W$71:$W$1041=$W26,$Y$71:$Y$1041*CY$71:CY$1041,0))/$EG26 -> 0.0006247714286 | CZ26: =SUM(IF($W$71:$W$1041=$W26,$Y$71:$Y$1041*CZ$71:CZ$1041,0))/$EG26 -> 0.0008180571429 | DA26: =SUM(IF($W$71:$W$1041=$W26,$Y$71:$Y$1041*DA$71:DA$1041,0))/$EG26 -> 0.0008681142857 | DB26: =SUM(IF($W$71:$W$1041=$W26,$Y$71:$Y$1041*DB$71:DB$1041,0))/$EG26 -> 0.0008063142857 | DC26: =SUM(IF($W$71:$W$1041=$W26,$Y$71:$Y$1041*DC$71:DC$1041,0))/$EG26 -> 0.0006376285714 | DD26: =SUM(IF($W$71:$W$1041=$W26,$Y$71:$Y$1041*DD$71:DD$1041,0))/$EG26 -> 0.0003534 | DE26: =SUM(IF($W$71:$W$1041=$W26,$Y$71:$Y$1041*DE$71:DE$1041,0))/$EG26 -> 4.097142857e-05 | DF26: =SUM(IF($W$71:$W$1041=$W26,$Y$71:$Y$1041*DF$71:DF$1041,0))/$EG26 -> -0.0001710857143 | DG26: =SUM(IF($W$71:$W$1041=$W26,$Y$71:$Y$1041*DG$71:DG$1041,0))/$EG26 -> -7.714285714e-05 | DH26: =SUM(IF($W$71:$W$1041=$W26,$Y$71:$Y$1041*DH$71:DH$1041,0))/$EG26 -> -0.0002238095238 | DI26: =SUM(IF($W$71:$W$1041=$W26,$Y$71:$Y$1041*DI$71:DI$1041,0))/$EG26 -> -0.0005628571429 | DJ26: =SUM(IF($W$71:$W$1041=$W26,$Y$71:$Y$1041*DJ$71:DJ$1041,0))/$EG26 -> -0.0007742857143 | DK26: =SUM(IF($W$71:$W$1041=$W26,$Y$71:$Y$1041*DK$71:DK$1041,0))/$EG26 -> -0.0005942857143 | DL26: =SUM(IF($W$71:$W$1041=$W26,$Y$71:$Y$1041*DL$71:DL$1041,0))/$EG26 -> -0.0006257142857 | DM26: =SUM(IF($W$71:$W$1041=$W26,$Y$71:$Y$1041*DM$71:DM$1041,0))/$EG26 -> -0.0003238095238 | DN26: =SUM(IF($W$71:$W$1041=$W26,$Y$71:$Y$1041*DN$71:DN$1041,0))/$EG26 -> 0.0002295238095 | DO26: =SUM(IF($W$71:$W$1041=$W26,$Y$71:$Y$1041*DO$71:DO$1041,0))/$EG26 -> 0.0005257142857 | DP26: =SUM(IF($W$71:$W$1041=$W26,$Y$71:$Y$1041*DP$71:DP$1041,0))/$EG26 -> 0.001119047619 | DQ26: =SUM(IF($W$71:$W$1041=$W26,$Y$71:$Y$1041*DQ$71:DQ$1041,0))/$EG26 -> 0.001384761905 | DR26: =SUM(IF($W$71:$W$1041=$W26,$Y$71:$Y$1041*DR$71:DR$1041,0))/$EG26 -> 0.001326666667 | DS26: =SUM(IF($W$71:$W$1041=$W26,$Y$71:$Y$1041*DS$71:DS$1041,0))/$EG26 -> 0.001116190476 | DT26: =SUM(IF($W$71:$W$1041=$W26,$Y$71:$Y$1041*DT$71:DT$1041,0))/$EG26 -> 0.00086 | DU26: =SUM(IF($W$71:$W$1041=$W26,$Y$71:$Y$1041*DU$71:DU$1041,0))/$EG26 -> 0.0007076190476 | DV26: =SUM(IF($W$71:$W$1041=$W26,$Y$71:$Y$1041*DV$71:DV$1041,0))/$EG26 -> 0.0006914285714 | DW26: =SUM(IF($W$71:$W$1041=$W26,$Y$71:$Y$1041*DW$71:DW$1041,0))/$EG26 -> 0.0008276190476 | DX26: =SUM(IF($W$71:$W$1041=$W26,$Y$71:$Y$1041*DX$71:DX$1041,0))/$EG26 -> 0.0009685714286 | DY26: =SUM(IF($W$71:$W$1041=$W26,$Y$71:$Y$1041*DY$71:DY$1041,0))/$EG26 -> 0.0009276190476 | DZ26: =SUM(IF($W$71:$W$1041=$W26,$Y$71:$Y$1041*DZ$71:DZ$1041,0))/$EG26 -> 0.0007895238095 | EA26: =SUM(IF($W$71:$W$1041=$W26,$Y$71:$Y$1041*EA$71:EA$1041,0))/$EG26 -> 0.0005438095238 | EB26: =SUM(IF($W$71:$W$1041=$W26,$Y$71:$Y$1041*EB$71:EB$1041,0))/$EG26 -> 0.0002019047619 | EC26: =SUM(IF($W$71:$W$1041=$W26,$Y$71:$Y$1041*EC$71:EC$1041,0))/$EG26 -> -0.000320952381 | ED26: =SUM(IF($W$71:$W$1041=$W26,$Y$71:$Y$1041*ED$71:ED$1041,0))/$EG26 -> -0.001218095238 | EE26: 274 | EF26: 282 | EG26: 1
A27: 1900-12-16 | B27: 1900-12-23 | C27: =IF(24 - MATCH(Pasture!$C$8,table_PeriodStarts,0) < ROW() - ROW($D$4), "* ", "")&TEXT(INDIRECT("$A"&MOD(ROW()-ROW($D$4)+MATCH(Pasture!$C$8,table_PeriodStarts,0) - 1, 24) + ROW($D$4)),"d mmm") -> 16 Dec | D27: =INDIRECT("$A"&MOD(ROW()-ROW($D$4)+MATCH(Pasture!$C$8,table_PeriodStarts,0) - 1, 24) + ROW($D$4)) -> 1900-12-16 | I27: 1.5 | N27: C(L,3) | O27: 0.6 | P27: 0.6 | Q27: 0.6 | R27: 0.6 | S27: 0.6 | T27: 1 | U27: 1 | W27: 24 | X27: VIC - North East (Bonnie Doon) | Y27: -37 | Z27: =SUM(IF($W$71:$W$1041=$W27,$Y$71:$Y$1041*Z$71:Z$1041,0))/$EG27 -> 0.2 | AA27: =SUM(IF($W$71:$W$1041=$W27,$Y$71:$Y$1041*AA$71:AA$1041,0))/$EG27 -> 2.5 | AB27: =SUM(IF($W$71:$W$1041=$W27,$Y$71:$Y$1041*AB$71:AB$1041,0))/$EG27 -> 2.5 | AC27: =SUM(IF($W$71:$W$1041=$W27,$Y$71:$Y$1041*AC$71:AC$1041,0))/$EG27 -> 7.5 | AD27: =SUM(IF($W$71:$W$1041=$W27,$Y$71:$Y$1041*AD$71:AD$1041,0))/$EG27 -> 27.5 | AE27: =SUM(IF($W$71:$W$1041=$W27,$Y$71:$Y$1041*AE$71:AE$1041,0))/$EG27 -> 25 | AF27: =SUM(IF($W$71:$W$1041=$W27,$Y$71:$Y$1041*AF$71:AF$1041,0))/$EG27 -> 17.5 | AG27: =SUM(IF($W$71:$W$1041=$W27,$Y$71:$Y$1041*AG$71:AG$1041,0))/$EG27 -> 17.5 | AH27: =SUM(IF($W$71:$W$1041=$W27,$Y$71:$Y$1041*AH$71:AH$1041,0))/$EG27 -> 25 | AI27: =SUM(IF($W$71:$W$1041=$W27,$Y$71:$Y$1041*AI$71:AI$1041,0))/$EG27 -> 35 | AJ27: =SUM(IF($W$71:$W$1041=$W27,$Y$71:$Y$1041*AJ$71:AJ$1041,0))/$EG27 -> 65 | AK27: =SUM(IF($W$71:$W$1041=$W27,$Y$71:$Y$1041*AK$71:AK$1041,0))/$EG27 -> 17.5 | AL27: =SUM(IF($W$71:$W$1041=$W27,$Y$71:$Y$1041*AL$71:AL$1041,0))/$EG27 -> 5 | AM27: =SUM(IF($W$71:$W$1041=$W27,$Y$71:$Y$1041*AM$71:AM$1041,0))/$EG27 -> 0.6693736264 | AN27: =SUM(IF($W$71:$W$1041=$W27,$Y$71:$Y$1041*AN$71:AN$1041,0))/$EG27 -> 0.6516016484 | AO27: =SUM(IF($W$71:$W$1041=$W27,$Y$71:$Y$1041*AO$71:AO$1041,0))/$EG27 -> 0.6370631868 | AP27: =SUM(IF($W$71:$W$1041=$W27,$Y$71:$Y$1041*AP$71:AP$1041,0))/$EG27 -> 0.624282967 | AQ27: =SUM(IF($W$71:$W$1041=$W27,$Y$71:$Y$1041*AQ$71:AQ$1041,0))/$EG27 -> 0.6111483516 | AR27: =SUM(IF($W$71:$W$1041=$W27,$Y$71:$Y$1041*AR$71:AR$1041,0))/$EG27 -> 0.5991813187 | AS27: =SUM(IF($W$71:$W$1041=$W27,$Y$71:$Y$1041*AS$71:AS$1041,0))/$EG27 -> 0.5972912088 | AT27: =SUM(IF($W$71:$W$1041=$W27,$Y$71:$Y$1041*AT$71:AT$1041,0))/$EG27 -> 0.6380027473 | AU27: =SUM(IF($W$71:$W$1041=$W27,$Y$71:$Y$1041*AU$71:AU$1041,0))/$EG27 -> 0.7042307692 | AV27: =SUM(IF($W$71:$W$1041=$W27,$Y$71:$Y$1041*AV$71:AV$1041,0))/$EG27 -> 0.7435467033 | AW27: =SUM(IF($W$71:$W$1041=$W27,$Y$71:$Y$1041*AW$71:AW$1041,0))/$EG27 -> 0.7681730769 | AX27: =SUM(IF($W$71:$W$1041=$W27,$Y$71:$Y$1041*AX$71:AX$1041,0))/$EG27 -> 0.7771181319 | AY27: =SUM(IF($W$71:$W$1041=$W27,$Y$71:$Y$1041*AY$71:AY$1041,0))/$EG27 -> 0.7786291209 | AZ27: =SUM(IF($W$71:$W$1041=$W27,$Y$71:$Y$1041*AZ$71:AZ$1041,0))/$EG27 -> 0.7786510989 | BA27: =SUM(IF($W$71:$W$1041=$W27,$Y$71:$Y$1041*BA$71:BA$1041,0))/$EG27 -> 0.7806263736 | BB27: =SUM(IF($W$71:$W$1041=$W27,$Y$71:$Y$1041*BB$71:BB$1041,0))/$EG27 -> 0.7844450549 | BC27: =SUM(IF($W$71:$W$1041=$W27,$Y$71:$Y$1041*BC$71:BC$1041,0))/$EG27 -> 0.7879450549 | BD27: =SUM(IF($W$71:$W$1041=$W27,$Y$71:$Y$1041*BD$71:BD$1041,0))/$EG27 -> 0.787228022 | BE27: =SUM(IF($W$71:$W$1041=$W27,$Y$71:$Y$1041*BE$71:BE$1041,0))/$EG27 -> 0.7810274725 | BF27: =SUM(IF($W$71:$W$1041=$W27,$Y$71:$Y$1041*BF$71:BF$1041,0))/$EG27 -> 0.7715961538 | BG27: =SUM(IF($W$71:$W$1041=$W27,$Y$71:$Y$1041*BG$71:BG$1041,0))/$EG27 -> 0.7552884615 | BH27: =SUM(IF($W$71:$W$1041=$W27,$Y$71:$Y$1041*BH$71:BH$1041,0))/$EG27 -> 0.7338489011 | BI27: =SUM(IF($W$71:$W$1041=$W27,$Y$71:$Y$1041*BI$71:BI$1041,0))/$EG27 -> 0.7122087912 | BJ27: =SUM(IF($W$71:$W$1041=$W27,$Y$71:$Y$1041*BJ$71:BJ$1041,0))/$EG27 -> 0.6873406593 | BK27: =SUM(IF($W$71:$W$1041=$W27,$Y$71:$Y$1041*BK$71:BK$1041,0))/$EG27 -> 0.6892142857 | BL27: =SUM(IF($W$71:$W$1041=$W27,$Y$71:$Y$1041*BL$71:BL$1041,0))/$EG27 -> 0.6713571429 | BM27: =SUM(IF($W$71:$W$1041=$W27,$Y$71:$Y$1041*BM$71:BM$1041,0))/$EG27 -> 0.6576428571 | BN27: =SUM(IF($W$71:$W$1041=$W27,$Y$71:$Y$1041*BN$71:BN$1041,0))/$EG27 -> 0.6466428571 | BO27: =SUM(IF($W$71:$W$1041=$W27,$Y$71:$Y$1041*BO$71:BO$1041,0))/$EG27 -> 0.6337142857 | BP27: =SUM(IF($W$71:$W$1041=$W27,$Y$71:$Y$1041*BP$71:BP$1041,0))/$EG27 -> 0.6207857143 | BQ27: =SUM(IF($W$71:$W$1041=$W27,$Y$71:$Y$1041*BQ$71:BQ$1041,0))/$EG27 -> 0.6178928571 | BR27: =SUM(IF($W$71:$W$1041=$W27,$Y$71:$Y$1041*BR$71:BR$1041,0))/$EG27 -> 0.65325 | BS27: =SUM(IF($W$71:$W$1041=$W27,$Y$71:$Y$1041*BS$71:BS$1041,0))/$EG27 -> 0.71175 | BT27: =SUM(IF($W$71:$W$1041=$W27,$Y$71:$Y$1041*BT$71:BT$1041,0))/$EG27 -> 0.75275 | BU27: =SUM(IF($W$71:$W$1041=$W27,$Y$71:$Y$1041*BU$71:BU$1041,0))/$EG27 -> 0.7738571429 | BV27: =SUM(IF($W$71:$W$1041=$W27,$Y$71:$Y$1041*BV$71:BV$1041,0))/$EG27 -> 0.7814642857 | BW27: =SUM(IF($W$71:$W$1041=$W27,$Y$71:$Y$1041*BW$71:BW$1041,0))/$EG27 -> 0.7833928571 | BX27: =SUM(IF($W$71:$W$1041=$W27,$Y$71:$Y$1041*BX$71:BX$1041,0))/$EG27 -> 0.7845357143 | BY27: =SUM(IF($W$71:$W$1041=$W27,$Y$71:$Y$1041*BY$71:BY$1041,0))/$EG27 -> 0.7869285714 | BZ27: =SUM(IF($W$71:$W$1041=$W27,$Y$71:$Y$1041*BZ$71:BZ$1041,0))/$EG27 -> 0.7900714286 | CA27: =SUM(IF($W$71:$W$1041=$W27,$Y$71:$Y$1041*CA$71:CA$1041,0))/$EG27 -> 0.7922857143 | CB27: =SUM(IF($W$71:$W$1041=$W27,$Y$71:$Y$1041*CB$71:CB$1041,0))/$EG27 -> 0.79175 | CC27: =SUM(IF($W$71:$W$1041=$W27,$Y$71:$Y$1041*CC$71:CC$1041,0))/$EG27 -> 0.7875357143 | CD27: =SUM(IF($W$71:$W$1041=$W27,$Y$71:$Y$1041*CD$71:CD$1041,0))/$EG27 -> 0.78 | CE27: =SUM(IF($W$71:$W$1041=$W27,$Y$71:$Y$1041*CE$71:CE$1041,0))/$EG27 -> 0.765 | CF27: =SUM(IF($W$71:$W$1041=$W27,$Y$71:$Y$1041*CF$71:CF$1041,0))/$EG27 -> 0.7469642857 | CG27: =SUM(IF($W$71:$W$1041=$W27,$Y$71:$Y$1041*CG$71:CG$1041,0))/$EG27 -> 0.7271785714 | CH27: =SUM(IF($W$71:$W$1041=$W27,$Y$71:$Y$1041*CH$71:CH$1041,0))/$EG27 -> 0.7036071429 | CI27: =SUM(IF($W$71:$W$1041=$W27,$Y$71:$Y$1041*CI$71:CI$1041,0))/$EG27 -> -0.0006807032967 | CJ27: =SUM(IF($W$71:$W$1041=$W27,$Y$71:$Y$1041*CJ$71:CJ$1041,0))/$EG27 -> -0.0009990527473 | CK27: =SUM(IF($W$71:$W$1041=$W27,$Y$71:$Y$1041*CK$71:CK$1041,0))/$EG27 -> -0.00132783956 | CL27: =SUM(IF($W$71:$W$1041=$W27,$Y$71:$Y$1041*CL$71:CL$1041,0))/$EG27 -> -0.001587784615 | CM27: =SUM(IF($W$71:$W$1041=$W27,$Y$71:$Y$1041*CM$71:CM$1041,0))/$EG27 -> -0.001830046154 | CN27: =SUM(IF($W$71:$W$1041=$W27,$Y$71:$Y$1041*CN$71:CN$1041,0))/$EG27 -> -0.002000940659 | CO27: =SUM(IF($W$71:$W$1041=$W27,$Y$71:$Y$1041*CO$71:CO$1041,0))/$EG27 -> -0.001948061538 | CP27: =SUM(IF($W$71:$W$1041=$W27,$Y$71:$Y$1041*CP$71:CP$1041,0))/$EG27 -> -0.001413151648 | CQ27: =SUM(IF($W$71:$W$1041=$W27,$Y$71:$Y$1041*CQ$71:CQ$1041,0))/$EG27 -> -8.065714286e-05 | CR27: =SUM(IF($W$71:$W$1041=$W27,$Y$71:$Y$1041*CR$71:CR$1041,0))/$EG27 -> 0.0003955978022 | CS27: =SUM(IF($W$71:$W$1041=$W27,$Y$71:$Y$1041*CS$71:CS$1041,0))/$EG27 -> 0.0008302351648 | CT27: =SUM(IF($W$71:$W$1041=$W27,$Y$71:$Y$1041*CT$71:CT$1041,0))/$EG27 -> 0.001052301099 | CU27: =SUM(IF($W$71:$W$1041=$W27,$Y$71:$Y$1041*CU$71:CU$1041,0))/$EG27 -> 0.001121327473 | CV27: =SUM(IF($W$71:$W$1041=$W27,$Y$71:$Y$1041*CV$71:CV$1041,0))/$EG27 -> 0.001121762637 | CW27: =SUM(IF($W$71:$W$1041=$W27,$Y$71:$Y$1041*CW$71:CW$1041,0))/$EG27 -> 0.001195687912 | CX27: =SUM(IF($W$71:$W$1041=$W27,$Y$71:$Y$1041*CX$71:CX$1041,0))/$EG27 -> 0.001307452747 | CY27: =SUM(IF($W$71:$W$1041=$W27,$Y$71:$Y$1041*CY$71:CY$1041,0))/$EG27 -> 0.001424782418 | CZ27: =SUM(IF($W$71:$W$1041=$W27,$Y$71:$Y$1041*CZ$71:CZ$1041,0))/$EG27 -> 0.001414681319 | DA27: =SUM(IF($W$71:$W$1041=$W27,$Y$71:$Y$1041*DA$71:DA$1041,0))/$EG27 -> 0.001266 | DB27: =SUM(IF($W$71:$W$1041=$W27,$Y$71:$Y$1041*DB$71:DB$1041,0))/$EG27 -> 0.001064630769 | DC27: =SUM(IF($W$71:$W$1041=$W27,$Y$71:$Y$1041*DC$71:DC$1041,0))/$EG27 -> 0.0007543912088 | DD27: =SUM(IF($W$71:$W$1041=$W27,$Y$71:$Y$1041*DD$71:DD$1041,0))/$EG27 -> 0.0004110857143 | DE27: =SUM(IF($W$71:$W$1041=$W27,$Y$71:$Y$1041*DE$71:DE$1041,0))/$EG27 -> 8.790989011e-05 | DF27: =SUM(IF($W$71:$W$1041=$W27,$Y$71:$Y$1041*DF$71:DF$1041,0))/$EG27 -> -0.0003734835165 | DG27: =SUM(IF($W$71:$W$1041=$W27,$Y$71:$Y$1041*DG$71:DG$1041,0))/$EG27 -> -0.000520952381 | DH27: =SUM(IF($W$71:$W$1041=$W27,$Y$71:$Y$1041*DH$71:DH$1041,0))/$EG27 -> -0.0009342857143 | DI27: =SUM(IF($W$71:$W$1041=$W27,$Y$71:$Y$1041*DI$71:DI$1041,0))/$EG27 -> -0.001276190476 | DJ27: =SUM(IF($W$71:$W$1041=$W27,$Y$71:$Y$1041*DJ$71:DJ$1041,0))/$EG27 -> -0.00152952381 | DK27: =SUM(IF($W$71:$W$1041=$W27,$Y$71:$Y$1041*DK$71:DK$1041,0))/$EG27 -> -0.001838095238 | DL27: =SUM(IF($W$71:$W$1041=$W27,$Y$71:$Y$1041*DL$71:DL$1041,0))/$EG27 -> -0.002135238095 | DM27: =SUM(IF($W$71:$W$1041=$W27,$Y$71:$Y$1041*DM$71:DM$1041,0))/$EG27 -> -0.002105714286 | DN27: =SUM(IF($W$71:$W$1041=$W27,$Y$71:$Y$1041*DN$71:DN$1041,0))/$EG27 -> -0.001058095238 | DO27: =SUM(IF($W$71:$W$1041=$W27,$Y$71:$Y$1041*DO$71:DO$1041,0))/$EG27 -> 0.0005895238095 | DP27: =SUM(IF($W$71:$W$1041=$W27,$Y$71:$Y$1041*DP$71:DP$1041,0))/$EG27 -> 0.00119047619 | DQ27: =SUM(IF($W$71:$W$1041=$W27,$Y$71:$Y$1041*DQ$71:DQ$1041,0))/$EG27 -> 0.001672380952 | DR27: =SUM(IF($W$71:$W$1041=$W27,$Y$71:$Y$1041*DR$71:DR$1041,0))/$EG27 -> 0.001860952381 | DS27: =SUM(IF($W$71:$W$1041=$W27,$Y$71:$Y$1041*DS$71:DS$1041,0))/$EG27 -> 0.001859047619 | DT27: =SUM(IF($W$71:$W$1041=$W27,$Y$71:$Y$1041*DT$71:DT$1041,0))/$EG27 -> 0.001742857143 | DU27: =SUM(IF($W$71:$W$1041=$W27,$Y$71:$Y$1041*DU$71:DU$1041,0))/$EG27 -> 0.00173047619 | DV27: =SUM(IF($W$71:$W$1041=$W27,$Y$71:$Y$1041*DV$71:DV$1041,0))/$EG27 -> 0.001748571429 | DW27: =SUM(IF($W$71:$W$1041=$W27,$Y$71:$Y$1041*DW$71:DW$1041,0))/$EG27 -> 0.001736190476 | DX27: =SUM(IF($W$71:$W$1041=$W27,$Y$71:$Y$1041*DX$71:DX$1041,0))/$EG27 -> 0.00159047619 | DY27: =SUM(IF($W$71:$W$1041=$W27,$Y$71:$Y$1041*DY$71:DY$1041,0))/$EG27 -> 0.001326666667 | DZ27: =SUM(IF($W$71:$W$1041=$W27,$Y$71:$Y$1041*DZ$71:DZ$1041,0))/$EG27 -> 0.001017142857 | EA27: =SUM(IF($W$71:$W$1041=$W27,$Y$71:$Y$1041*EA$71:EA$1041,0))/$EG27 -> 0.0005695238095 | EB27: =SUM(IF($W$71:$W$1041=$W27,$Y$71:$Y$1041*EB$71:EB$1041,0))/$EG27 -> 0.0001380952381 | EC27: =SUM(IF($W$71:$W$1041=$W27,$Y$71:$Y$1041*EC$71:EC$1041,0))/$EG27 -> -0.0003304761905 | ED27: =SUM(IF($W$71:$W$1041=$W27,$Y$71:$Y$1041*ED$71:ED$1041,0))/$EG27 -> -0.00135047619 | EE27: 283 | EF27: 302 | EG27: 1
